Workbook

Sheet GUIDE
A1: Petunjuk Penggunaan Aplikasi Rapor versi 7.00 revisi
A2: 1. | B2: Rename terlebih dahulu file hasil unduhan dari server agar tidak tumpang tindih, beri nama file dengan format "Rapor_Kelas XX_Nama Walikelas", contoh "Rapor Kelas XII DPIB 1 Rangga Adlan"
A3: 2. | B3: Jalankan Macro dengan memilih Enable Content pada saat Excel pertama kali dibuka
A4: 3. | B4: Sebelum mengisi nilai rapor, isi atau edit terlebih dahulu data-data yang ada di menu utama, yakni Data Struktur Kurikulum, Data Kepala Sekolah dan Titimangsa Rapor
A5: 4. | B5: Pada menu EDIT DATA RAPOR, pilih tombol menu BIODATA SISWA untuk mengedit data siswa yang akan menjadi data dasar Aplikasi Rapor ini, sehingga bisa mencetak Cover, Petunjuk dan Ket. Diri serta Prestasi dan Ket. Pindah
A6: 5. | B6: Gunakan menu DESKRIPSI NILAI jika menginginkan Deskripsi Nilai diisi secara manual tidak muncul otomatis hasil formulasi Excel
A7: 6. | B7: Pada menu INPUT RAPOR, pilih tombol semester untuk mengisi nilai rapor sesuai dengan semester yang akan digunakan
A8: 7. | B8: Pada halaman INPUT NILAI, yang harus diisi adalah URUTAN MAPEL, KB (KETUNTASAN BELAJAR) dan NILAI-NILAI serta data lainnya sampai kolom KEHADIRAN pada range cell D8:DK52, serta isilah peringkat secara manual pada kolom DU dengan referensi peringkat yang ditunjukkan pada kolom DT
A9: 8. | B9: Saat pengeditan INPUT NILAI, gunakan selalu COPY-PASTE SPECIAL-VALUES untuk menghindari berubahnya format cell. Jika ada data yang tidak diperlukan, mohon beri tanda strip (-). Contoh pada nilai semester 1 mapel kelompok C3 tidak digunakan, pada kolom nilainya beri tanda strip. Contoh lainnya siswa hanya ikut 1 kegiatan eskstrakurikuler, maka pada kolom Kegiatan Ekstrakurikuler kedua beri tanda strip. Jangan pernah menggunakan DELETE KOLOM
A10: 9. | B10: Gunakan menu OUTPUT RAPOR untuk mencetak rapor per semesternya
A11: 10. | B11: Pada halaman CETAK RAPOR, kolom mapel yang tidak digunakan, silahkan HIDE saja jangan di-DELETE agar tidak ada error dan tampilan cetak cukup di kertas A4, 2 halaman saja per siswa
A12: 11. | B12: Gunakan menu OUTPUT LEGGER untuk mencetak legger dalam 1 lembar kertas A4
A14: Hal-hal penting penggunaan
A15: a)
A37: b)
A66: c)

Sheet BIODATA
A1: BIODATA SISWA
A2: NO. URUT | B2: NO SERI RAPOR | C2: NAMA SISWA | D2: NIS | E2: NISN | F2: Tempat, Tanggal Lahir | G2: Jenis Kelamin | H2: Agama | I2: Status dalam Keluarga | J2: Anak Ke | K2: Alamat Siswa | M2: No. Telp. Siswa/ Rumah | N2: Sekolah Asal | O2: Diterima di Sekolah ini | Q2: Nama Orang Tua | S2: Alamat Orang Tua | U2: No.Telp. Rumah/Ortu | V2: Pekerjaan Orang Tua | X2: Nama Wali Siswa | Y2: Alamat Wali Siswa | AA2: No.Telp. Wali Siswa | AB2: Pekerjaan Wali Siswa
K3: Jl. & Kelurahan | L3: Kecamatan & Kabupaten | O3: Di Kelas | P3: Pada Tanggal | Q3: Ayah | R3: Ibu | S3: Jln & Kelurahan | T3: Kecamatan & Kabupaten | V3: Ayah | W3: Ibu | Y3: Jln & Kelurahan | Z3: Kecamatan & Kabupaten
A4: 1 | B4: =A4+1 -> 2 | C4: =B4+1 -> 3 | D4: =C4+1 -> 4 | E4: 5 | F4: 6 | G4: 7 | H4: 8 | I4: 9 | J4: 10 | K4: 11 | L4: 12 | M4: 13 | N4: 14 | O4: 15 | P4: 16 | Q4: 17 | R4: 18 | S4: 19 | T4: 20 | U4: 21 | V4: 22 | W4: 23 | X4: 24 | Y4: 25 | Z4: 26 | AA4: 27 | AB4: 28
A5: 1 | C5: AGHNIA SYAFIRA | D5: 13140767 | E5: 9986230059 | F5: Jakarta, 30 Mei 1998 | G5: Perempuan | H5: Islam | I5: Anak Kandung | J5: 1 dari 2 | K5: Jl. Niaga No. 564 | L5: Kecamatan Karawang Barat, Kabupaten Karawang | M5: (0267) 511123 | N5: SMPN 1 Karawang | O5: X | P5: 2022-07-22 | Q5: Abi | R5: Umi | S5: Jl. Niaga No. 564 | T5: Kecamatan Karawang Barat, Kabupaten Karawang | U5: 0812345678 | V5: PNS | W5: PNS | X5: - | Y5: - | Z5: - | AA5: - | AB5: -
A6: 2 | C6: AL KINDI | D6: 13140768 | E6: 9973289804 | F6: Bukittinggi, 18 Desember 1997 | G6: Laki-laki | H6: Islam | I6: Anak Kandung | J6: 1 dari 2 | X6: - | Y6: - | Z6: - | AA6: - | AB6: -
A7: 3 | C7: ALFIAN MULYADI NATA | D7: 13140769 | E7: 9984697431 | F7: Brebes, 10 April 1998 | G7: Laki-laki | H7: Islam | I7: Anak Kandung | J7: 1 dari 2 | X7: - | Y7: - | Z7: - | AA7: - | AB7: -
A8: 4 | C8: ALFIANA WAHYU ATMADJA | D8: 13140770 | E8: 9984877758 | F8: Karawang, 3 September 1998 | G8: Laki-laki | H8: Islam | I8: Anak Kandung | J8: 1 dari 2 | X8: - | Y8: - | Z8: - | AA8: - | AB8: -
A9: 5 | C9: ASEP DODO ROHENDI | D9: 13140771 | E9: 9979804734 | F9: Karawang, 17 November 1997 | G9: Laki-laki | H9: Islam | I9: Anak Kandung | J9: 1 dari 2 | X9: - | Y9: - | Z9: - | AA9: - | AB9: -
A10: 6 | C10: BILLY RIZKI JHONATHAN | D10: 13140772 | E10: 9975460320 | F10: Karawang, 06 September 1997 | G10: Laki-laki | H10: Islam | I10: Anak Kandung | J10: 1 dari 2 | X10: - | Y10: - | Z10: - | AA10: - | AB10: -
A11: 7 | C11: CAHYASARI RAMADHANTY | D11: 13140773 | E11: 9984696452 | F11: Yogyakarta, 13 Januari 1998 | G11: Perempuan | H11: Islam | I11: Anak Kandung | J11: 1 dari 2 | X11: - | Y11: - | Z11: - | AA11: - | AB11: -
A12: 8 | X12: - | Y12: - | Z12: - | AA12: - | AB12: -
A13: 9 | X13: - | Y13: - | Z13: - | AA13: - | AB13: -
A14: 10 | X14: - | Y14: - | Z14: - | AA14: - | AB14: -
A15: 11 | X15: - | Y15: - | Z15: - | AA15: - | AB15: -
A16: 12 | X16: - | Y16: - | Z16: - | AA16: - | AB16: -
A17: 13 | X17: - | Y17: - | Z17: - | AA17: - | AB17: -
A18: 14 | X18: - | Y18: - | Z18: - | AA18: - | AB18: -
A19: 15 | X19: - | Y19: - | Z19: - | AA19: - | AB19: -
A20: 16 | X20: - | Y20: - | Z20: - | AA20: - | AB20: -
A21: 17 | X21: - | Y21: - | Z21: - | AA21: - | AB21: -
A22: 18 | X22: - | Y22: - | Z22: - | AA22: - | AB22: -
A23: 19 | X23: - | Y23: - | Z23: - | AA23: - | AB23: -
A24: 20 | X24: - | Y24: - | Z24: - | AA24: - | AB24: -
A25: 21 | X25: - | Y25: - | Z25: - | AA25: - | AB25: -
A26: 22 | X26: - | Y26: - | Z26: - | AA26: - | AB26: -
A27: 23 | X27: - | Y27: - | Z27: - | AA27: - | AB27: -
A28: 24 | X28: - | Y28: - | Z28: - | AA28: - | AB28: -
A29: 25 | X29: - | Y29: - | Z29: - | AA29: - | AB29: -
A30: 26 | X30: - | Y30: - | Z30: - | AA30: - | AB30: -
A31: 27 | X31: - | Y31: - | Z31: - | AA31: - | AB31: -
A32: 28 | X32: - | Y32: - | Z32: - | AA32: - | AB32: -
A33: 29 | X33: - | Y33: - | Z33: - | AA33: - | AB33: -
A34: 30 | X34: - | Y34: - | Z34: - | AA34: - | AB34: -
A35: 31 | X35: - | Y35: - | Z35: - | AA35: - | AB35: -
A36: 32 | X36: - | Y36: - | Z36: - | AA36: - | AB36: -
A37: 33 | X37: - | Y37: - | Z37: - | AA37: - | AB37: -
A38: 34 | X38: - | Y38: - | Z38: - | AA38: - | AB38: -
A39: 35 | X39: - | Y39: - | Z39: - | AA39: - | AB39: -
A40: 36 | X40: - | Y40: - | Z40: - | AA40: - | AB40: -
A41: - | X41: - | Y41: - | Z41: - | AA41: - | AB41: -
A42: - | X42: - | Y42: - | Z42: - | AA42: - | AB42: -
A43: - | X43: - | Y43: - | Z43: - | AA43: - | AB43: -
A44: - | X44: - | Y44: - | Z44: - | AA44: - | AB44: -
A45: - | X45: - | Y45: - | Z45: - | AA45: - | AB45: -
A46: - | E46: - | F46: - | X46: - | Y46: - | Z46: - | AA46: - | AB46: -
A47: - | E47: - | F47: - | X47: - | Y47: - | Z47: - | AA47: - | AB47: -
A48: - | E48: - | F48: - | X48: - | Y48: - | Z48: - | AA48: - | AB48: -
A49: - | E49: - | F49: - | X49: - | Y49: - | Z49: - | AA49: - | AB49: -

Sheet COVER
D2: RAPOR SISWA
D3: SEKOLAH MENENGAH KEJURUAN
D4: (SMK)
L6: HALAMAN CETAK
L7: Dari data ke | M7: 12
L9: Sampai data ke | M9: 12
L13: TAMPILAN DATA
L14: Nomor Urut | M14: 1
A23: Nama Siswa :
A25: =VLOOKUP($M$14,TABBIODATA,BIODATA!C4) -> AGHNIA SYAFIRA
A30: NIS / NISN :
A32: =IF(VLOOKUP($M$14,TABBIODATA,BIODATA!E4)="",VLOOKUP($M$14,TABBIODATA,BIODATA!D4),VLOOKUP($M$14,TABBIODATA,BIODATA!D4)&" / "&VLOOKUP($M$14,TABBIODATA,BIODATA!E4)) -> 13140767 / 9986230059
D36: KEMENTERIAN PENDIDIKAN DAN KEBUDAYAAN
D37: REPUBLIK INDONESIA | L37: ="Nomor Urut "&M14 -> Nomor Urut 1

Sheet KET.PETUNJUK
D1: =COVER!D2 -> RAPOR SISWA | J1: PETUNJUK PENGISIAN | AB1: KETERANGAN TENTANG DIRI SISWA
D2: =COVER!D3 -> SEKOLAH MENENGAH KEJURUAN
D3: =COVER!D4 -> (SMK) | S3: 16 | T3: Laporan Ekstrakurikuler diisi berdasarkan kegiatan ekstrakurikuler yang diikuti oleh siswa; | AB3: 1. | AC3: Nama Siswa (Lengkap) | AE3: : | AF3: =VLOOKUP($AO$14,TABBIODATA,BIODATA!C4) -> AL KINDI
J4: 1 | K4: Rapor merupakan ringkasan hasil penilaian terhadap seluruh aktivitas pembelajaran yang dilakukan siswa dalam kurun waktu tertentu; | S4: 17 | T4: Saran-saran wali kelas diisi berdasarkan kegiatan yang perlu mendapatkan perhatian siswa; | AB4: 2. | AC4: Nomor Induk Siswa/NISN | AE4: : | AF4: =IF(VLOOKUP($AO$14,TABBIODATA,BIODATA!E4)="",VLOOKUP($AO$14,TABBIODATA,BIODATA!D4),VLOOKUP($AO$14,TABBIODATA,BIODATA!D4)&" / "&VLOOKUP($AO$14,TABBIODATA,BIODATA!E4)) -> 13140768 / 9973289804
S5: 18 | T5: Prestasi diisi dengan prestasi yang dicapai oleh siswa dalam bidang akademik dan non akademik; | AB5: 3. | AC5: Tempat Tanggal Lahir | AE5: : | AF5: =VLOOKUP($AO$14,TABBIODATA,BIODATA!F4) -> Bukittinggi, 18 Desember 1997 | AH5: =VLOOKUP($AO$14,TABBIODATA,BIODATA!D6) ->  | AI5: =VLOOKUP($AO$14,TABBIODATA,BIODATA!E6) ->  | AJ5: =VLOOKUP($AO$14,TABBIODATA,BIODATA!G6) -> 
J6: 2 | K6: Rapor dipergunakan selama siswa yang bersangkutan mengikuti seluruh program pembelajaran di Sekolah Menengah Kejuruan tersebut; | AB6: 4. | AC6: Jenis Kelamin | AE6: : | AF6: =VLOOKUP($AO$14,TABBIODATA,BIODATA!G4) -> Laki-laki | AH6: =VLOOKUP($AO$14,TABBIODATA,BIODATA!D7) ->  | AI6: =VLOOKUP($AO$14,TABBIODATA,BIODATA!E7) ->  | AJ6: =VLOOKUP($AO$14,TABBIODATA,BIODATA!G7) ->  | AN6: HALAMAN CETAK
S7: 19 | T7: Ketidakhadiran diisi dengan data akumulasi ketidakhadiran siswa karena sakit, izin, atau tanpa keterangan selama satu semester. | AB7: 5. | AC7: Agama | AE7: : | AF7: =VLOOKUP($AO$14,TABBIODATA,BIODATA!H4) -> Islam | AH7: =VLOOKUP($AO$14,TABBIODATA,BIODATA!D8) ->  | AI7: =VLOOKUP($AO$14,TABBIODATA,BIODATA!E8) ->  | AJ7: =VLOOKUP($AO$14,TABBIODATA,BIODATA!G8) ->  | AN7: Dari data ke | AO7: 12
J8: 3 | K8: Identitas Sekolah diisi dengan data yang sesuai dengan keberadaan Sekolah Menengah Kejuruan; | AB8: 6. | AC8: Status dalam Keluarga | AE8: : | AF8: =VLOOKUP($AO$14,TABBIODATA,BIODATA!I4) -> Anak Kandung | AH8: =VLOOKUP($AO$14,TABBIODATA,BIODATA!D9) ->  | AI8: =VLOOKUP($AO$14,TABBIODATA,BIODATA!E9) ->  | AJ8: =VLOOKUP($AO$14,TABBIODATA,BIODATA!G9) -> 
S9: 20 | T9: Tanggapan orang tua/wali adalah tanggapan atas pencapaian hasil belajar siswa. | AB9: 7. | AC9: Anak ke | AE9: : | AF9: =VLOOKUP($AO$14,TABBIODATA,BIODATA!J4) -> 1 dari 2 | AH9: =VLOOKUP($AO$14,TABBIODATA,BIODATA!D10) ->  | AI9: =VLOOKUP($AO$14,TABBIODATA,BIODATA!E10) ->  | AJ9: =VLOOKUP($AO$14,TABBIODATA,BIODATA!G10) ->  | AN9: Sampai data ke | AO9: 12
J10: 4 | K10: Keterangan tentang diri Siswa diisi lengkap; | S10: 21 | T10: Keterangan pindah keluar sekolah diisi dengan alasan kepindahan. Sedangkan pindah masuk diisi dengan sekolah asal. | AB10: 8. | AC10: Alamat Siswa | AE10: : | AF10: =VLOOKUP($AO$14,TABBIODATA,BIODATA!K4) -> 0 | AH10: =VLOOKUP($AO$14,TABBIODATA,BIODATA!D11) ->  | AI10: =VLOOKUP($AO$14,TABBIODATA,BIODATA!E11) ->  | AJ10: =VLOOKUP($AO$14,TABBIODATA,BIODATA!G11) -> 
J11: 5 | K11: Rapor harus dilengkapi dengan pas foto berwarna (3 x 4) dan pengisiannya dilakukan oleh Wali Kelas; | AF11: =VLOOKUP($AO$14,TABBIODATA,BIODATA!L4) -> 0 | AH11: =VLOOKUP($AO$14,TABBIODATA,BIODATA!D12) ->  | AI11: =VLOOKUP($AO$14,TABBIODATA,BIODATA!E12) ->  | AJ11: =VLOOKUP($AO$14,TABBIODATA,BIODATA!G12) -> 
AB12: 9. | AC12: Nomor Telepon Rumah | AE12: : | AF12: =VLOOKUP($AO$14,TABBIODATA,BIODATA!M4) -> 0 | AH12: =VLOOKUP($AO$14,TABBIODATA,BIODATA!D13) ->  | AI12: =VLOOKUP($AO$14,TABBIODATA,BIODATA!E13) ->  | AJ12: =VLOOKUP($AO$14,TABBIODATA,BIODATA!G13) -> 
J13: 6 | K13: Deskripsi sikap spiritual diambil dari hasil observasi terutama pada mata pelajaran Pendidikan Agama dan Budi pekerti, dan PPKn; | AB13: 10. | AC13: Sekolah Asal | AE13: : | AF13: =VLOOKUP($AO$14,TABBIODATA,BIODATA!N4) -> 0 | AH13: =VLOOKUP($AO$14,TABBIODATA,BIODATA!D14) ->  | AI13: =VLOOKUP($AO$14,TABBIODATA,BIODATA!E14) ->  | AJ13: =VLOOKUP($AO$14,TABBIODATA,BIODATA!G14) ->  | AN13: TAMPILAN DATA
AB14: 11. | AC14: Diterima di sekolah ini | AN14: Nomor Urut | AO14: 2
J15: 7 | K15: Deskripsi sikap sosial diambil dari hasil observasi pada semua mata pelajaran; | AC15: Di kelas | AE15: : | AF15: =VLOOKUP($AO$14,TABBIODATA,BIODATA!O4) -> 0 | AH15: =VLOOKUP($AO$14,TABBIODATA,BIODATA!D16) ->  | AI15: =VLOOKUP($AO$14,TABBIODATA,BIODATA!E16) ->  | AJ15: =VLOOKUP($AO$14,TABBIODATA,BIODATA!G16) -> 
J16: 8 | K16: Deskripsi pada kompetensi sikap ditulis dengan kalimat positif untuk aspek yang sangat baik atau kurang baik; | AC16: Pada tanggal | AE16: : | AF16: =VLOOKUP($AO$14,TABBIODATA,BIODATA!P4) -> 00:00:00 | AH16: =VLOOKUP($AO$14,TABBIODATA,BIODATA!D17) ->  | AI16: =VLOOKUP($AO$14,TABBIODATA,BIODATA!E17) ->  | AJ16: =VLOOKUP($AO$14,TABBIODATA,BIODATA!G17) -> 
AB17: 12. | AC17: Nama Orang Tua
B18: Bidang Keahlian | C18: : | D18: =VLOOKUP(MENU!I8,TAB_JURUSAN,2,FALSE) -> TEKNOLOGI INFORMASI DAN KOMUNIKASI | J18: 9 | K18: Capaian siswa dalam kompetensi pengetahuan dan kompetensi keterampilan ditulis dalam bentuk angka, predikat dan deskripsi untuk masing-masing mata pelajaran; | AC18: a. Ayah | AE18: : | AF18: =VLOOKUP($AO$14,TABBIODATA,BIODATA!Q4) -> 0 | AH18: =VLOOKUP($AO$14,TABBIODATA,BIODATA!D19) ->  | AI18: =VLOOKUP($AO$14,TABBIODATA,BIODATA!E19) ->  | AJ18: =VLOOKUP($AO$14,TABBIODATA,BIODATA!G19) -> 
B19: Program Keahlian | C19: : | D19: =VLOOKUP(MENU!I8,TAB_JURUSAN,3,FALSE) -> TEKNIK KOMPUTER DAN INFORMATIKA | AC19: b. Ibu | AE19: : | AF19: =VLOOKUP($AO$14,TABBIODATA,BIODATA!R4) -> 0 | AH19: =VLOOKUP($AO$14,TABBIODATA,BIODATA!D20) ->  | AI19: =VLOOKUP($AO$14,TABBIODATA,BIODATA!E20) ->  | AJ19: =VLOOKUP($AO$14,TABBIODATA,BIODATA!G20) -> 
B20: Paket Keahlian | C20: : | D20: =VLOOKUP(MENU!I8,TAB_JURUSAN,4,FALSE) -> TEKNIK KOMPUTER JARINGAN | J20: 10 | K20: Predikat ditulis dalam bentuk huruf sesuai kriteria; | AB20: 13. | AC20: Alamat Orang Tua | AE20: : | AF20: =VLOOKUP($AO$14,TABBIODATA,BIODATA!S4) -> 0 | AH20: =VLOOKUP($AO$14,TABBIODATA,BIODATA!D21) ->  | AI20: =VLOOKUP($AO$14,TABBIODATA,BIODATA!E21) ->  | AJ20: =VLOOKUP($AO$14,TABBIODATA,BIODATA!G21) -> 
J21: 11 | K21: Kolom KKM (Kriteria Ketuntasan Minimal) merupakan acuan bagi kriteria kenaikan kelas sehingga wali kelas wajib menerangkan konsekuensi ketuntasan belajar tersebut kepada orang tua/wali; | AF21: =VLOOKUP($AO$14,TABBIODATA,BIODATA!T4) -> 0 | AH21: =VLOOKUP($AO$14,TABBIODATA,BIODATA!D22) ->  | AI21: =VLOOKUP($AO$14,TABBIODATA,BIODATA!E22) ->  | AJ21: =VLOOKUP($AO$14,TABBIODATA,BIODATA!G22) -> 
B22: Nama Sekolah | C22: : | D22: SMKN 1 KARAWANG | AC22: Nomor Telepon Rumah | AE22: : | AF22: =VLOOKUP($AO$14,TABBIODATA,BIODATA!U4) -> 0 | AH22: =VLOOKUP($AO$14,TABBIODATA,BIODATA!D23) ->  | AI22: =VLOOKUP($AO$14,TABBIODATA,BIODATA!E23) ->  | AJ22: =VLOOKUP($AO$14,TABBIODATA,BIODATA!G23) -> 
B23: NIS / NSS / NDS | C23: : | D23: 311022105084 | AB23: 14. | AC23: Pekerjaan Orang Tua
B24: Alamat Sekolah | C24: : | D24: Jl.Pangkal Perjuangan By Pass Karawang | J24: 12 | K24: Batas bawah predikat C adalah nilai KKM; | AC24: a. Ayah | AE24: : | AF24: =VLOOKUP($AO$14,TABBIODATA,BIODATA!V4) -> 0 | AH24: =VLOOKUP($AO$14,TABBIODATA,BIODATA!D25) ->  | AI24: =VLOOKUP($AO$14,TABBIODATA,BIODATA!E25) ->  | AJ24: =VLOOKUP($AO$14,TABBIODATA,BIODATA!G25) -> 
C25: : | D25: Telp. (0267) 401651 Fax. 417258 | J25: 13 | K25: Rentang predikat capaian kompetensi dapat dihitung dengan cara : | AC25: b. Ibu | AE25: : | AF25: =VLOOKUP($AO$14,TABBIODATA,BIODATA!W4) -> 0 | AH25: =VLOOKUP($AO$14,TABBIODATA,BIODATA!D26) ->  | AI25: =VLOOKUP($AO$14,TABBIODATA,BIODATA!E26) ->  | AJ25: =VLOOKUP($AO$14,TABBIODATA,BIODATA!G26) -> 
B26: Desa / Kelurahan | C26: : | D26: Tanjungpura | K26: Rentang = 100 – nilai KKM | AB26: 15. | AC26: Nama Wali Siswa | AE26: : | AF26: =VLOOKUP($AO$14,TABBIODATA,BIODATA!X4) -> - | AH26: =VLOOKUP($AO$14,TABBIODATA,BIODATA!D27) ->  | AI26: =VLOOKUP($AO$14,TABBIODATA,BIODATA!E27) ->  | AJ26: =VLOOKUP($AO$14,TABBIODATA,BIODATA!G27) -> 
B27: Kecamatan | C27: : | D27: Karawang Barat | K27: 3 | AB27: 16. | AC27: Alamat Wali Siswa | AE27: : | AF27: =VLOOKUP($AO$14,TABBIODATA,BIODATA!Y4) -> - | AH27: =VLOOKUP($AO$14,TABBIODATA,BIODATA!D28) ->  | AI27: =VLOOKUP($AO$14,TABBIODATA,BIODATA!E28) ->  | AJ27: =VLOOKUP($AO$14,TABBIODATA,BIODATA!G28) -> 
B28: Kota / Kabupaten | C28: : | D28: Karawang | K28: Contoh : | AF28: =VLOOKUP($AO$14,TABBIODATA,BIODATA!Z4) -> - | AH28: =VLOOKUP($AO$14,TABBIODATA,BIODATA!D29) ->  | AI28: =VLOOKUP($AO$14,TABBIODATA,BIODATA!E29) ->  | AJ28: =VLOOKUP($AO$14,TABBIODATA,BIODATA!G29) -> 
B29: Provinsi | C29: : | D29: Jawa Barat | K29: 100 – 78 = 22 = 7,33 | AC29: Nomor Telepon Rumah | AE29: : | AF29: =VLOOKUP($AO$14,TABBIODATA,BIODATA!AA4) -> - | AH29: =VLOOKUP($AO$14,TABBIODATA,BIODATA!D30) ->  | AI29: =VLOOKUP($AO$14,TABBIODATA,BIODATA!E30) ->  | AJ29: =VLOOKUP($AO$14,TABBIODATA,BIODATA!G30) -> 
B30: Website | C30: : | D30: www.smkn1karawang.net | K30: 3 3 | AB30: 17. | AC30: Pekerjaan Wali Siswa | AE30: : | AF30: =VLOOKUP($AO$14,TABBIODATA,BIODATA!AB4) -> - | AH30: =VLOOKUP($AO$14,TABBIODATA,BIODATA!D31) ->  | AI30: =VLOOKUP($AO$14,TABBIODATA,BIODATA!E31) ->  | AJ30: =VLOOKUP($AO$14,TABBIODATA,BIODATA!G31) -> 
B31: email | C31: : | D31: infocenter@smkn1karawang.net
K32: Setelah dibulatkan maka rentang predikat ada pada 7 atau 8.
K33: Maka rentang predikatnya : | AH33: =AF16 -> 00:00:00
K34: Sangat Baik (A) : 94-100 | AH34: Kepala Sekolah,
K35: Baik (B) : 86-93
K36: Cukup (C) : 78-85
K37: Kurang (D) : ≤ 7
J38: 14 | K38: Deskripsi pada kompetensi pengetahuan dan kompetensi keterampilan ditulis dengan kalimat positif sesuai capaian tertinggi dan terendah yang diperoleh siswa. Apabila capaian kompetensi dasar yang diperoleh dalam muatan pelajaran itu sama, kolom deskripsi ditulis berdasarkan capaian yang diperoleh;
AH39: =MENU!P8 -> Drs. Agus Rukmawan, S.IP, MM
AH40: ="NIP "&MENU!P9 -> NIP 19611111 198603 1 008
J42: 15 | K42: Laporan Praktik Kerja Lapangan diisi berdasarkan kegiatan praktik kerja yang diikuti oleh siswa di industri/perusahaan mitra;
I47: =(100-77)/3 -> 7.666666667 | K47: 100 – 77 = 23 = 7,67
K48: 3 3
K50: Setelah dibulatkan maka rentang predikat ada pada 7 atau 8.
K51: Maka rentang predikatnya :
K52: Sangat Baik (A) : 93-100
K53: Baik (B) : 85-92
K54: Cukup (C) : 77-84
K55: Kurang (D) : ≤ 76
AO57: 12
K59: 100 – 78 = 22 = 7,33
K60: 3 3
K62: Setelah dibulatkan maka rentang predikat ada pada 7 atau 8.
K63: Maka rentang predikatnya :
K64: Sangat Baik (A) : 93-100
K65: Baik (B) : 86-92
K66: Cukup (C) : 79-85
K67: Kurang (D) : ≤ 78
K70: 100 – 75 = 25 = 8,33
K71: 3 3
K73: Setelah dibulatkan maka rentang predikat ada pada 8 atau 9.
K74: Maka rentang predikatnya :
K75: Sangat Baik (A) : 93-100
K76: Baik (B) : 84-92
K77: Cukup (C) : 75-83
K78: Kurang (D) : ≤ 74
AO147: 12

Sheet PINDAH.PRES
A1: KETERANGAN PINDAH SEKOLAH | G1: KETERANGAN PINDAH SEKOLAH | N1: CATATAN PRESTASI YANG PERNAH DICAPAI
A3: Nama Siswa | D3: : | E3: =VLOOKUP($Y$14,TABBIODATA,BIODATA!C4) -> ALFIAN MULYADI NATA | G3: Nama Siswa | I3: : | J3: =VLOOKUP($Y$14,TABBIODATA,BIODATA!C4) -> ALFIAN MULYADI NATA | O3: Nama Siswa | R3: : | S3: =VLOOKUP($Y$14,TABBIODATA,BIODATA!C4) -> ALFIAN MULYADI NATA
O4: Nama Sekolah | R4: : | S4: SMKN 1 KARAWANG
A5: KELUAR | G5: NO. | H5: MASUK | O5: Nomor Induk | R5: : | S5: =VLOOKUP($Y$14,TABBIODATA,BIODATA!D4) -> 13140769 | X5: HALAMAN CETAK
A6: Tanggal | C6: Kelas yang Ditinggalkan | D6: Sebab-sebab Keluar atau Atas Permintaan (Tertulis) | F6: Tanda Tangan Kepala Sekolah, Stempel Sekolah, dan Tanda Tangan Orang Tua / Wali | M6: ............................, .................
G7: 1 | H7: Nama Siswa | J7: =VLOOKUP($Y$14,TABBIODATA,BIODATA!C4,FALSE) -> ALFIAN MULYADI NATA | M7: Kepala Sekolah, | N7: No. | O7: Prestasi yang Pernah Dicapai | R7: Keterangan | X7: Dari data ke | Y7: 12
F8: ............................, ................. | N8: 1 | O8: Kurikuler | R8: .....................................................................................................................................
F9: Kepala Sekolah, | G9: 2 | H9: Nomor Induk / NISN | J9: =IF(VLOOKUP($Y$14,TABBIODATA,BIODATA!E4)="",VLOOKUP($Y$14,TABBIODATA,BIODATA!D4),VLOOKUP($Y$14,TABBIODATA,BIODATA!D4)&" / "&VLOOKUP($Y$14,TABBIODATA,BIODATA!E4)) -> 13140769 / 9984697431 | R9: ..................................................................................................................................... | X9: Sampai data ke | Y9: 12
G10: 3 | H10: Nama Sekolah Asal | J10: SMKN 1 KARAWANG | M10: ............................................... | R10: .....................................................................................................................................
G11: 4 | H11: Masuk Di sekolah ini | M11: NIP. ........................................ | R11: .....................................................................................................................................
F12: ............................................... | H12: a. Tanggal | J12: =VLOOKUP($Y$14,TABBIODATA,BIODATA!P4) -> 00:00:00 | R12: .....................................................................................................................................
F13: NIP. ........................................ | H13: b. Di Kelas | J13: =VLOOKUP($Y$14,TABBIODATA,BIODATA!O4) -> 0 | R13: ..................................................................................................................................... | X13: TAMPILAN DATA
G14: 5 | H14: Tahun Pelajaran | J14: 2015/2016 | R14: ..................................................................................................................................... | X14: Nomor Urut | Y14: 3
F15: Orang Tua/Wali, | R15: .....................................................................................................................................
R16: .....................................................................................................................................
R17: .....................................................................................................................................
F18: ............................................... | M18: ............................, ................. | R18: .....................................................................................................................................
G19: 1 | H19: Nama Siswa | J19: ……………………………… | M19: Kepala Sekolah, | R19: .....................................................................................................................................
F20: ............................, ................. | J20: ……………………………… | N20: 2 | O20: Ekstra Kurikuler | R20: .....................................................................................................................................
F21: Kepala Sekolah, | G21: 2 | H21: Nomor Induk / NISN | J21: ……………………………… | R21: .....................................................................................................................................
G22: 3 | H22: Nama Sekolah Asal | J22: ……………………………… | M22: ............................................... | R22: .....................................................................................................................................
G23: 4 | H23: Masuk Di sekolah ini | J23: ……………………………… | M23: NIP. ........................................ | R23: .....................................................................................................................................
F24: ............................................... | H24: a. Tanggal | J24: ……………………………… | R24: .....................................................................................................................................
F25: NIP. ........................................ | H25: b. Di Kelas | J25: ……………………………… | R25: .....................................................................................................................................
G26: 5 | H26: Tahun Pelajaran | J26: ……………………………… | R26: .....................................................................................................................................
F27: Orang Tua/Wali, | R27: .....................................................................................................................................
R28: .....................................................................................................................................
R29: .....................................................................................................................................
F30: ............................................... | M30: ............................, ................. | R30: .....................................................................................................................................
G31: 1 | H31: Nama Siswa | J31: ……………………………… | M31: Kepala Sekolah, | R31: .....................................................................................................................................
F32: ............................, ................. | J32: ……………………………… | N32: 3 | O32: Catatan Khusus | R32: .....................................................................................................................................
F33: Kepala Sekolah, | G33: 2 | H33: Nomor Induk / NISN | J33: ……………………………… | O33: Lainnya | R33: .....................................................................................................................................
G34: 3 | H34: Nama Sekolah Asal | J34: ……………………………… | M34: ............................................... | R34: .....................................................................................................................................
G35: 4 | H35: Masuk Di sekolah ini | J35: ……………………………… | M35: NIP. ........................................ | R35: .....................................................................................................................................
F36: ............................................... | H36: a. Tanggal | J36: ……………………………… | R36: .....................................................................................................................................
F37: NIP. ........................................ | H37: b. Di Kelas | J37: ……………………………… | R37: .....................................................................................................................................
G38: 5 | H38: Tahun Pelajaran | J38: ……………………………… | R38: .....................................................................................................................................
F39: Orang Tua/Wali, | R39: .....................................................................................................................................
R40: .....................................................................................................................................
R41: .....................................................................................................................................
F42: ............................................... | R42: .....................................................................................................................................
R43: .....................................................................................................................................

Sheet DATABASE
B1: PILIHAN_DESKRIPSI | D1: DATA_JURUSAN | I1: NAMA GURU | O1: TABEL_NILAI | V1: TABEL_MAPEL | CR1: TABEL_WALIKELAS
B2: OTOMATIS | E2: Bidang Keahlian | F2: Program Keahlian | G2: Paket Keahlian | I2: NO | J2: NO URUT | K2: N A M A | L2: NIP/PegId | M2: Data NIP/PegId | O2: PENGETAHUAN & KETERAMPILAN | W2: 1 | X2: DPIB 1 (satu) | Y2: DPIB 2 (dua) | Z2: DPIB 3 (tiga) | AA2: DPIB 4 (empat) | AB2: DPIB 5 (lima) | AC2: DPIB 6 (enam) | AD2: TITL 1 (satu) | AE2: TITL 2 (dua) | AF2: TITL 3 (tiga) | AG2: TITL 4 (empat) | AH2: TITL 5 (lima) | AI2: TITL 6 (enam) | AJ2: TP 1 (satu) | AK2: TP 2 (dua) | AL2: TP 3 (tiga) | AM2: TP 4 (empat) | AN2: TP 5 (lima) | AO2: TP 6 (enam) | AP2: TPL 1 (satu) | AQ2: TPL 2 (dua) | AR2: TPL 3 (tiga) | AS2: TPL 4 (empat) | AT2: TPL 5 (lima) | AU2: TPL 6 (enam) | AV2: TPGM 1 (satu) | AW2: TPGM 2 (dua) | AX2: TPGM 3 (tiga) | AY2: TPGM 4 (tiga) | AZ2: TPGM 5 (lima) | BA2: TPGM 6 (enam) | BB2: TFLM 1 (satu) | BC2: TFLM 2 (dua) | BD2: TFLM 3 (tiga) | BE2: TFLM 4 (empat) | BF2: TFLM 5 (lima) | BG2: TFLM 6 (enam) | BH2: TKRO 1 (satu) | BI2: TKRO 2 (dua) | BJ2: TKRO 3 (tiga) | BK2: TKRO 4 (empat) | BL2: TKRO 5 (lima) | BM2: TKRO 6 (enam) | BN2: TBSM 1 (satu) | BO2: TBSM 2 (dua) | BP2: TBSM 3 (tiga) | BQ2: TBSM 4 (empat) | BR2: TBSM 5 (lima) | BS2: TBSM 6 (enam) | BT2: TEI 1 (satu) | BU2: TEI 2 (dua) | BV2: TEI 3 (tiga) | BW2: TEI 4 (empat) | BX2: TEI 5 (lima) | BY2: TEI 6 (enam) | BZ2: RPL 1 (satu) | CA2: RPL 2 (dua) | CB2: RPL 3 (tiga) | CC2: RPL 4 (empat) | CD2: RPL 5 (lima) | CE2: RPL 6 (enam) | CF2: TKJ 1 (satu) | CG2: TKJ 2 (dua) | CH2: TKJ 3 (tiga) | CI2: TKJ 4 (empat) | CJ2: TKJ 5 (lima) | CK2: TKJ 6 (enam) | CO2: DESKRIPSI NILAI SIKAP SPIRITUAL | CR2: KELAS | CS2: NAMA WALIKELAS | CU2: NIP/PegID
A3: A | B3: MANUAL | C3: 1 | D3: DPIB | E3: TEKNOLOGI DAN REKAYASA | F3: TEKNIK BANGUNAN | G3: DESAIN PEMODELAN DAN INFORMASI BANGUNAN | I3: - | J3: - | K3: - | L3: - | M3: - | O3: ANGKA | R3: HURUF | S3: KRITERIA | U3: 1 | V3: A | W3: 2 | X3: Pendidikan Agama dan Budi Pekerti | Y3: Pendidikan Agama dan Budi Pekerti | Z3: Pendidikan Agama dan Budi Pekerti | AA3: Pendidikan Agama dan Budi Pekerti | AB3: Pendidikan Agama dan Budi Pekerti | AC3: Pendidikan Agama dan Budi Pekerti | AD3: Pendidikan Agama dan Budi Pekerti | AE3: Pendidikan Agama dan Budi Pekerti | AF3: Pendidikan Agama dan Budi Pekerti | AG3: Pendidikan Agama dan Budi Pekerti | AH3: Pendidikan Agama dan Budi Pekerti | AI3: Pendidikan Agama dan Budi Pekerti | AJ3: Pendidikan Agama dan Budi Pekerti | AK3: Pendidikan Agama dan Budi Pekerti | AL3: Pendidikan Agama dan Budi Pekerti | AM3: Pendidikan Agama dan Budi Pekerti | AN3: Pendidikan Agama dan Budi Pekerti | AO3: Pendidikan Agama dan Budi Pekerti | AP3: Pendidikan Agama dan Budi Pekerti | AQ3: Pendidikan Agama dan Budi Pekerti | AR3: Pendidikan Agama dan Budi Pekerti | AS3: Pendidikan Agama dan Budi Pekerti | AT3: Pendidikan Agama dan Budi Pekerti | AU3: Pendidikan Agama dan Budi Pekerti | AV3: Pendidikan Agama dan Budi Pekerti | AW3: Pendidikan Agama dan Budi Pekerti | AX3: Pendidikan Agama dan Budi Pekerti | AY3: Pendidikan Agama dan Budi Pekerti | AZ3: Pendidikan Agama dan Budi Pekerti | BA3: Pendidikan Agama dan Budi Pekerti | BB3: Pendidikan Agama dan Budi Pekerti | BC3: Pendidikan Agama dan Budi Pekerti | BD3: Pendidikan Agama dan Budi Pekerti | BE3: Pendidikan Agama dan Budi Pekerti | BF3: Pendidikan Agama dan Budi Pekerti | BG3: Pendidikan Agama dan Budi Pekerti | BH3: Pendidikan Agama dan Budi Pekerti | BI3: Pendidikan Agama dan Budi Pekerti | BJ3: Pendidikan Agama dan Budi Pekerti | BK3: Pendidikan Agama dan Budi Pekerti | BL3: Pendidikan Agama dan Budi Pekerti | BM3: Pendidikan Agama dan Budi Pekerti | BN3: Pendidikan Agama dan Budi Pekerti | BO3: Pendidikan Agama dan Budi Pekerti | BP3: Pendidikan Agama dan Budi Pekerti | BQ3: Pendidikan Agama dan Budi Pekerti | BR3: Pendidikan Agama dan Budi Pekerti | BS3: Pendidikan Agama dan Budi Pekerti | BT3: Pendidikan Agama dan Budi Pekerti | BU3: Pendidikan Agama dan Budi Pekerti | BV3: Pendidikan Agama dan Budi Pekerti | BW3: Pendidikan Agama dan Budi Pekerti | BX3: Pendidikan Agama dan Budi Pekerti | BY3: Pendidikan Agama dan Budi Pekerti | BZ3: Pendidikan Agama dan Budi Pekerti | CA3: Pendidikan Agama dan Budi Pekerti | CB3: Pendidikan Agama dan Budi Pekerti | CC3: Pendidikan Agama dan Budi Pekerti | CD3: Pendidikan Agama dan Budi Pekerti | CE3: Pendidikan Agama dan Budi Pekerti | CF3: Pendidikan Agama dan Budi Pekerti | CG3: Pendidikan Agama dan Budi Pekerti | CH3: Pendidikan Agama dan Budi Pekerti | CI3: Pendidikan Agama dan Budi Pekerti | CJ3: Pendidikan Agama dan Budi Pekerti | CK3: Pendidikan Agama dan Budi Pekerti | CO3: A | CP3: Sangat menerima, menjalankan, menghargai, menghayati dan mengamalkan ajaran agama yang dianut. | CQ3: 1 | CR3: X DPIB 1 | CS3: Darwis Prasetyo, S.Pd | CT3: PegId | CU3: -
C4: 2 | D4: TITL | E4: TEKNOLOGI DAN REKAYASA | F4: TEKNIK KETENAGALISTRIKAN | G4: TEKNIK INSTALASI TENAGA LISTRIK | I4: 1 | J4: G65 | K4: Abdul Azizil Hakim, S.Pd | L4: PegId | M4: - | O4: 0 | P4: - | Q4: - | R4: - | S4: - | W4: 3 | X4: Pendidikan Agama dan Budi Pekerti | Y4: Pendidikan Agama dan Budi Pekerti | Z4: Pendidikan Agama dan Budi Pekerti | AA4: Pendidikan Agama dan Budi Pekerti | AB4: Pendidikan Agama dan Budi Pekerti | AC4: Pendidikan Agama dan Budi Pekerti | AD4: Pendidikan Agama dan Budi Pekerti | AE4: Pendidikan Agama dan Budi Pekerti | AF4: Pendidikan Agama dan Budi Pekerti | AG4: Pendidikan Agama dan Budi Pekerti | AH4: Pendidikan Agama dan Budi Pekerti | AI4: Pendidikan Agama dan Budi Pekerti | AJ4: Pendidikan Agama dan Budi Pekerti | AK4: Pendidikan Agama dan Budi Pekerti | AL4: Pendidikan Agama dan Budi Pekerti | AM4: Pendidikan Agama dan Budi Pekerti | AN4: Pendidikan Agama dan Budi Pekerti | AO4: Pendidikan Agama dan Budi Pekerti | AP4: Pendidikan Agama dan Budi Pekerti | AQ4: Pendidikan Agama dan Budi Pekerti | AR4: Pendidikan Agama dan Budi Pekerti | AS4: Pendidikan Agama dan Budi Pekerti | AT4: Pendidikan Agama dan Budi Pekerti | AU4: Pendidikan Agama dan Budi Pekerti | AV4: Pendidikan Agama dan Budi Pekerti | AW4: Pendidikan Agama dan Budi Pekerti | AX4: Pendidikan Agama dan Budi Pekerti | AY4: Pendidikan Agama dan Budi Pekerti | AZ4: Pendidikan Agama dan Budi Pekerti | BA4: Pendidikan Agama dan Budi Pekerti | BB4: Pendidikan Agama dan Budi Pekerti | BC4: Pendidikan Agama dan Budi Pekerti | BD4: Pendidikan Agama dan Budi Pekerti | BE4: Pendidikan Agama dan Budi Pekerti | BF4: Pendidikan Agama dan Budi Pekerti | BG4: Pendidikan Agama dan Budi Pekerti | BH4: Pendidikan Agama dan Budi Pekerti | BI4: Pendidikan Agama dan Budi Pekerti | BJ4: Pendidikan Agama dan Budi Pekerti | BK4: Pendidikan Agama dan Budi Pekerti | BL4: Pendidikan Agama dan Budi Pekerti | BM4: Pendidikan Agama dan Budi Pekerti | BN4: Pendidikan Agama dan Budi Pekerti | BO4: Pendidikan Agama dan Budi Pekerti | BP4: Pendidikan Agama dan Budi Pekerti | BQ4: Pendidikan Agama dan Budi Pekerti | BR4: Pendidikan Agama dan Budi Pekerti | BS4: Pendidikan Agama dan Budi Pekerti | BT4: Pendidikan Agama dan Budi Pekerti | BU4: Pendidikan Agama dan Budi Pekerti | BV4: Pendidikan Agama dan Budi Pekerti | BW4: Pendidikan Agama dan Budi Pekerti | BX4: Pendidikan Agama dan Budi Pekerti | BY4: Pendidikan Agama dan Budi Pekerti | BZ4: Pendidikan Agama dan Budi Pekerti | CA4: Pendidikan Agama dan Budi Pekerti | CB4: Pendidikan Agama dan Budi Pekerti | CC4: Pendidikan Agama dan Budi Pekerti | CD4: Pendidikan Agama dan Budi Pekerti | CE4: Pendidikan Agama dan Budi Pekerti | CF4: Pendidikan Agama dan Budi Pekerti | CG4: Pendidikan Agama dan Budi Pekerti | CH4: Pendidikan Agama dan Budi Pekerti | CI4: Pendidikan Agama dan Budi Pekerti | CJ4: Pendidikan Agama dan Budi Pekerti | CK4: Pendidikan Agama dan Budi Pekerti | CO4: B | CP4: Baik, dapat menerima, menjalankan, menghargai, menghayati dan mengamalkan ajaran agama yang dianut. | CQ4: 2 | CR4: X DPIB 2 | CS4: Mila Karuniawati, S.Si | CT4: PegId | CU4: 20217808186003
C5: 3 | D5: TP | E5: TEKNOLOGI DAN REKAYASA | F5: TEKNIK MESIN | G5: TEKNIK PEMESINAN | I5: 2 | J5: P30 | K5: Abdul Hapid, S.P | L5: NIP | M5: 19680917 200012 1 003 | O5: 1 | P5: - | Q5: 77 | R5: D | S5: Kurang | W5: 4 | X5: Pendidikan Agama dan Budi Pekerti | Y5: Pendidikan Agama dan Budi Pekerti | Z5: Pendidikan Agama dan Budi Pekerti | AA5: Pendidikan Agama dan Budi Pekerti | AB5: Pendidikan Agama dan Budi Pekerti | AC5: Pendidikan Agama dan Budi Pekerti | AD5: Pendidikan Agama dan Budi Pekerti | AE5: Pendidikan Agama dan Budi Pekerti | AF5: Pendidikan Agama dan Budi Pekerti | AG5: Pendidikan Agama dan Budi Pekerti | AH5: Pendidikan Agama dan Budi Pekerti | AI5: Pendidikan Agama dan Budi Pekerti | AJ5: Pendidikan Agama dan Budi Pekerti | AK5: Pendidikan Agama dan Budi Pekerti | AL5: Pendidikan Agama dan Budi Pekerti | AM5: Pendidikan Agama dan Budi Pekerti | AN5: Pendidikan Agama dan Budi Pekerti | AO5: Pendidikan Agama dan Budi Pekerti | AP5: Pendidikan Agama dan Budi Pekerti | AQ5: Pendidikan Agama dan Budi Pekerti | AR5: Pendidikan Agama dan Budi Pekerti | AS5: Pendidikan Agama dan Budi Pekerti | AT5: Pendidikan Agama dan Budi Pekerti | AU5: Pendidikan Agama dan Budi Pekerti | AV5: Pendidikan Agama dan Budi Pekerti | AW5: Pendidikan Agama dan Budi Pekerti | AX5: Pendidikan Agama dan Budi Pekerti | AY5: Pendidikan Agama dan Budi Pekerti | AZ5: Pendidikan Agama dan Budi Pekerti | BA5: Pendidikan Agama dan Budi Pekerti | BB5: Pendidikan Agama dan Budi Pekerti | BC5: Pendidikan Agama dan Budi Pekerti | BD5: Pendidikan Agama dan Budi Pekerti | BE5: Pendidikan Agama dan Budi Pekerti | BF5: Pendidikan Agama dan Budi Pekerti | BG5: Pendidikan Agama dan Budi Pekerti | BH5: Pendidikan Agama dan Budi Pekerti | BI5: Pendidikan Agama dan Budi Pekerti | BJ5: Pendidikan Agama dan Budi Pekerti | BK5: Pendidikan Agama dan Budi Pekerti | BL5: Pendidikan Agama dan Budi Pekerti | BM5: Pendidikan Agama dan Budi Pekerti | BN5: Pendidikan Agama dan Budi Pekerti | BO5: Pendidikan Agama dan Budi Pekerti | BP5: Pendidikan Agama dan Budi Pekerti | BQ5: Pendidikan Agama dan Budi Pekerti | BR5: Pendidikan Agama dan Budi Pekerti | BS5: Pendidikan Agama dan Budi Pekerti | BT5: Pendidikan Agama dan Budi Pekerti | BU5: Pendidikan Agama dan Budi Pekerti | BV5: Pendidikan Agama dan Budi Pekerti | BW5: Pendidikan Agama dan Budi Pekerti | BX5: Pendidikan Agama dan Budi Pekerti | BY5: Pendidikan Agama dan Budi Pekerti | BZ5: Pendidikan Agama dan Budi Pekerti | CA5: Pendidikan Agama dan Budi Pekerti | CB5: Pendidikan Agama dan Budi Pekerti | CC5: Pendidikan Agama dan Budi Pekerti | CD5: Pendidikan Agama dan Budi Pekerti | CE5: Pendidikan Agama dan Budi Pekerti | CF5: Pendidikan Agama dan Budi Pekerti | CG5: Pendidikan Agama dan Budi Pekerti | CH5: Pendidikan Agama dan Budi Pekerti | CI5: Pendidikan Agama dan Budi Pekerti | CJ5: Pendidikan Agama dan Budi Pekerti | CK5: Pendidikan Agama dan Budi Pekerti | CO5: C | CP5: Cukup menerima, menjalankan, menghargai, menghayati dan mengamalkan ajaran agama yang dianut. | CQ5: 3 | CR5: X TITL 1 | CS5: Siti Nurjanah, S.Pd | CT5: PegId | CU5: 20217802188007
A6: A | B6: KELAS | C6: 4 | D6: TPL | E6: TEKNOLOGI DAN REKAYASA | F6: TEKNIK MESIN | G6: TEKNIK PENGELASAN | I6: 3 | J6: P53 | K6: Ach. Bazi, S.Pd | L6: NIP | M6: 19660307 201407 1 002 | O6: 78 | P6: - | Q6: 85 | R6: C | S6: Cukup | U6: 2 | V6: A | W6: 5 | X6: Pendidikan Pancasila dan Kewarganegaraan | Y6: Pendidikan Pancasila dan Kewarganegaraan | Z6: Pendidikan Pancasila dan Kewarganegaraan | AA6: Pendidikan Pancasila dan Kewarganegaraan | AB6: Pendidikan Pancasila dan Kewarganegaraan | AC6: Pendidikan Pancasila dan Kewarganegaraan | AD6: Pendidikan Pancasila dan Kewarganegaraan | AE6: Pendidikan Pancasila dan Kewarganegaraan | AF6: Pendidikan Pancasila dan Kewarganegaraan | AG6: Pendidikan Pancasila dan Kewarganegaraan | AH6: Pendidikan Pancasila dan Kewarganegaraan | AI6: Pendidikan Pancasila dan Kewarganegaraan | AJ6: Pendidikan Pancasila dan Kewarganegaraan | AK6: Pendidikan Pancasila dan Kewarganegaraan | AL6: Pendidikan Pancasila dan Kewarganegaraan | AM6: Pendidikan Pancasila dan Kewarganegaraan | AN6: Pendidikan Pancasila dan Kewarganegaraan | AO6: Pendidikan Pancasila dan Kewarganegaraan | AP6: Pendidikan Pancasila dan Kewarganegaraan | AQ6: Pendidikan Pancasila dan Kewarganegaraan | AR6: Pendidikan Pancasila dan Kewarganegaraan | AS6: Pendidikan Pancasila dan Kewarganegaraan | AT6: Pendidikan Pancasila dan Kewarganegaraan | AU6: Pendidikan Pancasila dan Kewarganegaraan | AV6: Pendidikan Pancasila dan Kewarganegaraan | AW6: Pendidikan Pancasila dan Kewarganegaraan | AX6: Pendidikan Pancasila dan Kewarganegaraan | AY6: Pendidikan Pancasila dan Kewarganegaraan | AZ6: Pendidikan Pancasila dan Kewarganegaraan | BA6: Pendidikan Pancasila dan Kewarganegaraan | BB6: Pendidikan Pancasila dan Kewarganegaraan | BC6: Pendidikan Pancasila dan Kewarganegaraan | BD6: Pendidikan Pancasila dan Kewarganegaraan | BE6: Pendidikan Pancasila dan Kewarganegaraan | BF6: Pendidikan Pancasila dan Kewarganegaraan | BG6: Pendidikan Pancasila dan Kewarganegaraan | BH6: Pendidikan Pancasila dan Kewarganegaraan | BI6: Pendidikan Pancasila dan Kewarganegaraan | BJ6: Pendidikan Pancasila dan Kewarganegaraan | BK6: Pendidikan Pancasila dan Kewarganegaraan | BL6: Pendidikan Pancasila dan Kewarganegaraan | BM6: Pendidikan Pancasila dan Kewarganegaraan | BN6: Pendidikan Pancasila dan Kewarganegaraan | BO6: Pendidikan Pancasila dan Kewarganegaraan | BP6: Pendidikan Pancasila dan Kewarganegaraan | BQ6: Pendidikan Pancasila dan Kewarganegaraan | BR6: Pendidikan Pancasila dan Kewarganegaraan | BS6: Pendidikan Pancasila dan Kewarganegaraan | BT6: Pendidikan Pancasila dan Kewarganegaraan | BU6: Pendidikan Pancasila dan Kewarganegaraan | BV6: Pendidikan Pancasila dan Kewarganegaraan | BW6: Pendidikan Pancasila dan Kewarganegaraan | BX6: Pendidikan Pancasila dan Kewarganegaraan | BY6: Pendidikan Pancasila dan Kewarganegaraan | BZ6: Pendidikan Pancasila dan Kewarganegaraan | CA6: Pendidikan Pancasila dan Kewarganegaraan | CB6: Pendidikan Pancasila dan Kewarganegaraan | CC6: Pendidikan Pancasila dan Kewarganegaraan | CD6: Pendidikan Pancasila dan Kewarganegaraan | CE6: Pendidikan Pancasila dan Kewarganegaraan | CF6: Pendidikan Pancasila dan Kewarganegaraan | CG6: Pendidikan Pancasila dan Kewarganegaraan | CH6: Pendidikan Pancasila dan Kewarganegaraan | CI6: Pendidikan Pancasila dan Kewarganegaraan | CJ6: Pendidikan Pancasila dan Kewarganegaraan | CK6: Pendidikan Pancasila dan Kewarganegaraan | CO6: D | CP6: Kurang menerima, menjalankan, menghargai, menghayati dan mengamalkan ajaran agama yang dianut. | CQ6: 4 | CR6: X TITL 2 | CS6: Rita Rosita, S.Pd | CT6: NIP | CU6: 19800904 200902 2 005
B7: DPIB 1 | C7: 5 | D7: TPGM | E7: TEKNOLOGI DAN REKAYASA | F7: TEKNIK MESIN | G7: TEKNIK PERANCANGAN DAN GAMBAR MESIN | I7: 4 | J7: G66 | K7: Ade Agung Pristopo, S.Pd | L7: PegId | M7: - | O7: 86 | P7: - | Q7: 93 | R7: B | S7: Baik | W7: 6 | X7: Pendidikan Pancasila dan Kewarganegaraan | Y7: Pendidikan Pancasila dan Kewarganegaraan | Z7: Pendidikan Pancasila dan Kewarganegaraan | AA7: Pendidikan Pancasila dan Kewarganegaraan | AB7: Pendidikan Pancasila dan Kewarganegaraan | AC7: Pendidikan Pancasila dan Kewarganegaraan | AD7: Pendidikan Pancasila dan Kewarganegaraan | AE7: Pendidikan Pancasila dan Kewarganegaraan | AF7: Pendidikan Pancasila dan Kewarganegaraan | AG7: Pendidikan Pancasila dan Kewarganegaraan | AH7: Pendidikan Pancasila dan Kewarganegaraan | AI7: Pendidikan Pancasila dan Kewarganegaraan | AJ7: Pendidikan Pancasila dan Kewarganegaraan | AK7: Pendidikan Pancasila dan Kewarganegaraan | AL7: Pendidikan Pancasila dan Kewarganegaraan | AM7: Pendidikan Pancasila dan Kewarganegaraan | AN7: Pendidikan Pancasila dan Kewarganegaraan | AO7: Pendidikan Pancasila dan Kewarganegaraan | AP7: Pendidikan Pancasila dan Kewarganegaraan | AQ7: Pendidikan Pancasila dan Kewarganegaraan | AR7: Pendidikan Pancasila dan Kewarganegaraan | AS7: Pendidikan Pancasila dan Kewarganegaraan | AT7: Pendidikan Pancasila dan Kewarganegaraan | AU7: Pendidikan Pancasila dan Kewarganegaraan | AV7: Pendidikan Pancasila dan Kewarganegaraan | AW7: Pendidikan Pancasila dan Kewarganegaraan | AX7: Pendidikan Pancasila dan Kewarganegaraan | AY7: Pendidikan Pancasila dan Kewarganegaraan | AZ7: Pendidikan Pancasila dan Kewarganegaraan | BA7: Pendidikan Pancasila dan Kewarganegaraan | BB7: Pendidikan Pancasila dan Kewarganegaraan | BC7: Pendidikan Pancasila dan Kewarganegaraan | BD7: Pendidikan Pancasila dan Kewarganegaraan | BE7: Pendidikan Pancasila dan Kewarganegaraan | BF7: Pendidikan Pancasila dan Kewarganegaraan | BG7: Pendidikan Pancasila dan Kewarganegaraan | BH7: Pendidikan Pancasila dan Kewarganegaraan | BI7: Pendidikan Pancasila dan Kewarganegaraan | BJ7: Pendidikan Pancasila dan Kewarganegaraan | BK7: Pendidikan Pancasila dan Kewarganegaraan | BL7: Pendidikan Pancasila dan Kewarganegaraan | BM7: Pendidikan Pancasila dan Kewarganegaraan | BN7: Pendidikan Pancasila dan Kewarganegaraan | BO7: Pendidikan Pancasila dan Kewarganegaraan | BP7: Pendidikan Pancasila dan Kewarganegaraan | BQ7: Pendidikan Pancasila dan Kewarganegaraan | BR7: Pendidikan Pancasila dan Kewarganegaraan | BS7: Pendidikan Pancasila dan Kewarganegaraan | BT7: Pendidikan Pancasila dan Kewarganegaraan | BU7: Pendidikan Pancasila dan Kewarganegaraan | BV7: Pendidikan Pancasila dan Kewarganegaraan | BW7: Pendidikan Pancasila dan Kewarganegaraan | BX7: Pendidikan Pancasila dan Kewarganegaraan | BY7: Pendidikan Pancasila dan Kewarganegaraan | BZ7: Pendidikan Pancasila dan Kewarganegaraan | CA7: Pendidikan Pancasila dan Kewarganegaraan | CB7: Pendidikan Pancasila dan Kewarganegaraan | CC7: Pendidikan Pancasila dan Kewarganegaraan | CD7: Pendidikan Pancasila dan Kewarganegaraan | CE7: Pendidikan Pancasila dan Kewarganegaraan | CF7: Pendidikan Pancasila dan Kewarganegaraan | CG7: Pendidikan Pancasila dan Kewarganegaraan | CH7: Pendidikan Pancasila dan Kewarganegaraan | CI7: Pendidikan Pancasila dan Kewarganegaraan | CJ7: Pendidikan Pancasila dan Kewarganegaraan | CK7: Pendidikan Pancasila dan Kewarganegaraan | CQ7: 5 | CR7: X TP 1 | CS7: Hj. Diah Gustanti, ST | CT7: NIP | CU7: 19760824 200604 2 007
B8: DPIB 2 | C8: 6 | D8: TFLM | E8: TEKNOLOGI DAN REKAYASA | F8: TEKNIK MESIN | G8: TEKNIK FABRIKASI LOGAM DAN MANUFAKTUR | I8: 5 | J8: P54 | K8: Ade Carman, S.Pd | L8: NIP | M8: 19720406 201407 1 001 | O8: 94 | P8: - | Q8: 100 | R8: A | S8: Sangat Baik | W8: 7 | X8: Pendidikan Pancasila dan Kewarganegaraan | Y8: Pendidikan Pancasila dan Kewarganegaraan | Z8: Pendidikan Pancasila dan Kewarganegaraan | AA8: Pendidikan Pancasila dan Kewarganegaraan | AB8: Pendidikan Pancasila dan Kewarganegaraan | AC8: Pendidikan Pancasila dan Kewarganegaraan | AD8: Pendidikan Pancasila dan Kewarganegaraan | AE8: Pendidikan Pancasila dan Kewarganegaraan | AF8: Pendidikan Pancasila dan Kewarganegaraan | AG8: Pendidikan Pancasila dan Kewarganegaraan | AH8: Pendidikan Pancasila dan Kewarganegaraan | AI8: Pendidikan Pancasila dan Kewarganegaraan | AJ8: Pendidikan Pancasila dan Kewarganegaraan | AK8: Pendidikan Pancasila dan Kewarganegaraan | AL8: Pendidikan Pancasila dan Kewarganegaraan | AM8: Pendidikan Pancasila dan Kewarganegaraan | AN8: Pendidikan Pancasila dan Kewarganegaraan | AO8: Pendidikan Pancasila dan Kewarganegaraan | AP8: Pendidikan Pancasila dan Kewarganegaraan | AQ8: Pendidikan Pancasila dan Kewarganegaraan | AR8: Pendidikan Pancasila dan Kewarganegaraan | AS8: Pendidikan Pancasila dan Kewarganegaraan | AT8: Pendidikan Pancasila dan Kewarganegaraan | AU8: Pendidikan Pancasila dan Kewarganegaraan | AV8: Pendidikan Pancasila dan Kewarganegaraan | AW8: Pendidikan Pancasila dan Kewarganegaraan | AX8: Pendidikan Pancasila dan Kewarganegaraan | AY8: Pendidikan Pancasila dan Kewarganegaraan | AZ8: Pendidikan Pancasila dan Kewarganegaraan | BA8: Pendidikan Pancasila dan Kewarganegaraan | BB8: Pendidikan Pancasila dan Kewarganegaraan | BC8: Pendidikan Pancasila dan Kewarganegaraan | BD8: Pendidikan Pancasila dan Kewarganegaraan | BE8: Pendidikan Pancasila dan Kewarganegaraan | BF8: Pendidikan Pancasila dan Kewarganegaraan | BG8: Pendidikan Pancasila dan Kewarganegaraan | BH8: Pendidikan Pancasila dan Kewarganegaraan | BI8: Pendidikan Pancasila dan Kewarganegaraan | BJ8: Pendidikan Pancasila dan Kewarganegaraan | BK8: Pendidikan Pancasila dan Kewarganegaraan | BL8: Pendidikan Pancasila dan Kewarganegaraan | BM8: Pendidikan Pancasila dan Kewarganegaraan | BN8: Pendidikan Pancasila dan Kewarganegaraan | BO8: Pendidikan Pancasila dan Kewarganegaraan | BP8: Pendidikan Pancasila dan Kewarganegaraan | BQ8: Pendidikan Pancasila dan Kewarganegaraan | BR8: Pendidikan Pancasila dan Kewarganegaraan | BS8: Pendidikan Pancasila dan Kewarganegaraan | BT8: Pendidikan Pancasila dan Kewarganegaraan | BU8: Pendidikan Pancasila dan Kewarganegaraan | BV8: Pendidikan Pancasila dan Kewarganegaraan | BW8: Pendidikan Pancasila dan Kewarganegaraan | BX8: Pendidikan Pancasila dan Kewarganegaraan | BY8: Pendidikan Pancasila dan Kewarganegaraan | BZ8: Pendidikan Pancasila dan Kewarganegaraan | CA8: Pendidikan Pancasila dan Kewarganegaraan | CB8: Pendidikan Pancasila dan Kewarganegaraan | CC8: Pendidikan Pancasila dan Kewarganegaraan | CD8: Pendidikan Pancasila dan Kewarganegaraan | CE8: Pendidikan Pancasila dan Kewarganegaraan | CF8: Pendidikan Pancasila dan Kewarganegaraan | CG8: Pendidikan Pancasila dan Kewarganegaraan | CH8: Pendidikan Pancasila dan Kewarganegaraan | CI8: Pendidikan Pancasila dan Kewarganegaraan | CJ8: Pendidikan Pancasila dan Kewarganegaraan | CK8: Pendidikan Pancasila dan Kewarganegaraan | CO8: DESKRIPSI NILAI SIKAP SOSIAL | CQ8: 6 | CR8: X TP 2 | CS8: Fanny Sopia Rahayu, S.Pd | CT8: PegId | CU8: 20217802190003
A9: A | B9: TITL 1 | C9: 7 | D9: TKRO | E9: TEKNOLOGI DAN REKAYASA | F9: TEKNIK OTOMOTIF | G9: TEKNIK KENDARAAN RINGAN OTOMOTIF | I9: 6 | J9: G49 | K9: Adi Putro, S.Pd | L9: PegId | M9: 20217802188008 | U9: 3 | V9: A | W9: 8 | X9: Bahasa Indonesia | Y9: Bahasa Indonesia | Z9: Bahasa Indonesia | AA9: Bahasa Indonesia | AB9: Bahasa Indonesia | AC9: Bahasa Indonesia | AD9: Bahasa Indonesia | AE9: Bahasa Indonesia | AF9: Bahasa Indonesia | AG9: Bahasa Indonesia | AH9: Bahasa Indonesia | AI9: Bahasa Indonesia | AJ9: Bahasa Indonesia | AK9: Bahasa Indonesia | AL9: Bahasa Indonesia | AM9: Bahasa Indonesia | AN9: Bahasa Indonesia | AO9: Bahasa Indonesia | AP9: Bahasa Indonesia | AQ9: Bahasa Indonesia | AR9: Bahasa Indonesia | AS9: Bahasa Indonesia | AT9: Bahasa Indonesia | AU9: Bahasa Indonesia | AV9: Bahasa Indonesia | AW9: Bahasa Indonesia | AX9: Bahasa Indonesia | AY9: Bahasa Indonesia | AZ9: Bahasa Indonesia | BA9: Bahasa Indonesia | BB9: Bahasa Indonesia | BC9: Bahasa Indonesia | BD9: Bahasa Indonesia | BE9: Bahasa Indonesia | BF9: Bahasa Indonesia | BG9: Bahasa Indonesia | BH9: Bahasa Indonesia | BI9: Bahasa Indonesia | BJ9: Bahasa Indonesia | BK9: Bahasa Indonesia | BL9: Bahasa Indonesia | BM9: Bahasa Indonesia | BN9: Bahasa Indonesia | BO9: Bahasa Indonesia | BP9: Bahasa Indonesia | BQ9: Bahasa Indonesia | BR9: Bahasa Indonesia | BS9: Bahasa Indonesia | BT9: Bahasa Indonesia | BU9: Bahasa Indonesia | BV9: Bahasa Indonesia | BW9: Bahasa Indonesia | BX9: Bahasa Indonesia | BY9: Bahasa Indonesia | BZ9: Bahasa Indonesia | CA9: Bahasa Indonesia | CB9: Bahasa Indonesia | CC9: Bahasa Indonesia | CD9: Bahasa Indonesia | CE9: Bahasa Indonesia | CF9: Bahasa Indonesia | CG9: Bahasa Indonesia | CH9: Bahasa Indonesia | CI9: Bahasa Indonesia | CJ9: Bahasa Indonesia | CK9: Bahasa Indonesia | CO9: A | CP9: Sudah bersungguh-sungguh dan selalu konsisten menerapkan sikap jujur, santun dan toleran dalam pergaulan, disiplin, kerjasama dalam kelompok dan tanggungjawab dalam keseharian sebagai hasil pembelajaran di sekolah. Pertahankan sikap-sikap tersebut agar menjadi teladan bagi kawan-kawan di sekolah. | CQ9: 7 | CR9: X TP 3 | CS9: Rini Nurmalasari, S.Pd | CT9: PegId | CU9: 20217802185002
B10: TITL 2 | C10: 8 | D10: TBSM | E10: TEKNOLOGI DAN REKAYASA | F10: TEKNIK OTOMOTIF | G10: TEKNIK DAN BISNIS SEPEDA MOTOR | I10: 7 | J10: G16 | K10: Aditya Rahmat Wijaya, S.Pd | L10: PegId | M10: 20217802188001 | W10: 9 | X10: Bahasa Indonesia | Y10: Bahasa Indonesia | Z10: Bahasa Indonesia | AA10: Bahasa Indonesia | AB10: Bahasa Indonesia | AC10: Bahasa Indonesia | AD10: Bahasa Indonesia | AE10: Bahasa Indonesia | AF10: Bahasa Indonesia | AG10: Bahasa Indonesia | AH10: Bahasa Indonesia | AI10: Bahasa Indonesia | AJ10: Bahasa Indonesia | AK10: Bahasa Indonesia | AL10: Bahasa Indonesia | AM10: Bahasa Indonesia | AN10: Bahasa Indonesia | AO10: Bahasa Indonesia | AP10: Bahasa Indonesia | AQ10: Bahasa Indonesia | AR10: Bahasa Indonesia | AS10: Bahasa Indonesia | AT10: Bahasa Indonesia | AU10: Bahasa Indonesia | AV10: Bahasa Indonesia | AW10: Bahasa Indonesia | AX10: Bahasa Indonesia | AY10: Bahasa Indonesia | AZ10: Bahasa Indonesia | BA10: Bahasa Indonesia | BB10: Bahasa Indonesia | BC10: Bahasa Indonesia | BD10: Bahasa Indonesia | BE10: Bahasa Indonesia | BF10: Bahasa Indonesia | BG10: Bahasa Indonesia | BH10: Bahasa Indonesia | BI10: Bahasa Indonesia | BJ10: Bahasa Indonesia | BK10: Bahasa Indonesia | BL10: Bahasa Indonesia | BM10: Bahasa Indonesia | BN10: Bahasa Indonesia | BO10: Bahasa Indonesia | BP10: Bahasa Indonesia | BQ10: Bahasa Indonesia | BR10: Bahasa Indonesia | BS10: Bahasa Indonesia | BT10: Bahasa Indonesia | BU10: Bahasa Indonesia | BV10: Bahasa Indonesia | BW10: Bahasa Indonesia | BX10: Bahasa Indonesia | BY10: Bahasa Indonesia | BZ10: Bahasa Indonesia | CA10: Bahasa Indonesia | CB10: Bahasa Indonesia | CC10: Bahasa Indonesia | CD10: Bahasa Indonesia | CE10: Bahasa Indonesia | CF10: Bahasa Indonesia | CG10: Bahasa Indonesia | CH10: Bahasa Indonesia | CI10: Bahasa Indonesia | CJ10: Bahasa Indonesia | CK10: Bahasa Indonesia | CQ10: 8 | CR10: X TP 4 | CS10: Suhartini, S.Pd. | CT10: NIP | CU10: 19761222 201407 2 001
B11: TP 1 | C11: 9 | D11: TEI | E11: TEKNOLOGI DAN REKAYASA | F11: TEKNIK ELEKTRONIKA | G11: TEKNIK ELEKTRONIKA INDUSTRI | I11: 8 | J11: P64 | K11: Agus Widodo, S.S | L11: NIP | M11: 19670827 201407 1 001 | W11: 10 | X11: Bahasa Indonesia | Y11: Bahasa Indonesia | Z11: Bahasa Indonesia | AA11: Bahasa Indonesia | AB11: Bahasa Indonesia | AC11: Bahasa Indonesia | AD11: Bahasa Indonesia | AE11: Bahasa Indonesia | AF11: Bahasa Indonesia | AG11: Bahasa Indonesia | AH11: Bahasa Indonesia | AI11: Bahasa Indonesia | AJ11: Bahasa Indonesia | AK11: Bahasa Indonesia | AL11: Bahasa Indonesia | AM11: Bahasa Indonesia | AN11: Bahasa Indonesia | AO11: Bahasa Indonesia | AP11: Bahasa Indonesia | AQ11: Bahasa Indonesia | AR11: Bahasa Indonesia | AS11: Bahasa Indonesia | AT11: Bahasa Indonesia | AU11: Bahasa Indonesia | AV11: Bahasa Indonesia | AW11: Bahasa Indonesia | AX11: Bahasa Indonesia | AY11: Bahasa Indonesia | AZ11: Bahasa Indonesia | BA11: Bahasa Indonesia | BB11: Bahasa Indonesia | BC11: Bahasa Indonesia | BD11: Bahasa Indonesia | BE11: Bahasa Indonesia | BF11: Bahasa Indonesia | BG11: Bahasa Indonesia | BH11: Bahasa Indonesia | BI11: Bahasa Indonesia | BJ11: Bahasa Indonesia | BK11: Bahasa Indonesia | BL11: Bahasa Indonesia | BM11: Bahasa Indonesia | BN11: Bahasa Indonesia | BO11: Bahasa Indonesia | BP11: Bahasa Indonesia | BQ11: Bahasa Indonesia | BR11: Bahasa Indonesia | BS11: Bahasa Indonesia | BT11: Bahasa Indonesia | BU11: Bahasa Indonesia | BV11: Bahasa Indonesia | BW11: Bahasa Indonesia | BX11: Bahasa Indonesia | BY11: Bahasa Indonesia | BZ11: Bahasa Indonesia | CA11: Bahasa Indonesia | CB11: Bahasa Indonesia | CC11: Bahasa Indonesia | CD11: Bahasa Indonesia | CE11: Bahasa Indonesia | CF11: Bahasa Indonesia | CG11: Bahasa Indonesia | CH11: Bahasa Indonesia | CI11: Bahasa Indonesia | CJ11: Bahasa Indonesia | CK11: Bahasa Indonesia | CQ11: 9 | CR11: X TPL 1 | CS11: Asep Saefurrohman, S.Ag | CT11: PegId | CU11: -
A12: A | B12: TP 2 | C12: 10 | D12: RPL | E12: TEKNOLOGI INFORMASI DAN KOMUNIKASI | F12: TEKNIK KOMPUTER DAN INFORMATIKA | G12: REKAYASA PERANGKAT LUNAK | I12: 9 | J12: P34 | K12: Ahmad Bustomi Sahrul, S.Pd | L12: NIP | M12: 19701209 200501 1 004 | U12: 4 | V12: A | W12: 11 | X12: Matematika | Y12: Matematika | Z12: Matematika | AA12: Matematika | AB12: Matematika | AC12: Matematika | AD12: Matematika | AE12: Matematika | AF12: Matematika | AG12: Matematika | AH12: Matematika | AI12: Matematika | AJ12: Matematika | AK12: Matematika | AL12: Matematika | AM12: Matematika | AN12: Matematika | AO12: Matematika | AP12: Matematika | AQ12: Matematika | AR12: Matematika | AS12: Matematika | AT12: Matematika | AU12: Matematika | AV12: Matematika | AW12: Matematika | AX12: Matematika | AY12: Matematika | AZ12: Matematika | BA12: Matematika | BB12: Matematika | BC12: Matematika | BD12: Matematika | BE12: Matematika | BF12: Matematika | BG12: Matematika | BH12: Matematika | BI12: Matematika | BJ12: Matematika | BK12: Matematika | BL12: Matematika | BM12: Matematika | BN12: Matematika | BO12: Matematika | BP12: Matematika | BQ12: Matematika | BR12: Matematika | BS12: Matematika | BT12: Matematika | BU12: Matematika | BV12: Matematika | BW12: Matematika | BX12: Matematika | BY12: Matematika | BZ12: Matematika | CA12: Matematika | CB12: Matematika | CC12: Matematika | CD12: Matematika | CE12: Matematika | CF12: Matematika | CG12: Matematika | CH12: Matematika | CI12: Matematika | CJ12: Matematika | CK12: Matematika | CO12: B | CP12: Sudah menunjukkan konsisten menerapkan sikap jujur, santun dan toleran dalam pergaulan, disiplin, kerjasama dalam kelompok dan tanggungjawab dalam keseharian sebagai hasil pembelajaran di sekolah. Tingkatkan sikap-sikap positif tersebut agar lebih baik. | CQ12: 10 | CR12: X TPL 2 | CS12: Iin Kartini, S.Pd, M.Pd | CT12: NIP | CU12: 19741020 200701 2 006
B13: TP 3 | C13: 11 | D13: TKJ | E13: TEKNOLOGI INFORMASI DAN KOMUNIKASI | F13: TEKNIK KOMPUTER DAN INFORMATIKA | G13: TEKNIK KOMPUTER JARINGAN | I13: 10 | J13: G62 | K13: Ahmad Jumadi, S.Kom | L13: PegId | M13: 20217802192001 | W13: 12 | X13: Matematika | Y13: Matematika | Z13: Matematika | AA13: Matematika | AB13: Matematika | AC13: Matematika | AD13: Matematika | AE13: Matematika | AF13: Matematika | AG13: Matematika | AH13: Matematika | AI13: Matematika | AJ13: Matematika | AK13: Matematika | AL13: Matematika | AM13: Matematika | AN13: Matematika | AO13: Matematika | AP13: Matematika | AQ13: Matematika | AR13: Matematika | AS13: Matematika | AT13: Matematika | AU13: Matematika | AV13: Matematika | AW13: Matematika | AX13: Matematika | AY13: Matematika | AZ13: Matematika | BA13: Matematika | BB13: Matematika | BC13: Matematika | BD13: Matematika | BE13: Matematika | BF13: Matematika | BG13: Matematika | BH13: Matematika | BI13: Matematika | BJ13: Matematika | BK13: Matematika | BL13: Matematika | BM13: Matematika | BN13: Matematika | BO13: Matematika | BP13: Matematika | BQ13: Matematika | BR13: Matematika | BS13: Matematika | BT13: Matematika | BU13: Matematika | BV13: Matematika | BW13: Matematika | BX13: Matematika | BY13: Matematika | BZ13: Matematika | CA13: Matematika | CB13: Matematika | CC13: Matematika | CD13: Matematika | CE13: Matematika | CF13: Matematika | CG13: Matematika | CH13: Matematika | CI13: Matematika | CJ13: Matematika | CK13: Matematika | CQ13: 11 | CR13: X TPGM 1 | CS13: Maolana Nopiansyah, S. Ud | CT13: PegId | CU13: 20217802185006
B14: TP 4 | I14: 11 | J14: P59 | K14: Ahmad Sanusi, S.Sos.I | L14: NIP | M14: 19790426 201407 1 001 | W14: 13 | X14: Matematika | Y14: Matematika | Z14: Matematika | AA14: Matematika | AB14: Matematika | AC14: Matematika | AD14: Matematika | AE14: Matematika | AF14: Matematika | AG14: Matematika | AH14: Matematika | AI14: Matematika | AJ14: Matematika | AK14: Matematika | AL14: Matematika | AM14: Matematika | AN14: Matematika | AO14: Matematika | AP14: Matematika | AQ14: Matematika | AR14: Matematika | AS14: Matematika | AT14: Matematika | AU14: Matematika | AV14: Matematika | AW14: Matematika | AX14: Matematika | AY14: Matematika | AZ14: Matematika | BA14: Matematika | BB14: Matematika | BC14: Matematika | BD14: Matematika | BE14: Matematika | BF14: Matematika | BG14: Matematika | BH14: Matematika | BI14: Matematika | BJ14: Matematika | BK14: Matematika | BL14: Matematika | BM14: Matematika | BN14: Matematika | BO14: Matematika | BP14: Matematika | BQ14: Matematika | BR14: Matematika | BS14: Matematika | BT14: Matematika | BU14: Matematika | BV14: Matematika | BW14: Matematika | BX14: Matematika | BY14: Matematika | BZ14: Matematika | CA14: Matematika | CB14: Matematika | CC14: Matematika | CD14: Matematika | CE14: Matematika | CF14: Matematika | CG14: Matematika | CH14: Matematika | CI14: Matematika | CJ14: Matematika | CK14: Matematika | CQ14: 12 | CR14: X TPGM 2 | CS14: Ade Agung Pristopo, S.Pd | CT14: PegId | CU14: -
A15: A | B15: TPL 1 | I15: 12 | J15: G17 | K15: Alfian Rasyid, S.Sos. | L15: PegId | M15: - | U15: 5 | V15: A | W15: 14 | X15: Sejarah Indonesia | Y15: Sejarah Indonesia | Z15: - | AA15: - | AB15: - | AC15: - | AD15: Sejarah Indonesia | AE15: Sejarah Indonesia | AF15: - | AG15: - | AH15: - | AI15: - | AJ15: Sejarah Indonesia | AK15: Sejarah Indonesia | AL15: - | AM15: - | AN15: - | AO15: - | AP15: Sejarah Indonesia | AQ15: Sejarah Indonesia | AR15: - | AS15: - | AT15: - | AU15: - | AV15: Sejarah Indonesia | AW15: Sejarah Indonesia | AX15: - | AY15: - | AZ15: - | BA15: - | BB15: Sejarah Indonesia | BC15: Sejarah Indonesia | BD15: - | BE15: - | BF15: - | BG15: - | BH15: Sejarah Indonesia | BI15: Sejarah Indonesia | BJ15: - | BK15: - | BL15: - | BM15: - | BN15: Sejarah Indonesia | BO15: Sejarah Indonesia | BP15: - | BQ15: - | BR15: - | BS15: - | BT15: Sejarah Indonesia | BU15: Sejarah Indonesia | BV15: - | BW15: - | BX15: - | BY15: - | BZ15: Sejarah Indonesia | CA15: Sejarah Indonesia | CB15: - | CC15: - | CD15: - | CE15: - | CF15: Sejarah Indonesia | CG15: Sejarah Indonesia | CH15: - | CI15: - | CJ15: - | CK15: - | CO15: C | CP15: Mulai menunjukkan konsisten menerapkan sikap jujur, santun dan toleran dalam pergaulan, disiplin, kerjasama dalam kelompok dan tanggungjawab dalam keseharian sebagai hasil pembelajaran di sekolah dan perlu ditingkatkan kembali agar lebih baik. | CQ15: 13 | CR15: X TFLM | CS15: Rini Anggraeni, S.Pd, M.Pd | CT15: PegId | CU15: 20217802186002
B16: TPL 2 | D16: PILIHAN_SEMESTER | I16: 13 | J16: P35 | K16: Alia Maedina, S.Pd, M.Pd | L16: NIP | M16: 19730507 200501 2 005 | W16: 15 | X16: Sejarah Indonesia | Y16: Sejarah Indonesia | Z16: - | AA16: - | AB16: - | AC16: - | AD16: Sejarah Indonesia | AE16: Sejarah Indonesia | AF16: - | AG16: - | AH16: - | AI16: - | AJ16: Sejarah Indonesia | AK16: Sejarah Indonesia | AL16: - | AM16: - | AN16: - | AO16: - | AP16: Sejarah Indonesia | AQ16: Sejarah Indonesia | AR16: - | AS16: - | AT16: - | AU16: - | AV16: Sejarah Indonesia | AW16: Sejarah Indonesia | AX16: - | AY16: - | AZ16: - | BA16: - | BB16: Sejarah Indonesia | BC16: Sejarah Indonesia | BD16: - | BE16: - | BF16: - | BG16: - | BH16: Sejarah Indonesia | BI16: Sejarah Indonesia | BJ16: - | BK16: - | BL16: - | BM16: - | BN16: Sejarah Indonesia | BO16: Sejarah Indonesia | BP16: - | BQ16: - | BR16: - | BS16: - | BT16: Sejarah Indonesia | BU16: Sejarah Indonesia | BV16: - | BW16: - | BX16: - | BY16: - | BZ16: Sejarah Indonesia | CA16: Sejarah Indonesia | CB16: - | CC16: - | CD16: - | CE16: - | CF16: Sejarah Indonesia | CG16: Sejarah Indonesia | CH16: - | CI16: - | CJ16: - | CK16: - | CQ16: 14 | CR16: X TKRO 1 | CS16: Drs. Ebo Agus Sunarto | CT16: NIP | CU16: 19590118 198703 1 003
B17: TPGM 1 | D17: 1 (satu) | I17: 14 | J17: G57 | K17: Amad, S.Pd | L17: PegId | M17: 20217802189004 | W17: 16 | X17: Sejarah Indonesia | Y17: Sejarah Indonesia | Z17: - | AA17: - | AB17: - | AC17: - | AD17: Sejarah Indonesia | AE17: Sejarah Indonesia | AF17: - | AG17: - | AH17: - | AI17: - | AJ17: Sejarah Indonesia | AK17: Sejarah Indonesia | AL17: - | AM17: - | AN17: - | AO17: - | AP17: Sejarah Indonesia | AQ17: Sejarah Indonesia | AR17: - | AS17: - | AT17: - | AU17: - | AV17: Sejarah Indonesia | AW17: Sejarah Indonesia | AX17: - | AY17: - | AZ17: - | BA17: - | BB17: Sejarah Indonesia | BC17: Sejarah Indonesia | BD17: - | BE17: - | BF17: - | BG17: - | BH17: Sejarah Indonesia | BI17: Sejarah Indonesia | BJ17: - | BK17: - | BL17: - | BM17: - | BN17: Sejarah Indonesia | BO17: Sejarah Indonesia | BP17: - | BQ17: - | BR17: - | BS17: - | BT17: Sejarah Indonesia | BU17: Sejarah Indonesia | BV17: - | BW17: - | BX17: - | BY17: - | BZ17: Sejarah Indonesia | CA17: Sejarah Indonesia | CB17: - | CC17: - | CD17: - | CE17: - | CF17: Sejarah Indonesia | CG17: Sejarah Indonesia | CH17: - | CI17: - | CJ17: - | CK17: - | CQ17: 15 | CR17: X TKRO 2 | CS17: Tita Monica Timor, S.Pd | CT17: PegId | CU17: 20217802191003
A18: A | B18: TPGM 2 | D18: 2 (dua) | I18: 15 | J18: G18 | K18: Amo Sisdianto, S.Kom | L18: PegId | M18: 20217802182001 | U18: 6 | V18: A | W18: 17 | X18: Bahasa Inggris | Y18: Bahasa Inggris | Z18: Bahasa Inggris | AA18: Bahasa Inggris | AB18: Bahasa Inggris | AC18: Bahasa Inggris | AD18: Bahasa Inggris | AE18: Bahasa Inggris | AF18: Bahasa Inggris | AG18: Bahasa Inggris | AH18: Bahasa Inggris | AI18: Bahasa Inggris | AJ18: Bahasa Inggris | AK18: Bahasa Inggris | AL18: Bahasa Inggris | AM18: Bahasa Inggris | AN18: Bahasa Inggris | AO18: Bahasa Inggris | AP18: Bahasa Inggris | AQ18: Bahasa Inggris | AR18: Bahasa Inggris | AS18: Bahasa Inggris | AT18: Bahasa Inggris | AU18: Bahasa Inggris | AV18: Bahasa Inggris | AW18: Bahasa Inggris | AX18: Bahasa Inggris | AY18: Bahasa Inggris | AZ18: Bahasa Inggris | BA18: Bahasa Inggris | BB18: Bahasa Inggris | BC18: Bahasa Inggris | BD18: Bahasa Inggris | BE18: Bahasa Inggris | BF18: Bahasa Inggris | BG18: Bahasa Inggris | BH18: Bahasa Inggris | BI18: Bahasa Inggris | BJ18: Bahasa Inggris | BK18: Bahasa Inggris | BL18: Bahasa Inggris | BM18: Bahasa Inggris | BN18: Bahasa Inggris | BO18: Bahasa Inggris | BP18: Bahasa Inggris | BQ18: Bahasa Inggris | BR18: Bahasa Inggris | BS18: Bahasa Inggris | BT18: Bahasa Inggris | BU18: Bahasa Inggris | BV18: Bahasa Inggris | BW18: Bahasa Inggris | BX18: Bahasa Inggris | BY18: Bahasa Inggris | BZ18: Bahasa Inggris | CA18: Bahasa Inggris | CB18: Bahasa Inggris | CC18: Bahasa Inggris | CD18: Bahasa Inggris | CE18: Bahasa Inggris | CF18: Bahasa Inggris | CG18: Bahasa Inggris | CH18: Bahasa Inggris | CI18: Bahasa Inggris | CJ18: Bahasa Inggris | CK18: Bahasa Inggris | CO18: D | CP18: Belum menunjukkan konsisten menerapkan sikap jujur, santun dan toleran dalam pergaulan, disiplin, kerjasama dalam kelompok dan tanggungjawab dalam keseharian sebagai hasil pembelajaran di sekolah, perlu perbaikan dan perhatian dari semua pihak baik guru maupun orangtua. | CQ18: 16 | CR18: X TBSM 1 | CS18: Sumarsono, ST | CT18: PegId | CU18: -
B19: TFLM | D19: 3 (tiga) | I19: 16 | J19: G82 | K19: Anas Fajar Pratama, S.Kom | L19: PegId | M19: - | W19: 18 | X19: Bahasa Inggris | Y19: Bahasa Inggris | Z19: Bahasa Inggris | AA19: Bahasa Inggris | AB19: Bahasa Inggris | AC19: Bahasa Inggris | AD19: Bahasa Inggris | AE19: Bahasa Inggris | AF19: Bahasa Inggris | AG19: Bahasa Inggris | AH19: Bahasa Inggris | AI19: Bahasa Inggris | AJ19: Bahasa Inggris | AK19: Bahasa Inggris | AL19: Bahasa Inggris | AM19: Bahasa Inggris | AN19: Bahasa Inggris | AO19: Bahasa Inggris | AP19: Bahasa Inggris | AQ19: Bahasa Inggris | AR19: Bahasa Inggris | AS19: Bahasa Inggris | AT19: Bahasa Inggris | AU19: Bahasa Inggris | AV19: Bahasa Inggris | AW19: Bahasa Inggris | AX19: Bahasa Inggris | AY19: Bahasa Inggris | AZ19: Bahasa Inggris | BA19: Bahasa Inggris | BB19: Bahasa Inggris | BC19: Bahasa Inggris | BD19: Bahasa Inggris | BE19: Bahasa Inggris | BF19: Bahasa Inggris | BG19: Bahasa Inggris | BH19: Bahasa Inggris | BI19: Bahasa Inggris | BJ19: Bahasa Inggris | BK19: Bahasa Inggris | BL19: Bahasa Inggris | BM19: Bahasa Inggris | BN19: Bahasa Inggris | BO19: Bahasa Inggris | BP19: Bahasa Inggris | BQ19: Bahasa Inggris | BR19: Bahasa Inggris | BS19: Bahasa Inggris | BT19: Bahasa Inggris | BU19: Bahasa Inggris | BV19: Bahasa Inggris | BW19: Bahasa Inggris | BX19: Bahasa Inggris | BY19: Bahasa Inggris | BZ19: Bahasa Inggris | CA19: Bahasa Inggris | CB19: Bahasa Inggris | CC19: Bahasa Inggris | CD19: Bahasa Inggris | CE19: Bahasa Inggris | CF19: Bahasa Inggris | CG19: Bahasa Inggris | CH19: Bahasa Inggris | CI19: Bahasa Inggris | CJ19: Bahasa Inggris | CK19: Bahasa Inggris | CQ19: 17 | CR19: X TBSM 2 | CS19: Hady Hafizhudin, ST | CT19: PegId | CU19: 20217802189003
B20: TKRO 1 | D20: 4 (empat) | I20: 17 | J20: G80 | K20: Andri Wibowo, A.Md.T | L20: PegId | M20: - | W20: 19 | X20: Bahasa Inggris | Y20: Bahasa Inggris | Z20: Bahasa Inggris | AA20: Bahasa Inggris | AB20: Bahasa Inggris | AC20: Bahasa Inggris | AD20: Bahasa Inggris | AE20: Bahasa Inggris | AF20: Bahasa Inggris | AG20: Bahasa Inggris | AH20: Bahasa Inggris | AI20: Bahasa Inggris | AJ20: Bahasa Inggris | AK20: Bahasa Inggris | AL20: Bahasa Inggris | AM20: Bahasa Inggris | AN20: Bahasa Inggris | AO20: Bahasa Inggris | AP20: Bahasa Inggris | AQ20: Bahasa Inggris | AR20: Bahasa Inggris | AS20: Bahasa Inggris | AT20: Bahasa Inggris | AU20: Bahasa Inggris | AV20: Bahasa Inggris | AW20: Bahasa Inggris | AX20: Bahasa Inggris | AY20: Bahasa Inggris | AZ20: Bahasa Inggris | BA20: Bahasa Inggris | BB20: Bahasa Inggris | BC20: Bahasa Inggris | BD20: Bahasa Inggris | BE20: Bahasa Inggris | BF20: Bahasa Inggris | BG20: Bahasa Inggris | BH20: Bahasa Inggris | BI20: Bahasa Inggris | BJ20: Bahasa Inggris | BK20: Bahasa Inggris | BL20: Bahasa Inggris | BM20: Bahasa Inggris | BN20: Bahasa Inggris | BO20: Bahasa Inggris | BP20: Bahasa Inggris | BQ20: Bahasa Inggris | BR20: Bahasa Inggris | BS20: Bahasa Inggris | BT20: Bahasa Inggris | BU20: Bahasa Inggris | BV20: Bahasa Inggris | BW20: Bahasa Inggris | BX20: Bahasa Inggris | BY20: Bahasa Inggris | BZ20: Bahasa Inggris | CA20: Bahasa Inggris | CB20: Bahasa Inggris | CC20: Bahasa Inggris | CD20: Bahasa Inggris | CE20: Bahasa Inggris | CF20: Bahasa Inggris | CG20: Bahasa Inggris | CH20: Bahasa Inggris | CI20: Bahasa Inggris | CJ20: Bahasa Inggris | CK20: Bahasa Inggris | CQ20: 18 | CR20: X TEI 1 | CS20: Azis Syahrizal, S.Pd | CT20: PegId | CU20: 20217802188007
A21: B | B21: TKRO 2 | D21: 5 (lima) | I21: 18 | J21: G38 | K21: Andriyanti, S.Pd | L21: PegId | M21: 20217802190001 | U21: 7 | V21: B | W21: 20 | X21: Seni Budaya | Y21: Seni Budaya | Z21: - | AA21: - | AB21: - | AC21: - | AD21: Seni Budaya | AE21: Seni Budaya | AF21: - | AG21: - | AH21: - | AI21: - | AJ21: Seni Budaya | AK21: Seni Budaya | AL21: - | AM21: - | AN21: - | AO21: - | AP21: Seni Budaya | AQ21: Seni Budaya | AR21: - | AS21: - | AT21: - | AU21: - | AV21: Seni Budaya | AW21: Seni Budaya | AX21: - | AY21: - | AZ21: - | BA21: - | BB21: Seni Budaya | BC21: Seni Budaya | BD21: - | BE21: - | BF21: - | BG21: - | BH21: Seni Budaya | BI21: Seni Budaya | BJ21: - | BK21: - | BL21: - | BM21: - | BN21: Seni Budaya | BO21: Seni Budaya | BP21: - | BQ21: - | BR21: - | BS21: - | BT21: Seni Budaya | BU21: Seni Budaya | BV21: - | BW21: - | BX21: - | BY21: - | BZ21: Seni Budaya | CA21: Seni Budaya | CB21: - | CC21: - | CD21: - | CE21: - | CF21: Seni Budaya | CG21: Seni Budaya | CH21: - | CI21: - | CJ21: - | CK21: - | CQ21: 19 | CR21: X TEI 2 | CS21: Anas Fajar Pratama, S.Kom | CT21: PegId | CU21: 20217802185004
B22: TBSM 1 | D22: 6 (enam) | I22: 19 | J22: G19 | K22: Angga Tri Anggoro, S.Pd | L22: PegId | M22: 20217802185004 | W22: 21 | X22: Seni Budaya | Y22: Seni Budaya | Z22: - | AA22: - | AB22: - | AC22: - | AD22: Seni Budaya | AE22: Seni Budaya | AF22: - | AG22: - | AH22: - | AI22: - | AJ22: Seni Budaya | AK22: Seni Budaya | AL22: - | AM22: - | AN22: - | AO22: - | AP22: Seni Budaya | AQ22: Seni Budaya | AR22: - | AS22: - | AT22: - | AU22: - | AV22: Seni Budaya | AW22: Seni Budaya | AX22: - | AY22: - | AZ22: - | BA22: - | BB22: Seni Budaya | BC22: Seni Budaya | BD22: - | BE22: - | BF22: - | BG22: - | BH22: Seni Budaya | BI22: Seni Budaya | BJ22: - | BK22: - | BL22: - | BM22: - | BN22: Seni Budaya | BO22: Seni Budaya | BP22: - | BQ22: - | BR22: - | BS22: - | BT22: Seni Budaya | BU22: Seni Budaya | BV22: - | BW22: - | BX22: - | BY22: - | BZ22: Seni Budaya | CA22: Seni Budaya | CB22: - | CC22: - | CD22: - | CE22: - | CF22: Seni Budaya | CG22: Seni Budaya | CH22: - | CI22: - | CJ22: - | CK22: - | CO22: DESKRIPSI NILAI PENGETAHUAN | CQ22: 20 | CR22: X RPL 1 | CS22: Dedi Suandi S, S.Pd, M.Pd | CT22: NIP | CU22: 19710119 199801 1 001
B23: TBSM 2 | I23: 20 | J23: G83 | K23: Annisa Nurizka Amaliya, S.Pd | L23: PegId | M23: - | W23: 22 | X23: Seni Budaya | Y23: Seni Budaya | Z23: - | AA23: - | AB23: - | AC23: - | AD23: Seni Budaya | AE23: Seni Budaya | AF23: - | AG23: - | AH23: - | AI23: - | AJ23: Seni Budaya | AK23: Seni Budaya | AL23: - | AM23: - | AN23: - | AO23: - | AP23: Seni Budaya | AQ23: Seni Budaya | AR23: - | AS23: - | AT23: - | AU23: - | AV23: Seni Budaya | AW23: Seni Budaya | AX23: - | AY23: - | AZ23: - | BA23: - | BB23: Seni Budaya | BC23: Seni Budaya | BD23: - | BE23: - | BF23: - | BG23: - | BH23: Seni Budaya | BI23: Seni Budaya | BJ23: - | BK23: - | BL23: - | BM23: - | BN23: Seni Budaya | BO23: Seni Budaya | BP23: - | BQ23: - | BR23: - | BS23: - | BT23: Seni Budaya | BU23: Seni Budaya | BV23: - | BW23: - | BX23: - | BY23: - | BZ23: Seni Budaya | CA23: Seni Budaya | CB23: - | CC23: - | CD23: - | CE23: - | CF23: Seni Budaya | CG23: Seni Budaya | CH23: - | CI23: - | CJ23: - | CK23: - | CO23: A | CP23: Sangat baik dalam memahami, menerapkan, menganalisis dan mengevaluasi semua kompetensi dasar. | CQ23: 21 | CR23: X RPL 2 | CS23: Mochamad Nuryanto, S.Ag | CT23: PegId | CU23: 20217802185003
A24: B | B24: TEI 1 | I24: 21 | J24: P52 | K24: Arif Wahyu Nugraha, S.Pd., M.T | L24: NIP | M24: 19820710 201101 1 001 | U24: 8 | V24: B | W24: 23 | X24: Pendidikan Jasmani, Olah Raga & Kesehatan | Y24: Pendidikan Jasmani, Olah Raga & Kesehatan | Z24: Pendidikan Jasmani, Olah Raga & Kesehatan | AA24: Pendidikan Jasmani, Olah Raga & Kesehatan | AB24: - | AC24: - | AD24: Pendidikan Jasmani, Olah Raga & Kesehatan | AE24: Pendidikan Jasmani, Olah Raga & Kesehatan | AF24: Pendidikan Jasmani, Olah Raga & Kesehatan | AG24: Pendidikan Jasmani, Olah Raga & Kesehatan | AH24: - | AI24: - | AJ24: Pendidikan Jasmani, Olah Raga & Kesehatan | AK24: Pendidikan Jasmani, Olah Raga & Kesehatan | AL24: Pendidikan Jasmani, Olah Raga & Kesehatan | AM24: Pendidikan Jasmani, Olah Raga & Kesehatan | AN24: - | AO24: - | AP24: Pendidikan Jasmani, Olah Raga & Kesehatan | AQ24: Pendidikan Jasmani, Olah Raga & Kesehatan | AR24: Pendidikan Jasmani, Olah Raga & Kesehatan | AS24: Pendidikan Jasmani, Olah Raga & Kesehatan | AT24: - | AU24: - | AV24: Pendidikan Jasmani, Olah Raga & Kesehatan | AW24: Pendidikan Jasmani, Olah Raga & Kesehatan | AX24: Pendidikan Jasmani, Olah Raga & Kesehatan | AY24: Pendidikan Jasmani, Olah Raga & Kesehatan | AZ24: - | BA24: - | BB24: Pendidikan Jasmani, Olah Raga & Kesehatan | BC24: Pendidikan Jasmani, Olah Raga & Kesehatan | BD24: Pendidikan Jasmani, Olah Raga & Kesehatan | BE24: Pendidikan Jasmani, Olah Raga & Kesehatan | BF24: - | BG24: - | BH24: Pendidikan Jasmani, Olah Raga & Kesehatan | BI24: Pendidikan Jasmani, Olah Raga & Kesehatan | BJ24: Pendidikan Jasmani, Olah Raga & Kesehatan | BK24: Pendidikan Jasmani, Olah Raga & Kesehatan | BL24: - | BM24: - | BN24: Pendidikan Jasmani, Olah Raga & Kesehatan | BO24: Pendidikan Jasmani, Olah Raga & Kesehatan | BP24: Pendidikan Jasmani, Olah Raga & Kesehatan | BQ24: Pendidikan Jasmani, Olah Raga & Kesehatan | BR24: - | BS24: - | BT24: Pendidikan Jasmani, Olah Raga & Kesehatan | BU24: Pendidikan Jasmani, Olah Raga & Kesehatan | BV24: Pendidikan Jasmani, Olah Raga & Kesehatan | BW24: Pendidikan Jasmani, Olah Raga & Kesehatan | BX24: - | BY24: - | BZ24: Pendidikan Jasmani, Olah Raga & Kesehatan | CA24: Pendidikan Jasmani, Olah Raga & Kesehatan | CB24: Pendidikan Jasmani, Olah Raga & Kesehatan | CC24: Pendidikan Jasmani, Olah Raga & Kesehatan | CD24: - | CE24: - | CF24: Pendidikan Jasmani, Olah Raga & Kesehatan | CG24: Pendidikan Jasmani, Olah Raga & Kesehatan | CH24: Pendidikan Jasmani, Olah Raga & Kesehatan | CI24: Pendidikan Jasmani, Olah Raga & Kesehatan | CJ24: - | CK24: - | CQ24: 22 | CR24: X TKJ 1 | CS24: Zian Muzakkiyah Kosman, S.Pd | CT24: PegId | CU24: 20217802189007
B25: TEI 2 | D25: PILIHAN_TAHUN_PELAJARAN | I25: 22 | J25: G6 | K25: Asep Darojatul Romli, S.Pd, M.Pd | L25: PegId | M25: - | W25: 24 | X25: Pendidikan Jasmani, Olah Raga & Kesehatan | Y25: Pendidikan Jasmani, Olah Raga & Kesehatan | Z25: Pendidikan Jasmani, Olah Raga & Kesehatan | AA25: Pendidikan Jasmani, Olah Raga & Kesehatan | AB25: - | AC25: - | AD25: Pendidikan Jasmani, Olah Raga & Kesehatan | AE25: Pendidikan Jasmani, Olah Raga & Kesehatan | AF25: Pendidikan Jasmani, Olah Raga & Kesehatan | AG25: Pendidikan Jasmani, Olah Raga & Kesehatan | AH25: - | AI25: - | AJ25: Pendidikan Jasmani, Olah Raga & Kesehatan | AK25: Pendidikan Jasmani, Olah Raga & Kesehatan | AL25: Pendidikan Jasmani, Olah Raga & Kesehatan | AM25: Pendidikan Jasmani, Olah Raga & Kesehatan | AN25: - | AO25: - | AP25: Pendidikan Jasmani, Olah Raga & Kesehatan | AQ25: Pendidikan Jasmani, Olah Raga & Kesehatan | AR25: Pendidikan Jasmani, Olah Raga & Kesehatan | AS25: Pendidikan Jasmani, Olah Raga & Kesehatan | AT25: - | AU25: - | AV25: Pendidikan Jasmani, Olah Raga & Kesehatan | AW25: Pendidikan Jasmani, Olah Raga & Kesehatan | AX25: Pendidikan Jasmani, Olah Raga & Kesehatan | AY25: Pendidikan Jasmani, Olah Raga & Kesehatan | AZ25: - | BA25: - | BB25: Pendidikan Jasmani, Olah Raga & Kesehatan | BC25: Pendidikan Jasmani, Olah Raga & Kesehatan | BD25: Pendidikan Jasmani, Olah Raga & Kesehatan | BE25: Pendidikan Jasmani, Olah Raga & Kesehatan | BF25: - | BG25: - | BH25: Pendidikan Jasmani, Olah Raga & Kesehatan | BI25: Pendidikan Jasmani, Olah Raga & Kesehatan | BJ25: Pendidikan Jasmani, Olah Raga & Kesehatan | BK25: Pendidikan Jasmani, Olah Raga & Kesehatan | BL25: - | BM25: - | BN25: Pendidikan Jasmani, Olah Raga & Kesehatan | BO25: Pendidikan Jasmani, Olah Raga & Kesehatan | BP25: Pendidikan Jasmani, Olah Raga & Kesehatan | BQ25: Pendidikan Jasmani, Olah Raga & Kesehatan | BR25: - | BS25: - | BT25: Pendidikan Jasmani, Olah Raga & Kesehatan | BU25: Pendidikan Jasmani, Olah Raga & Kesehatan | BV25: Pendidikan Jasmani, Olah Raga & Kesehatan | BW25: Pendidikan Jasmani, Olah Raga & Kesehatan | BX25: - | BY25: - | BZ25: Pendidikan Jasmani, Olah Raga & Kesehatan | CA25: Pendidikan Jasmani, Olah Raga & Kesehatan | CB25: Pendidikan Jasmani, Olah Raga & Kesehatan | CC25: Pendidikan Jasmani, Olah Raga & Kesehatan | CD25: - | CE25: - | CF25: Pendidikan Jasmani, Olah Raga & Kesehatan | CG25: Pendidikan Jasmani, Olah Raga & Kesehatan | CH25: Pendidikan Jasmani, Olah Raga & Kesehatan | CI25: Pendidikan Jasmani, Olah Raga & Kesehatan | CJ25: - | CK25: - | CO25: B | CP25: Baik dalam memahami, menerapkan, menganalisis dan mengevaluasi sebagian besar kompetensi dasar. | CQ25: 23 | CR25: X TKJ 2 | CS25: Sri Hartati, S.T | CT25: PegId | CU25: 20217802184001
B26: RPL 1 | D26: - | I26: 23 | J26: G20 | K26: Asep Saeful Rohman, S.Ag | L26: PegId | M26: - | W26: 25 | X26: Pendidikan Jasmani, Olah Raga & Kesehatan | Y26: Pendidikan Jasmani, Olah Raga & Kesehatan | Z26: Pendidikan Jasmani, Olah Raga & Kesehatan | AA26: Pendidikan Jasmani, Olah Raga & Kesehatan | AB26: - | AC26: - | AD26: Pendidikan Jasmani, Olah Raga & Kesehatan | AE26: Pendidikan Jasmani, Olah Raga & Kesehatan | AF26: Pendidikan Jasmani, Olah Raga & Kesehatan | AG26: Pendidikan Jasmani, Olah Raga & Kesehatan | AH26: - | AI26: - | AJ26: Pendidikan Jasmani, Olah Raga & Kesehatan | AK26: Pendidikan Jasmani, Olah Raga & Kesehatan | AL26: Pendidikan Jasmani, Olah Raga & Kesehatan | AM26: Pendidikan Jasmani, Olah Raga & Kesehatan | AN26: - | AO26: - | AP26: Pendidikan Jasmani, Olah Raga & Kesehatan | AQ26: Pendidikan Jasmani, Olah Raga & Kesehatan | AR26: Pendidikan Jasmani, Olah Raga & Kesehatan | AS26: Pendidikan Jasmani, Olah Raga & Kesehatan | AT26: - | AU26: - | AV26: Pendidikan Jasmani, Olah Raga & Kesehatan | AW26: Pendidikan Jasmani, Olah Raga & Kesehatan | AX26: Pendidikan Jasmani, Olah Raga & Kesehatan | AY26: Pendidikan Jasmani, Olah Raga & Kesehatan | AZ26: - | BA26: - | BB26: Pendidikan Jasmani, Olah Raga & Kesehatan | BC26: Pendidikan Jasmani, Olah Raga & Kesehatan | BD26: Pendidikan Jasmani, Olah Raga & Kesehatan | BE26: Pendidikan Jasmani, Olah Raga & Kesehatan | BF26: - | BG26: - | BH26: Pendidikan Jasmani, Olah Raga & Kesehatan | BI26: Pendidikan Jasmani, Olah Raga & Kesehatan | BJ26: Pendidikan Jasmani, Olah Raga & Kesehatan | BK26: Pendidikan Jasmani, Olah Raga & Kesehatan | BL26: - | BM26: - | BN26: Pendidikan Jasmani, Olah Raga & Kesehatan | BO26: Pendidikan Jasmani, Olah Raga & Kesehatan | BP26: Pendidikan Jasmani, Olah Raga & Kesehatan | BQ26: Pendidikan Jasmani, Olah Raga & Kesehatan | BR26: - | BS26: - | BT26: Pendidikan Jasmani, Olah Raga & Kesehatan | BU26: Pendidikan Jasmani, Olah Raga & Kesehatan | BV26: Pendidikan Jasmani, Olah Raga & Kesehatan | BW26: Pendidikan Jasmani, Olah Raga & Kesehatan | BX26: - | BY26: - | BZ26: Pendidikan Jasmani, Olah Raga & Kesehatan | CA26: Pendidikan Jasmani, Olah Raga & Kesehatan | CB26: Pendidikan Jasmani, Olah Raga & Kesehatan | CC26: Pendidikan Jasmani, Olah Raga & Kesehatan | CD26: - | CE26: - | CF26: Pendidikan Jasmani, Olah Raga & Kesehatan | CG26: Pendidikan Jasmani, Olah Raga & Kesehatan | CH26: Pendidikan Jasmani, Olah Raga & Kesehatan | CI26: Pendidikan Jasmani, Olah Raga & Kesehatan | CJ26: - | CK26: - | CQ26: 24 | CR26: X TKJ 3 | CS26: Indria Listia Ningrum, S.Kom | CT26: PegId | CU26: 20217802189003
A27: C1 | B27: RPL 2 | D27: 2014 / 2015 | I27: 24 | J27: G87 | K27: Asep Tatang | L27: PegId | M27: - | U27: 9 | V27: B | W27: 26 | X27: Bahasa dan Sastra Sunda | Y27: Bahasa dan Sastra Sunda | Z27: - | AA27: - | AB27: - | AC27: - | AD27: Bahasa dan Sastra Sunda | AE27: Bahasa dan Sastra Sunda | AF27: - | AG27: - | AH27: - | AI27: - | AJ27: Bahasa dan Sastra Sunda | AK27: Bahasa dan Sastra Sunda | AL27: - | AM27: - | AN27: - | AO27: - | AP27: Bahasa dan Sastra Sunda | AQ27: Bahasa dan Sastra Sunda | AR27: - | AS27: - | AT27: - | AU27: - | AV27: Bahasa dan Sastra Sunda | AW27: Bahasa dan Sastra Sunda | AX27: - | AY27: - | AZ27: - | BA27: - | BB27: Bahasa dan Sastra Sunda | BC27: Bahasa dan Sastra Sunda | BD27: - | BE27: - | BF27: - | BG27: - | BH27: Bahasa dan Sastra Sunda | BI27: Bahasa dan Sastra Sunda | BJ27: - | BK27: - | BL27: - | BM27: - | BN27: Bahasa dan Sastra Sunda | BO27: Bahasa dan Sastra Sunda | BP27: - | BQ27: - | BR27: - | BS27: - | BT27: Bahasa dan Sastra Sunda | BU27: Bahasa dan Sastra Sunda | BV27: - | BW27: - | BX27: - | BY27: - | BZ27: Bahasa dan Sastra Sunda | CA27: Bahasa dan Sastra Sunda | CB27: - | CC27: - | CD27: - | CE27: - | CF27: Bahasa dan Sastra Sunda | CG27: Bahasa dan Sastra Sunda | CH27: - | CI27: - | CJ27: - | CK27: - | CO27: C | CP27: Cukup baik memahami sebagian kompetensi dasar, tetapi kurang bisa menerapkan, menganalisis dan mengevaluasinya. | CQ27: 25 | CR27: XI TGB 1 | CS27: Muhammad Fauzi Efendie, S.Pd. | CT27: PegId | CU27: 20217802185001
B28: TKJ 1 | D28: 2015 / 2016 | I28: 25 | J28: P38 | K28: Asep Tatang Suryana, S.Pd, MM | L28: NIP | M28: 19710617 199801 1 001 | W28: 27 | X28: Bahasa dan Sastra Sunda | Y28: Bahasa dan Sastra Sunda | Z28: - | AA28: - | AB28: - | AC28: - | AD28: Bahasa dan Sastra Sunda | AE28: Bahasa dan Sastra Sunda | AF28: - | AG28: - | AH28: - | AI28: - | AJ28: Bahasa dan Sastra Sunda | AK28: Bahasa dan Sastra Sunda | AL28: - | AM28: - | AN28: - | AO28: - | AP28: Bahasa dan Sastra Sunda | AQ28: Bahasa dan Sastra Sunda | AR28: - | AS28: - | AT28: - | AU28: - | AV28: Bahasa dan Sastra Sunda | AW28: Bahasa dan Sastra Sunda | AX28: - | AY28: - | AZ28: - | BA28: - | BB28: Bahasa dan Sastra Sunda | BC28: Bahasa dan Sastra Sunda | BD28: - | BE28: - | BF28: - | BG28: - | BH28: Bahasa dan Sastra Sunda | BI28: Bahasa dan Sastra Sunda | BJ28: - | BK28: - | BL28: - | BM28: - | BN28: Bahasa dan Sastra Sunda | BO28: Bahasa dan Sastra Sunda | BP28: - | BQ28: - | BR28: - | BS28: - | BT28: Bahasa dan Sastra Sunda | BU28: Bahasa dan Sastra Sunda | BV28: - | BW28: - | BX28: - | BY28: - | BZ28: Bahasa dan Sastra Sunda | CA28: Bahasa dan Sastra Sunda | CB28: - | CC28: - | CD28: - | CE28: - | CF28: Bahasa dan Sastra Sunda | CG28: Bahasa dan Sastra Sunda | CH28: - | CI28: - | CJ28: - | CK28: - | CQ28: 26 | CR28: XI TGB 2 | CS28: Drs. Encep Pranseda, M.Pd | CT28: NIP | CU28: 19660713 200701 1 005
B29: TKJ 2 | D29: 2016 / 2017 | I29: 26 | J29: G71 | K29: Atikah Nurwansyah | L29: PegId | M29: - | W29: 28 | X29: Bahasa dan Sastra Sunda | Y29: Bahasa dan Sastra Sunda | Z29: - | AA29: - | AB29: - | AC29: - | AD29: Bahasa dan Sastra Sunda | AE29: Bahasa dan Sastra Sunda | AF29: - | AG29: - | AH29: - | AI29: - | AJ29: Bahasa dan Sastra Sunda | AK29: Bahasa dan Sastra Sunda | AL29: - | AM29: - | AN29: - | AO29: - | AP29: Bahasa dan Sastra Sunda | AQ29: Bahasa dan Sastra Sunda | AR29: - | AS29: - | AT29: - | AU29: - | AV29: Bahasa dan Sastra Sunda | AW29: Bahasa dan Sastra Sunda | AX29: - | AY29: - | AZ29: - | BA29: - | BB29: Bahasa dan Sastra Sunda | BC29: Bahasa dan Sastra Sunda | BD29: - | BE29: - | BF29: - | BG29: - | BH29: Bahasa dan Sastra Sunda | BI29: Bahasa dan Sastra Sunda | BJ29: - | BK29: - | BL29: - | BM29: - | BN29: Bahasa dan Sastra Sunda | BO29: Bahasa dan Sastra Sunda | BP29: - | BQ29: - | BR29: - | BS29: - | BT29: Bahasa dan Sastra Sunda | BU29: Bahasa dan Sastra Sunda | BV29: - | BW29: - | BX29: - | BY29: - | BZ29: Bahasa dan Sastra Sunda | CA29: Bahasa dan Sastra Sunda | CB29: - | CC29: - | CD29: - | CE29: - | CF29: Bahasa dan Sastra Sunda | CG29: Bahasa dan Sastra Sunda | CH29: - | CI29: - | CJ29: - | CK29: - | CO29: D | CP29: Kurang dapat memahami, hanya bisa menerapkan, menganalisis, dan mengeveluasi sebagian kecil kompetensi dasar. | CQ29: 27 | CR29: XI TEI 1 | CS29: Eli Heriah, S.Si, M.Pd | CT29: NIP | CU29: 19790602 201408 2 002
A30: C1 | B30: TKJ 3 | D30: 2017 / 2018 | I30: 27 | J30: P63 | K30: Ayu Lea Lailatussa'diyah, S.Pd | L30: NIP | M30: 19920626 201503 2 002 | U30: 10 | V30: B | W30: 29 | X30: PLH | Y30: PLH | Z30: Bahasa Jepang | AA30: Bahasa Jepang | AB30: Bahasa Jepang | AC30: Bahasa Jepang | AD30: PLH | AE30: PLH | AF30: Bahasa Jepang | AG30: Bahasa Jepang | AH30: Bahasa Jepang | AI30: Bahasa Jepang | AJ30: PLH | AK30: PLH | AL30: Bahasa Jepang | AM30: Bahasa Jepang | AN30: Bahasa Jepang | AO30: Bahasa Jepang | AP30: PLH | AQ30: PLH | AR30: Bahasa Jepang | AS30: Bahasa Jepang | AT30: Bahasa Jepang | AU30: Bahasa Jepang | AV30: PLH | AW30: PLH | AX30: Bahasa Jepang | AY30: Bahasa Jepang | AZ30: Bahasa Jepang | BA30: Bahasa Jepang | BB30: PLH | BC30: PLH | BD30: Bahasa Jepang | BE30: Bahasa Jepang | BF30: Bahasa Jepang | BG30: Bahasa Jepang | BH30: PLH | BI30: PLH | BJ30: Bahasa Jepang | BK30: Bahasa Jepang | BL30: Bahasa Jepang | BM30: Bahasa Jepang | BN30: PLH | BO30: PLH | BP30: Bahasa Jepang | BQ30: Bahasa Jepang | BR30: Bahasa Jepang | BS30: Bahasa Jepang | BT30: PLH | BU30: PLH | BV30: Bahasa Jepang | BW30: Bahasa Jepang | BX30: Bahasa Jepang | BY30: Bahasa Jepang | BZ30: PLH | CA30: PLH | CB30: Bahasa Jepang | CC30: Bahasa Jepang | CD30: Bahasa Jepang | CE30: Bahasa Jepang | CF30: PLH | CG30: PLH | CH30: Bahasa Jepang | CI30: Bahasa Jepang | CJ30: Bahasa Jepang | CK30: Bahasa Jepang | CQ30: 28 | CR30: XI TEI 2 | CS30: Deni Kurniawan, S.Pd | CT30: PegId | CU30: 20217802188006
D31: 2018 / 2019 | I31: 28 | J31: G21 | K31: Ayung Suryana, S.Pd | L31: PegId | M31: - | W31: 30 | X31: PLH | Y31: PLH | Z31: Bahasa Jepang | AA31: Bahasa Jepang | AB31: Bahasa Jepang | AC31: Bahasa Jepang | AD31: PLH | AE31: PLH | AF31: Bahasa Jepang | AG31: Bahasa Jepang | AH31: Bahasa Jepang | AI31: Bahasa Jepang | AJ31: PLH | AK31: PLH | AL31: Bahasa Jepang | AM31: Bahasa Jepang | AN31: Bahasa Jepang | AO31: Bahasa Jepang | AP31: PLH | AQ31: PLH | AR31: Bahasa Jepang | AS31: Bahasa Jepang | AT31: Bahasa Jepang | AU31: Bahasa Jepang | AV31: PLH | AW31: PLH | AX31: Bahasa Jepang | AY31: Bahasa Jepang | AZ31: Bahasa Jepang | BA31: Bahasa Jepang | BB31: PLH | BC31: PLH | BD31: Bahasa Jepang | BE31: Bahasa Jepang | BF31: Bahasa Jepang | BG31: Bahasa Jepang | BH31: PLH | BI31: PLH | BJ31: Bahasa Jepang | BK31: Bahasa Jepang | BL31: Bahasa Jepang | BM31: Bahasa Jepang | BN31: PLH | BO31: PLH | BP31: Bahasa Jepang | BQ31: Bahasa Jepang | BR31: Bahasa Jepang | BS31: Bahasa Jepang | BT31: PLH | BU31: PLH | BV31: Bahasa Jepang | BW31: Bahasa Jepang | BX31: Bahasa Jepang | BY31: Bahasa Jepang | BZ31: PLH | CA31: PLH | CB31: Bahasa Jepang | CC31: Bahasa Jepang | CD31: Bahasa Jepang | CE31: Bahasa Jepang | CF31: PLH | CG31: PLH | CH31: Bahasa Jepang | CI31: Bahasa Jepang | CJ31: Bahasa Jepang | CK31: Bahasa Jepang | CQ31: 29 | CR31: XI TEI 3 | CS31: Ayung Suryana, S.Pd | CT31: PegId | CU31: 20217802191003
D32: 2019 / 2020 | I32: 29 | J32: G3 | K32: Azis Muslim, S.Pd | L32: PegId | M32: - | W32: 31 | X32: PLH | Y32: PLH | Z32: Bahasa Jepang | AA32: Bahasa Jepang | AB32: Bahasa Jepang | AC32: Bahasa Jepang | AD32: PLH | AE32: PLH | AF32: Bahasa Jepang | AG32: Bahasa Jepang | AH32: Bahasa Jepang | AI32: Bahasa Jepang | AJ32: PLH | AK32: PLH | AL32: Bahasa Jepang | AM32: Bahasa Jepang | AN32: Bahasa Jepang | AO32: Bahasa Jepang | AP32: PLH | AQ32: PLH | AR32: Bahasa Jepang | AS32: Bahasa Jepang | AT32: Bahasa Jepang | AU32: Bahasa Jepang | AV32: PLH | AW32: PLH | AX32: Bahasa Jepang | AY32: Bahasa Jepang | AZ32: Bahasa Jepang | BA32: Bahasa Jepang | BB32: PLH | BC32: PLH | BD32: Bahasa Jepang | BE32: Bahasa Jepang | BF32: Bahasa Jepang | BG32: Bahasa Jepang | BH32: PLH | BI32: PLH | BJ32: Bahasa Jepang | BK32: Bahasa Jepang | BL32: Bahasa Jepang | BM32: Bahasa Jepang | BN32: PLH | BO32: PLH | BP32: Bahasa Jepang | BQ32: Bahasa Jepang | BR32: Bahasa Jepang | BS32: Bahasa Jepang | BT32: PLH | BU32: PLH | BV32: Bahasa Jepang | BW32: Bahasa Jepang | BX32: Bahasa Jepang | BY32: Bahasa Jepang | BZ32: PLH | CA32: PLH | CB32: Bahasa Jepang | CC32: Bahasa Jepang | CD32: Bahasa Jepang | CE32: Bahasa Jepang | CF32: PLH | CG32: PLH | CH32: Bahasa Jepang | CI32: Bahasa Jepang | CJ32: Bahasa Jepang | CK32: Bahasa Jepang | CO32: DESKRIPSI NILAI KETERAMPILAN | CQ32: 30 | CR32: XI TPL 1 | CS32: Dewi Yuningsih, S.Pd | CT32: NIP | CU32: 19700107 201001 2 006
A33: C1 | D33: 2020 / 2021 | I33: 30 | J33: G48 | K33: Azis Syahrial Saefudin, S.Pd | L33: PegId | M33: 20217802188007 | U33: 11 | V33: C1 | W33: 32 | X33: Simulasi dan Komunikasi Digital | Y33: Simulasi dan Komunikasi Digital | Z33: - | AA33: - | AB33: - | AC33: - | AD33: Simulasi dan Komunikasi Digital | AE33: Simulasi dan Komunikasi Digital | AF33: - | AG33: - | AH33: - | AI33: - | AJ33: Simulasi dan Komunikasi Digital | AK33: Simulasi dan Komunikasi Digital | AL33: - | AM33: - | AN33: - | AO33: - | AP33: Simulasi dan Komunikasi Digital | AQ33: Simulasi dan Komunikasi Digital | AR33: - | AS33: - | AT33: - | AU33: - | AV33: Simulasi dan Komunikasi Digital | AW33: Simulasi dan Komunikasi Digital | AX33: - | AY33: - | AZ33: - | BA33: - | BB33: Simulasi dan Komunikasi Digital | BC33: Simulasi dan Komunikasi Digital | BD33: - | BE33: - | BF33: - | BG33: - | BH33: Simulasi dan Komunikasi Digital | BI33: Simulasi dan Komunikasi Digital | BJ33: - | BK33: - | BL33: - | BM33: - | BN33: Simulasi dan Komunikasi Digital | BO33: Simulasi dan Komunikasi Digital | BP33: - | BQ33: - | BR33: - | BS33: - | BT33: Simulasi dan Komunikasi Digital | BU33: Simulasi dan Komunikasi Digital | BV33: - | BW33: - | BX33: - | BY33: - | BZ33: Simulasi dan Komunikasi Digital | CA33: Simulasi dan Komunikasi Digital | CB33: - | CC33: - | CD33: - | CE33: - | CF33: Simulasi dan Komunikasi Digital | CG33: Simulasi dan Komunikasi Digital | CH33: - | CI33: - | CJ33: - | CK33: - | CO33: A | CP33: Sangat baik dan aktif bertanya, mencoba, menalar dan kreatif dalam menyelesaikan tugas praktek. | CQ33: 31 | CR33: XI TPL 2 | CS33: Wieneke Dinar P, S.Pd, M.Pd | CT33: PegId | CU33: 20217802186004
D34: 2021 / 2022 | I34: 31 | J34: G22 | K34: Bambang Herwiyanto, S.Pd, M.Pd | L34: PegId | M34: 20217802177001 | W34: 33 | X34: Simulasi dan Komunikasi Digital | Y34: Simulasi dan Komunikasi Digital | Z34: - | AA34: - | AB34: - | AC34: - | AD34: Simulasi dan Komunikasi Digital | AE34: Simulasi dan Komunikasi Digital | AF34: - | AG34: - | AH34: - | AI34: - | AJ34: Simulasi dan Komunikasi Digital | AK34: Simulasi dan Komunikasi Digital | AL34: - | AM34: - | AN34: - | AO34: - | AP34: Simulasi dan Komunikasi Digital | AQ34: Simulasi dan Komunikasi Digital | AR34: - | AS34: - | AT34: - | AU34: - | AV34: Simulasi dan Komunikasi Digital | AW34: Simulasi dan Komunikasi Digital | AX34: - | AY34: - | AZ34: - | BA34: - | BB34: Simulasi dan Komunikasi Digital | BC34: Simulasi dan Komunikasi Digital | BD34: - | BE34: - | BF34: - | BG34: - | BH34: Simulasi dan Komunikasi Digital | BI34: Simulasi dan Komunikasi Digital | BJ34: - | BK34: - | BL34: - | BM34: - | BN34: Simulasi dan Komunikasi Digital | BO34: Simulasi dan Komunikasi Digital | BP34: - | BQ34: - | BR34: - | BS34: - | BT34: Simulasi dan Komunikasi Digital | BU34: Simulasi dan Komunikasi Digital | BV34: - | BW34: - | BX34: - | BY34: - | BZ34: Simulasi dan Komunikasi Digital | CA34: Simulasi dan Komunikasi Digital | CB34: - | CC34: - | CD34: - | CE34: - | CF34: Simulasi dan Komunikasi Digital | CG34: Simulasi dan Komunikasi Digital | CH34: - | CI34: - | CJ34: - | CK34: - | CQ34: 32 | CR34: XI TPL 3 | CS34: Vanny Tri Oktaviani, S.Pd | CT34: PegId | CU34: 20217802191004
I35: 32 | J35: P62 | K35: Bimuka Jati Andromeda, S.Pd | L35: NIP | M35: 19900202 201503 1 003 | W35: 34 | X35: Simulasi dan Komunikasi Digital | Y35: Simulasi dan Komunikasi Digital | Z35: - | AA35: - | AB35: - | AC35: - | AD35: Simulasi dan Komunikasi Digital | AE35: Simulasi dan Komunikasi Digital | AF35: - | AG35: - | AH35: - | AI35: - | AJ35: Simulasi dan Komunikasi Digital | AK35: Simulasi dan Komunikasi Digital | AL35: - | AM35: - | AN35: - | AO35: - | AP35: Simulasi dan Komunikasi Digital | AQ35: Simulasi dan Komunikasi Digital | AR35: - | AS35: - | AT35: - | AU35: - | AV35: Simulasi dan Komunikasi Digital | AW35: Simulasi dan Komunikasi Digital | AX35: - | AY35: - | AZ35: - | BA35: - | BB35: Simulasi dan Komunikasi Digital | BC35: Simulasi dan Komunikasi Digital | BD35: - | BE35: - | BF35: - | BG35: - | BH35: Simulasi dan Komunikasi Digital | BI35: Simulasi dan Komunikasi Digital | BJ35: - | BK35: - | BL35: - | BM35: - | BN35: Simulasi dan Komunikasi Digital | BO35: Simulasi dan Komunikasi Digital | BP35: - | BQ35: - | BR35: - | BS35: - | BT35: Simulasi dan Komunikasi Digital | BU35: Simulasi dan Komunikasi Digital | BV35: - | BW35: - | BX35: - | BY35: - | BZ35: Simulasi dan Komunikasi Digital | CA35: Simulasi dan Komunikasi Digital | CB35: - | CC35: - | CD35: - | CE35: - | CF35: Simulasi dan Komunikasi Digital | CG35: Simulasi dan Komunikasi Digital | CH35: - | CI35: - | CJ35: - | CK35: - | CO35: B | CP35: Baik dan aktif bertanya, mencoba, menalar dan kreatif dalam menyelesaikan sebagian besar tugas praktek. | CQ35: 33 | CR35: XI TP 1 | CS35: Ade Carman, S.Pd | CT35: NIP | CU35: 19720406 201407 1 001
A36: C2 | I36: 33 | J36: G86 | K36: Candri Abdul Azis, A.Ma | L36: PegId | M36: - | U36: 12 | V36: C1 | W36: 35 | X36: Fisika | Y36: Fisika | Z36: - | AA36: - | AB36: - | AC36: - | AD36: Fisika | AE36: Fisika | AF36: - | AG36: - | AH36: - | AI36: - | AJ36: Fisika | AK36: Fisika | AL36: - | AM36: - | AN36: - | AO36: - | AP36: Fisika | AQ36: Fisika | AR36: - | AS36: - | AT36: - | AU36: - | AV36: Fisika | AW36: Fisika | AX36: - | AY36: - | AZ36: - | BA36: - | BB36: Fisika | BC36: Fisika | BD36: - | BE36: - | BF36: - | BG36: - | BH36: Fisika | BI36: Fisika | BJ36: - | BK36: - | BL36: - | BM36: - | BN36: Fisika | BO36: Fisika | BP36: - | BQ36: - | BR36: - | BS36: - | BT36: Fisika | BU36: Fisika | BV36: - | BW36: - | BX36: - | BY36: - | BZ36: Fisika | CA36: Fisika | CB36: - | CC36: - | CD36: - | CE36: - | CF36: Fisika | CG36: Fisika | CH36: - | CI36: - | CJ36: - | CK36: - | CQ36: 34 | CR36: XI TP 2 | CS36: Drs.Tamrin, M.Pd | CT36: NIP | CU36: 19600802 198503 1 007
I37: 34 | J37: P29 | K37: Caska, S.Pd | L37: NIP | M37: 19670814 199903 1 003 | W37: 36 | X37: Fisika | Y37: Fisika | Z37: - | AA37: - | AB37: - | AC37: - | AD37: Fisika | AE37: Fisika | AF37: - | AG37: - | AH37: - | AI37: - | AJ37: Fisika | AK37: Fisika | AL37: - | AM37: - | AN37: - | AO37: - | AP37: Fisika | AQ37: Fisika | AR37: - | AS37: - | AT37: - | AU37: - | AV37: Fisika | AW37: Fisika | AX37: - | AY37: - | AZ37: - | BA37: - | BB37: Fisika | BC37: Fisika | BD37: - | BE37: - | BF37: - | BG37: - | BH37: Fisika | BI37: Fisika | BJ37: - | BK37: - | BL37: - | BM37: - | BN37: Fisika | BO37: Fisika | BP37: - | BQ37: - | BR37: - | BS37: - | BT37: Fisika | BU37: Fisika | BV37: - | BW37: - | BX37: - | BY37: - | BZ37: Fisika | CA37: Fisika | CB37: - | CC37: - | CD37: - | CE37: - | CF37: Fisika | CG37: Fisika | CH37: - | CI37: - | CJ37: - | CK37: - | CO37: C | CP37: Cukup aktif bertanya, mencoba, menalar dan kreatif dalam menyelesaikan tugas praktek | CQ37: 35 | CR37: XI TP 3 | CS37: Drs. Bahrudin, MM | CT37: NIP | CU37: 19620316 198603 1 007
I38: 35 | J38: P9 | K38: Cosmas Marojahan Sitanggang, S.Pd, MM | L38: NIP | M38: 19680311 199003 1 006 | W38: 37 | X38: Fisika | Y38: Fisika | Z38: - | AA38: - | AB38: - | AC38: - | AD38: Fisika | AE38: Fisika | AF38: - | AG38: - | AH38: - | AI38: - | AJ38: Fisika | AK38: Fisika | AL38: - | AM38: - | AN38: - | AO38: - | AP38: Fisika | AQ38: Fisika | AR38: - | AS38: - | AT38: - | AU38: - | AV38: Fisika | AW38: Fisika | AX38: - | AY38: - | AZ38: - | BA38: - | BB38: Fisika | BC38: Fisika | BD38: - | BE38: - | BF38: - | BG38: - | BH38: Fisika | BI38: Fisika | BJ38: - | BK38: - | BL38: - | BM38: - | BN38: Fisika | BO38: Fisika | BP38: - | BQ38: - | BR38: - | BS38: - | BT38: Fisika | BU38: Fisika | BV38: - | BW38: - | BX38: - | BY38: - | BZ38: Fisika | CA38: Fisika | CB38: - | CC38: - | CD38: - | CE38: - | CF38: Fisika | CG38: Fisika | CH38: - | CI38: - | CJ38: - | CK38: - | CQ38: 36 | CR38: XI TP 4 | CS38: Caska, S.Pd | CT38: NIP | CU38: 19670814 199903 1 003
A39: C2 | I39: 36 | J39: G15 | K39: Dadan Ramdana, S.Pd | L39: PegId | M39: - | U39: 13 | V39: C1 | W39: 38 | X39: Kimia | Y39: Kimia | Z39: - | AA39: - | AB39: - | AC39: - | AD39: Kimia | AE39: Kimia | AF39: - | AG39: - | AH39: - | AI39: - | AJ39: Kimia | AK39: Kimia | AL39: - | AM39: - | AN39: - | AO39: - | AP39: Kimia | AQ39: Kimia | AR39: - | AS39: - | AT39: - | AU39: - | AV39: Kimia | AW39: Kimia | AX39: - | AY39: - | AZ39: - | BA39: - | BB39: Kimia | BC39: Kimia | BD39: - | BE39: - | BF39: - | BG39: - | BH39: Kimia | BI39: Kimia | BJ39: - | BK39: - | BL39: - | BM39: - | BN39: Kimia | BO39: Kimia | BP39: - | BQ39: - | BR39: - | BS39: - | BT39: Kimia | BU39: Kimia | BV39: - | BW39: - | BX39: - | BY39: - | BZ39: Kimia | CA39: Kimia | CB39: - | CC39: - | CD39: - | CE39: - | CF39: Kimia | CG39: Kimia | CH39: - | CI39: - | CJ39: - | CK39: - | CO39: D | CP39: Kurang aktif bertanya, mencoba, menalar dan kreatif dalam menyelesaikan tugas praktek. | CQ39: 37 | CR39: XI TGM | CS39: Prapti Suharyanti, S.Pd | CT39: NIP | CU39: 19770218 201407 2 001
I40: 37 | J40: P36 | K40: Dafik Derajat, S.Pd | L40: NIP | M40: 19770223 200501 1 004 | W40: 39 | X40: Kimia | Y40: Kimia | Z40: - | AA40: - | AB40: - | AC40: - | AD40: Kimia | AE40: Kimia | AF40: - | AG40: - | AH40: - | AI40: - | AJ40: Kimia | AK40: Kimia | AL40: - | AM40: - | AN40: - | AO40: - | AP40: Kimia | AQ40: Kimia | AR40: - | AS40: - | AT40: - | AU40: - | AV40: Kimia | AW40: Kimia | AX40: - | AY40: - | AZ40: - | BA40: - | BB40: Kimia | BC40: Kimia | BD40: - | BE40: - | BF40: - | BG40: - | BH40: Kimia | BI40: Kimia | BJ40: - | BK40: - | BL40: - | BM40: - | BN40: Kimia | BO40: Kimia | BP40: - | BQ40: - | BR40: - | BS40: - | BT40: Kimia | BU40: Kimia | BV40: - | BW40: - | BX40: - | BY40: - | BZ40: Kimia | CA40: Kimia | CB40: - | CC40: - | CD40: - | CE40: - | CF40: Kimia | CG40: Kimia | CH40: - | CI40: - | CJ40: - | CK40: - | CQ40: 38 | CR40: XI TFLM | CS40: Syarif Hidayatullah, S.Pd, MM | CT40: PegId | CU40: -
I41: 38 | J41: G73 | K41: Darwis Prasetyo, S.Pd | L41: PegId | M41: - | W41: 40 | X41: Kimia | Y41: Kimia | Z41: - | AA41: - | AB41: - | AC41: - | AD41: Kimia | AE41: Kimia | AF41: - | AG41: - | AH41: - | AI41: - | AJ41: Kimia | AK41: Kimia | AL41: - | AM41: - | AN41: - | AO41: - | AP41: Kimia | AQ41: Kimia | AR41: - | AS41: - | AT41: - | AU41: - | AV41: Kimia | AW41: Kimia | AX41: - | AY41: - | AZ41: - | BA41: - | BB41: Kimia | BC41: Kimia | BD41: - | BE41: - | BF41: - | BG41: - | BH41: Kimia | BI41: Kimia | BJ41: - | BK41: - | BL41: - | BM41: - | BN41: Kimia | BO41: Kimia | BP41: - | BQ41: - | BR41: - | BS41: - | BT41: Kimia | BU41: Kimia | BV41: - | BW41: - | BX41: - | BY41: - | BZ41: Kimia | CA41: Kimia | CB41: - | CC41: - | CD41: - | CE41: - | CF41: Kimia | CG41: Kimia | CH41: - | CI41: - | CJ41: - | CK41: - | CQ41: 39 | CR41: XI TKR 1 | CS41: Rika Nurlaela Ningrum, S.S | CT41: PegId | CU41: -
A42: C2 | I42: 39 | J42: G89 | K42: Dede Badru Zaman, S.Sos | L42: PegId | M42: - | U42: 14 | V42: C2 | W42: 41 | X42: Gambar Teknik | Y42: Gambar Teknik | Z42: - | AA42: - | AB42: - | AC42: - | AD42: Gambar Teknik Listrik | AE42: Gambar Teknik Listrik | AF42: - | AG42: - | AH42: - | AI42: - | AJ42: Gambar Teknik Mesin | AK42: Gambar Teknik Mesin | AL42: - | AM42: - | AN42: - | AO42: - | AP42: Gambar Teknik Mesin | AQ42: Gambar Teknik Mesin | AR42: - | AS42: - | AT42: - | AU42: - | AV42: Gambar Teknik Mesin | AW42: Gambar Teknik Mesin | AX42: - | AY42: - | AZ42: - | BA42: - | BB42: Gambar Teknik Mesin | BC42: Gambar Teknik Mesin | BD42: - | BE42: - | BF42: - | BG42: - | BH42: Gambar Teknik Otomotif | BI42: Gambar Teknik Otomotif | BJ42: - | BK42: - | BL42: - | BM42: - | BN42: Gambar Teknik Otomotif | BO42: Gambar Teknik Otomotif | BP42: - | BQ42: - | BR42: - | BS42: - | BT42: Kerja Bengkel dan Gambar Teknik | BU42: Kerja Bengkel dan Gambar Teknik | BV42: - | BW42: - | BX42: - | BY42: - | BZ42: Sistem Komputer | CA42: Sistem Komputer | CB42: - | CC42: - | CD42: - | CE42: - | CF42: Sistem Komputer | CG42: Sistem Komputer | CH42: - | CI42: - | CJ42: - | CK42: - | CQ42: 40 | CR42: XI TKR 2 | CS42: Drs. Kusmaya | CT42: NIP | CU42: 19640812 199412 1 002
I43: 40 | J43: G37 | K43: Dede Supriatna, S.Pd | L43: PegId | M43: 20217802183002 | W43: 42 | X43: Gambar Teknik | Y43: Gambar Teknik | Z43: - | AA43: - | AB43: - | AC43: - | AD43: Gambar Teknik Listrik | AE43: Gambar Teknik Listrik | AF43: - | AG43: - | AH43: - | AI43: - | AJ43: Gambar Teknik Mesin | AK43: Gambar Teknik Mesin | AL43: - | AM43: - | AN43: - | AO43: - | AP43: Gambar Teknik Mesin | AQ43: Gambar Teknik Mesin | AR43: - | AS43: - | AT43: - | AU43: - | AV43: Gambar Teknik Mesin | AW43: Gambar Teknik Mesin | AX43: - | AY43: - | AZ43: - | BA43: - | BB43: Gambar Teknik Mesin | BC43: Gambar Teknik Mesin | BD43: - | BE43: - | BF43: - | BG43: - | BH43: Gambar Teknik Otomotif | BI43: Gambar Teknik Otomotif | BJ43: - | BK43: - | BL43: - | BM43: - | BN43: Gambar Teknik Otomotif | BO43: Gambar Teknik Otomotif | BP43: - | BQ43: - | BR43: - | BS43: - | BT43: Kerja Bengkel dan Gambar Teknik | BU43: Kerja Bengkel dan Gambar Teknik | BV43: - | BW43: - | BX43: - | BY43: - | BZ43: Sistem Komputer | CA43: Sistem Komputer | CB43: - | CC43: - | CD43: - | CE43: - | CF43: Sistem Komputer | CG43: Sistem Komputer | CH43: - | CI43: - | CJ43: - | CK43: - | CO43: KETERANGAN NILAI EKSKUL | CQ43: 41 | CR43: XI TKR 3 | CS43: Andi Rosadi | CT43: PegId | CU43: -
I44: 41 | J44: G23 | K44: Dedeh, S.Pd | L44: PegId | M44: - | W44: 43 | X44: Gambar Teknik | Y44: Gambar Teknik | Z44: - | AA44: - | AB44: - | AC44: - | AD44: Gambar Teknik Listrik | AE44: Gambar Teknik Listrik | AF44: - | AG44: - | AH44: - | AI44: - | AJ44: Gambar Teknik Mesin | AK44: Gambar Teknik Mesin | AL44: - | AM44: - | AN44: - | AO44: - | AP44: Gambar Teknik Mesin | AQ44: Gambar Teknik Mesin | AR44: - | AS44: - | AT44: - | AU44: - | AV44: Gambar Teknik Mesin | AW44: Gambar Teknik Mesin | AX44: - | AY44: - | AZ44: - | BA44: - | BB44: Gambar Teknik Mesin | BC44: Gambar Teknik Mesin | BD44: - | BE44: - | BF44: - | BG44: - | BH44: Gambar Teknik Otomotif | BI44: Gambar Teknik Otomotif | BJ44: - | BK44: - | BL44: - | BM44: - | BN44: Gambar Teknik Otomotif | BO44: Gambar Teknik Otomotif | BP44: - | BQ44: - | BR44: - | BS44: - | BT44: Kerja Bengkel dan Gambar Teknik | BU44: Kerja Bengkel dan Gambar Teknik | BV44: - | BW44: - | BX44: - | BY44: - | BZ44: Sistem Komputer | CA44: Sistem Komputer | CB44: - | CC44: - | CD44: - | CE44: - | CF44: Sistem Komputer | CG44: Sistem Komputer | CH44: - | CI44: - | CJ44: - | CK44: - | CO44: A | CP44: Sangat baik, berprestasi, disiplin dan rajin berlatih | CQ44: 42 | CR44: XI TKR 4 | CS44: Tri Puji Astutik, S.Pd | CT44: PegId | CU44: -
A45: C2 | I45: 42 | J45: P28 | K45: Dedi Suandi Setiawan, S.Pd, M.Pd | L45: NIP | M45: 19710119 199801 1 001 | U45: 15 | V45: C2 | W45: 44 | X45: Mekanika Teknik | Y45: Mekanika Teknik | Z45: - | AA45: - | AB45: - | AC45: - | AD45: Dasar Listrik dan Elektronika | AE45: Dasar Listrik dan Elektronika | AF45: - | AG45: - | AH45: - | AI45: - | AJ45: Pekerjaan Dasar Teknik Mesin | AK45: Pekerjaan Dasar Teknik Mesin | AL45: - | AM45: - | AN45: - | AO45: - | AP45: Pekerjaan Dasar Teknik Mesin | AQ45: Pekerjaan Dasar Teknik Mesin | AR45: - | AS45: - | AT45: - | AU45: - | AV45: Pekerjaan Dasar Teknik Mesin | AW45: Pekerjaan Dasar Teknik Mesin | AX45: - | AY45: - | AZ45: - | BA45: - | BB45: Pekerjaan Dasar Teknik Mesin | BC45: Pekerjaan Dasar Teknik Mesin | BD45: - | BE45: - | BF45: - | BG45: - | BH45: Teknologi Dasar Otomotif | BI45: Teknologi Dasar Otomotif | BJ45: - | BK45: - | BL45: - | BM45: - | BN45: Teknologi Dasar Otomotif | BO45: Teknologi Dasar Otomotif | BP45: - | BQ45: - | BR45: - | BS45: - | BT45: Dasar Listrik dan Elektronika | BU45: Dasar Listrik dan Elektronika | BV45: - | BW45: - | BX45: - | BY45: - | BZ45: Komputer dan Jaringan Dasar | CA45: Komputer dan Jaringan Dasar | CB45: - | CC45: - | CD45: - | CE45: - | CF45: Komputer dan Jaringan Dasar | CG45: Komputer dan Jaringan Dasar | CH45: - | CI45: - | CJ45: - | CK45: - | CO45: B | CP45: Baik, berprestasi, disiplin dan rajin berlatih | CQ45: 43 | CR45: XI TSM 1 | CS45: Leli Suherli, S.Pd, M.Pd | CT45: NIP | CU45: 19600113 198611 1 001
I46: 43 | J46: P31 | K46: Dendi Bagus Wicaksana, S.ST | L46: NIP | M46: 19671104 199203 1 003 | W46: 45 | X46: Mekanika Teknik | Y46: Mekanika Teknik | Z46: - | AA46: - | AB46: - | AC46: - | AD46: Dasar Listrik dan Elektronika | AE46: Dasar Listrik dan Elektronika | AF46: - | AG46: - | AH46: - | AI46: - | AJ46: Pekerjaan Dasar Teknik Mesin | AK46: Pekerjaan Dasar Teknik Mesin | AL46: - | AM46: - | AN46: - | AO46: - | AP46: Pekerjaan Dasar Teknik Mesin | AQ46: Pekerjaan Dasar Teknik Mesin | AR46: - | AS46: - | AT46: - | AU46: - | AV46: Pekerjaan Dasar Teknik Mesin | AW46: Pekerjaan Dasar Teknik Mesin | AX46: - | AY46: - | AZ46: - | BA46: - | BB46: Pekerjaan Dasar Teknik Mesin | BC46: Pekerjaan Dasar Teknik Mesin | BD46: - | BE46: - | BF46: - | BG46: - | BH46: Teknologi Dasar Otomotif | BI46: Teknologi Dasar Otomotif | BJ46: - | BK46: - | BL46: - | BM46: - | BN46: Teknologi Dasar Otomotif | BO46: Teknologi Dasar Otomotif | BP46: - | BQ46: - | BR46: - | BS46: - | BT46: Dasar Listrik dan Elektronika | BU46: Dasar Listrik dan Elektronika | BV46: - | BW46: - | BX46: - | BY46: - | BZ46: Komputer dan Jaringan Dasar | CA46: Komputer dan Jaringan Dasar | CB46: - | CC46: - | CD46: - | CE46: - | CF46: Komputer dan Jaringan Dasar | CG46: Komputer dan Jaringan Dasar | CH46: - | CI46: - | CJ46: - | CK46: - | CO46: C | CP46: Cukup baik, berprestasi, disiplin dan rajin berlatih | CQ46: 44 | CR46: XI TSM 2 | CS46: Sigit Nuratmadi, S.Pd | CT46: NIP | CU46: 19790118 201407 1 002
I47: 44 | J47: G56 | K47: Deni Kurniawan, S.Pd | L47: PegId | M47: 20217802188006 | W47: 46 | X47: Mekanika Teknik | Y47: Mekanika Teknik | Z47: - | AA47: - | AB47: - | AC47: - | AD47: Dasar Listrik dan Elektronika | AE47: Dasar Listrik dan Elektronika | AF47: - | AG47: - | AH47: - | AI47: - | AJ47: Pekerjaan Dasar Teknik Mesin | AK47: Pekerjaan Dasar Teknik Mesin | AL47: - | AM47: - | AN47: - | AO47: - | AP47: Pekerjaan Dasar Teknik Mesin | AQ47: Pekerjaan Dasar Teknik Mesin | AR47: - | AS47: - | AT47: - | AU47: - | AV47: Pekerjaan Dasar Teknik Mesin | AW47: Pekerjaan Dasar Teknik Mesin | AX47: - | AY47: - | AZ47: - | BA47: - | BB47: Pekerjaan Dasar Teknik Mesin | BC47: Pekerjaan Dasar Teknik Mesin | BD47: - | BE47: - | BF47: - | BG47: - | BH47: Teknologi Dasar Otomotif | BI47: Teknologi Dasar Otomotif | BJ47: - | BK47: - | BL47: - | BM47: - | BN47: Teknologi Dasar Otomotif | BO47: Teknologi Dasar Otomotif | BP47: - | BQ47: - | BR47: - | BS47: - | BT47: Dasar Listrik dan Elektronika | BU47: Dasar Listrik dan Elektronika | BV47: - | BW47: - | BX47: - | BY47: - | BZ47: Komputer dan Jaringan Dasar | CA47: Komputer dan Jaringan Dasar | CB47: - | CC47: - | CD47: - | CE47: - | CF47: Komputer dan Jaringan Dasar | CG47: Komputer dan Jaringan Dasar | CH47: - | CI47: - | CJ47: - | CK47: - | CO47: D | CP47: Kurang baik, berprestasi, disiplin dan rajin berlatih | CQ47: 45 | CR47: XI TIPTL 1 | CS47: Faridawati Saragih, S.Si | CT47: NIP | CU47: 19691010 200801 2 015
A48: C2 | I48: 45 | J48: G24 | K48: Dewi Lestari Nengsih, S.IP | L48: PegId | M48: 20217802185001 | U48: 16 | V48: C2 | W48: 47 | X48: Dasar-dasar Konstruksi Bangunan dan Teknik Pengukuran Tanah | Y48: Dasar-dasar Konstruksi Bangunan dan Teknik Pengukuran Tanah | Z48: - | AA48: - | AB48: - | AC48: - | AD48: Pekerjaan Dasar Elektromekanik | AE48: Pekerjaan Dasar Elektromekanik | AF48: - | AG48: - | AH48: - | AI48: - | AJ48: Dasar Perancangan Teknik Mesin | AK48: Dasar Perancangan Teknik Mesin | AL48: - | AM48: - | AN48: - | AO48: - | AP48: Dasar Perancangan Teknik Mesin | AQ48: Dasar Perancangan Teknik Mesin | AR48: - | AS48: - | AT48: - | AU48: - | AV48: Dasar Perancangan Teknik Mesin | AW48: Dasar Perancangan Teknik Mesin | AX48: - | AY48: - | AZ48: - | BA48: - | BB48: Dasar Perancangan Teknik Mesin | BC48: Dasar Perancangan Teknik Mesin | BD48: - | BE48: - | BF48: - | BG48: - | BH48: Pekerjaan Dasar Otomotif | BI48: Pekerjaan Dasar Otomotif | BJ48: - | BK48: - | BL48: - | BM48: - | BN48: Pekerjaan Dasar Otomotif | BO48: Pekerjaan Dasar Otomotif | BP48: - | BQ48: - | BR48: - | BS48: - | BT48: Dasar Pemrograman | BU48: Dasar Pemrograman | BV48: - | BW48: - | BX48: - | BY48: - | BZ48: Pemrograman Dasar | CA48: Pemrograman Dasar | CB48: - | CC48: - | CD48: - | CE48: - | CF48: Pemrograman Dasar | CG48: Pemrograman Dasar | CH48: - | CI48: - | CJ48: - | CK48: - | CO48: - | CP48: - | CQ48: 46 | CR48: XI TIPTL 2 | CS48: Utha Apriel DAC, S.Pd | CT48: PegId | CU48: 20217802189006
I49: 46 | J49: P48 | K49: Dewi Yuningsih, S.Pd | L49: NIP | M49: 19700107 201001 2 006 | W49: 48 | X49: Dasar-dasar Konstruksi Bangunan dan Teknik Pengukuran Tanah | Y49: Dasar-dasar Konstruksi Bangunan dan Teknik Pengukuran Tanah | Z49: - | AA49: - | AB49: - | AC49: - | AD49: Pekerjaan Dasar Elektromekanik | AE49: Pekerjaan Dasar Elektromekanik | AF49: - | AG49: - | AH49: - | AI49: - | AJ49: Dasar Perancangan Teknik Mesin | AK49: Dasar Perancangan Teknik Mesin | AL49: - | AM49: - | AN49: - | AO49: - | AP49: Dasar Perancangan Teknik Mesin | AQ49: Dasar Perancangan Teknik Mesin | AR49: - | AS49: - | AT49: - | AU49: - | AV49: Dasar Perancangan Teknik Mesin | AW49: Dasar Perancangan Teknik Mesin | AX49: - | AY49: - | AZ49: - | BA49: - | BB49: Dasar Perancangan Teknik Mesin | BC49: Dasar Perancangan Teknik Mesin | BD49: - | BE49: - | BF49: - | BG49: - | BH49: Pekerjaan Dasar Otomotif | BI49: Pekerjaan Dasar Otomotif | BJ49: - | BK49: - | BL49: - | BM49: - | BN49: Pekerjaan Dasar Otomotif | BO49: Pekerjaan Dasar Otomotif | BP49: - | BQ49: - | BR49: - | BS49: - | BT49: Dasar Pemrograman | BU49: Dasar Pemrograman | BV49: - | BW49: - | BX49: - | BY49: - | BZ49: Pemrograman Dasar | CA49: Pemrograman Dasar | CB49: - | CC49: - | CD49: - | CE49: - | CF49: Pemrograman Dasar | CG49: Pemrograman Dasar | CH49: - | CI49: - | CJ49: - | CK49: - | CQ49: 47 | CR49: XI TIPTL 3 | CS49: Amad, S.Pd | CT49: PegId | CU49: 20217802189004
I50: 47 | J50: G39 | K50: Dhian Nur Rahayu, ST, M.Kom | L50: PegId | M50: - | W50: 49 | X50: Dasar-dasar Konstruksi Bangunan dan Teknik Pengukuran Tanah | Y50: Dasar-dasar Konstruksi Bangunan dan Teknik Pengukuran Tanah | Z50: - | AA50: - | AB50: - | AC50: - | AD50: Pekerjaan Dasar Elektromekanik | AE50: Pekerjaan Dasar Elektromekanik | AF50: - | AG50: - | AH50: - | AI50: - | AJ50: Dasar Perancangan Teknik Mesin | AK50: Dasar Perancangan Teknik Mesin | AL50: - | AM50: - | AN50: - | AO50: - | AP50: Dasar Perancangan Teknik Mesin | AQ50: Dasar Perancangan Teknik Mesin | AR50: - | AS50: - | AT50: - | AU50: - | AV50: Dasar Perancangan Teknik Mesin | AW50: Dasar Perancangan Teknik Mesin | AX50: - | AY50: - | AZ50: - | BA50: - | BB50: Dasar Perancangan Teknik Mesin | BC50: Dasar Perancangan Teknik Mesin | BD50: - | BE50: - | BF50: - | BG50: - | BH50: Pekerjaan Dasar Otomotif | BI50: Pekerjaan Dasar Otomotif | BJ50: - | BK50: - | BL50: - | BM50: - | BN50: Pekerjaan Dasar Otomotif | BO50: Pekerjaan Dasar Otomotif | BP50: - | BQ50: - | BR50: - | BS50: - | BT50: Dasar Pemrograman | BU50: Dasar Pemrograman | BV50: - | BW50: - | BX50: - | BY50: - | BZ50: Pemrograman Dasar | CA50: Pemrograman Dasar | CB50: - | CC50: - | CD50: - | CE50: - | CF50: Pemrograman Dasar | CG50: Pemrograman Dasar | CH50: - | CI50: - | CJ50: - | CK50: - | CQ50: 48 | CR50: XI TKJ 1 | CS50: Bimuka Jati Andromeda, S.Pd | CT50: NIP | CU50: 19900202 201503 1 003
A51: C2 | I51: 48 | J51: G25 | K51: Didin Syamsudin, S.Pd | L51: PegId | M51: 20217802187001 | U51: 17 | V51: C2 | W51: 50 | X51: - | Y51: - | Z51: - | AA51: - | AB51: - | AC51: - | AD51: - | AE51: - | AF51: - | AG51: - | AH51: - | AI51: - | AJ51: - | AK51: - | AL51: - | AM51: - | AN51: - | AO51: - | AP51: - | AQ51: - | AR51: - | AS51: - | AT51: - | AU51: - | AV51: - | AW51: - | AX51: - | AY51: - | AZ51: - | BA51: - | BB51: - | BC51: - | BD51: - | BE51: - | BF51: - | BG51: - | BH51: - | BI51: - | BJ51: - | BK51: - | BL51: - | BM51: - | BN51: - | BO51: - | BP51: - | BQ51: - | BR51: - | BS51: - | BT51: - | BU51: - | BV51: - | BW51: - | BX51: - | BY51: - | BZ51: - | CA51: - | CB51: - | CC51: - | CD51: - | CE51: - | CF51: Dasar Desain Grafis | CG51: Dasar Desain Grafis | CH51: - | CI51: - | CJ51: - | CK51: - | CQ51: 49 | CR51: XI TKJ 2 | CS51: Muhammad Busron, S.Pd | CT51: PegId | CU51: -
I52: 49 | J52: P27 | K52: Dra. Endang Dwi Winarti | L52: NIP | M52: 19691122 199702 2 001 | W52: 51 | X52: - | Y52: - | Z52: - | AA52: - | AB52: - | AC52: - | AD52: - | AE52: - | AF52: - | AG52: - | AH52: - | AI52: - | AJ52: - | AK52: - | AL52: - | AM52: - | AN52: - | AO52: - | AP52: - | AQ52: - | AR52: - | AS52: - | AT52: - | AU52: - | AV52: - | AW52: - | AX52: - | AY52: - | AZ52: - | BA52: - | BB52: - | BC52: - | BD52: - | BE52: - | BF52: - | BG52: - | BH52: - | BI52: - | BJ52: - | BK52: - | BL52: - | BM52: - | BN52: - | BO52: - | BP52: - | BQ52: - | BR52: - | BS52: - | BT52: - | BU52: - | BV52: - | BW52: - | BX52: - | BY52: - | BZ52: - | CA52: - | CB52: - | CC52: - | CD52: - | CE52: - | CF52: Dasar Desain Grafis | CG52: Dasar Desain Grafis | CH52: - | CI52: - | CJ52: - | CK52: - | CQ52: 50 | CR52: XI TKJ 3 | CS52: Atikah Nurwansyah, A.Md | CT52: PegId | CU52: -
I53: 50 | J53: P4 | K53: Dra. Hj. Marpuah | L53: NIP | M53: 19610512 198603 2 001 | W53: 52 | X53: - | Y53: - | Z53: - | AA53: - | AB53: - | AC53: - | AD53: - | AE53: - | AF53: - | AG53: - | AH53: - | AI53: - | AJ53: - | AK53: - | AL53: - | AM53: - | AN53: - | AO53: - | AP53: - | AQ53: - | AR53: - | AS53: - | AT53: - | AU53: - | AV53: - | AW53: - | AX53: - | AY53: - | AZ53: - | BA53: - | BB53: - | BC53: - | BD53: - | BE53: - | BF53: - | BG53: - | BH53: - | BI53: - | BJ53: - | BK53: - | BL53: - | BM53: - | BN53: - | BO53: - | BP53: - | BQ53: - | BR53: - | BS53: - | BT53: - | BU53: - | BV53: - | BW53: - | BX53: - | BY53: - | BZ53: - | CA53: - | CB53: - | CC53: - | CD53: - | CE53: - | CF53: Dasar Desain Grafis | CG53: Dasar Desain Grafis | CH53: - | CI53: - | CJ53: - | CK53: - | CQ53: 51 | CR53: XI TKJ 4 | CS53: Agus Widodo, S.Sas | CT53: NIP | CU53: 19670827 201407 1 001
A54: C3 | I54: 51 | J54: P10 | K54: Dra. Hj.Jeni Sarojini Somawi | L54: NIP | M54: 19590930 198803 2 001 | U54: 18 | V54: C3 | W54: 53 | X54: - | Y54: - | Z54: Aplikasi Perangkat Lunak dan Perancangan Interior Gedung | AA54: Aplikasi Perangkat Lunak dan Perancangan Interior Gedung | AB54: Aplikasi Perangkat Lunak dan Perancangan Interior Gedung | AC54: Aplikasi Perangkat Lunak dan Perancangan Interior Gedung | AD54: - | AE54: - | AF54: Instalasi Penerangan Listrik | AG54: Instalasi Penerangan Listrik | AH54: Instalasi Penerangan Listrik | AI54: Instalasi Penerangan Listrik | AJ54: - | AK54: - | AL54: Gambar Teknik Manufaktur | AM54: Gambar Teknik Manufaktur | AN54: Gambar Teknik Manufaktur | AO54: Gambar Teknik Manufaktur | AP54: - | AQ54: - | AR54: Teknik Pengelasan Oksi-Asetilen (OAW) | AS54: Teknik Pengelasan Oksi-Asetilen (OAW) | AT54: - | AU54: - | AV54: - | AW54: - | AX54: Teknik Gambar Konstruksi | AY54: Teknik Gambar Konstruksi | AZ54: Teknik Gambar Konstruksi | BA54: Teknik Gambar Konstruksi | BB54: - | BC54: - | BD54: Teknik Pemesinan Konvensional | BE54: Teknik Pemesinan Konvensional | BF54: Teknik Pemesinan Konvensional | BG54: Teknik Pemesinan Konvensional | BH54: - | BI54: - | BJ54: Pemeliharaan Mesin Kendaraan Ringan | BK54: Pemeliharaan Mesin Kendaraan Ringan | BL54: Pemeliharaan Mesin Kendaraan Ringan | BM54: Pemeliharaan Mesin Kendaraan Ringan | BN54: - | BO54: - | BP54: Pemeliharaan Mesin Sepeda Motor | BQ54: Pemeliharaan Mesin Sepeda Motor | BR54: Pemeliharaan Mesin Sepeda Motor | BS54: Pemeliharaan Mesin Sepeda Motor | BT54: - | BU54: - | BV54: Mikroprosessor dan Mikrokontroller | BW54: Mikroprosessor dan Mikrokontroller | BX54: - | BY54: - | BZ54: - | CA54: - | CB54: Pemodelan Perangkat Lunak | CC54: Pemodelan Perangkat Lunak | CD54: - | CE54: - | CF54: - | CG54: - | CH54: Administrasi Infrastruktur Jaringan | CI54: Administrasi Infrastruktur Jaringan | CJ54: Administrasi Infrastruktur Jaringan | CK54: Administrasi Infrastruktur Jaringan | CQ54: 52 | CR54: XI RPL 1 | CS54: Drs.Deden Hamdani, M.Pd | CT54: NIP | CU54: 19661029 199203 1 004
I55: 52 | J55: P21 | K55: Drs. Abdul Hamid | L55: NIP | M55: 19610720 198803 1 008 | W55: 54 | X55: - | Y55: - | Z55: Aplikasi Perangkat Lunak dan Perancangan Interior Gedung | AA55: Aplikasi Perangkat Lunak dan Perancangan Interior Gedung | AB55: Aplikasi Perangkat Lunak dan Perancangan Interior Gedung | AC55: Aplikasi Perangkat Lunak dan Perancangan Interior Gedung | AD55: - | AE55: - | AF55: Instalasi Penerangan Listrik | AG55: Instalasi Penerangan Listrik | AH55: Instalasi Penerangan Listrik | AI55: Instalasi Penerangan Listrik | AJ55: - | AK55: - | AL55: Gambar Teknik Manufaktur | AM55: Gambar Teknik Manufaktur | AN55: Gambar Teknik Manufaktur | AO55: Gambar Teknik Manufaktur | AP55: - | AQ55: - | AR55: Teknik Pengelasan Oksi-Asetilen (OAW) | AS55: Teknik Pengelasan Oksi-Asetilen (OAW) | AT55: - | AU55: - | AV55: - | AW55: - | AX55: Teknik Gambar Konstruksi | AY55: Teknik Gambar Konstruksi | AZ55: Teknik Gambar Konstruksi | BA55: Teknik Gambar Konstruksi | BB55: - | BC55: - | BD55: Teknik Pemesinan Konvensional | BE55: Teknik Pemesinan Konvensional | BF55: Teknik Pemesinan Konvensional | BG55: Teknik Pemesinan Konvensional | BH55: - | BI55: - | BJ55: Pemeliharaan Mesin Kendaraan Ringan | BK55: Pemeliharaan Mesin Kendaraan Ringan | BL55: Pemeliharaan Mesin Kendaraan Ringan | BM55: Pemeliharaan Mesin Kendaraan Ringan | BN55: - | BO55: - | BP55: Pemeliharaan Mesin Sepeda Motor | BQ55: Pemeliharaan Mesin Sepeda Motor | BR55: Pemeliharaan Mesin Sepeda Motor | BS55: Pemeliharaan Mesin Sepeda Motor | BT55: - | BU55: - | BV55: Mikroprosessor dan Mikrokontroller | BW55: Mikroprosessor dan Mikrokontroller | BX55: - | BY55: - | BZ55: - | CA55: - | CB55: Pemodelan Perangkat Lunak | CC55: Pemodelan Perangkat Lunak | CD55: - | CE55: - | CF55: - | CG55: - | CH55: Administrasi Infrastruktur Jaringan | CI55: Administrasi Infrastruktur Jaringan | CJ55: Administrasi Infrastruktur Jaringan | CK55: Administrasi Infrastruktur Jaringan | CQ55: 53 | CR55: XI RPL 2 | CS55: Fitri Ayunda, S.Pd | CT55: PegId | CU55: -
I56: 53 | J56: P1 | K56: Drs. Agus Rukmawan,S.IP,MM | L56: NIP | M56: 19611111 198603 1 008 | W56: 55 | X56: - | Y56: - | Z56: Aplikasi Perangkat Lunak dan Perancangan Interior Gedung | AA56: Aplikasi Perangkat Lunak dan Perancangan Interior Gedung | AB56: Aplikasi Perangkat Lunak dan Perancangan Interior Gedung | AC56: Aplikasi Perangkat Lunak dan Perancangan Interior Gedung | AD56: - | AE56: - | AF56: Instalasi Penerangan Listrik | AG56: Instalasi Penerangan Listrik | AH56: Instalasi Penerangan Listrik | AI56: Instalasi Penerangan Listrik | AJ56: - | AK56: - | AL56: Gambar Teknik Manufaktur | AM56: Gambar Teknik Manufaktur | AN56: Gambar Teknik Manufaktur | AO56: Gambar Teknik Manufaktur | AP56: - | AQ56: - | AR56: Teknik Pengelasan Oksi-Asetilen (OAW) | AS56: Teknik Pengelasan Oksi-Asetilen (OAW) | AT56: - | AU56: - | AV56: - | AW56: - | AX56: Teknik Gambar Konstruksi | AY56: Teknik Gambar Konstruksi | AZ56: Teknik Gambar Konstruksi | BA56: Teknik Gambar Konstruksi | BB56: - | BC56: - | BD56: Teknik Pemesinan Konvensional | BE56: Teknik Pemesinan Konvensional | BF56: Teknik Pemesinan Konvensional | BG56: Teknik Pemesinan Konvensional | BH56: - | BI56: - | BJ56: Pemeliharaan Mesin Kendaraan Ringan | BK56: Pemeliharaan Mesin Kendaraan Ringan | BL56: Pemeliharaan Mesin Kendaraan Ringan | BM56: Pemeliharaan Mesin Kendaraan Ringan | BN56: - | BO56: - | BP56: Pemeliharaan Mesin Sepeda Motor | BQ56: Pemeliharaan Mesin Sepeda Motor | BR56: Pemeliharaan Mesin Sepeda Motor | BS56: Pemeliharaan Mesin Sepeda Motor | BT56: - | BU56: - | BV56: Mikroprosessor dan Mikrokontroller | BW56: Mikroprosessor dan Mikrokontroller | BX56: - | BY56: - | BZ56: - | CA56: - | CB56: Pemodelan Perangkat Lunak | CC56: Pemodelan Perangkat Lunak | CD56: - | CE56: - | CF56: - | CG56: - | CH56: Administrasi Infrastruktur Jaringan | CI56: Administrasi Infrastruktur Jaringan | CJ56: Administrasi Infrastruktur Jaringan | CK56: Administrasi Infrastruktur Jaringan | CQ56: 54 | CR56: XII TGB 1 | CS56: Bambang Herwiyanto, S.Pd, M.Pd | CT56: PegId | CU56: 20217802177001
A57: C3 | I57: 54 | J57: P16 | K57: Drs. Asep Kundrat | L57: NIP | M57: 19590212 198403 1 004 | U57: 19 | V57: C3 | W57: 56 | X57: - | Y57: - | Z57: Konstruksi Jalan dan Jembatan | AA57: Konstruksi Jalan dan Jembatan | AB57: Konstruksi Jalan dan Jembatan | AC57: Konstruksi Jalan dan Jembatan | AD57: - | AE57: - | AF57: Instalasi Tenaga Listrik | AG57: Instalasi Tenaga Listrik | AH57: Instalasi Tenaga Listrik | AI57: Instalasi Tenaga Listrik | AJ57: - | AK57: - | AL57: Teknik Pemesinan Bubut | AM57: Teknik Pemesinan Bubut | AN57: Teknik Pemesinan Bubut | AO57: Teknik Pemesinan Bubut | AP57: - | AQ57: - | AR57: Teknik Pengelasan Busur Manual (SMAW) | AS57: Teknik Pengelasan Busur Manual (SMAW) | AT57: Teknik Pengelasan Busur Manual (SMAW) | AU57: Teknik Pengelasan Busur Manual (SMAW) | AV57: - | AW57: - | AX57: Teknik Gambar Produksi | AY57: Teknik Gambar Produksi | AZ57: Teknik Gambar Produksi | BA57: Teknik Gambar Produksi | BB57: - | BC57: - | BD57: - | BE57: - | BF57: Teknik Pemesinan Non Konvensional | BG57: Teknik Pemesinan Non Konvensional | BH57: - | BI57: - | BJ57: Pemeliharaan Sasis dan Pemindah Tenaga Kendaraan Ringan | BK57: Pemeliharaan Sasis dan Pemindah Tenaga Kendaraan Ringan | BL57: Pemeliharaan Sasis dan Pemindah Tenaga Kendaraan Ringan | BM57: Pemeliharaan Sasis dan Pemindah Tenaga Kendaraan Ringan | BN57: - | BO57: - | BP57: Pemeliharaan Sasis Sepeda Motor | BQ57: Pemeliharaan Sasis Sepeda Motor | BR57: Pemeliharaan Sasis Sepeda Motor | BS57: Pemeliharaan Sasis Sepeda Motor | BT57: - | BU57: - | BV57: Penerapan Rangkaian Elektronika | BW57: Penerapan Rangkaian Elektronika | BX57: Penerapan Rangkaian Elektronika | BY57: Penerapan Rangkaian Elektronika | BZ57: - | CA57: - | CB57: Basis Data | CC57: Basis Data | CD57: Basis Data | CE57: Basis Data | CF57: - | CG57: - | CH57: Administrasi Sistem Jaringan | CI57: Administrasi Sistem Jaringan | CJ57: Administrasi Sistem Jaringan | CK57: Administrasi Sistem Jaringan | CQ57: 55 | CR57: XII TGB 2 | CS57: Riki Verdian, S.T. | CT57: PegId | CU57: 20217802187002
I58: 55 | J58: P5 | K58: Drs. Bahrudin,MM | L58: NIP | M58: 19620316 198603 1 007 | W58: 57 | X58: - | Y58: - | Z58: Konstruksi Jalan dan Jembatan | AA58: Konstruksi Jalan dan Jembatan | AB58: Konstruksi Jalan dan Jembatan | AC58: Konstruksi Jalan dan Jembatan | AD58: - | AE58: - | AF58: Instalasi Tenaga Listrik | AG58: Instalasi Tenaga Listrik | AH58: Instalasi Tenaga Listrik | AI58: Instalasi Tenaga Listrik | AJ58: - | AK58: - | AL58: Teknik Pemesinan Bubut | AM58: Teknik Pemesinan Bubut | AN58: Teknik Pemesinan Bubut | AO58: Teknik Pemesinan Bubut | AP58: - | AQ58: - | AR58: Teknik Pengelasan Busur Manual (SMAW) | AS58: Teknik Pengelasan Busur Manual (SMAW) | AT58: Teknik Pengelasan Busur Manual (SMAW) | AU58: Teknik Pengelasan Busur Manual (SMAW) | AV58: - | AW58: - | AX58: Teknik Gambar Produksi | AY58: Teknik Gambar Produksi | AZ58: Teknik Gambar Produksi | BA58: Teknik Gambar Produksi | BB58: - | BC58: - | BD58: - | BE58: - | BF58: Teknik Pemesinan Non Konvensional | BG58: Teknik Pemesinan Non Konvensional | BH58: - | BI58: - | BJ58: Pemeliharaan Sasis dan Pemindah Tenaga Kendaraan Ringan | BK58: Pemeliharaan Sasis dan Pemindah Tenaga Kendaraan Ringan | BL58: Pemeliharaan Sasis dan Pemindah Tenaga Kendaraan Ringan | BM58: Pemeliharaan Sasis dan Pemindah Tenaga Kendaraan Ringan | BN58: - | BO58: - | BP58: Pemeliharaan Sasis Sepeda Motor | BQ58: Pemeliharaan Sasis Sepeda Motor | BR58: Pemeliharaan Sasis Sepeda Motor | BS58: Pemeliharaan Sasis Sepeda Motor | BT58: - | BU58: - | BV58: Penerapan Rangkaian Elektronika | BW58: Penerapan Rangkaian Elektronika | BX58: Penerapan Rangkaian Elektronika | BY58: Penerapan Rangkaian Elektronika | BZ58: - | CA58: - | CB58: Basis Data | CC58: Basis Data | CD58: Basis Data | CE58: Basis Data | CF58: - | CG58: - | CH58: Administrasi Sistem Jaringan | CI58: Administrasi Sistem Jaringan | CJ58: Administrasi Sistem Jaringan | CK58: Administrasi Sistem Jaringan | CQ58: 56 | CR58: XII TGB 3 | CS58: Lily Chandra, S.Pd | CT58: PegId | CU58: -
I59: 56 | J59: P23 | K59: Drs. Deden Hamdani,MM | L59: NIP | M59: 19661029 199203 1 004 | W59: 58 | X59: - | Y59: - | Z59: Konstruksi Jalan dan Jembatan | AA59: Konstruksi Jalan dan Jembatan | AB59: Konstruksi Jalan dan Jembatan | AC59: Konstruksi Jalan dan Jembatan | AD59: - | AE59: - | AF59: Instalasi Tenaga Listrik | AG59: Instalasi Tenaga Listrik | AH59: Instalasi Tenaga Listrik | AI59: Instalasi Tenaga Listrik | AJ59: - | AK59: - | AL59: Teknik Pemesinan Bubut | AM59: Teknik Pemesinan Bubut | AN59: Teknik Pemesinan Bubut | AO59: Teknik Pemesinan Bubut | AP59: - | AQ59: - | AR59: Teknik Pengelasan Busur Manual (SMAW) | AS59: Teknik Pengelasan Busur Manual (SMAW) | AT59: Teknik Pengelasan Busur Manual (SMAW) | AU59: Teknik Pengelasan Busur Manual (SMAW) | AV59: - | AW59: - | AX59: Teknik Gambar Produksi | AY59: Teknik Gambar Produksi | AZ59: Teknik Gambar Produksi | BA59: Teknik Gambar Produksi | BB59: - | BC59: - | BD59: - | BE59: - | BF59: Teknik Pemesinan Non Konvensional | BG59: Teknik Pemesinan Non Konvensional | BH59: - | BI59: - | BJ59: Pemeliharaan Sasis dan Pemindah Tenaga Kendaraan Ringan | BK59: Pemeliharaan Sasis dan Pemindah Tenaga Kendaraan Ringan | BL59: Pemeliharaan Sasis dan Pemindah Tenaga Kendaraan Ringan | BM59: Pemeliharaan Sasis dan Pemindah Tenaga Kendaraan Ringan | BN59: - | BO59: - | BP59: Pemeliharaan Sasis Sepeda Motor | BQ59: Pemeliharaan Sasis Sepeda Motor | BR59: Pemeliharaan Sasis Sepeda Motor | BS59: Pemeliharaan Sasis Sepeda Motor | BT59: - | BU59: - | BV59: Penerapan Rangkaian Elektronika | BW59: Penerapan Rangkaian Elektronika | BX59: Penerapan Rangkaian Elektronika | BY59: Penerapan Rangkaian Elektronika | BZ59: - | CA59: - | CB59: Basis Data | CC59: Basis Data | CD59: Basis Data | CE59: Basis Data | CF59: - | CG59: - | CH59: Administrasi Sistem Jaringan | CI59: Administrasi Sistem Jaringan | CJ59: Administrasi Sistem Jaringan | CK59: Administrasi Sistem Jaringan | CQ59: 57 | CR59: XII TGB 4 | CS59: Rangga Adlan, S.Pd | CT59: PegId | CU59: -
A60: C3 | I60: 57 | J60: P7 | K60: Drs. Ebo Agus Sunarto, MM | L60: NIP | M60: 19590118 198703 1 003 | U60: 20 | V60: C3 | W60: 59 | X60: - | Y60: - | Z60: Estimasi Biaya Konstruksi | AA60: Estimasi Biaya Konstruksi | AB60: Estimasi Biaya Konstruksi | AC60: Estimasi Biaya Konstruksi | AD60: - | AE60: - | AF60: Instalasi Motor Listrik | AG60: Instalasi Motor Listrik | AH60: Instalasi Motor Listrik | AI60: Instalasi Motor Listrik | AJ60: - | AK60: - | AL60: Teknik Pemesinan Frais | AM60: Teknik Pemesinan Frais | AN60: Teknik Pemesinan Frais | AO60: Teknik Pemesinan Frais | AP60: - | AQ60: - | AR60: Teknik Pengelasan Gas Metal (MIG/MAG) | AS60: Teknik Pengelasan Gas Metal (MIG/MAG) | AT60: Teknik Pengelasan Gas Metal (MIG/MAG) | AU60: Teknik Pengelasan Gas Metal (MIG/MAG) | AV60: - | AW60: - | AX60: Teknik Merancang dengan CAM | AY60: Teknik Merancang dengan CAM | AZ60: Teknik Merancang dengan CAM | BA60: Teknik Merancang dengan CAM | BB60: - | BC60: - | BD60: Teknik Fabrikasi Logam | BE60: Teknik Fabrikasi Logam | BF60: Teknik Fabrikasi Logam | BG60: Teknik Fabrikasi Logam | BH60: - | BI60: - | BJ60: Pemeliharaan Kelistrikan Kendaraan Ringan | BK60: Pemeliharaan Kelistrikan Kendaraan Ringan | BL60: Pemeliharaan Kelistrikan Kendaraan Ringan | BM60: Pemeliharaan Kelistrikan Kendaraan Ringan | BN60: - | BO60: - | BP60: Pemeliharaan Kelistrikan Sepeda Motor | BQ60: Pemeliharaan Kelistrikan Sepeda Motor | BR60: Pemeliharaan Kelistrikan Sepeda Motor | BS60: Pemeliharaan Kelistrikan Sepeda Motor | BT60: - | BU60: - | BV60: Sistem Pengendali Elektronik | BW60: Sistem Pengendali Elektronik | BX60: Sistem Pengendali Elektronik | BY60: Sistem Pengendali Elektronik | BZ60: - | CA60: - | CB60: Pemrograman Berorientasi Objek | CC60: Pemrograman Berorientasi Objek | CD60: Pemrograman Berorientasi Objek | CE60: Pemrograman Berorientasi Objek | CF60: - | CG60: - | CH60: Teknologi Layanan Jaringan | CI60: Teknologi Layanan Jaringan | CJ60: Teknologi Layanan Jaringan | CK60: Teknologi Layanan Jaringan | CQ60: 58 | CR60: XII TEI 1 | CS60: Maria Bestarina L, S.Pd | CT60: PegId | CU60: -
I61: 58 | J61: P8 | K61: Drs.Dedi Kusdinar,MM | L61: NIP | M61: 19591114 198703 1 007 | W61: 60 | X61: - | Y61: - | Z61: Estimasi Biaya Konstruksi | AA61: Estimasi Biaya Konstruksi | AB61: Estimasi Biaya Konstruksi | AC61: Estimasi Biaya Konstruksi | AD61: - | AE61: - | AF61: Instalasi Motor Listrik | AG61: Instalasi Motor Listrik | AH61: Instalasi Motor Listrik | AI61: Instalasi Motor Listrik | AJ61: - | AK61: - | AL61: Teknik Pemesinan Frais | AM61: Teknik Pemesinan Frais | AN61: Teknik Pemesinan Frais | AO61: Teknik Pemesinan Frais | AP61: - | AQ61: - | AR61: Teknik Pengelasan Gas Metal (MIG/MAG) | AS61: Teknik Pengelasan Gas Metal (MIG/MAG) | AT61: Teknik Pengelasan Gas Metal (MIG/MAG) | AU61: Teknik Pengelasan Gas Metal (MIG/MAG) | AV61: - | AW61: - | AX61: Teknik Merancang dengan CAM | AY61: Teknik Merancang dengan CAM | AZ61: Teknik Merancang dengan CAM | BA61: Teknik Merancang dengan CAM | BB61: - | BC61: - | BD61: Teknik Fabrikasi Logam | BE61: Teknik Fabrikasi Logam | BF61: Teknik Fabrikasi Logam | BG61: Teknik Fabrikasi Logam | BH61: - | BI61: - | BJ61: Pemeliharaan Kelistrikan Kendaraan Ringan | BK61: Pemeliharaan Kelistrikan Kendaraan Ringan | BL61: Pemeliharaan Kelistrikan Kendaraan Ringan | BM61: Pemeliharaan Kelistrikan Kendaraan Ringan | BN61: - | BO61: - | BP61: Pemeliharaan Kelistrikan Sepeda Motor | BQ61: Pemeliharaan Kelistrikan Sepeda Motor | BR61: Pemeliharaan Kelistrikan Sepeda Motor | BS61: Pemeliharaan Kelistrikan Sepeda Motor | BT61: - | BU61: - | BV61: Sistem Pengendali Elektronik | BW61: Sistem Pengendali Elektronik | BX61: Sistem Pengendali Elektronik | BY61: Sistem Pengendali Elektronik | BZ61: - | CA61: - | CB61: Pemrograman Berorientasi Objek | CC61: Pemrograman Berorientasi Objek | CD61: Pemrograman Berorientasi Objek | CE61: Pemrograman Berorientasi Objek | CF61: - | CG61: - | CH61: Teknologi Layanan Jaringan | CI61: Teknologi Layanan Jaringan | CJ61: Teknologi Layanan Jaringan | CK61: Teknologi Layanan Jaringan | CQ61: 59 | CR61: XII TEI 2 | CS61: Dewi Lestari, S.IP | CT61: PegId | CU61: 20217802185001
I62: 59 | J62: P43 | K62: Drs.Encep Pranseda,M.Pd | L62: NIP | M62: 19660713 200701 1 005 | W62: 61 | X62: - | Y62: - | Z62: Estimasi Biaya Konstruksi | AA62: Estimasi Biaya Konstruksi | AB62: Estimasi Biaya Konstruksi | AC62: Estimasi Biaya Konstruksi | AD62: - | AE62: - | AF62: Instalasi Motor Listrik | AG62: Instalasi Motor Listrik | AH62: Instalasi Motor Listrik | AI62: Instalasi Motor Listrik | AJ62: - | AK62: - | AL62: Teknik Pemesinan Frais | AM62: Teknik Pemesinan Frais | AN62: Teknik Pemesinan Frais | AO62: Teknik Pemesinan Frais | AP62: - | AQ62: - | AR62: Teknik Pengelasan Gas Metal (MIG/MAG) | AS62: Teknik Pengelasan Gas Metal (MIG/MAG) | AT62: Teknik Pengelasan Gas Metal (MIG/MAG) | AU62: Teknik Pengelasan Gas Metal (MIG/MAG) | AV62: - | AW62: - | AX62: Teknik Merancang dengan CAM | AY62: Teknik Merancang dengan CAM | AZ62: Teknik Merancang dengan CAM | BA62: Teknik Merancang dengan CAM | BB62: - | BC62: - | BD62: Teknik Fabrikasi Logam | BE62: Teknik Fabrikasi Logam | BF62: Teknik Fabrikasi Logam | BG62: Teknik Fabrikasi Logam | BH62: - | BI62: - | BJ62: Pemeliharaan Kelistrikan Kendaraan Ringan | BK62: Pemeliharaan Kelistrikan Kendaraan Ringan | BL62: Pemeliharaan Kelistrikan Kendaraan Ringan | BM62: Pemeliharaan Kelistrikan Kendaraan Ringan | BN62: - | BO62: - | BP62: Pemeliharaan Kelistrikan Sepeda Motor | BQ62: Pemeliharaan Kelistrikan Sepeda Motor | BR62: Pemeliharaan Kelistrikan Sepeda Motor | BS62: Pemeliharaan Kelistrikan Sepeda Motor | BT62: - | BU62: - | BV62: Sistem Pengendali Elektronik | BW62: Sistem Pengendali Elektronik | BX62: Sistem Pengendali Elektronik | BY62: Sistem Pengendali Elektronik | BZ62: - | CA62: - | CB62: Pemrograman Berorientasi Objek | CC62: Pemrograman Berorientasi Objek | CD62: Pemrograman Berorientasi Objek | CE62: Pemrograman Berorientasi Objek | CF62: - | CG62: - | CH62: Teknologi Layanan Jaringan | CI62: Teknologi Layanan Jaringan | CJ62: Teknologi Layanan Jaringan | CK62: Teknologi Layanan Jaringan | CQ62: 60 | CR62: XII TPL 1 | CS62: Karno, S.Pd, M.T | CT62: PegId | CU62: 20217802186001
A63: C3 | I63: 60 | J63: P2 | K63: Drs.H. Shihabudin,Sp.1 | L63: NIP | M63: 19571112 198403 1 005 | U63: 21 | V63: C3 | W63: 62 | X63: - | Y63: - | Z63: Konstruksi dan Utilitas Gedung | AA63: Konstruksi dan Utilitas Gedung | AB63: Konstruksi dan Utilitas Gedung | AC63: Konstruksi dan Utilitas Gedung | AD63: - | AE63: - | AF63: - | AG63: - | AH63: Perbaikan Peralatan Listrik | AI63: Perbaikan Peralatan Listrik | AJ63: - | AK63: - | AL63: - | AM63: - | AN63: Teknik Pemesinan Gerinda | AO63: Teknik Pemesinan Gerinda | AP63: - | AQ63: - | AR63: - | AS63: - | AT63: Teknik Pengelasan Gas Tungsten (TIG) | AU63: Teknik Pengelasan Gas Tungsten (TIG) | AV63: - | AW63: - | AX63: - | AY63: - | AZ63: - | BA63: - | BB63: - | BC63: - | BD63: Perancangan Teknik dan Gambar Manufaktur Fabrikasi Logam | BE63: Perancangan Teknik dan Gambar Manufaktur Fabrikasi Logam | BF63: Perancangan Teknik dan Gambar Manufaktur Fabrikasi Logam | BG63: Perancangan Teknik dan Gambar Manufaktur Fabrikasi Logam | BH63: - | BI63: - | BJ63: - | BK63: - | BL63: - | BM63: - | BN63: - | BO63: - | BP63: - | BQ63: - | BR63: Pengelolaan Bengkel Sepeda Motor | BS63: Pengelolaan Bengkel Sepeda Motor | BT63: - | BU63: - | BV63: Pengendali Sistem Robotik | BW63: Pengendali Sistem Robotik | BX63: Pengendali Sistem Robotik | BY63: Pengendali Sistem Robotik | BZ63: - | CA63: - | CB63: Pemrograman Web dan Perangkat Bergerak | CC63: Pemrograman Web dan Perangkat Bergerak | CD63: Pemrograman Web dan Perangkat Bergerak | CE63: Pemrograman Web dan Perangkat Bergerak | CF63: - | CG63: - | CH63: - | CI63: - | CJ63: - | CK63: - | CQ63: 61 | CR63: XII TPL 2 | CS63: Yayus Irmansyah, S.T | CT63: PegId | CU63: 20217802179001
I64: 61 | J64: P17 | K64: Drs.H.Trisdonardi | L64: NIP | M64: 19620122 198703 1 003 | W64: 63 | X64: - | Y64: - | Z64: Konstruksi dan Utilitas Gedung | AA64: Konstruksi dan Utilitas Gedung | AB64: Konstruksi dan Utilitas Gedung | AC64: Konstruksi dan Utilitas Gedung | AD64: - | AE64: - | AF64: - | AG64: - | AH64: Perbaikan Peralatan Listrik | AI64: Perbaikan Peralatan Listrik | AJ64: - | AK64: - | AL64: - | AM64: - | AN64: Teknik Pemesinan Gerinda | AO64: Teknik Pemesinan Gerinda | AP64: - | AQ64: - | AR64: - | AS64: - | AT64: Teknik Pengelasan Gas Tungsten (TIG) | AU64: Teknik Pengelasan Gas Tungsten (TIG) | AV64: - | AW64: - | AX64: - | AY64: - | AZ64: - | BA64: - | BB64: - | BC64: - | BD64: Perancangan Teknik dan Gambar Manufaktur Fabrikasi Logam | BE64: Perancangan Teknik dan Gambar Manufaktur Fabrikasi Logam | BF64: Perancangan Teknik dan Gambar Manufaktur Fabrikasi Logam | BG64: Perancangan Teknik dan Gambar Manufaktur Fabrikasi Logam | BH64: - | BI64: - | BJ64: - | BK64: - | BL64: - | BM64: - | BN64: - | BO64: - | BP64: - | BQ64: - | BR64: Pengelolaan Bengkel Sepeda Motor | BS64: Pengelolaan Bengkel Sepeda Motor | BT64: - | BU64: - | BV64: Pengendali Sistem Robotik | BW64: Pengendali Sistem Robotik | BX64: Pengendali Sistem Robotik | BY64: Pengendali Sistem Robotik | BZ64: - | CA64: - | CB64: Pemrograman Web dan Perangkat Bergerak | CC64: Pemrograman Web dan Perangkat Bergerak | CD64: Pemrograman Web dan Perangkat Bergerak | CE64: Pemrograman Web dan Perangkat Bergerak | CF64: - | CG64: - | CH64: - | CI64: - | CJ64: - | CK64: - | CQ64: 62 | CR64: XII TP 1 | CS64: Risnaldi, S.Pd. | CT64: PegId | CU64: -
I65: 62 | J65: P25 | K65: Drs.Kusmaya Permana | L65: NIP | M65: 19640812 199412 1 002 | W65: 64 | X65: - | Y65: - | Z65: Konstruksi dan Utilitas Gedung | AA65: Konstruksi dan Utilitas Gedung | AB65: Konstruksi dan Utilitas Gedung | AC65: Konstruksi dan Utilitas Gedung | AD65: - | AE65: - | AF65: - | AG65: - | AH65: Perbaikan Peralatan Listrik | AI65: Perbaikan Peralatan Listrik | AJ65: - | AK65: - | AL65: - | AM65: - | AN65: Teknik Pemesinan Gerinda | AO65: Teknik Pemesinan Gerinda | AP65: - | AQ65: - | AR65: - | AS65: - | AT65: Teknik Pengelasan Gas Tungsten (TIG) | AU65: Teknik Pengelasan Gas Tungsten (TIG) | AV65: - | AW65: - | AX65: - | AY65: - | AZ65: - | BA65: - | BB65: - | BC65: - | BD65: Perancangan Teknik dan Gambar Manufaktur Fabrikasi Logam | BE65: Perancangan Teknik dan Gambar Manufaktur Fabrikasi Logam | BF65: Perancangan Teknik dan Gambar Manufaktur Fabrikasi Logam | BG65: Perancangan Teknik dan Gambar Manufaktur Fabrikasi Logam | BH65: - | BI65: - | BJ65: - | BK65: - | BL65: - | BM65: - | BN65: - | BO65: - | BP65: - | BQ65: - | BR65: Pengelolaan Bengkel Sepeda Motor | BS65: Pengelolaan Bengkel Sepeda Motor | BT65: - | BU65: - | BV65: Pengendali Sistem Robotik | BW65: Pengendali Sistem Robotik | BX65: Pengendali Sistem Robotik | BY65: Pengendali Sistem Robotik | BZ65: - | CA65: - | CB65: Pemrograman Web dan Perangkat Bergerak | CC65: Pemrograman Web dan Perangkat Bergerak | CD65: Pemrograman Web dan Perangkat Bergerak | CE65: Pemrograman Web dan Perangkat Bergerak | CF65: - | CG65: - | CH65: - | CI65: - | CJ65: - | CK65: - | CQ65: 63 | CR65: XII TP 2 | CS65: Risin , S.Pd | CT65: NIP | CU65: 19720616 200604 1005
A66: C3 | I66: 63 | J66: P20 | K66: Drs.Lalu Mugni | L66: NIP | M66: 19610703 198803 1 006 | U66: 22 | V66: C3 | W66: 65 | X66: - | Y66: - | Z66: - | AA66: - | AB66: - | AC66: - | AD66: - | AE66: - | AF66: - | AG66: - | AH66: - | AI66: - | AJ66: - | AK66: - | AL66: Teknik Pemesinan NC/CNC dan CAM | AM66: Teknik Pemesinan NC/CNC dan CAM | AN66: Teknik Pemesinan NC/CNC dan CAM | AO66: Teknik Pemesinan NC/CNC dan CAM | AP66: - | AQ66: - | AR66: - | AS66: - | AT66: - | AU66: - | AV66: - | AW66: - | AX66: - | AY66: - | AZ66: - | BA66: - | BB66: - | BC66: - | BD66: - | BE66: - | BF66: Penerapan Pengujian Mutu | BG66: - | BH66: - | BI66: - | BJ66: - | BK66: - | BL66: - | BM66: - | BN66: - | BO66: - | BP66: - | BQ66: - | BR66: - | BS66: - | BT66: - | BU66: - | BV66: - | BW66: - | BX66: Pembuatan, Perbaikan dan Pemeliharaan Peralatan Elektronika | BY66: Pembuatan, Perbaikan dan Pemeliharaan Peralatan Elektronika | BZ66: - | CA66: - | CB66: - | CC66: - | CD66: - | CE66: - | CF66: - | CG66: - | CH66: - | CI66: - | CJ66: - | CK66: - | CQ66: 64 | CR66: XII TP 3 | CS66: Drs. Abdul Hamid | CT66: NIP | CU66: 19610720 198803 1 008
I67: 64 | J67: P11 | K67: Drs.Maman Kosman,MM | L67: NIP | M67: 19610512 198803 1 012 | W67: 66 | X67: - | Y67: - | Z67: - | AA67: - | AB67: - | AC67: - | AD67: - | AE67: - | AF67: - | AG67: - | AH67: - | AI67: - | AJ67: - | AK67: - | AL67: Teknik Pemesinan NC/CNC dan CAM | AM67: Teknik Pemesinan NC/CNC dan CAM | AN67: Teknik Pemesinan NC/CNC dan CAM | AO67: Teknik Pemesinan NC/CNC dan CAM | AP67: - | AQ67: - | AR67: - | AS67: - | AT67: - | AU67: - | AV67: - | AW67: - | AX67: - | AY67: - | AZ67: - | BA67: - | BB67: - | BC67: - | BD67: - | BE67: - | BF67: - | BG67: - | BH67: - | BI67: - | BJ67: - | BK67: - | BL67: - | BM67: - | BN67: - | BO67: - | BP67: - | BQ67: - | BR67: - | BS67: - | BT67: - | BU67: - | BV67: - | BW67: - | BX67: Pembuatan, Perbaikan dan Pemeliharaan Peralatan Elektronika | BY67: Pembuatan, Perbaikan dan Pemeliharaan Peralatan Elektronika | BZ67: - | CA67: - | CB67: - | CC67: - | CD67: - | CE67: - | CF67: - | CG67: - | CH67: - | CI67: - | CJ67: - | CK67: - | CQ67: 65 | CR67: XII TP 4 | CS67: Andriyanti, S.Pd | CT67: PegId | CU67: 20217802190001
I68: 65 | J68: P3 | K68: Drs.Tamrin,M.Pd | L68: NIP | M68: 19600802 198503 1 007 | W68: 67 | X68: - | Y68: - | Z68: - | AA68: - | AB68: - | AC68: - | AD68: - | AE68: - | AF68: - | AG68: - | AH68: - | AI68: - | AJ68: - | AK68: - | AL68: Teknik Pemesinan NC/CNC dan CAM | AM68: Teknik Pemesinan NC/CNC dan CAM | AN68: Teknik Pemesinan NC/CNC dan CAM | AO68: Teknik Pemesinan NC/CNC dan CAM | AP68: - | AQ68: - | AR68: - | AS68: - | AT68: - | AU68: - | AV68: - | AW68: - | AX68: - | AY68: - | AZ68: - | BA68: - | BB68: - | BC68: - | BD68: - | BE68: - | BF68: - | BG68: - | BH68: - | BI68: - | BJ68: - | BK68: - | BL68: - | BM68: - | BN68: - | BO68: - | BP68: - | BQ68: - | BR68: - | BS68: - | BT68: - | BU68: - | BV68: - | BW68: - | BX68: Pembuatan, Perbaikan dan Pemeliharaan Peralatan Elektronika | BY68: Pembuatan, Perbaikan dan Pemeliharaan Peralatan Elektronika | BZ68: - | CA68: - | CB68: - | CC68: - | CD68: - | CE68: - | CF68: - | CG68: - | CH68: - | CI68: - | CJ68: - | CK68: - | CQ68: 66 | CR68: XII TKR 1 | CS68: Alfian Rasyid, S.Sos | CT68: PegId | CU68: -
A69: C3 | I69: 66 | J69: P24 | K69: Drs.Tatang Haidar | L69: NIP | M69: 19580125 199403 1 003 | U69: 23 | V69: C3 | W69: 68 | X69: - | Y69: - | Z69: Produk Kreatif dan Kewirausahaan | AA69: Produk Kreatif dan Kewirausahaan | AB69: Produk Kreatif dan Kewirausahaan | AC69: Produk Kreatif dan Kewirausahaan | AD69: - | AE69: - | AF69: Produk Kreatif dan Kewirausahaan | AG69: Produk Kreatif dan Kewirausahaan | AH69: Produk Kreatif dan Kewirausahaan | AI69: Produk Kreatif dan Kewirausahaan | AJ69: - | AK69: - | AL69: Produk Kreatif dan Kewirausahaan | AM69: Produk Kreatif dan Kewirausahaan | AN69: Produk Kreatif dan Kewirausahaan | AO69: Produk Kreatif dan Kewirausahaan | AP69: - | AQ69: - | AR69: Produk Kreatif dan Kewirausahaan | AS69: Produk Kreatif dan Kewirausahaan | AT69: Produk Kreatif dan Kewirausahaan | AU69: Produk Kreatif dan Kewirausahaan | AV69: - | AW69: - | AX69: Produk Kreatif dan Kewirausahaan | AY69: Produk Kreatif dan Kewirausahaan | AZ69: Produk Kreatif dan Kewirausahaan | BA69: Produk Kreatif dan Kewirausahaan | BB69: - | BC69: - | BD69: Produk Kreatif dan Kewirausahaan | BE69: Produk Kreatif dan Kewirausahaan | BF69: Produk Kreatif dan Kewirausahaan | BG69: Produk Kreatif dan Kewirausahaan | BH69: - | BI69: - | BJ69: Produk Kreatif dan Kewirausahaan | BK69: Produk Kreatif dan Kewirausahaan | BL69: Produk Kreatif dan Kewirausahaan | BM69: Produk Kreatif dan Kewirausahaan | BN69: - | BO69: - | BP69: Produk Kreatif dan Kewirausahaan | BQ69: Produk Kreatif dan Kewirausahaan | BR69: Produk Kreatif dan Kewirausahaan | BS69: Produk Kreatif dan Kewirausahaan | BT69: - | BU69: - | BV69: Produk Kreatif dan Kewirausahaan | BW69: Produk Kreatif dan Kewirausahaan | BX69: Produk Kreatif dan Kewirausahaan | BY69: Produk Kreatif dan Kewirausahaan | BZ69: - | CA69: - | CB69: Produk Kreatif dan Kewirausahaan | CC69: Produk Kreatif dan Kewirausahaan | CD69: Produk Kreatif dan Kewirausahaan | CE69: Produk Kreatif dan Kewirausahaan | CF69: - | CG69: - | CH69: Produk Kreatif dan Kewirausahaan | CI69: Produk Kreatif dan Kewirausahaan | CJ69: Produk Kreatif dan Kewirausahaan | CK69: Produk Kreatif dan Kewirausahaan | CQ69: 67 | CR69: XII TKR 2 | CS69: Heni Handayani, S.Pd. | CT69: NIP | CU69: 19780406 200902 2 003
I70: 67 | J70: P13 | K70: Drs.Wiyono | L70: NIP | M70: 19650305 199103 1 019 | W70: 69 | X70: - | Y70: - | Z70: Produk Kreatif dan Kewirausahaan | AA70: Produk Kreatif dan Kewirausahaan | AB70: Produk Kreatif dan Kewirausahaan | AC70: Produk Kreatif dan Kewirausahaan | AD70: - | AE70: - | AF70: Produk Kreatif dan Kewirausahaan | AG70: Produk Kreatif dan Kewirausahaan | AH70: Produk Kreatif dan Kewirausahaan | AI70: Produk Kreatif dan Kewirausahaan | AJ70: - | AK70: - | AL70: Produk Kreatif dan Kewirausahaan | AM70: Produk Kreatif dan Kewirausahaan | AN70: Produk Kreatif dan Kewirausahaan | AO70: Produk Kreatif dan Kewirausahaan | AP70: - | AQ70: - | AR70: Produk Kreatif dan Kewirausahaan | AS70: Produk Kreatif dan Kewirausahaan | AT70: Produk Kreatif dan Kewirausahaan | AU70: Produk Kreatif dan Kewirausahaan | AV70: - | AW70: - | AX70: Produk Kreatif dan Kewirausahaan | AY70: Produk Kreatif dan Kewirausahaan | AZ70: Produk Kreatif dan Kewirausahaan | BA70: Produk Kreatif dan Kewirausahaan | BB70: - | BC70: - | BD70: Produk Kreatif dan Kewirausahaan | BE70: Produk Kreatif dan Kewirausahaan | BF70: Produk Kreatif dan Kewirausahaan | BG70: Produk Kreatif dan Kewirausahaan | BH70: - | BI70: - | BJ70: Produk Kreatif dan Kewirausahaan | BK70: Produk Kreatif dan Kewirausahaan | BL70: Produk Kreatif dan Kewirausahaan | BM70: Produk Kreatif dan Kewirausahaan | BN70: - | BO70: - | BP70: Produk Kreatif dan Kewirausahaan | BQ70: Produk Kreatif dan Kewirausahaan | BR70: Produk Kreatif dan Kewirausahaan | BS70: Produk Kreatif dan Kewirausahaan | BT70: - | BU70: - | BV70: Produk Kreatif dan Kewirausahaan | BW70: Produk Kreatif dan Kewirausahaan | BX70: Produk Kreatif dan Kewirausahaan | BY70: Produk Kreatif dan Kewirausahaan | BZ70: - | CA70: - | CB70: Produk Kreatif dan Kewirausahaan | CC70: Produk Kreatif dan Kewirausahaan | CD70: Produk Kreatif dan Kewirausahaan | CE70: Produk Kreatif dan Kewirausahaan | CF70: - | CG70: - | CH70: Produk Kreatif dan Kewirausahaan | CI70: Produk Kreatif dan Kewirausahaan | CJ70: Produk Kreatif dan Kewirausahaan | CK70: Produk Kreatif dan Kewirausahaan | CQ70: 68 | CR70: XII TKR 3 | CS70: Roban, S.T | CT70: PegId | CU70: 20217802188005
I71: 68 | J71: P51 | K71: Eka Merdekawati,S.Pd | L71: NIP | M71: 19820817 201001 2 023 | W71: 70 | X71: - | Y71: - | Z71: Produk Kreatif dan Kewirausahaan | AA71: Produk Kreatif dan Kewirausahaan | AB71: Produk Kreatif dan Kewirausahaan | AC71: Produk Kreatif dan Kewirausahaan | AD71: - | AE71: - | AF71: Produk Kreatif dan Kewirausahaan | AG71: Produk Kreatif dan Kewirausahaan | AH71: Produk Kreatif dan Kewirausahaan | AI71: Produk Kreatif dan Kewirausahaan | AJ71: - | AK71: - | AL71: Produk Kreatif dan Kewirausahaan | AM71: Produk Kreatif dan Kewirausahaan | AN71: Produk Kreatif dan Kewirausahaan | AO71: Produk Kreatif dan Kewirausahaan | AP71: - | AQ71: - | AR71: Produk Kreatif dan Kewirausahaan | AS71: Produk Kreatif dan Kewirausahaan | AT71: Produk Kreatif dan Kewirausahaan | AU71: Produk Kreatif dan Kewirausahaan | AV71: - | AW71: - | AX71: Produk Kreatif dan Kewirausahaan | AY71: Produk Kreatif dan Kewirausahaan | AZ71: Produk Kreatif dan Kewirausahaan | BA71: Produk Kreatif dan Kewirausahaan | BB71: - | BC71: - | BD71: Produk Kreatif dan Kewirausahaan | BE71: Produk Kreatif dan Kewirausahaan | BF71: Produk Kreatif dan Kewirausahaan | BG71: Produk Kreatif dan Kewirausahaan | BH71: - | BI71: - | BJ71: Produk Kreatif dan Kewirausahaan | BK71: Produk Kreatif dan Kewirausahaan | BL71: Produk Kreatif dan Kewirausahaan | BM71: Produk Kreatif dan Kewirausahaan | BN71: - | BO71: - | BP71: Produk Kreatif dan Kewirausahaan | BQ71: Produk Kreatif dan Kewirausahaan | BR71: Produk Kreatif dan Kewirausahaan | BS71: Produk Kreatif dan Kewirausahaan | BT71: - | BU71: - | BV71: Produk Kreatif dan Kewirausahaan | BW71: Produk Kreatif dan Kewirausahaan | BX71: Produk Kreatif dan Kewirausahaan | BY71: Produk Kreatif dan Kewirausahaan | BZ71: - | CA71: - | CB71: Produk Kreatif dan Kewirausahaan | CC71: Produk Kreatif dan Kewirausahaan | CD71: Produk Kreatif dan Kewirausahaan | CE71: Produk Kreatif dan Kewirausahaan | CF71: - | CG71: - | CH71: Produk Kreatif dan Kewirausahaan | CI71: Produk Kreatif dan Kewirausahaan | CJ71: Produk Kreatif dan Kewirausahaan | CK71: Produk Kreatif dan Kewirausahaan | CQ71: 69 | CR71: XII TKR 4 | CS71: Adi Putro, S.Pd | CT71: PegId | CU71: 20217802188008
A72: D | I72: 69 | J72: G53 | K72: Eko Sigit Atmaja,S.Kom | L72: PegId | M72: 20217802191002 | U72: 24 | W72: 71 | X72: - | Y72: - | Z72: - | AA72: - | AB72: - | AC72: - | AD72: - | AE72: - | AF72: - | AG72: - | AH72: - | AI72: - | AJ72: - | AK72: - | AL72: - | AM72: - | AN72: - | AO72: - | AP72: - | AQ72: - | AR72: - | AS72: - | AT72: - | AU72: - | AV72: - | AW72: - | AX72: - | AY72: - | AZ72: - | BA72: - | BB72: - | BC72: - | BD72: - | BE72: - | BF72: - | BG72: - | BH72: - | BI72: - | BJ72: - | BK72: - | BL72: - | BM72: - | BN72: - | BO72: - | BP72: - | BQ72: - | BR72: - | BS72: - | BT72: - | BU72: - | BV72: - | BW72: - | BX72: - | BY72: - | BZ72: - | CA72: - | CB72: - | CC72: - | CD72: - | CE72: - | CF72: - | CG72: - | CH72: - | CI72: - | CJ72: - | CK72: - | CQ72: 70 | CR72: XII TSM 1 | CS72: Didin Syamsudin, S.Pd | CT72: PegId | CU72: 20217802187001
I73: 70 | J73: P60 | K73: Eli Heriah, S.Si | L73: NIP | M73: 19790602 201408 2 002 | W73: 72 | X73: - | Y73: - | Z73: - | AA73: - | AB73: - | AC73: - | AD73: - | AE73: - | AF73: - | AG73: - | AH73: - | AI73: - | AJ73: - | AK73: - | AL73: - | AM73: - | AN73: - | AO73: - | AP73: - | AQ73: - | AR73: - | AS73: - | AT73: - | AU73: - | AV73: - | AW73: - | AX73: - | AY73: - | AZ73: - | BA73: - | BB73: - | BC73: - | BD73: - | BE73: - | BF73: - | BG73: - | BH73: - | BI73: - | BJ73: - | BK73: - | BL73: - | BM73: - | BN73: - | BO73: - | BP73: - | BQ73: - | BR73: - | BS73: - | BT73: - | BU73: - | BV73: - | BW73: - | BX73: - | BY73: - | BZ73: - | CA73: - | CB73: - | CC73: - | CD73: - | CE73: - | CF73: - | CG73: - | CH73: - | CI73: - | CJ73: - | CK73: - | CQ73: 71 | CR73: XII TSM 2 | CS73: Tita Nur Apriayanti, S.Pd | CT73: PegId | CU73: 20217802190004
I74: 71 | J74: G47 | K74: Fanny Sopia Rahayu,S.Pd | L74: PegId | M74: 20217802190003 | W74: 73 | X74: - | Y74: - | Z74: - | AA74: - | AB74: - | AC74: - | AD74: - | AE74: - | AF74: - | AG74: - | AH74: - | AI74: - | AJ74: - | AK74: - | AL74: - | AM74: - | AN74: - | AO74: - | AP74: - | AQ74: - | AR74: - | AS74: - | AT74: - | AU74: - | AV74: - | AW74: - | AX74: - | AY74: - | AZ74: - | BA74: - | BB74: - | BC74: - | BD74: - | BE74: - | BF74: - | BG74: - | BH74: - | BI74: - | BJ74: - | BK74: - | BL74: - | BM74: - | BN74: - | BO74: - | BP74: - | BQ74: - | BR74: - | BS74: - | BT74: - | BU74: - | BV74: - | BW74: - | BX74: - | BY74: - | BZ74: - | CA74: - | CB74: - | CC74: - | CD74: - | CE74: - | CF74: - | CG74: - | CH74: - | CI74: - | CJ74: - | CK74: - | CQ74: 72 | CR74: XII TSM 3 | CS74: Sunandar, S.Pd | CT74: PegId | CU74: -
A75: =V75 -> 0 | I75: 72 | J75: P47 | K75: Faridawaty Saragih,S.Si | L75: NIP | M75: 19691010 200801 2 015 | W75: 74 | X75: - | Y75: - | Z75: - | AA75: - | AB75: - | AC75: - | AD75: - | AE75: - | AF75: - | AG75: - | AH75: - | AI75: - | AJ75: - | AK75: - | AL75: - | AM75: - | AN75: - | AO75: - | AP75: - | AQ75: - | AR75: - | AS75: - | AT75: - | AU75: - | AV75: - | AW75: - | AX75: - | AY75: - | AZ75: - | BA75: - | BB75: - | BC75: - | BD75: - | BE75: - | BF75: - | BG75: - | BH75: - | BI75: - | BJ75: - | BK75: - | BL75: - | BM75: - | BN75: - | BO75: - | BP75: - | BQ75: - | BR75: - | BS75: - | BT75: - | BU75: - | BV75: - | BW75: - | BX75: - | BY75: - | BZ75: - | CA75: - | CB75: - | CC75: - | CD75: - | CE75: - | CF75: - | CG75: - | CH75: - | CI75: - | CJ75: - | CK75: - | CQ75: 73 | CR75: XII TSM 4 | CS75: Heri Murwanto, S.Pd | CT75: PegId | CU75: -
I76: 73 | J76: G60 | K76: Febrela Nusvia,S.Pd,M.Pd | L76: PegId | M76: 20217802192004 | W76: 75 | X76: - | Y76: - | Z76: - | AA76: - | AB76: - | AC76: - | AD76: - | AE76: - | AF76: - | AG76: - | AH76: - | AI76: - | AJ76: - | AK76: - | AL76: - | AM76: - | AN76: - | AO76: - | AP76: - | AQ76: - | AR76: - | AS76: - | AT76: - | AU76: - | AV76: - | AW76: - | AX76: - | AY76: - | AZ76: - | BA76: - | BB76: - | BC76: - | BD76: - | BE76: - | BF76: - | BG76: - | BH76: - | BI76: - | BJ76: - | BK76: - | BL76: - | BM76: - | BN76: - | BO76: - | BP76: - | BQ76: - | BR76: - | BS76: - | BT76: - | BU76: - | BV76: - | BW76: - | BX76: - | BY76: - | BZ76: - | CA76: - | CB76: - | CC76: - | CD76: - | CE76: - | CF76: - | CG76: - | CH76: - | CI76: - | CJ76: - | CK76: - | CQ76: 74 | CR76: XII TIPTL 1 | CS76: Angga Tri Anggoro, S.Pd | CT76: PegId | CU76: 20217802185004
I77: 74 | J77: G70 | K77: Fitri Ayunda, S.Pd | L77: PegId | M77: - | W77: 76 | X77: - | Y77: - | Z77: - | AA77: - | AB77: - | AC77: - | AD77: - | AE77: - | AF77: - | AG77: - | AH77: - | AI77: - | AJ77: - | AK77: - | AL77: - | AM77: - | AN77: - | AO77: - | AP77: - | AQ77: - | AR77: - | AS77: - | AT77: - | AU77: - | AV77: - | AW77: - | AX77: - | AY77: - | AZ77: - | BA77: - | BB77: - | BC77: - | BD77: - | BE77: - | BF77: - | BG77: - | BH77: - | BI77: - | BJ77: - | BK77: - | BL77: - | BM77: - | BN77: - | BO77: - | BP77: - | BQ77: - | BR77: - | BS77: - | BT77: - | BU77: - | BV77: - | BW77: - | BX77: - | BY77: - | BZ77: - | CA77: - | CB77: - | CC77: - | CD77: - | CE77: - | CF77: - | CG77: - | CH77: - | CI77: - | CJ77: - | CK77: - | CQ77: 75 | CR77: XII TIPTL 2 | CS77: Dede Supriatna, S.Pd | CT77: PegId | CU77: 20217802183002
A78: =V78 -> 0 | I78: 75 | J78: P40 | K78: H.Chaerudin,S.Pd,MM | L78: NIP | M78: 19731009 200604 1 007 | W78: 77 | X78: - | Y78: - | Z78: - | AA78: - | AB78: - | AC78: - | AD78: - | AE78: - | AF78: - | AG78: - | AH78: - | AI78: - | AJ78: - | AK78: - | AL78: - | AM78: - | AN78: - | AO78: - | AP78: - | AQ78: - | AR78: - | AS78: - | AT78: - | AU78: - | AV78: - | AW78: - | AX78: - | AY78: - | AZ78: - | BA78: - | BB78: - | BC78: - | BD78: - | BE78: - | BF78: - | BG78: - | BH78: - | BI78: - | BJ78: - | BK78: - | BL78: - | BM78: - | BN78: - | BO78: - | BP78: - | BQ78: - | BR78: - | BS78: - | BT78: - | BU78: - | BV78: - | BW78: - | BX78: - | BY78: - | BZ78: - | CA78: - | CB78: - | CC78: - | CD78: - | CE78: - | CF78: - | CG78: - | CH78: - | CI78: - | CJ78: - | CK78: - | CQ78: 76 | CR78: XII TKJ 1 | CS78: Amo Sisdianto, S.Kom | CT78: PegId | CU78: 20217802182001
I79: 76 | J79: P19 | K79: H.Rusmadi,S.Pd | L79: NIP | M79: 19600315 198803 1 005 | W79: 78 | X79: - | Y79: - | Z79: - | AA79: - | AB79: - | AC79: - | AD79: - | AE79: - | AF79: - | AG79: - | AH79: - | AI79: - | AJ79: - | AK79: - | AL79: - | AM79: - | AN79: - | AO79: - | AP79: - | AQ79: - | AR79: - | AS79: - | AT79: - | AU79: - | AV79: - | AW79: - | AX79: - | AY79: - | AZ79: - | BA79: - | BB79: - | BC79: - | BD79: - | BE79: - | BF79: - | BG79: - | BH79: - | BI79: - | BJ79: - | BK79: - | BL79: - | BM79: - | BN79: - | BO79: - | BP79: - | BQ79: - | BR79: - | BS79: - | BT79: - | BU79: - | BV79: - | BW79: - | BX79: - | BY79: - | BZ79: - | CA79: - | CB79: - | CC79: - | CD79: - | CE79: - | CF79: - | CG79: - | CH79: - | CI79: - | CJ79: - | CK79: - | CQ79: 77 | CR79: XII TKJ 2 | CS79: Ahmad Sanusi, S.Sos.I | CT79: NIP | CU79: 19790426 201407 1 001
I80: 77 | J80: P14 | K80: H.Ujang Komarudin,S.Pd,MM | L80: NIP | M80: 19610512 199403 1 003 | W80: 79 | X80: - | Y80: - | Z80: - | AA80: - | AB80: - | AC80: - | AD80: - | AE80: - | AF80: - | AG80: - | AH80: - | AI80: - | AJ80: - | AK80: - | AL80: - | AM80: - | AN80: - | AO80: - | AP80: - | AQ80: - | AR80: - | AS80: - | AT80: - | AU80: - | AV80: - | AW80: - | AX80: - | AY80: - | AZ80: - | BA80: - | BB80: - | BC80: - | BD80: - | BE80: - | BF80: - | BG80: - | BH80: - | BI80: - | BJ80: - | BK80: - | BL80: - | BM80: - | BN80: - | BO80: - | BP80: - | BQ80: - | BR80: - | BS80: - | BT80: - | BU80: - | BV80: - | BW80: - | BX80: - | BY80: - | BZ80: - | CA80: - | CB80: - | CC80: - | CD80: - | CE80: - | CF80: - | CG80: - | CH80: - | CI80: - | CJ80: - | CK80: - | CQ80: 78 | CR80: XII TKJ 3 | CS80: H. Rusmadi, S.Pd | CT80: NIP | CU80: 19600315 198803 1 005
A81: =V81 -> 0 | I81: 78 | J81: G46 | K81: Hady Hafizhudin,ST | L81: PegId | M81: 20217802189003 | W81: 80 | X81: - | Y81: - | Z81: - | AA81: - | AB81: - | AC81: - | AD81: - | AE81: - | AF81: - | AG81: - | AH81: - | AI81: - | AJ81: - | AK81: - | AL81: - | AM81: - | AN81: - | AO81: - | AP81: - | AQ81: - | AR81: - | AS81: - | AT81: - | AU81: - | AV81: - | AW81: - | AX81: - | AY81: - | AZ81: - | BA81: - | BB81: - | BC81: - | BD81: - | BE81: - | BF81: - | BG81: - | BH81: - | BI81: - | BJ81: - | BK81: - | BL81: - | BM81: - | BN81: - | BO81: - | BP81: - | BQ81: - | BR81: - | BS81: - | BT81: - | BU81: - | BV81: - | BW81: - | BX81: - | BY81: - | BZ81: - | CA81: - | CB81: - | CC81: - | CD81: - | CE81: - | CF81: - | CG81: - | CH81: - | CI81: - | CJ81: - | CK81: - | CQ81: 79 | CR81: XII TKJ 4 | CS81: Dadan Ramdana, S.Kom | CT81: PegId | CU81: -
I82: 79 | J82: G26 | K82: Hassuna Widya Diniati,S.Pd | L82: PegId | M82: - | W82: 81 | X82: - | Y82: - | Z82: - | AA82: - | AB82: - | AC82: - | AD82: - | AE82: - | AF82: - | AG82: - | AH82: - | AI82: - | AJ82: - | AK82: - | AL82: - | AM82: - | AN82: - | AO82: - | AP82: - | AQ82: - | AR82: - | AS82: - | AT82: - | AU82: - | AV82: - | AW82: - | AX82: - | AY82: - | AZ82: - | BA82: - | BB82: - | BC82: - | BD82: - | BE82: - | BF82: - | BG82: - | BH82: - | BI82: - | BJ82: - | BK82: - | BL82: - | BM82: - | BN82: - | BO82: - | BP82: - | BQ82: - | BR82: - | BS82: - | BT82: - | BU82: - | BV82: - | BW82: - | BX82: - | BY82: - | BZ82: - | CA82: - | CB82: - | CC82: - | CD82: - | CE82: - | CF82: - | CG82: - | CH82: - | CI82: - | CJ82: - | CK82: - | CQ82: 80 | CR82: XII RPL 1 | CS82: Dhian Nur Rahayu, ST | CT82: PegId | CU82: -
I83: 80 | J83: P49 | K83: Heni Handayani H,S.Pd | L83: NIP | M83: 19780406 200902 2 003 | W83: 82 | X83: - | Y83: - | Z83: - | AA83: - | AB83: - | AC83: - | AD83: - | AE83: - | AF83: - | AG83: - | AH83: - | AI83: - | AJ83: - | AK83: - | AL83: - | AM83: - | AN83: - | AO83: - | AP83: - | AQ83: - | AR83: - | AS83: - | AT83: - | AU83: - | AV83: - | AW83: - | AX83: - | AY83: - | AZ83: - | BA83: - | BB83: - | BC83: - | BD83: - | BE83: - | BF83: - | BG83: - | BH83: - | BI83: - | BJ83: - | BK83: - | BL83: - | BM83: - | BN83: - | BO83: - | BP83: - | BQ83: - | BR83: - | BS83: - | BT83: - | BU83: - | BV83: - | BW83: - | BX83: - | BY83: - | BZ83: - | CA83: - | CB83: - | CC83: - | CD83: - | CE83: - | CF83: - | CG83: - | CH83: - | CI83: - | CJ83: - | CK83: - | CQ83: 81 | CR83: XII RPL 2 | CS83: Eko Sigit, S.Kom | CT83: PegId | CU83: 20217802191002
A84: =V84 -> 0 | I84: 81 | J84: G69 | K84: Hepi Supriyadi | L84: PegId | M84: - | W84: 83 | X84: - | Y84: - | Z84: - | AA84: - | AB84: - | AC84: - | AD84: - | AE84: - | AF84: - | AG84: - | AH84: - | AI84: - | AJ84: - | AK84: - | AL84: - | AM84: - | AN84: - | AO84: - | AP84: - | AQ84: - | AR84: - | AS84: - | AT84: - | AU84: - | AV84: - | AW84: - | AX84: - | AY84: - | AZ84: - | BA84: - | BB84: - | BC84: - | BD84: - | BE84: - | BF84: - | BG84: - | BH84: - | BI84: - | BJ84: - | BK84: - | BL84: - | BM84: - | BN84: - | BO84: - | BP84: - | BQ84: - | BR84: - | BS84: - | BT84: - | BU84: - | BV84: - | BW84: - | BX84: - | BY84: - | BZ84: - | CA84: - | CB84: - | CC84: - | CD84: - | CE84: - | CF84: - | CG84: - | CH84: - | CI84: - | CJ84: - | CK84: -
I85: 82 | J85: G4 | K85: Heri Murwanto,S.Pd | L85: PegId | M85: - | W85: 84 | X85: - | Y85: - | Z85: - | AA85: - | AB85: - | AC85: - | AD85: - | AE85: - | AF85: - | AG85: - | AH85: - | AI85: - | AJ85: - | AK85: - | AL85: - | AM85: - | AN85: - | AO85: - | AP85: - | AQ85: - | AR85: - | AS85: - | AT85: - | AU85: - | AV85: - | AW85: - | AX85: - | AY85: - | AZ85: - | BA85: - | BB85: - | BC85: - | BD85: - | BE85: - | BF85: - | BG85: - | BH85: - | BI85: - | BJ85: - | BK85: - | BL85: - | BM85: - | BN85: - | BO85: - | BP85: - | BQ85: - | BR85: - | BS85: - | BT85: - | BU85: - | BV85: - | BW85: - | BX85: - | BY85: - | BZ85: - | CA85: - | CB85: - | CC85: - | CD85: - | CE85: - | CF85: - | CG85: - | CH85: - | CI85: - | CJ85: - | CK85: -
I86: 83 | J86: P41 | K86: Hj.Diah Gustanti,ST | L86: NIP | M86: 19760824 200604 2 007 | W86: 85 | X86: - | Y86: - | Z86: - | AA86: - | AB86: - | AC86: - | AD86: - | AE86: - | AF86: - | AG86: - | AH86: - | AI86: - | AJ86: - | AK86: - | AL86: - | AM86: - | AN86: - | AO86: - | AP86: - | AQ86: - | AR86: - | AS86: - | AT86: - | AU86: - | AV86: - | AW86: - | AX86: - | AY86: - | AZ86: - | BA86: - | BB86: - | BC86: - | BD86: - | BE86: - | BF86: - | BG86: - | BH86: - | BI86: - | BJ86: - | BK86: - | BL86: - | BM86: - | BN86: - | BO86: - | BP86: - | BQ86: - | BR86: - | BS86: - | BT86: - | BU86: - | BV86: - | BW86: - | BX86: - | BY86: - | BZ86: - | CA86: - | CB86: - | CC86: - | CD86: - | CE86: - | CF86: - | CG86: - | CH86: - | CI86: - | CJ86: - | CK86: -
A87: =V87 -> 0 | I87: 84 | J87: P15 | K87: Hj.Diah Handayani, S.Pd | L87: NIP | M87: 19691110 199403 2 009 | W87: 86 | X87: - | Y87: - | Z87: - | AA87: - | AB87: - | AC87: - | AD87: - | AE87: - | AF87: - | AG87: - | AH87: - | AI87: - | AJ87: - | AK87: - | AL87: - | AM87: - | AN87: - | AO87: - | AP87: - | AQ87: - | AR87: - | AS87: - | AT87: - | AU87: - | AV87: - | AW87: - | AX87: - | AY87: - | AZ87: - | BA87: - | BB87: - | BC87: - | BD87: - | BE87: - | BF87: - | BG87: - | BH87: - | BI87: - | BJ87: - | BK87: - | BL87: - | BM87: - | BN87: - | BO87: - | BP87: - | BQ87: - | BR87: - | BS87: - | BT87: - | BU87: - | BV87: - | BW87: - | BX87: - | BY87: - | BZ87: - | CA87: - | CB87: - | CC87: - | CD87: - | CE87: - | CF87: - | CG87: - | CH87: - | CI87: - | CJ87: - | CK87: -
I88: 85 | J88: P42 | K88: Husain Choiri,S.Pd.T | L88: NIP | M88: 19770225 200604 1 002 | W88: 87 | X88: - | Y88: - | Z88: - | AA88: - | AB88: - | AC88: - | AD88: - | AE88: - | AF88: - | AG88: - | AH88: - | AI88: - | AJ88: - | AK88: - | AL88: - | AM88: - | AN88: - | AO88: - | AP88: - | AQ88: - | AR88: - | AS88: - | AT88: - | AU88: - | AV88: - | AW88: - | AX88: - | AY88: - | AZ88: - | BA88: - | BB88: - | BC88: - | BD88: - | BE88: - | BF88: - | BG88: - | BH88: - | BI88: - | BJ88: - | BK88: - | BL88: - | BM88: - | BN88: - | BO88: - | BP88: - | BQ88: - | BR88: - | BS88: - | BT88: - | BU88: - | BV88: - | BW88: - | BX88: - | BY88: - | BZ88: - | CA88: - | CB88: - | CC88: - | CD88: - | CE88: - | CF88: - | CG88: - | CH88: - | CI88: - | CJ88: - | CK88: -
I89: 86 | J89: P22 | K89: Hy.Bara Tulastiana | L89: NIP | M89: 19660817 199003 2 022 | W89: 88 | X89: - | Y89: - | Z89: - | AA89: - | AB89: - | AC89: - | AD89: - | AE89: - | AF89: - | AG89: - | AH89: - | AI89: - | AJ89: - | AK89: - | AL89: - | AM89: - | AN89: - | AO89: - | AP89: - | AQ89: - | AR89: - | AS89: - | AT89: - | AU89: - | AV89: - | AW89: - | AX89: - | AY89: - | AZ89: - | BA89: - | BB89: - | BC89: - | BD89: - | BE89: - | BF89: - | BG89: - | BH89: - | BI89: - | BJ89: - | BK89: - | BL89: - | BM89: - | BN89: - | BO89: - | BP89: - | BQ89: - | BR89: - | BS89: - | BT89: - | BU89: - | BV89: - | BW89: - | BX89: - | BY89: - | BZ89: - | CA89: - | CB89: - | CC89: - | CD89: - | CE89: - | CF89: - | CG89: - | CH89: - | CI89: - | CJ89: - | CK89: -
A90: =V90 -> 0 | I90: 87 | J90: P18 | K90: Ida Farida Artati | L90: NIP | M90: 19660308 198803 2 005 | W90: 89 | X90: - | Y90: - | Z90: - | AA90: - | AB90: - | AC90: - | AD90: - | AE90: - | AF90: - | AG90: - | AH90: - | AI90: - | AJ90: - | AK90: - | AL90: - | AM90: - | AN90: - | AO90: - | AP90: - | AQ90: - | AR90: - | AS90: - | AT90: - | AU90: - | AV90: - | AW90: - | AX90: - | AY90: - | AZ90: - | BA90: - | BB90: - | BC90: - | BD90: - | BE90: - | BF90: - | BG90: - | BH90: - | BI90: - | BJ90: - | BK90: - | BL90: - | BM90: - | BN90: - | BO90: - | BP90: - | BQ90: - | BR90: - | BS90: - | BT90: - | BU90: - | BV90: - | BW90: - | BX90: - | BY90: - | BZ90: - | CA90: - | CB90: - | CC90: - | CD90: - | CE90: - | CF90: - | CG90: - | CH90: - | CI90: - | CJ90: - | CK90: -
I91: 88 | J91: P45 | K91: Iin Kartini, S.Pd | L91: NIP | M91: 19741020 200701 2 006 | W91: 90 | X91: - | Y91: - | Z91: - | AA91: - | AB91: - | AC91: - | AD91: - | AE91: - | AF91: - | AG91: - | AH91: - | AI91: - | AJ91: - | AK91: - | AL91: - | AM91: - | AN91: - | AO91: - | AP91: - | AQ91: - | AR91: - | AS91: - | AT91: - | AU91: - | AV91: - | AW91: - | AX91: - | AY91: - | AZ91: - | BA91: - | BB91: - | BC91: - | BD91: - | BE91: - | BF91: - | BG91: - | BH91: - | BI91: - | BJ91: - | BK91: - | BL91: - | BM91: - | BN91: - | BO91: - | BP91: - | BQ91: - | BR91: - | BS91: - | BT91: - | BU91: - | BV91: - | BW91: - | BX91: - | BY91: - | BZ91: - | CA91: - | CB91: - | CC91: - | CD91: - | CE91: - | CF91: - | CG91: - | CH91: - | CI91: - | CJ91: - | CK91: -
I92: 89 | J92: G79 | K92: Ika Sherlyta Rohmawati, S.Pd | L92: PegId | M92: - | W92: 91 | X92: - | Y92: - | Z92: - | AA92: - | AB92: - | AC92: - | AD92: - | AE92: - | AF92: - | AG92: - | AH92: - | AI92: - | AJ92: - | AK92: - | AL92: - | AM92: - | AN92: - | AO92: - | AP92: - | AQ92: - | AR92: - | AS92: - | AT92: - | AU92: - | AV92: - | AW92: - | AX92: - | AY92: - | AZ92: - | BA92: - | BB92: - | BC92: - | BD92: - | BE92: - | BF92: - | BG92: - | BH92: - | BI92: - | BJ92: - | BK92: - | BL92: - | BM92: - | BN92: - | BO92: - | BP92: - | BQ92: - | BR92: - | BS92: - | BT92: - | BU92: - | BV92: - | BW92: - | BX92: - | BY92: - | BZ92: - | CA92: - | CB92: - | CC92: - | CD92: - | CE92: - | CF92: - | CG92: - | CH92: - | CI92: - | CJ92: - | CK92: -
I93: 90 | J93: P61 | K93: Ikeu Susana, S.Pd | L93: NIP | M93: 19790905 201408 2 001
A94: A | I94: 91 | J94: G45 | K94: Indria Listiani Ningrum,ST | L94: PegId | M94: 20217802189003 | W94: A | X94: =COUNTA(X3:X20)/3-COUNTIF(X3:X20,"-")/3 -> 6 | Y94: 6 | AD94: 6 | AE94: 6 | AJ94: 6 | AK94: 6 | AP94: 6 | AQ94: 6 | AV94: 6 | AW94: 6 | BB94: 6 | BC94: 6 | BH94: 6 | BI94: 6 | BN94: 6 | BO94: 6 | BT94: 6 | BU94: 6 | BZ94: 6 | CA94: 6 | CJ94: 5 | CK94: 5
A95: B | I95: 92 | J95: G36 | K95: Irfan Zinat Achmad, S.Pd, M.Pd | L95: PegId | M95: - | W95: B | X95: =COUNTA(X21:X35)/3-COUNTIF(X21:X35,"-")/3 -> 5 | Y95: 5 | AD95: 5 | AE95: 5 | AJ95: 5 | AK95: 5 | AP95: 5 | AQ95: 5 | AV95: 5 | AW95: 5 | BB95: 5 | BC95: 5 | BH95: 5 | BI95: 5 | BN95: 5 | BO95: 5 | BT95: 5 | BU95: 5 | BZ95: 5 | CA95: 5 | CJ95: 1 | CK95: 1
A96: C1 | I96: 93 | J96: G12 | K96: Karno,S.Pd | L96: PegId | M96: 20217802186001 | W96: C1 | X96: =COUNTA(X36:X44)/3-COUNTIF(X36:X44,"-")/3 -> 3 | Y96: 3 | AD96: 3 | AE96: 3 | AJ96: 3 | AK96: 3 | AP96: 3 | AQ96: 3 | AV96: 3 | AW96: 3 | BB96: 3 | BC96: 3 | BH96: 3 | BI96: 3 | BN96: 3 | BO96: 3 | BT96: 3 | BU96: 3 | BZ96: 3 | CA96: 3 | CJ96: 0 | CK96: 0
A97: C2 | I97: 94 | J97: G10 | K97: Kurniati,S.Sos.I | L97: PegId | M97: - | W97: C2 | X97: =COUNTA(X48:X62)/3-COUNTIF(X48:X62,"-")/3 -> 1 | Y97: =COUNTA(Y48:Y62)/3-COUNTIF(Y48:Y62,"-")/3 -> 1 | AD97: =COUNTA(AD45:AD62)/3-COUNTIF(AD45:AD62,"-")/3 -> 2 | AE97: =COUNTA(AE45:AE62)/3-COUNTIF(AE45:AE62,"-")/3 -> 2 | AJ97: =COUNTA(AJ45:AJ62)/3-COUNTIF(AJ45:AJ62,"-")/3 -> 2 | AK97: =COUNTA(AK45:AK62)/3-COUNTIF(AK45:AK62,"-")/3 -> 2 | AP97: =COUNTA(AP48:AP62)/3-COUNTIF(AP48:AP62,"-")/3 -> 1 | AQ97: =COUNTA(AQ48:AQ62)/3-COUNTIF(AQ48:AQ62,"-")/3 -> 1 | AV97: =COUNTA(AV45:AV62)/3-COUNTIF(AV45:AV62,"-")/3 -> 2 | AW97: 2 | BB97: 2 | BC97: 2 | BH97: 2 | BI97: 2 | BN97: 2 | BO97: 2 | BT97: =COUNTA(BT48:BT62)/3-COUNTIF(BT48:BT62,"-")/3 -> 1 | BU97: =COUNTA(BU48:BU62)/3-COUNTIF(BU48:BU62,"-")/3 -> 1 | BZ97: =COUNTA(BZ45:BZ62)/3-COUNTIF(BZ45:BZ62,"-")/3 -> 2 | CA97: =COUNTA(CA45:CA62)/3-COUNTIF(CA45:CA62,"-")/3 -> 2 | CJ97: =COUNTA(CJ48:CJ62)/3-COUNTIF(CJ48:CJ62,"-")/3 -> 3 | CK97: =COUNTA(CK48:CK62)/3-COUNTIF(CK48:CK62,"-")/3 -> 3
A98: C3 | I98: 95 | J98: G88 | K98: Laela Apri Liani, S.Pd.I | L98: PegId | M98: - | W98: C3 | X98: =COUNTA(X63:X86)/3-COUNTIF(X63:X86,"-")/3 -> 0 | Y98: 0 | AD98: 0 | AE98: 0 | AJ98: 0 | AK98: 0 | AP98: 0 | AQ98: 0 | AV98: 0 | AW98: 0 | BB98: 0 | BC98: 0 | BH98: 0 | BI98: 0 | BN98: 0 | BO98: 0 | BT98: 0 | BU98: 0 | BZ98: 0 | CA98: 0 | CJ98: 1 | CK98: 1
I99: 96 | J99: P6 | K99: Leli Suherli,S.Pd,M.Pd | L99: NIP | M99: 19600113 198611 1 001 | W99: MU | X99: =COUNTA(X87:X92)/3-COUNTIF(X87:X92,"-")/3 -> 0 | Y99: 0 | AD99: 0 | AE99: 0 | AJ99: 0 | AK99: 0 | AP99: 0 | AQ99: 0 | AV99: 0 | AW99: 0 | BB99: 0 | BC99: 0 | BH99: 0 | BI99: 0 | BN99: 0 | BO99: 0 | BT99: 0 | BU99: 0 | BZ99: 0 | CA99: 0 | CJ99: 0 | CK99: 0
I100: 97 | J100: G44 | K100: Lily Chandra,S.Pd | L100: PegId | M100: - | W100: JUMLAH MAPEL | X100: =SUM(X94:X99) -> 15 | Y100: =SUM(Y94:Y99) -> 15 | AD100: 16 | AE100: 16 | AJ100: =SUM(AJ94:AJ99) -> 16 | AK100: =SUM(AK94:AK99) -> 16 | AP100: 15 | AQ100: 15 | AV100: =SUM(AV94:AV99) -> 16 | AW100: 16 | BB100: =SUM(BB94:BB99) -> 16 | BC100: 16 | BH100: 16 | BI100: 16 | BN100: 16 | BO100: 16 | BT100: =SUM(BT94:BT99) -> 15 | BU100: =SUM(BU94:BU99) -> 15 | BZ100: =SUM(BZ94:BZ99) -> 16 | CA100: =SUM(CA94:CA99) -> 16 | CJ100: 10 | CK100: 10
I101: 98 | J101: G43 | K101: Maolana Nopiansah, S.Pd.I | L101: PegId | M101: 20217802185006
I102: 99 | J102: G74 | K102: Maria Bestarina Laili, ST | L102: PegId | M102: -
I103: 100 | J103: G61 | K103: Mila Karuniawati,S.Pd | L103: PegId | M103: 20217808186003
I104: 101 | J104: P55 | K104: Mugi Widodo, S.Pd | L104: NIP | M104: 19720529 201407 1 001
I105: 102 | J105: G54 | K105: Muhamad Busron,S.Pd | L105: PegId | M105: -
I106: 103 | J106: G85 | K106: Muhamad Jaenus Solihin | L106: PegId | M106: -
I107: 104 | J107: G78 | K107: Muhammad Fauzi Efendie, S.Pd | L107: PegId | M107: -
I108: 105 | J108: G11 | K108: Muhammad Nuryanto,S.Pd.I | L108: PegId | M108: 20217802185003
I109: 106 | J109: G27 | K109: Nandang Ruhiyat Efendi,ST | L109: PegId | M109: -
I110: 107 | J110: G28 | K110: Nunung Nur Choerullah, S.Pd | L110: PegId | M110: -
I111: 108 | J111: G67 | K111: Nuri Hastuti Nuryani, S.Pd | L111: PegId | M111: -
I112: 109 | J112: P37 | K112: Pono Siswanto, S.Pd ,M.Pd | L112: NIP | M112: 19750905 200501 1 006
I113: 110 | J113: P57 | K113: Prapti Suharyanti, S.Pd | L113: NIP | M113: 19770218 201407 2 001
I114: 111 | J114: G63 | K114: Raden Dewi Noviyanti,S.Pd | L114: PegId | M114: 20217802192003
I115: 112 | J115: G64 | K115: Rangga Adlan, S.Pd | L115: PegId | M115: -
I116: 113 | J116: G84 | K116: Redi Suhendri | L116: PegId | M116: -
I117: 114 | J117: G59 | K117: Rhama Nurwansyah Sumarsono,S.Pd | L117: PegId | M117: -
I118: 115 | J118: G35 | K118: Ridwan Yulianto,S.Pd | L118: PegId | M118: -
I119: 116 | J119: G5 | K119: Rika Nurlela Ningrum,S.S | L119: PegId | M119: -
I120: 117 | J120: G40 | K120: Riki Verdian,ST | L120: PegId | M120: 20217802187002
I121: 118 | J121: G29 | K121: Rini Anggraeni,S.Pd,M.Pd | L121: PegId | M121: 20217802186002
I122: 119 | J122: G34 | K122: Rini Nurmalasari,S.Pd | L122: PegId | M122: 20217802185002
I123: 120 | J123: P39 | K123: Risin,S.Pd | L123: NIP | M123: 19720616 200604 1005
I124: 121 | J124: G33 | K124: Risnaldi,S.Pd | L124: PegId | M124: -
I125: 122 | J125: P50 | K125: Rita Rosita,S.Pd | L125: NIP | M125: 19800904 200902 2 005
I126: 123 | J126: G72 | K126: Riyan Ariyansah, ST | L126: PegId | M126: -
I127: 124 | J127: G55 | K127: Roban,ST | L127: PegId | M127: 20217802188005
I128: 125 | J128: P44 | K128: Roi Supriadi,S.Pd, MT | L128: NIP | M128: 19740816 200701 1 007
I129: 126 | J129: G8 | K129: Rosadi,ST | L129: PegId | M129: -
I130: 127 | J130: G75 | K130: Saeful Ikhrom, A.Md | L130: PegId | M130: -
I131: 128 | J131: P58 | K131: Sigit Nur Atmadi, S.Pd | L131: NIP | M131: 19790118 201407 1 002
I132: 129 | J132: G81 | K132: Siti Nurjanah,S.Pd | L132: PegId | M132: -
I133: 130 | J133: P46 | K133: Slamet Raharjo,S.Pd, MT | L133: NIP | M133: 19660611 200801 1 005
I134: 131 | J134: G31 | K134: Sri Hartati,S.T | L134: PegId | M134: 20217802184001
I135: 132 | J135: P32 | K135: Sugeng, S.Pd,M.Pd | L135: NIP | M135: 19630527 199803 1 002
I136: 133 | J136: P56 | K136: Suhartini, S.Pd | L136: NIP | M136: 19761222 201407 2 001
I137: 134 | J137: G7 | K137: Sujarwo,S.IP | L137: PegId | M137: -
I138: 135 | J138: P26 | K138: Sukma Surya Purnama,S.Pd,MT | L138: NIP | M138: 19680102 199512 1 002
I139: 136 | J139: G2 | K139: Sumarsono,ST | L139: PegId | M139: -
I140: 137 | J140: G30 | K140: Sunandar,ST | L140: PegId | M140: -
I141: 138 | J141: G1 | K141: Supartika,S.Pd | L141: PegId | M141: -
I142: 139 | J142: G76 | K142: Susilawati, S.Pd | L142: PegId | M142: -
I143: 140 | J143: G14 | K143: Syarif Hidayatullah,S.Pd,MM | L143: PegId | M143: -
I144: 141 | J144: G77 | K144: Tessa Putri Chandra Julianti,S.Pd | L144: PegId | M144: -
I145: 142 | J145: G42 | K145: Tita Monica Timor,S.Pd | L145: PegId | M145: 20217802191003
I146: 143 | J146: G51 | K146: Tita Nuraprianti,S.Pd | L146: PegId | M146: 20217802190004
I147: 144 | J147: P33 | K147: Tjetjep Rony Budiman,S.Pd, MT | L147: NIP | M147: 19700810 200501 1 009
I148: 145 | J148: G68 | K148: Tri Puji Astutik, S.Pd | L148: PegId | M148: -
I149: 146 | J149: P12 | K149: Uma Pahrevi,S.Pd,M.Pd | L149: NIP | M149: 19650101 198902 1 004
I150: 147 | J150: G41 | K150: Utha Aprilelia DAC,S.Pd | L150: PegId | M150: 20217802189006
I151: 148 | J151: G52 | K151: Vanny Tri Oktaviani,S.Pd | L151: PegId | M151: 20217802191004
I152: 149 | J152: G58 | K152: Wienike Dinar Pratriwi,ST | L152: PegId | M152: 20217802186004
I153: 150 | J153: G13 | K153: Wiwiek Williya,S.Kom,M.Kom | L153: PegId | M153: -
I154: 151 | J154: G32 | K154: Yayus Irmansyah,ST | L154: PegId | M154: 20217802179001
I155: 152 | J155: G9 | K155: Yusuf Effendy,ST | L155: PegId | M155: -
I156: 153 | J156: G50 | K156: Zian Muzakiyah Kosman,S.Pd,M.Pd | L156: PegId | M156: 20217802189007

Sheet DESKSM1
A1: DESKRIPSI KOMPETENSI | D1: =HLOOKUP(MENU!$I$8&" "&$B$2,DATABASE!$X$2:$CK$92,DATABASE!W3,FALSE) -> Pendidikan Agama dan Budi Pekerti | E1: =HLOOKUP(MENU!$I$8&" "&$B$2,DATABASE!$X$2:$CK$92,DATABASE!W6,FALSE) -> Pendidikan Pancasila dan Kewarganegaraan | F1: =HLOOKUP(MENU!$I$8&" "&$B$2,DATABASE!$X$2:$CK$92,DATABASE!W9,FALSE) -> Bahasa Indonesia | G1: =HLOOKUP(MENU!$I$8&" "&$B$2,DATABASE!$X$2:$CK$92,DATABASE!W12,FALSE) -> Matematika | H1: =HLOOKUP(MENU!$I$8&" "&$B$2,DATABASE!$X$2:$CK$92,DATABASE!W15,FALSE) -> Sejarah Indonesia | I1: =HLOOKUP(MENU!$I$8&" "&$B$2,DATABASE!$X$2:$CK$92,DATABASE!W18,FALSE) -> Bahasa Inggris | J1: =HLOOKUP(MENU!$I$8&" "&$B$2,DATABASE!$X$2:$CK$92,DATABASE!W21,FALSE) -> Seni Budaya | K1: =HLOOKUP(MENU!$I$8&" "&$B$2,DATABASE!$X$2:$CK$92,DATABASE!W24,FALSE) -> Pendidikan Jasmani, Olah Raga & Kesehatan | L1: =HLOOKUP(MENU!$I$8&" "&$B$2,DATABASE!$X$2:$CK$92,DATABASE!W27,FALSE) -> Bahasa dan Sastra Sunda | M1: =HLOOKUP(MENU!$I$8&" "&$B$2,DATABASE!$X$2:$CK$92,DATABASE!W30,FALSE) -> PLH | N1: =HLOOKUP(MENU!$I$8&" "&$B$2,DATABASE!$X$2:$CK$92,DATABASE!W33,FALSE) -> Simulasi dan Komunikasi Digital | O1: =HLOOKUP(MENU!$I$8&" "&$B$2,DATABASE!$X$2:$CK$92,DATABASE!W36,FALSE) -> Fisika | P1: =HLOOKUP(MENU!$I$8&" "&$B$2,DATABASE!$X$2:$CK$92,DATABASE!W39,FALSE) -> Kimia | Q1: =HLOOKUP(MENU!$I$8&" "&$B$2,DATABASE!$X$2:$CK$92,DATABASE!W42,FALSE) -> Sistem Komputer | R1: =HLOOKUP(MENU!$I$8&" "&$B$2,DATABASE!$X$2:$CK$92,DATABASE!W45,FALSE) -> Komputer dan Jaringan Dasar | S1: =HLOOKUP(MENU!$I$8&" "&$B$2,DATABASE!$X$2:$CK$92,DATABASE!W48,FALSE) -> Pemrograman Dasar | T1: =HLOOKUP(MENU!$I$8&" "&$B$2,DATABASE!$X$2:$CK$92,DATABASE!W51,FALSE) -> Dasar Desain Grafis | U1: =HLOOKUP(MENU!$I$8&" "&$B$2,DATABASE!$X$2:$CK$92,DATABASE!W54,FALSE) -> - | V1: =HLOOKUP(MENU!$I$8&" "&$B$2,DATABASE!$X$2:$CK$92,DATABASE!W57,FALSE) -> - | W1: =HLOOKUP(MENU!$I$8&" "&$B$2,DATABASE!$X$2:$CK$92,DATABASE!W60,FALSE) -> - | X1: =HLOOKUP(MENU!$I$8&" "&$B$2,DATABASE!$X$2:$CK$92,DATABASE!W63,FALSE) -> - | Y1: =HLOOKUP(MENU!$I$8&" "&$B$2,DATABASE!$X$2:$CK$92,DATABASE!W66,FALSE) -> - | Z1: =HLOOKUP(MENU!$I$8&" "&$B$2,DATABASE!$X$2:$CK$92,DATABASE!W69,FALSE) -> - | AA1: =HLOOKUP(MENU!$I$8&" "&$B$2,DATABASE!$X$2:$CK$92,DATABASE!W72,FALSE) -> - | AB1: =HLOOKUP(MENU!$I$8&" "&$B$2,DATABASE!$X$2:$CK$92,DATABASE!W75,FALSE) -> - | AC1: =HLOOKUP(MENU!$I$8&" "&$B$2,DATABASE!$X$2:$CK$92,DATABASE!W78,FALSE) -> - | AD1: =HLOOKUP(MENU!$I$8&" "&$B$2,DATABASE!$X$2:$CK$92,DATABASE!W81,FALSE) -> - | AE1: =HLOOKUP(MENU!$I$8&" "&$B$2,DATABASE!$X$2:$CK$92,DATABASE!W84,FALSE) -> - | AF1: =HLOOKUP(MENU!$I$8&" "&$B$2,DATABASE!$X$2:$CK$92,DATABASE!W87,FALSE) -> - | AG1: =HLOOKUP(MENU!$I$8&" "&$B$2,DATABASE!$X$2:$CK$92,DATABASE!W90,FALSE) -> -
A2: Semester : | B2: 1 (satu) | C2: KEL. MAPEL | D2: A | E2: A | F2: A | G2: A | H2: A | I2: A | J2: B | K2: B | L2: B | M2: C1 | N2: C1 | O2: C1 | P2: C2 | Q2: C2 | R2: C2 | S2: C2 | T2: C2 | U2: C2 | V2: C3 | W2: C3 | X2: C3 | Y2: C3 | Z2: C3 | AA2: C3 | AB2: C3 | AC2: C3 | AD2: C3 | AE2: MULOK | AF2: MULOK | AG2: MULOK
C3: 1 | D3: 2 | E3: 3 | F3: 4 | G3: 5 | H3: 6 | I3: 7 | J3: 8 | K3: 9 | L3: 10 | M3: 11 | N3: 12 | O3: 13 | P3: 14 | Q3: 15 | R3: 16 | S3: 17 | T3: 18 | U3: 19 | V3: 20 | W3: 21 | X3: 22 | Y3: 23 | Z3: 24 | AA3: 25 | AB3: 26 | AC3: 27 | AD3: 28 | AE3: 29 | AF3: 30 | AG3: 31
C4: PREDIKAT | D4: DESKRIPSI | E4: DESKRIPSI | F4: DESKRIPSI | G4: DESKRIPSI | H4: DESKRIPSI | I4: DESKRIPSI | J4: DESKRIPSI | K4: DESKRIPSI | L4: DESKRIPSI | M4: DESKRIPSI | N4: DESKRIPSI | O4: DESKRIPSI | P4: DESKRIPSI | Q4: DESKRIPSI | R4: DESKRIPSI | S4: DESKRIPSI | T4: DESKRIPSI | U4: DESKRIPSI | V4: DESKRIPSI | W4: DESKRIPSI | X4: DESKRIPSI | Y4: DESKRIPSI | Z4: DESKRIPSI | AA4: DESKRIPSI | AB4: DESKRIPSI | AC4: DESKRIPSI | AD4: DESKRIPSI | AE4: DESKRIPSI | AF4: DESKRIPSI | AG4: DESKRIPSI
B5: DESKRIPSI NILAI PENGETAHUAN | C5: A | D5: Sangat baik dalam memahami, menerapkan, menganalisis dan mengevaluasi semua kompetensi dasar. | E5: Pendidikan Pancasila dan Kewarganegaraan | F5: Bahasa Indonesia | G5: Matematika | H5: Sejarah Indonesia | I5: Bahasa Inggris | J5: Seni Budaya | K5: Prakarya dan Kewirausahaan | L5: Pendidikan Jasmani, Olah Raga & Kesehatan | M5: Fisika | N5: Pemrograman Dasar | O5: Sistem Komputer | P5: Perakitan Komputer | Q5: Simulasi Digital | R5: Sistem Operasi | S5: Jaringan Dasar | T5: Pemprograman Web | U5: C2 | V5: C3 | W5: C3 | X5: C3 | Y5: C3 | Z5: C3 | AA5: C3 | AB5: C3 | AC5: C3 | AD5: C3 | AE5: Bahasa dan Sastra Sunda | AF5: MULOK | AG5: MULOK
C6: B | D6: Baik dalam memahami, menerapkan, menganalisis dan mengevaluasi sebagian besar kompetensi dasar. | E6: Pendidikan Pancasila dan Kewarganegaraan | F6: Bahasa Indonesia | G6: Matematika | H6: Sejarah Indonesia | I6: Bahasa Inggris | J6: Seni Budaya | K6: Prakarya dan Kewirausahaan | L6: Pendidikan Jasmani, Olah Raga & Kesehatan | M6: Fisika | N6: Pemrograman Dasar | O6: Sistem Komputer | P6: Perakitan Komputer | Q6: Simulasi Digital | R6: Sistem Operasi | S6: Jaringan Dasar | T6: Pemprograman Web | U6: C2 | V6: C3 | W6: C3 | X6: C3 | Y6: C3 | Z6: C3 | AA6: C3 | AB6: C3 | AC6: C3 | AD6: C3 | AE6: Bahasa dan Sastra Sunda | AF6: MULOK | AG6: MULOK
C7: C | D7: Cukup baik memahami sebagian kompetensi dasar, tetapi kurang bisa menerapkan, menganalisis dan mengevaluasinya. | E7: Pendidikan Pancasila dan Kewarganegaraan | F7: Bahasa Indonesia | G7: Matematika | H7: Sejarah Indonesia | I7: Bahasa Inggris | J7: Seni Budaya | K7: Prakarya dan Kewirausahaan | L7: Pendidikan Jasmani, Olah Raga & Kesehatan | M7: Fisika | N7: Pemrograman Dasar | O7: Sistem Komputer | P7: Perakitan Komputer | Q7: Simulasi Digital | R7: Sistem Operasi | S7: Jaringan Dasar | T7: Pemprograman Web | U7: C2 | V7: C3 | W7: C3 | X7: C3 | Y7: C3 | Z7: C3 | AA7: C3 | AB7: C3 | AC7: C3 | AD7: C3 | AE7: Bahasa dan Sastra Sunda | AF7: MULOK | AG7: MULOK
C8: D | D8: Kurang memahami, hanya bisa menerapkan, menganalisis, dan mengeveluasi sebagian kecil kompetensi dasar. | E8: Pendidikan Pancasila dan Kewarganegaraan | F8: Bahasa Indonesia | G8: Matematika | H8: Sejarah Indonesia | I8: Bahasa Inggris | J8: Seni Budaya | K8: Prakarya dan Kewirausahaan | L8: Pendidikan Jasmani, Olah Raga & Kesehatan | M8: Fisika | N8: Pemrograman Dasar | O8: Sistem Komputer | P8: Perakitan Komputer | Q8: Simulasi Digital | R8: Sistem Operasi | S8: Jaringan Dasar | T8: Pemprograman Web | U8: C2 | V8: C3 | W8: C3 | X8: C3 | Y8: C3 | Z8: C3 | AA8: C3 | AB8: C3 | AC8: C3 | AD8: C3 | AE8: Bahasa dan Sastra Sunda | AF8: MULOK | AG8: MULOK
B10: DESKRIPSI NILAI KETERAMPILAN | C10: A | D10: Sangat baik dan aktif bertanya, mencoba, menalar dan kreatif dalam menyelesaikan tugas praktek. | E10: Pendidikan Pancasila dan Kewarganegaraan | F10: Bahasa Indonesia | G10: Matematika | H10: Sejarah Indonesia | I10: Bahasa Inggris | J10: Seni Budaya | K10: Prakarya dan Kewirausahaan | L10: Pendidikan Jasmani, Olah Raga & Kesehatan | M10: Fisika | N10: Pemrograman Dasar | O10: Sistem Komputer | P10: Perakitan Komputer | Q10: Simulasi Digital | R10: Sistem Operasi | S10: Jaringan Dasar | T10: Pemprograman Web | U10: C2 | V10: C3 | W10: C3 | X10: C3 | Y10: C3 | Z10: C3 | AA10: C3 | AE10: Bahasa dan Sastra Sunda | AF10: MULOK | AG10: MULOK
C11: B | D11: Baik dan aktif bertanya, mencoba, menalar dan kreatif dalam menyelesaikan sebagian besar tugas praktek. | E11: Pendidikan Pancasila dan Kewarganegaraan | F11: Bahasa Indonesia | G11: Matematika | H11: Sejarah Indonesia | I11: Bahasa Inggris | J11: Seni Budaya | K11: Prakarya dan Kewirausahaan | L11: Pendidikan Jasmani, Olah Raga & Kesehatan | M11: Fisika | N11: Pemrograman Dasar | O11: Sistem Komputer | P11: Perakitan Komputer | Q11: Simulasi Digital | R11: Sistem Operasi | S11: Jaringan Dasar | T11: Pemprograman Web | U11: C2 | V11: C3 | W11: C3 | X11: C3 | Y11: C3 | Z11: C3 | AA11: C3 | AE11: Bahasa dan Sastra Sunda | AF11: MULOK | AG11: MULOK
C12: C | D12: Cukup aktif bertanya, mencoba, menalar dan kreatif dalam menyelesaikan tugas praktek | E12: Pendidikan Pancasila dan Kewarganegaraan | F12: Bahasa Indonesia | G12: Matematika | H12: Sejarah Indonesia | I12: Bahasa Inggris | J12: Seni Budaya | K12: Prakarya dan Kewirausahaan | L12: Pendidikan Jasmani, Olah Raga & Kesehatan | M12: Fisika | N12: Pemrograman Dasar | O12: Sistem Komputer | P12: Perakitan Komputer | Q12: Simulasi Digital | R12: Sistem Operasi | S12: Jaringan Dasar | T12: Pemprograman Web | U12: C2 | V12: C3 | W12: C3 | X12: C3 | Y12: C3 | Z12: C3 | AA12: C3 | AE12: Bahasa dan Sastra Sunda | AF12: MULOK | AG12: MULOK
C13: D | D13: Kurang aktif bertanya, mencoba, menalar dan kreatif dalam menyelesaikan tugas praktek. | E13: Pendidikan Pancasila dan Kewarganegaraan | F13: Bahasa Indonesia | G13: Matematika | H13: Sejarah Indonesia | I13: Bahasa Inggris | J13: Seni Budaya | K13: Prakarya dan Kewirausahaan | L13: Pendidikan Jasmani, Olah Raga & Kesehatan | M13: Fisika | N13: Pemrograman Dasar | O13: Sistem Komputer | P13: Perakitan Komputer | Q13: Simulasi Digital | R13: Sistem Operasi | S13: Jaringan Dasar | T13: Pemprograman Web | U13: C2 | V13: C3 | W13: C3 | X13: C3 | Y13: C3 | Z13: C3 | AA13: C3 | AE13: Bahasa dan Sastra Sunda | AF13: MULOK | AG13: MULOK
D15: 3.59
D16: 3.59
D17: 3.5
D18: 3.48
D19: 3.54
D20: 3.39
D21: 3.45
D22: 3.45
D23: 3.29
D24: 3.45
D25: 3.45
D26: 3.45

Sheet DESKSM2
A1: DESKRIPSI KOMPETENSI | D1: =HLOOKUP(MENU!$I$8&" "&$B$2,DATABASE!$X$2:$CK$92,DATABASE!W3,FALSE) -> Pendidikan Agama dan Budi Pekerti | E1: =HLOOKUP(MENU!$I$8&" "&$B$2,DATABASE!$X$2:$CK$92,DATABASE!W6,FALSE) -> Pendidikan Pancasila dan Kewarganegaraan | F1: =HLOOKUP(MENU!$I$8&" "&$B$2,DATABASE!$X$2:$CK$92,DATABASE!W9,FALSE) -> Bahasa Indonesia | G1: =HLOOKUP(MENU!$I$8&" "&$B$2,DATABASE!$X$2:$CK$92,DATABASE!W12,FALSE) -> Matematika | H1: =HLOOKUP(MENU!$I$8&" "&$B$2,DATABASE!$X$2:$CK$92,DATABASE!W15,FALSE) -> Sejarah Indonesia | I1: =HLOOKUP(MENU!$I$8&" "&$B$2,DATABASE!$X$2:$CK$92,DATABASE!W18,FALSE) -> Bahasa Inggris | J1: =HLOOKUP(MENU!$I$8&" "&$B$2,DATABASE!$X$2:$CK$92,DATABASE!W21,FALSE) -> Seni Budaya | K1: =HLOOKUP(MENU!$I$8&" "&$B$2,DATABASE!$X$2:$CK$92,DATABASE!W24,FALSE) -> Pendidikan Jasmani, Olah Raga & Kesehatan | L1: =HLOOKUP(MENU!$I$8&" "&$B$2,DATABASE!$X$2:$CK$92,DATABASE!W27,FALSE) -> Bahasa dan Sastra Sunda | M1: =HLOOKUP(MENU!$I$8&" "&$B$2,DATABASE!$X$2:$CK$92,DATABASE!W30,FALSE) -> PLH | N1: =HLOOKUP(MENU!$I$8&" "&$B$2,DATABASE!$X$2:$CK$92,DATABASE!W33,FALSE) -> Simulasi dan Komunikasi Digital | O1: =HLOOKUP(MENU!$I$8&" "&$B$2,DATABASE!$X$2:$CK$92,DATABASE!W36,FALSE) -> Fisika | P1: =HLOOKUP(MENU!$I$8&" "&$B$2,DATABASE!$X$2:$CK$92,DATABASE!W39,FALSE) -> Kimia | Q1: =HLOOKUP(MENU!$I$8&" "&$B$2,DATABASE!$X$2:$CK$92,DATABASE!W42,FALSE) -> Sistem Komputer | R1: =HLOOKUP(MENU!$I$8&" "&$B$2,DATABASE!$X$2:$CK$92,DATABASE!W45,FALSE) -> Komputer dan Jaringan Dasar | S1: =HLOOKUP(MENU!$I$8&" "&$B$2,DATABASE!$X$2:$CK$92,DATABASE!W48,FALSE) -> Pemrograman Dasar | T1: =HLOOKUP(MENU!$I$8&" "&$B$2,DATABASE!$X$2:$CK$92,DATABASE!W51,FALSE) -> Dasar Desain Grafis | U1: =HLOOKUP(MENU!$I$8&" "&$B$2,DATABASE!$X$2:$CK$92,DATABASE!W54,FALSE) -> - | V1: =HLOOKUP(MENU!$I$8&" "&$B$2,DATABASE!$X$2:$CK$92,DATABASE!W57,FALSE) -> - | W1: =HLOOKUP(MENU!$I$8&" "&$B$2,DATABASE!$X$2:$CK$92,DATABASE!W60,FALSE) -> - | X1: =HLOOKUP(MENU!$I$8&" "&$B$2,DATABASE!$X$2:$CK$92,DATABASE!W63,FALSE) -> - | Y1: =HLOOKUP(MENU!$I$8&" "&$B$2,DATABASE!$X$2:$CK$92,DATABASE!W66,FALSE) -> - | Z1: =HLOOKUP(MENU!$I$8&" "&$B$2,DATABASE!$X$2:$CK$92,DATABASE!W69,FALSE) -> - | AA1: =HLOOKUP(MENU!$I$8&" "&$B$2,DATABASE!$X$2:$CK$92,DATABASE!W72,FALSE) -> - | AB1: =HLOOKUP(MENU!$I$8&" "&$B$2,DATABASE!$X$2:$CK$92,DATABASE!W75,FALSE) -> - | AC1: =HLOOKUP(MENU!$I$8&" "&$B$2,DATABASE!$X$2:$CK$92,DATABASE!W78,FALSE) -> - | AD1: =HLOOKUP(MENU!$I$8&" "&$B$2,DATABASE!$X$2:$CK$92,DATABASE!W81,FALSE) -> - | AE1: =HLOOKUP(MENU!$I$8&" "&$B$2,DATABASE!$X$2:$CK$92,DATABASE!W84,FALSE) -> - | AF1: =HLOOKUP(MENU!$I$8&" "&$B$2,DATABASE!$X$2:$CK$92,DATABASE!W87,FALSE) -> - | AG1: =HLOOKUP(MENU!$I$8&" "&$B$2,DATABASE!$X$2:$CK$92,DATABASE!W90,FALSE) -> -
A2: Semester : | B2: 2 (dua) | C2: KEL. MAPEL | D2: A | E2: A | F2: A | G2: A | H2: A | I2: A | J2: B | K2: B | L2: B | M2: C1 | N2: C1 | O2: C1 | P2: C2 | Q2: C2 | R2: C2 | S2: C2 | T2: C2 | U2: C2 | V2: C3 | W2: C3 | X2: C3 | Y2: C3 | Z2: C3 | AA2: C3 | AB2: C3 | AC2: C3 | AD2: C3 | AE2: MULOK | AF2: MULOK | AG2: MULOK
C3: 1 | D3: 2 | E3: 3 | F3: 4 | G3: 5 | H3: 6 | I3: 7 | J3: 8 | K3: 9 | L3: 10 | M3: 11 | N3: 12 | O3: 13 | P3: 14 | Q3: 15 | R3: 16 | S3: 17 | T3: 18 | U3: 19 | V3: 20 | W3: 21 | X3: 22 | Y3: 23 | Z3: 24 | AA3: 25 | AB3: 26 | AC3: 27 | AD3: 28 | AE3: 29 | AF3: 30 | AG3: 31
C4: PREDIKAT | D4: DESKRIPSI | E4: DESKRIPSI | F4: DESKRIPSI | G4: DESKRIPSI | H4: DESKRIPSI | I4: DESKRIPSI | J4: DESKRIPSI | K4: DESKRIPSI | L4: DESKRIPSI | M4: DESKRIPSI | N4: DESKRIPSI | O4: DESKRIPSI | P4: DESKRIPSI | Q4: DESKRIPSI | R4: DESKRIPSI | S4: DESKRIPSI | T4: DESKRIPSI | U4: DESKRIPSI | V4: DESKRIPSI | W4: DESKRIPSI | X4: DESKRIPSI | Y4: DESKRIPSI | Z4: DESKRIPSI | AA4: DESKRIPSI | AB4: DESKRIPSI | AC4: DESKRIPSI | AD4: DESKRIPSI | AE4: DESKRIPSI | AF4: DESKRIPSI | AG4: DESKRIPSI
B5: DESKRIPSI NILAI PENGETAHUAN | C5: A | D5: Sangat baik dalam memahami, menerapkan, menganalisis dan mengevaluasi semua kompetensi dasar. | E5: Pendidikan Pancasila dan Kewarganegaraan | F5: Bahasa Indonesia | G5: Matematika | H5: Sejarah Indonesia | I5: Bahasa Inggris | J5: Seni Budaya | K5: Prakarya dan Kewirausahaan | L5: Pendidikan Jasmani, Olah Raga & Kesehatan | M5: Fisika | N5: Pemrograman Dasar | O5: Sistem Komputer | P5: Perakitan Komputer | Q5: Simulasi Digital | R5: Sistem Operasi | S5: Jaringan Dasar | T5: Pemprograman Web | U5: C2 | V5: C3 | W5: C3 | X5: C3 | Y5: C3 | Z5: C3 | AA5: C3 | AB5: C3 | AC5: C3 | AD5: C3 | AE5: Bahasa dan Sastra Sunda | AF5: MULOK | AG5: MULOK
C6: B | D6: Baik dalam memahami, menerapkan, menganalisis dan mengevaluasi sebagian besar kompetensi dasar. | E6: Pendidikan Pancasila dan Kewarganegaraan | F6: Bahasa Indonesia | G6: Matematika | H6: Sejarah Indonesia | I6: Bahasa Inggris | J6: Seni Budaya | K6: Prakarya dan Kewirausahaan | L6: Pendidikan Jasmani, Olah Raga & Kesehatan | M6: Fisika | N6: Pemrograman Dasar | O6: Sistem Komputer | P6: Perakitan Komputer | Q6: Simulasi Digital | R6: Sistem Operasi | S6: Jaringan Dasar | T6: Pemprograman Web | U6: C2 | V6: C3 | W6: C3 | X6: C3 | Y6: C3 | Z6: C3 | AA6: C3 | AB6: C3 | AC6: C3 | AD6: C3 | AE6: Bahasa dan Sastra Sunda | AF6: MULOK | AG6: MULOK
C7: C | D7: Cukup baik dalam memahami, mengetahui sebagian kompetensi dasar, tetapi kurang bisa menerapkan, menganalisis dan mengevaluasinya. | E7: Pendidikan Pancasila dan Kewarganegaraan | F7: Bahasa Indonesia | G7: Matematika | H7: Sejarah Indonesia | I7: Bahasa Inggris | J7: Seni Budaya | K7: Prakarya dan Kewirausahaan | L7: Pendidikan Jasmani, Olah Raga & Kesehatan | M7: Fisika | N7: Pemrograman Dasar | O7: Sistem Komputer | P7: Perakitan Komputer | Q7: Simulasi Digital | R7: Sistem Operasi | S7: Jaringan Dasar | T7: Pemprograman Web | U7: C2 | V7: C3 | W7: C3 | X7: C3 | Y7: C3 | Z7: C3 | AA7: C3 | AB7: C3 | AC7: C3 | AD7: C3 | AE7: Bahasa dan Sastra Sunda | AF7: MULOK | AG7: MULOK
C8: D | D8: Kurang, hanya dapat memahami, menerapkan, menganalisis, dan mengeveluasi sebagian kecil kompetensi dasar. | E8: Pendidikan Pancasila dan Kewarganegaraan | F8: Bahasa Indonesia | G8: Matematika | H8: Sejarah Indonesia | I8: Bahasa Inggris | J8: Seni Budaya | K8: Prakarya dan Kewirausahaan | L8: Pendidikan Jasmani, Olah Raga & Kesehatan | M8: Fisika | N8: Pemrograman Dasar | O8: Sistem Komputer | P8: Perakitan Komputer | Q8: Simulasi Digital | R8: Sistem Operasi | S8: Jaringan Dasar | T8: Pemprograman Web | U8: C2 | V8: C3 | W8: C3 | X8: C3 | Y8: C3 | Z8: C3 | AA8: C3 | AB8: C3 | AC8: C3 | AD8: C3 | AE8: Bahasa dan Sastra Sunda | AF8: MULOK | AG8: MULOK
B10: DESKRIPSI NILAI KETERAMPILAN | C10: A | D10: Sangat baik dan aktif bertanya, mencoba, menalar dan kreatif dalam menyelesaikan tugas praktek. | E10: Pendidikan Pancasila dan Kewarganegaraan | F10: Bahasa Indonesia | G10: Matematika | H10: Sejarah Indonesia | I10: Bahasa Inggris | J10: Seni Budaya | K10: Prakarya dan Kewirausahaan | L10: Pendidikan Jasmani, Olah Raga & Kesehatan | M10: Fisika | N10: Pemrograman Dasar | O10: Sistem Komputer | P10: Perakitan Komputer | Q10: Simulasi Digital | R10: Sistem Operasi | S10: Jaringan Dasar | T10: Pemprograman Web | U10: C2 | V10: C3 | W10: C3 | X10: C3 | Y10: C3 | Z10: C3 | AA10: C3 | AE10: Bahasa dan Sastra Sunda | AF10: MULOK | AG10: MULOK
C11: B | D11: Baik dan aktif bertanya, mencoba, menalar dan kreatif dalam menyelesaikan sebagian besar tugas praktek. | E11: Pendidikan Pancasila dan Kewarganegaraan | F11: Bahasa Indonesia | G11: Matematika | H11: Sejarah Indonesia | I11: Bahasa Inggris | J11: Seni Budaya | K11: Prakarya dan Kewirausahaan | L11: Pendidikan Jasmani, Olah Raga & Kesehatan | M11: Fisika | N11: Pemrograman Dasar | O11: Sistem Komputer | P11: Perakitan Komputer | Q11: Simulasi Digital | R11: Sistem Operasi | S11: Jaringan Dasar | T11: Pemprograman Web | U11: C2 | V11: C3 | W11: C3 | X11: C3 | Y11: C3 | Z11: C3 | AA11: C3 | AE11: Bahasa dan Sastra Sunda | AF11: MULOK | AG11: MULOK
C12: C | D12: Cukup aktif bertanya, mencoba, menalar dan kreatif dalam menyelesaikan tugas praktek | E12: Pendidikan Pancasila dan Kewarganegaraan | F12: Bahasa Indonesia | G12: Matematika | H12: Sejarah Indonesia | I12: Bahasa Inggris | J12: Seni Budaya | K12: Prakarya dan Kewirausahaan | L12: Pendidikan Jasmani, Olah Raga & Kesehatan | M12: Fisika | N12: Pemrograman Dasar | O12: Sistem Komputer | P12: Perakitan Komputer | Q12: Simulasi Digital | R12: Sistem Operasi | S12: Jaringan Dasar | T12: Pemprograman Web | U12: C2 | V12: C3 | W12: C3 | X12: C3 | Y12: C3 | Z12: C3 | AA12: C3 | AE12: Bahasa dan Sastra Sunda | AF12: MULOK | AG12: MULOK
C13: D | D13: Kurang aktif bertanya, mencoba, menalar dan kreatif dalam menyelesaikan tugas praktek. | E13: Pendidikan Pancasila dan Kewarganegaraan | F13: Bahasa Indonesia | G13: Matematika | H13: Sejarah Indonesia | I13: Bahasa Inggris | J13: Seni Budaya | K13: Prakarya dan Kewirausahaan | L13: Pendidikan Jasmani, Olah Raga & Kesehatan | M13: Fisika | N13: Pemrograman Dasar | O13: Sistem Komputer | P13: Perakitan Komputer | Q13: Simulasi Digital | R13: Sistem Operasi | S13: Jaringan Dasar | T13: Pemprograman Web | U13: C2 | V13: C3 | W13: C3 | X13: C3 | Y13: C3 | Z13: C3 | AA13: C3 | AE13: Bahasa dan Sastra Sunda | AF13: MULOK | AG13: MULOK
D15: 3.59
D16: 3.59
D17: 3.5
D18: 3.48
D19: 3.54
D20: 3.39
D21: 3.45
D22: 3.45
D23: 3.29
D24: 3.45
D25: 3.45
D26: 3.45

Sheet DESKSM3
A1: DESKRIPSI KOMPETENSI | D1: =HLOOKUP(MENU!$I$8&" "&$B$2,DATABASE!$X$2:$CK$92,DATABASE!W3,FALSE) -> Pendidikan Agama dan Budi Pekerti | E1: =HLOOKUP(MENU!$I$8&" "&$B$2,DATABASE!$X$2:$CK$92,DATABASE!W6,FALSE) -> Pendidikan Pancasila dan Kewarganegaraan | F1: =HLOOKUP(MENU!$I$8&" "&$B$2,DATABASE!$X$2:$CK$92,DATABASE!W9,FALSE) -> Bahasa Indonesia | G1: =HLOOKUP(MENU!$I$8&" "&$B$2,DATABASE!$X$2:$CK$92,DATABASE!W12,FALSE) -> Matematika | H1: =HLOOKUP(MENU!$I$8&" "&$B$2,DATABASE!$X$2:$CK$92,DATABASE!W15,FALSE) -> - | I1: =HLOOKUP(MENU!$I$8&" "&$B$2,DATABASE!$X$2:$CK$92,DATABASE!W18,FALSE) -> Bahasa Inggris | J1: =HLOOKUP(MENU!$I$8&" "&$B$2,DATABASE!$X$2:$CK$92,DATABASE!W21,FALSE) -> - | K1: =HLOOKUP(MENU!$I$8&" "&$B$2,DATABASE!$X$2:$CK$92,DATABASE!W24,FALSE) -> Pendidikan Jasmani, Olah Raga & Kesehatan | L1: =HLOOKUP(MENU!$I$8&" "&$B$2,DATABASE!$X$2:$CK$92,DATABASE!W27,FALSE) -> - | M1: =HLOOKUP(MENU!$I$8&" "&$B$2,DATABASE!$X$2:$CK$92,DATABASE!W30,FALSE) -> Bahasa Jepang | N1: =HLOOKUP(MENU!$I$8&" "&$B$2,DATABASE!$X$2:$CK$92,DATABASE!W33,FALSE) -> - | O1: =HLOOKUP(MENU!$I$8&" "&$B$2,DATABASE!$X$2:$CK$92,DATABASE!W36,FALSE) -> - | P1: =HLOOKUP(MENU!$I$8&" "&$B$2,DATABASE!$X$2:$CK$92,DATABASE!W39,FALSE) -> - | Q1: =HLOOKUP(MENU!$I$8&" "&$B$2,DATABASE!$X$2:$CK$92,DATABASE!W42,FALSE) -> - | R1: =HLOOKUP(MENU!$I$8&" "&$B$2,DATABASE!$X$2:$CK$92,DATABASE!W45,FALSE) -> - | S1: =HLOOKUP(MENU!$I$8&" "&$B$2,DATABASE!$X$2:$CK$92,DATABASE!W48,FALSE) -> - | T1: =HLOOKUP(MENU!$I$8&" "&$B$2,DATABASE!$X$2:$CK$92,DATABASE!W51,FALSE) -> - | U1: =HLOOKUP(MENU!$I$8&" "&$B$2,DATABASE!$X$2:$CK$92,DATABASE!W54,FALSE) -> Administrasi Infrastruktur Jaringan | V1: =HLOOKUP(MENU!$I$8&" "&$B$2,DATABASE!$X$2:$CK$92,DATABASE!W57,FALSE) -> Administrasi Sistem Jaringan | W1: =HLOOKUP(MENU!$I$8&" "&$B$2,DATABASE!$X$2:$CK$92,DATABASE!W60,FALSE) -> Teknologi Layanan Jaringan | X1: =HLOOKUP(MENU!$I$8&" "&$B$2,DATABASE!$X$2:$CK$92,DATABASE!W63,FALSE) -> - | Y1: =HLOOKUP(MENU!$I$8&" "&$B$2,DATABASE!$X$2:$CK$92,DATABASE!W66,FALSE) -> - | Z1: =HLOOKUP(MENU!$I$8&" "&$B$2,DATABASE!$X$2:$CK$92,DATABASE!W69,FALSE) -> Produk Kreatif dan Kewirausahaan | AA1: =HLOOKUP(MENU!$I$8&" "&$B$2,DATABASE!$X$2:$CK$92,DATABASE!W72,FALSE) -> - | AB1: =HLOOKUP(MENU!$I$8&" "&$B$2,DATABASE!$X$2:$CK$92,DATABASE!W75,FALSE) -> - | AC1: =HLOOKUP(MENU!$I$8&" "&$B$2,DATABASE!$X$2:$CK$92,DATABASE!W78,FALSE) -> - | AD1: =HLOOKUP(MENU!$I$8&" "&$B$2,DATABASE!$X$2:$CK$92,DATABASE!W81,FALSE) -> - | AE1: =HLOOKUP(MENU!$I$8&" "&$B$2,DATABASE!$X$2:$CK$92,DATABASE!W84,FALSE) -> - | AF1: =HLOOKUP(MENU!$I$8&" "&$B$2,DATABASE!$X$2:$CK$92,DATABASE!W87,FALSE) -> - | AG1: =HLOOKUP(MENU!$I$8&" "&$B$2,DATABASE!$X$2:$CK$92,DATABASE!W90,FALSE) -> -
A2: Semester : | B2: 3 (tiga) | C2: KEL. MAPEL | D2: A | E2: A | F2: A | G2: A | H2: A | I2: A | J2: B | K2: B | L2: B | M2: C1 | N2: C1 | O2: C1 | P2: C2 | Q2: C2 | R2: C2 | S2: C2 | T2: C2 | U2: C2 | V2: C3 | W2: C3 | X2: C3 | Y2: C3 | Z2: C3 | AA2: C3 | AB2: C3 | AC2: C3 | AD2: C3 | AE2: MULOK | AF2: MULOK | AG2: MULOK
C3: 1 | D3: 2 | E3: 3 | F3: 4 | G3: 5 | H3: 6 | I3: 7 | J3: 8 | K3: 9 | L3: 10 | M3: 11 | N3: 12 | O3: 13 | P3: 14 | Q3: 15 | R3: 16 | S3: 17 | T3: 18 | U3: 19 | V3: 20 | W3: 21 | X3: 22 | Y3: 23 | Z3: 24 | AA3: 25 | AB3: 26 | AC3: 27 | AD3: 28 | AE3: 29 | AF3: 30 | AG3: 31
C4: PREDIKAT | D4: DESKRIPSI | E4: DESKRIPSI | F4: DESKRIPSI | G4: DESKRIPSI | H4: DESKRIPSI | I4: DESKRIPSI | J4: DESKRIPSI | K4: DESKRIPSI | L4: DESKRIPSI | M4: DESKRIPSI | N4: DESKRIPSI | O4: DESKRIPSI | P4: DESKRIPSI | Q4: DESKRIPSI | R4: DESKRIPSI | S4: DESKRIPSI | T4: DESKRIPSI | U4: DESKRIPSI | V4: DESKRIPSI | W4: DESKRIPSI | X4: DESKRIPSI | Y4: DESKRIPSI | Z4: DESKRIPSI | AA4: DESKRIPSI | AB4: DESKRIPSI | AC4: DESKRIPSI | AD4: DESKRIPSI | AE4: DESKRIPSI | AF4: DESKRIPSI | AG4: DESKRIPSI
B5: DESKRIPSI NILAI PENGETAHUAN | C5: A | D5: Sangat baik dalam memahami, menerapkan, menganalisis dan mengevaluasi semua kompetensi dasar. | E5: Pendidikan Pancasila dan Kewarganegaraan | F5: Bahasa Indonesia | G5: Matematika | H5: Sejarah Indonesia | I5: Bahasa Inggris | J5: Seni Budaya | K5: Prakarya dan Kewirausahaan | L5: Pendidikan Jasmani, Olah Raga & Kesehatan | M5: Fisika | N5: Pemrograman Dasar | O5: Sistem Komputer | P5: Perakitan Komputer | Q5: Simulasi Digital | R5: Sistem Operasi | S5: Jaringan Dasar | T5: Pemprograman Web | U5: C2 | V5: C3 | W5: C3 | X5: C3 | Y5: C3 | Z5: C3 | AA5: C3 | AB5: C3 | AC5: C3 | AD5: C3 | AE5: Bahasa dan Sastra Sunda | AF5: MULOK | AG5: MULOK
C6: B | D6: Baik dalam memahami, menerapkan, menganalisis dan mengevaluasi sebagian besar kompetensi dasar. | E6: Pendidikan Pancasila dan Kewarganegaraan | F6: Bahasa Indonesia | G6: Matematika | H6: Sejarah Indonesia | I6: Bahasa Inggris | J6: Seni Budaya | K6: Prakarya dan Kewirausahaan | L6: Pendidikan Jasmani, Olah Raga & Kesehatan | M6: Fisika | N6: Pemrograman Dasar | O6: Sistem Komputer | P6: Perakitan Komputer | Q6: Simulasi Digital | R6: Sistem Operasi | S6: Jaringan Dasar | T6: Pemprograman Web | U6: C2 | V6: C3 | W6: C3 | X6: C3 | Y6: C3 | Z6: C3 | AA6: C3 | AB6: C3 | AC6: C3 | AD6: C3 | AE6: Bahasa dan Sastra Sunda | AF6: MULOK | AG6: MULOK
C7: C | D7: Cukup baik dalam memahami, mengetahui sebagian kompetensi dasar, tetapi kurang bisa menerapkan, menganalisis dan mengevaluasinya. | E7: Pendidikan Pancasila dan Kewarganegaraan | F7: Bahasa Indonesia | G7: Matematika | H7: Sejarah Indonesia | I7: Bahasa Inggris | J7: Seni Budaya | K7: Prakarya dan Kewirausahaan | L7: Pendidikan Jasmani, Olah Raga & Kesehatan | M7: Fisika | N7: Pemrograman Dasar | O7: Sistem Komputer | P7: Perakitan Komputer | Q7: Simulasi Digital | R7: Sistem Operasi | S7: Jaringan Dasar | T7: Pemprograman Web | U7: C2 | V7: C3 | W7: C3 | X7: C3 | Y7: C3 | Z7: C3 | AA7: C3 | AB7: C3 | AC7: C3 | AD7: C3 | AE7: Bahasa dan Sastra Sunda | AF7: MULOK | AG7: MULOK
C8: D | D8: Kurang, hanya dapat memahami, menerapkan, menganalisis, dan mengeveluasi sebagian kecil kompetensi dasar. | E8: Pendidikan Pancasila dan Kewarganegaraan | F8: Bahasa Indonesia | G8: Matematika | H8: Sejarah Indonesia | I8: Bahasa Inggris | J8: Seni Budaya | K8: Prakarya dan Kewirausahaan | L8: Pendidikan Jasmani, Olah Raga & Kesehatan | M8: Fisika | N8: Pemrograman Dasar | O8: Sistem Komputer | P8: Perakitan Komputer | Q8: Simulasi Digital | R8: Sistem Operasi | S8: Jaringan Dasar | T8: Pemprograman Web | U8: C2 | V8: C3 | W8: C3 | X8: C3 | Y8: C3 | Z8: C3 | AA8: C3 | AB8: C3 | AC8: C3 | AD8: C3 | AE8: Bahasa dan Sastra Sunda | AF8: MULOK | AG8: MULOK
B10: DESKRIPSI NILAI KETERAMPILAN | C10: A | D10: Sangat baik dan aktif bertanya, mencoba, menalar dan kreatif dalam menyelesaikan tugas praktek. | E10: Pendidikan Pancasila dan Kewarganegaraan | F10: Bahasa Indonesia | G10: Matematika | H10: Sejarah Indonesia | I10: Bahasa Inggris | J10: Seni Budaya | K10: Prakarya dan Kewirausahaan | L10: Pendidikan Jasmani, Olah Raga & Kesehatan | M10: Fisika | N10: Pemrograman Dasar | O10: Sistem Komputer | P10: Perakitan Komputer | Q10: Simulasi Digital | R10: Sistem Operasi | S10: Jaringan Dasar | T10: Pemprograman Web | U10: C2 | V10: C3 | W10: C3 | X10: C3 | Y10: C3 | Z10: C3 | AA10: C3 | AE10: Bahasa dan Sastra Sunda | AF10: MULOK | AG10: MULOK
C11: B | D11: Baik dan aktif bertanya, mencoba, menalar dan kreatif dalam menyelesaikan sebagian besar tugas praktek. | E11: Pendidikan Pancasila dan Kewarganegaraan | F11: Bahasa Indonesia | G11: Matematika | H11: Sejarah Indonesia | I11: Bahasa Inggris | J11: Seni Budaya | K11: Prakarya dan Kewirausahaan | L11: Pendidikan Jasmani, Olah Raga & Kesehatan | M11: Fisika | N11: Pemrograman Dasar | O11: Sistem Komputer | P11: Perakitan Komputer | Q11: Simulasi Digital | R11: Sistem Operasi | S11: Jaringan Dasar | T11: Pemprograman Web | U11: C2 | V11: C3 | W11: C3 | X11: C3 | Y11: C3 | Z11: C3 | AA11: C3 | AE11: Bahasa dan Sastra Sunda | AF11: MULOK | AG11: MULOK
C12: C | D12: Cukup aktif bertanya, mencoba, menalar dan kreatif dalam menyelesaikan tugas praktek | E12: Pendidikan Pancasila dan Kewarganegaraan | F12: Bahasa Indonesia | G12: Matematika | H12: Sejarah Indonesia | I12: Bahasa Inggris | J12: Seni Budaya | K12: Prakarya dan Kewirausahaan | L12: Pendidikan Jasmani, Olah Raga & Kesehatan | M12: Fisika | N12: Pemrograman Dasar | O12: Sistem Komputer | P12: Perakitan Komputer | Q12: Simulasi Digital | R12: Sistem Operasi | S12: Jaringan Dasar | T12: Pemprograman Web | U12: C2 | V12: C3 | W12: C3 | X12: C3 | Y12: C3 | Z12: C3 | AA12: C3 | AE12: Bahasa dan Sastra Sunda | AF12: MULOK | AG12: MULOK
C13: D | D13: Kurang aktif bertanya, mencoba, menalar dan kreatif dalam menyelesaikan tugas praktek. | E13: Pendidikan Pancasila dan Kewarganegaraan | F13: Bahasa Indonesia | G13: Matematika | H13: Sejarah Indonesia | I13: Bahasa Inggris | J13: Seni Budaya | K13: Prakarya dan Kewirausahaan | L13: Pendidikan Jasmani, Olah Raga & Kesehatan | M13: Fisika | N13: Pemrograman Dasar | O13: Sistem Komputer | P13: Perakitan Komputer | Q13: Simulasi Digital | R13: Sistem Operasi | S13: Jaringan Dasar | T13: Pemprograman Web | U13: C2 | V13: C3 | W13: C3 | X13: C3 | Y13: C3 | Z13: C3 | AA13: C3 | AE13: Bahasa dan Sastra Sunda | AF13: MULOK | AG13: MULOK
D15: 3.59
D16: 3.59
D17: 3.5
D18: 3.48
D19: 3.54
D20: 3.39
D21: 3.45
D22: 3.45
D23: 3.29
D24: 3.45
D25: 3.45
D26: 3.45

Sheet DESKSM4
A1: DESKRIPSI KOMPETENSI | D1: =HLOOKUP(MENU!$I$8&" "&$B$2,DATABASE!$X$2:$CK$92,DATABASE!W3,FALSE) -> Pendidikan Agama dan Budi Pekerti | E1: =HLOOKUP(MENU!$I$8&" "&$B$2,DATABASE!$X$2:$CK$92,DATABASE!W6,FALSE) -> Pendidikan Pancasila dan Kewarganegaraan | F1: =HLOOKUP(MENU!$I$8&" "&$B$2,DATABASE!$X$2:$CK$92,DATABASE!W9,FALSE) -> Bahasa Indonesia | G1: =HLOOKUP(MENU!$I$8&" "&$B$2,DATABASE!$X$2:$CK$92,DATABASE!W12,FALSE) -> Matematika | H1: =HLOOKUP(MENU!$I$8&" "&$B$2,DATABASE!$X$2:$CK$92,DATABASE!W15,FALSE) -> - | I1: =HLOOKUP(MENU!$I$8&" "&$B$2,DATABASE!$X$2:$CK$92,DATABASE!W18,FALSE) -> Bahasa Inggris | J1: =HLOOKUP(MENU!$I$8&" "&$B$2,DATABASE!$X$2:$CK$92,DATABASE!W21,FALSE) -> - | K1: =HLOOKUP(MENU!$I$8&" "&$B$2,DATABASE!$X$2:$CK$92,DATABASE!W24,FALSE) -> Pendidikan Jasmani, Olah Raga & Kesehatan | L1: =HLOOKUP(MENU!$I$8&" "&$B$2,DATABASE!$X$2:$CK$92,DATABASE!W27,FALSE) -> - | M1: =HLOOKUP(MENU!$I$8&" "&$B$2,DATABASE!$X$2:$CK$92,DATABASE!W30,FALSE) -> Bahasa Jepang | N1: =HLOOKUP(MENU!$I$8&" "&$B$2,DATABASE!$X$2:$CK$92,DATABASE!W33,FALSE) -> - | O1: =HLOOKUP(MENU!$I$8&" "&$B$2,DATABASE!$X$2:$CK$92,DATABASE!W36,FALSE) -> - | P1: =HLOOKUP(MENU!$I$8&" "&$B$2,DATABASE!$X$2:$CK$92,DATABASE!W39,FALSE) -> - | Q1: =HLOOKUP(MENU!$I$8&" "&$B$2,DATABASE!$X$2:$CK$92,DATABASE!W42,FALSE) -> - | R1: =HLOOKUP(MENU!$I$8&" "&$B$2,DATABASE!$X$2:$CK$92,DATABASE!W45,FALSE) -> - | S1: =HLOOKUP(MENU!$I$8&" "&$B$2,DATABASE!$X$2:$CK$92,DATABASE!W48,FALSE) -> - | T1: =HLOOKUP(MENU!$I$8&" "&$B$2,DATABASE!$X$2:$CK$92,DATABASE!W51,FALSE) -> - | U1: =HLOOKUP(MENU!$I$8&" "&$B$2,DATABASE!$X$2:$CK$92,DATABASE!W54,FALSE) -> Administrasi Infrastruktur Jaringan | V1: =HLOOKUP(MENU!$I$8&" "&$B$2,DATABASE!$X$2:$CK$92,DATABASE!W57,FALSE) -> Administrasi Sistem Jaringan | W1: =HLOOKUP(MENU!$I$8&" "&$B$2,DATABASE!$X$2:$CK$92,DATABASE!W60,FALSE) -> Teknologi Layanan Jaringan | X1: =HLOOKUP(MENU!$I$8&" "&$B$2,DATABASE!$X$2:$CK$92,DATABASE!W63,FALSE) -> - | Y1: =HLOOKUP(MENU!$I$8&" "&$B$2,DATABASE!$X$2:$CK$92,DATABASE!W66,FALSE) -> - | Z1: =HLOOKUP(MENU!$I$8&" "&$B$2,DATABASE!$X$2:$CK$92,DATABASE!W69,FALSE) -> Produk Kreatif dan Kewirausahaan | AA1: =HLOOKUP(MENU!$I$8&" "&$B$2,DATABASE!$X$2:$CK$92,DATABASE!W72,FALSE) -> - | AB1: =HLOOKUP(MENU!$I$8&" "&$B$2,DATABASE!$X$2:$CK$92,DATABASE!W75,FALSE) -> - | AC1: =HLOOKUP(MENU!$I$8&" "&$B$2,DATABASE!$X$2:$CK$92,DATABASE!W78,FALSE) -> - | AD1: =HLOOKUP(MENU!$I$8&" "&$B$2,DATABASE!$X$2:$CK$92,DATABASE!W81,FALSE) -> - | AE1: =HLOOKUP(MENU!$I$8&" "&$B$2,DATABASE!$X$2:$CK$92,DATABASE!W84,FALSE) -> - | AF1: =HLOOKUP(MENU!$I$8&" "&$B$2,DATABASE!$X$2:$CK$92,DATABASE!W87,FALSE) -> - | AG1: =HLOOKUP(MENU!$I$8&" "&$B$2,DATABASE!$X$2:$CK$92,DATABASE!W90,FALSE) -> -
A2: Semester : | B2: 4 (empat) | C2: KEL. MAPEL | D2: A | E2: A | F2: A | G2: A | H2: A | I2: A | J2: B | K2: B | L2: B | M2: C1 | N2: C1 | O2: C1 | P2: C2 | Q2: C2 | R2: C2 | S2: C2 | T2: C2 | U2: C2 | V2: C3 | W2: C3 | X2: C3 | Y2: C3 | Z2: C3 | AA2: C3 | AB2: C3 | AC2: C3 | AD2: C3 | AE2: MULOK | AF2: MULOK | AG2: MULOK
C3: 1 | D3: 2 | E3: 3 | F3: 4 | G3: 5 | H3: 6 | I3: 7 | J3: 8 | K3: 9 | L3: 10 | M3: 11 | N3: 12 | O3: 13 | P3: 14 | Q3: 15 | R3: 16 | S3: 17 | T3: 18 | U3: 19 | V3: 20 | W3: 21 | X3: 22 | Y3: 23 | Z3: 24 | AA3: 25 | AB3: 26 | AC3: 27 | AD3: 28 | AE3: 29 | AF3: 30 | AG3: 31
C4: PREDIKAT | D4: DESKRIPSI | E4: DESKRIPSI | F4: DESKRIPSI | G4: DESKRIPSI | H4: DESKRIPSI | I4: DESKRIPSI | J4: DESKRIPSI | K4: DESKRIPSI | L4: DESKRIPSI | M4: DESKRIPSI | N4: DESKRIPSI | O4: DESKRIPSI | P4: DESKRIPSI | Q4: DESKRIPSI | R4: DESKRIPSI | S4: DESKRIPSI | T4: DESKRIPSI | U4: DESKRIPSI | V4: DESKRIPSI | W4: DESKRIPSI | X4: DESKRIPSI | Y4: DESKRIPSI | Z4: DESKRIPSI | AA4: DESKRIPSI | AB4: DESKRIPSI | AC4: DESKRIPSI | AD4: DESKRIPSI | AE4: DESKRIPSI | AF4: DESKRIPSI | AG4: DESKRIPSI
B5: DESKRIPSI NILAI PENGETAHUAN | C5: A | D5: Sangat baik dalam memahami, menerapkan, menganalisis dan mengevaluasi semua kompetensi dasar. | E5: Pendidikan Pancasila dan Kewarganegaraan | F5: Bahasa Indonesia | G5: Matematika | H5: Sejarah Indonesia | I5: Bahasa Inggris | J5: Seni Budaya | K5: Prakarya dan Kewirausahaan | L5: Pendidikan Jasmani, Olah Raga & Kesehatan | M5: Fisika | N5: Pemrograman Dasar | O5: Sistem Komputer | P5: Perakitan Komputer | Q5: Simulasi Digital | R5: Sistem Operasi | S5: Jaringan Dasar | T5: Pemprograman Web | U5: C2 | V5: C3 | W5: C3 | X5: C3 | Y5: C3 | Z5: C3 | AA5: C3 | AB5: C3 | AC5: C3 | AD5: C3 | AE5: Bahasa dan Sastra Sunda | AF5: MULOK | AG5: MULOK
C6: B | D6: Baik dalam memahami, menerapkan, menganalisis dan mengevaluasi sebagian besar kompetensi dasar. | E6: Pendidikan Pancasila dan Kewarganegaraan | F6: Bahasa Indonesia | G6: Matematika | H6: Sejarah Indonesia | I6: Bahasa Inggris | J6: Seni Budaya | K6: Prakarya dan Kewirausahaan | L6: Pendidikan Jasmani, Olah Raga & Kesehatan | M6: Fisika | N6: Pemrograman Dasar | O6: Sistem Komputer | P6: Perakitan Komputer | Q6: Simulasi Digital | R6: Sistem Operasi | S6: Jaringan Dasar | T6: Pemprograman Web | U6: C2 | V6: C3 | W6: C3 | X6: C3 | Y6: C3 | Z6: C3 | AA6: C3 | AB6: C3 | AC6: C3 | AD6: C3 | AE6: Bahasa dan Sastra Sunda | AF6: MULOK | AG6: MULOK
C7: C | D7: Cukup baik dalam memahami, mengetahui sebagian kompetensi dasar, tetapi kurang bisa menerapkan, menganalisis dan mengevaluasinya. | E7: Pendidikan Pancasila dan Kewarganegaraan | F7: Bahasa Indonesia | G7: Matematika | H7: Sejarah Indonesia | I7: Bahasa Inggris | J7: Seni Budaya | K7: Prakarya dan Kewirausahaan | L7: Pendidikan Jasmani, Olah Raga & Kesehatan | M7: Fisika | N7: Pemrograman Dasar | O7: Sistem Komputer | P7: Perakitan Komputer | Q7: Simulasi Digital | R7: Sistem Operasi | S7: Jaringan Dasar | T7: Pemprograman Web | U7: C2 | V7: C3 | W7: C3 | X7: C3 | Y7: C3 | Z7: C3 | AA7: C3 | AB7: C3 | AC7: C3 | AD7: C3 | AE7: Bahasa dan Sastra Sunda | AF7: MULOK | AG7: MULOK
C8: D | D8: Kurang, hanya dapat memahami, menerapkan, menganalisis, dan mengeveluasi sebagian kecil kompetensi dasar. | E8: Pendidikan Pancasila dan Kewarganegaraan | F8: Bahasa Indonesia | G8: Matematika | H8: Sejarah Indonesia | I8: Bahasa Inggris | J8: Seni Budaya | K8: Prakarya dan Kewirausahaan | L8: Pendidikan Jasmani, Olah Raga & Kesehatan | M8: Fisika | N8: Pemrograman Dasar | O8: Sistem Komputer | P8: Perakitan Komputer | Q8: Simulasi Digital | R8: Sistem Operasi | S8: Jaringan Dasar | T8: Pemprograman Web | U8: C2 | V8: C3 | W8: C3 | X8: C3 | Y8: C3 | Z8: C3 | AA8: C3 | AB8: C3 | AC8: C3 | AD8: C3 | AE8: Bahasa dan Sastra Sunda | AF8: MULOK | AG8: MULOK
B10: DESKRIPSI NILAI KETERAMPILAN | C10: A | D10: Sangat baik dan aktif bertanya, mencoba, menalar dan kreatif dalam menyelesaikan tugas praktek. | E10: Pendidikan Pancasila dan Kewarganegaraan | F10: Bahasa Indonesia | G10: Matematika | H10: Sejarah Indonesia | I10: Bahasa Inggris | J10: Seni Budaya | K10: Prakarya dan Kewirausahaan | L10: Pendidikan Jasmani, Olah Raga & Kesehatan | M10: Fisika | N10: Pemrograman Dasar | O10: Sistem Komputer | P10: Perakitan Komputer | Q10: Simulasi Digital | R10: Sistem Operasi | S10: Jaringan Dasar | T10: Pemprograman Web | U10: C2 | V10: C3 | W10: C3 | X10: C3 | Y10: C3 | Z10: C3 | AA10: C3 | AE10: Bahasa dan Sastra Sunda | AF10: MULOK | AG10: MULOK
C11: B | D11: Baik dan aktif bertanya, mencoba, menalar dan kreatif dalam menyelesaikan sebagian besar tugas praktek. | E11: Pendidikan Pancasila dan Kewarganegaraan | F11: Bahasa Indonesia | G11: Matematika | H11: Sejarah Indonesia | I11: Bahasa Inggris | J11: Seni Budaya | K11: Prakarya dan Kewirausahaan | L11: Pendidikan Jasmani, Olah Raga & Kesehatan | M11: Fisika | N11: Pemrograman Dasar | O11: Sistem Komputer | P11: Perakitan Komputer | Q11: Simulasi Digital | R11: Sistem Operasi | S11: Jaringan Dasar | T11: Pemprograman Web | U11: C2 | V11: C3 | W11: C3 | X11: C3 | Y11: C3 | Z11: C3 | AA11: C3 | AE11: Bahasa dan Sastra Sunda | AF11: MULOK | AG11: MULOK
C12: C | D12: Cukup aktif bertanya, mencoba, menalar dan kreatif dalam menyelesaikan tugas praktek | E12: Pendidikan Pancasila dan Kewarganegaraan | F12: Bahasa Indonesia | G12: Matematika | H12: Sejarah Indonesia | I12: Bahasa Inggris | J12: Seni Budaya | K12: Prakarya dan Kewirausahaan | L12: Pendidikan Jasmani, Olah Raga & Kesehatan | M12: Fisika | N12: Pemrograman Dasar | O12: Sistem Komputer | P12: Perakitan Komputer | Q12: Simulasi Digital | R12: Sistem Operasi | S12: Jaringan Dasar | T12: Pemprograman Web | U12: C2 | V12: C3 | W12: C3 | X12: C3 | Y12: C3 | Z12: C3 | AA12: C3 | AE12: Bahasa dan Sastra Sunda | AF12: MULOK | AG12: MULOK
C13: D | D13: Kurang aktif bertanya, mencoba, menalar dan kreatif dalam menyelesaikan tugas praktek. | E13: Pendidikan Pancasila dan Kewarganegaraan | F13: Bahasa Indonesia | G13: Matematika | H13: Sejarah Indonesia | I13: Bahasa Inggris | J13: Seni Budaya | K13: Prakarya dan Kewirausahaan | L13: Pendidikan Jasmani, Olah Raga & Kesehatan | M13: Fisika | N13: Pemrograman Dasar | O13: Sistem Komputer | P13: Perakitan Komputer | Q13: Simulasi Digital | R13: Sistem Operasi | S13: Jaringan Dasar | T13: Pemprograman Web | U13: C2 | V13: C3 | W13: C3 | X13: C3 | Y13: C3 | Z13: C3 | AA13: C3 | AE13: Bahasa dan Sastra Sunda | AF13: MULOK | AG13: MULOK
D15: 3.59
D16: 3.59
D17: 3.5
D18: 3.48
D19: 3.54
D20: 3.39
D21: 3.45
D22: 3.45
D23: 3.29
D24: 3.45
D25: 3.45
D26: 3.45

Sheet DESKSM5
A1: DESKRIPSI KOMPETENSI | D1: =HLOOKUP(MENU!$I$8&" "&$B$2,DATABASE!$X$2:$CK$92,DATABASE!W3,FALSE) -> Pendidikan Agama dan Budi Pekerti | E1: =HLOOKUP(MENU!$I$8&" "&$B$2,DATABASE!$X$2:$CK$92,DATABASE!W6,FALSE) -> Pendidikan Pancasila dan Kewarganegaraan | F1: =HLOOKUP(MENU!$I$8&" "&$B$2,DATABASE!$X$2:$CK$92,DATABASE!W9,FALSE) -> Bahasa Indonesia | G1: =HLOOKUP(MENU!$I$8&" "&$B$2,DATABASE!$X$2:$CK$92,DATABASE!W12,FALSE) -> Matematika | H1: =HLOOKUP(MENU!$I$8&" "&$B$2,DATABASE!$X$2:$CK$92,DATABASE!W15,FALSE) -> - | I1: =HLOOKUP(MENU!$I$8&" "&$B$2,DATABASE!$X$2:$CK$92,DATABASE!W18,FALSE) -> Bahasa Inggris | J1: =HLOOKUP(MENU!$I$8&" "&$B$2,DATABASE!$X$2:$CK$92,DATABASE!W21,FALSE) -> - | K1: =HLOOKUP(MENU!$I$8&" "&$B$2,DATABASE!$X$2:$CK$92,DATABASE!W24,FALSE) -> - | L1: =HLOOKUP(MENU!$I$8&" "&$B$2,DATABASE!$X$2:$CK$92,DATABASE!W27,FALSE) -> - | M1: =HLOOKUP(MENU!$I$8&" "&$B$2,DATABASE!$X$2:$CK$92,DATABASE!W30,FALSE) -> Bahasa Jepang | N1: =HLOOKUP(MENU!$I$8&" "&$B$2,DATABASE!$X$2:$CK$92,DATABASE!W33,FALSE) -> - | O1: =HLOOKUP(MENU!$I$8&" "&$B$2,DATABASE!$X$2:$CK$92,DATABASE!W36,FALSE) -> - | P1: =HLOOKUP(MENU!$I$8&" "&$B$2,DATABASE!$X$2:$CK$92,DATABASE!W39,FALSE) -> - | Q1: =HLOOKUP(MENU!$I$8&" "&$B$2,DATABASE!$X$2:$CK$92,DATABASE!W42,FALSE) -> - | R1: =HLOOKUP(MENU!$I$8&" "&$B$2,DATABASE!$X$2:$CK$92,DATABASE!W45,FALSE) -> - | S1: =HLOOKUP(MENU!$I$8&" "&$B$2,DATABASE!$X$2:$CK$92,DATABASE!W48,FALSE) -> - | T1: =HLOOKUP(MENU!$I$8&" "&$B$2,DATABASE!$X$2:$CK$92,DATABASE!W51,FALSE) -> - | U1: =HLOOKUP(MENU!$I$8&" "&$B$2,DATABASE!$X$2:$CK$92,DATABASE!W54,FALSE) -> Administrasi Infrastruktur Jaringan | V1: =HLOOKUP(MENU!$I$8&" "&$B$2,DATABASE!$X$2:$CK$92,DATABASE!W57,FALSE) -> Administrasi Sistem Jaringan | W1: =HLOOKUP(MENU!$I$8&" "&$B$2,DATABASE!$X$2:$CK$92,DATABASE!W60,FALSE) -> Teknologi Layanan Jaringan | X1: =HLOOKUP(MENU!$I$8&" "&$B$2,DATABASE!$X$2:$CK$92,DATABASE!W63,FALSE) -> - | Y1: =HLOOKUP(MENU!$I$8&" "&$B$2,DATABASE!$X$2:$CK$92,DATABASE!W66,FALSE) -> - | Z1: =HLOOKUP(MENU!$I$8&" "&$B$2,DATABASE!$X$2:$CK$92,DATABASE!W69,FALSE) -> Produk Kreatif dan Kewirausahaan | AA1: =HLOOKUP(MENU!$I$8&" "&$B$2,DATABASE!$X$2:$CK$92,DATABASE!W72,FALSE) -> - | AB1: =HLOOKUP(MENU!$I$8&" "&$B$2,DATABASE!$X$2:$CK$92,DATABASE!W75,FALSE) -> - | AC1: =HLOOKUP(MENU!$I$8&" "&$B$2,DATABASE!$X$2:$CK$92,DATABASE!W78,FALSE) -> - | AD1: =HLOOKUP(MENU!$I$8&" "&$B$2,DATABASE!$X$2:$CK$92,DATABASE!W81,FALSE) -> - | AE1: =HLOOKUP(MENU!$I$8&" "&$B$2,DATABASE!$X$2:$CK$92,DATABASE!W84,FALSE) -> - | AF1: =HLOOKUP(MENU!$I$8&" "&$B$2,DATABASE!$X$2:$CK$92,DATABASE!W87,FALSE) -> - | AG1: =HLOOKUP(MENU!$I$8&" "&$B$2,DATABASE!$X$2:$CK$92,DATABASE!W90,FALSE) -> -
A2: Semester : | B2: 5 (lima) | C2: KEL. MAPEL | D2: A | E2: A | F2: A | G2: A | H2: A | I2: A | J2: B | K2: B | L2: B | M2: C1 | N2: C1 | O2: C1 | P2: C2 | Q2: C2 | R2: C2 | S2: C2 | T2: C2 | U2: C2 | V2: C3 | W2: C3 | X2: C3 | Y2: C3 | Z2: C3 | AA2: C3 | AB2: C3 | AC2: C3 | AD2: C3 | AE2: MULOK | AF2: MULOK | AG2: MULOK
C3: 1 | D3: 2 | E3: 3 | F3: 4 | G3: 5 | H3: 6 | I3: 7 | J3: 8 | K3: 9 | L3: 10 | M3: 11 | N3: 12 | O3: 13 | P3: 14 | Q3: 15 | R3: 16 | S3: 17 | T3: 18 | U3: 19 | V3: 20 | W3: 21 | X3: 22 | Y3: 23 | Z3: 24 | AA3: 25 | AB3: 26 | AC3: 27 | AD3: 28 | AE3: 29 | AF3: 30 | AG3: 31
C4: PREDIKAT | D4: DESKRIPSI | E4: DESKRIPSI | F4: DESKRIPSI | G4: DESKRIPSI | H4: DESKRIPSI | I4: DESKRIPSI | J4: DESKRIPSI | K4: DESKRIPSI | L4: DESKRIPSI | M4: DESKRIPSI | N4: DESKRIPSI | O4: DESKRIPSI | P4: DESKRIPSI | Q4: DESKRIPSI | R4: DESKRIPSI | S4: DESKRIPSI | T4: DESKRIPSI | U4: DESKRIPSI | V4: DESKRIPSI | W4: DESKRIPSI | X4: DESKRIPSI | Y4: DESKRIPSI | Z4: DESKRIPSI | AA4: DESKRIPSI | AB4: DESKRIPSI | AC4: DESKRIPSI | AD4: DESKRIPSI | AE4: DESKRIPSI | AF4: DESKRIPSI | AG4: DESKRIPSI
B5: DESKRIPSI NILAI PENGETAHUAN | C5: A | D5: Sangat baik dalam memahami, menerapkan, menganalisis dan mengevaluasi semua kompetensi dasar. | E5: Pendidikan Pancasila dan Kewarganegaraan | F5: Bahasa Indonesia | G5: Matematika | H5: Sejarah Indonesia | I5: Bahasa Inggris | J5: Seni Budaya | K5: Prakarya dan Kewirausahaan | L5: Pendidikan Jasmani, Olah Raga & Kesehatan | M5: Fisika | N5: Pemrograman Dasar | O5: Sistem Komputer | P5: Perakitan Komputer | Q5: Simulasi Digital | R5: Sistem Operasi | S5: Jaringan Dasar | T5: Pemprograman Web | U5: C2 | V5: C3 | W5: C3 | X5: C3 | Y5: C3 | Z5: C3 | AA5: C3 | AB5: C3 | AC5: C3 | AD5: C3 | AE5: Bahasa dan Sastra Sunda | AF5: MULOK | AG5: MULOK
C6: B | D6: Baik dalam memahami, menerapkan, menganalisis dan mengevaluasi sebagian besar kompetensi dasar. | E6: Pendidikan Pancasila dan Kewarganegaraan | F6: Bahasa Indonesia | G6: Matematika | H6: Sejarah Indonesia | I6: Bahasa Inggris | J6: Seni Budaya | K6: Prakarya dan Kewirausahaan | L6: Pendidikan Jasmani, Olah Raga & Kesehatan | M6: Fisika | N6: Pemrograman Dasar | O6: Sistem Komputer | P6: Perakitan Komputer | Q6: Simulasi Digital | R6: Sistem Operasi | S6: Jaringan Dasar | T6: Pemprograman Web | U6: C2 | V6: C3 | W6: C3 | X6: C3 | Y6: C3 | Z6: C3 | AA6: C3 | AB6: C3 | AC6: C3 | AD6: C3 | AE6: Bahasa dan Sastra Sunda | AF6: MULOK | AG6: MULOK
C7: C | D7: Cukup baik dalam memahami, mengetahui sebagian kompetensi dasar, tetapi kurang bisa menerapkan, menganalisis dan mengevaluasinya. | E7: Pendidikan Pancasila dan Kewarganegaraan | F7: Bahasa Indonesia | G7: Matematika | H7: Sejarah Indonesia | I7: Bahasa Inggris | J7: Seni Budaya | K7: Prakarya dan Kewirausahaan | L7: Pendidikan Jasmani, Olah Raga & Kesehatan | M7: Fisika | N7: Pemrograman Dasar | O7: Sistem Komputer | P7: Perakitan Komputer | Q7: Simulasi Digital | R7: Sistem Operasi | S7: Jaringan Dasar | T7: Pemprograman Web | U7: C2 | V7: C3 | W7: C3 | X7: C3 | Y7: C3 | Z7: C3 | AA7: C3 | AB7: C3 | AC7: C3 | AD7: C3 | AE7: Bahasa dan Sastra Sunda | AF7: MULOK | AG7: MULOK
C8: D | D8: Kurang, hanya dapat memahami, menerapkan, menganalisis, dan mengeveluasi sebagian kecil kompetensi dasar. | E8: Pendidikan Pancasila dan Kewarganegaraan | F8: Bahasa Indonesia | G8: Matematika | H8: Sejarah Indonesia | I8: Bahasa Inggris | J8: Seni Budaya | K8: Prakarya dan Kewirausahaan | L8: Pendidikan Jasmani, Olah Raga & Kesehatan | M8: Fisika | N8: Pemrograman Dasar | O8: Sistem Komputer | P8: Perakitan Komputer | Q8: Simulasi Digital | R8: Sistem Operasi | S8: Jaringan Dasar | T8: Pemprograman Web | U8: C2 | V8: C3 | W8: C3 | X8: C3 | Y8: C3 | Z8: C3 | AA8: C3 | AB8: C3 | AC8: C3 | AD8: C3 | AE8: Bahasa dan Sastra Sunda | AF8: MULOK | AG8: MULOK
B10: DESKRIPSI NILAI KETERAMPILAN | C10: A | D10: Sangat baik dan aktif bertanya, mencoba, menalar dan kreatif dalam menyelesaikan tugas praktek. | E10: Pendidikan Pancasila dan Kewarganegaraan | F10: Bahasa Indonesia | G10: Matematika | H10: Sejarah Indonesia | I10: Bahasa Inggris | J10: Seni Budaya | K10: Prakarya dan Kewirausahaan | L10: Pendidikan Jasmani, Olah Raga & Kesehatan | M10: Fisika | N10: Pemrograman Dasar | O10: Sistem Komputer | P10: Perakitan Komputer | Q10: Simulasi Digital | R10: Sistem Operasi | S10: Jaringan Dasar | T10: Pemprograman Web | U10: C2 | V10: C3 | W10: C3 | X10: C3 | Y10: C3 | Z10: C3 | AA10: C3 | AE10: Bahasa dan Sastra Sunda | AF10: MULOK | AG10: MULOK
C11: B | D11: Baik dan aktif bertanya, mencoba, menalar dan kreatif dalam menyelesaikan sebagian besar tugas praktek. | E11: Pendidikan Pancasila dan Kewarganegaraan | F11: Bahasa Indonesia | G11: Matematika | H11: Sejarah Indonesia | I11: Bahasa Inggris | J11: Seni Budaya | K11: Prakarya dan Kewirausahaan | L11: Pendidikan Jasmani, Olah Raga & Kesehatan | M11: Fisika | N11: Pemrograman Dasar | O11: Sistem Komputer | P11: Perakitan Komputer | Q11: Simulasi Digital | R11: Sistem Operasi | S11: Jaringan Dasar | T11: Pemprograman Web | U11: C2 | V11: C3 | W11: C3 | X11: C3 | Y11: C3 | Z11: C3 | AA11: C3 | AE11: Bahasa dan Sastra Sunda | AF11: MULOK | AG11: MULOK
C12: C | D12: Cukup aktif bertanya, mencoba, menalar dan kreatif dalam menyelesaikan tugas praktek | E12: Pendidikan Pancasila dan Kewarganegaraan | F12: Bahasa Indonesia | G12: Matematika | H12: Sejarah Indonesia | I12: Bahasa Inggris | J12: Seni Budaya | K12: Prakarya dan Kewirausahaan | L12: Pendidikan Jasmani, Olah Raga & Kesehatan | M12: Fisika | N12: Pemrograman Dasar | O12: Sistem Komputer | P12: Perakitan Komputer | Q12: Simulasi Digital | R12: Sistem Operasi | S12: Jaringan Dasar | T12: Pemprograman Web | U12: C2 | V12: C3 | W12: C3 | X12: C3 | Y12: C3 | Z12: C3 | AA12: C3 | AE12: Bahasa dan Sastra Sunda | AF12: MULOK | AG12: MULOK
C13: D | D13: Kurang aktif bertanya, mencoba, menalar dan kreatif dalam menyelesaikan tugas praktek. | E13: Pendidikan Pancasila dan Kewarganegaraan | F13: Bahasa Indonesia | G13: Matematika | H13: Sejarah Indonesia | I13: Bahasa Inggris | J13: Seni Budaya | K13: Prakarya dan Kewirausahaan | L13: Pendidikan Jasmani, Olah Raga & Kesehatan | M13: Fisika | N13: Pemrograman Dasar | O13: Sistem Komputer | P13: Perakitan Komputer | Q13: Simulasi Digital | R13: Sistem Operasi | S13: Jaringan Dasar | T13: Pemprograman Web | U13: C2 | V13: C3 | W13: C3 | X13: C3 | Y13: C3 | Z13: C3 | AA13: C3 | AE13: Bahasa dan Sastra Sunda | AF13: MULOK | AG13: MULOK
D15: 3.59
D16: 3.59
D17: 3.5
D18: 3.48
D19: 3.54
D20: 3.39
D21: 3.45
D22: 3.45
D23: 3.29
D24: 3.45
D25: 3.45
D26: 3.45

Sheet DESKSM6
A1: DESKRIPSI KOMPETENSI | D1: =HLOOKUP(MENU!$I$8&" "&$B$2,DATABASE!$X$2:$CK$92,DATABASE!W3,FALSE) -> Pendidikan Agama dan Budi Pekerti | E1: =HLOOKUP(MENU!$I$8&" "&$B$2,DATABASE!$X$2:$CK$92,DATABASE!W6,FALSE) -> Pendidikan Pancasila dan Kewarganegaraan | F1: =HLOOKUP(MENU!$I$8&" "&$B$2,DATABASE!$X$2:$CK$92,DATABASE!W9,FALSE) -> Bahasa Indonesia | G1: =HLOOKUP(MENU!$I$8&" "&$B$2,DATABASE!$X$2:$CK$92,DATABASE!W12,FALSE) -> Matematika | H1: =HLOOKUP(MENU!$I$8&" "&$B$2,DATABASE!$X$2:$CK$92,DATABASE!W15,FALSE) -> - | I1: =HLOOKUP(MENU!$I$8&" "&$B$2,DATABASE!$X$2:$CK$92,DATABASE!W18,FALSE) -> Bahasa Inggris | J1: =HLOOKUP(MENU!$I$8&" "&$B$2,DATABASE!$X$2:$CK$92,DATABASE!W21,FALSE) -> - | K1: =HLOOKUP(MENU!$I$8&" "&$B$2,DATABASE!$X$2:$CK$92,DATABASE!W24,FALSE) -> - | L1: =HLOOKUP(MENU!$I$8&" "&$B$2,DATABASE!$X$2:$CK$92,DATABASE!W27,FALSE) -> - | M1: =HLOOKUP(MENU!$I$8&" "&$B$2,DATABASE!$X$2:$CK$92,DATABASE!W30,FALSE) -> Bahasa Jepang | N1: =HLOOKUP(MENU!$I$8&" "&$B$2,DATABASE!$X$2:$CK$92,DATABASE!W33,FALSE) -> - | O1: =HLOOKUP(MENU!$I$8&" "&$B$2,DATABASE!$X$2:$CK$92,DATABASE!W36,FALSE) -> - | P1: =HLOOKUP(MENU!$I$8&" "&$B$2,DATABASE!$X$2:$CK$92,DATABASE!W39,FALSE) -> - | Q1: =HLOOKUP(MENU!$I$8&" "&$B$2,DATABASE!$X$2:$CK$92,DATABASE!W42,FALSE) -> - | R1: =HLOOKUP(MENU!$I$8&" "&$B$2,DATABASE!$X$2:$CK$92,DATABASE!W45,FALSE) -> - | S1: =HLOOKUP(MENU!$I$8&" "&$B$2,DATABASE!$X$2:$CK$92,DATABASE!W48,FALSE) -> - | T1: =HLOOKUP(MENU!$I$8&" "&$B$2,DATABASE!$X$2:$CK$92,DATABASE!W51,FALSE) -> - | U1: =HLOOKUP(MENU!$I$8&" "&$B$2,DATABASE!$X$2:$CK$92,DATABASE!W54,FALSE) -> Administrasi Infrastruktur Jaringan | V1: =HLOOKUP(MENU!$I$8&" "&$B$2,DATABASE!$X$2:$CK$92,DATABASE!W57,FALSE) -> Administrasi Sistem Jaringan | W1: =HLOOKUP(MENU!$I$8&" "&$B$2,DATABASE!$X$2:$CK$92,DATABASE!W60,FALSE) -> Teknologi Layanan Jaringan | X1: =HLOOKUP(MENU!$I$8&" "&$B$2,DATABASE!$X$2:$CK$92,DATABASE!W63,FALSE) -> - | Y1: =HLOOKUP(MENU!$I$8&" "&$B$2,DATABASE!$X$2:$CK$92,DATABASE!W66,FALSE) -> - | Z1: =HLOOKUP(MENU!$I$8&" "&$B$2,DATABASE!$X$2:$CK$92,DATABASE!W69,FALSE) -> Produk Kreatif dan Kewirausahaan | AA1: =HLOOKUP(MENU!$I$8&" "&$B$2,DATABASE!$X$2:$CK$92,DATABASE!W72,FALSE) -> - | AB1: =HLOOKUP(MENU!$I$8&" "&$B$2,DATABASE!$X$2:$CK$92,DATABASE!W75,FALSE) -> - | AC1: =HLOOKUP(MENU!$I$8&" "&$B$2,DATABASE!$X$2:$CK$92,DATABASE!W78,FALSE) -> - | AD1: =HLOOKUP(MENU!$I$8&" "&$B$2,DATABASE!$X$2:$CK$92,DATABASE!W81,FALSE) -> - | AE1: =HLOOKUP(MENU!$I$8&" "&$B$2,DATABASE!$X$2:$CK$92,DATABASE!W84,FALSE) -> - | AF1: =HLOOKUP(MENU!$I$8&" "&$B$2,DATABASE!$X$2:$CK$92,DATABASE!W87,FALSE) -> - | AG1: =HLOOKUP(MENU!$I$8&" "&$B$2,DATABASE!$X$2:$CK$92,DATABASE!W90,FALSE) -> -
A2: Semester : | B2: 6 (enam) | C2: KEL. MAPEL | D2: A | E2: A | F2: A | G2: A | H2: A | I2: A | J2: B | K2: B | L2: B | M2: C1 | N2: C1 | O2: C1 | P2: C2 | Q2: C2 | R2: C2 | S2: C2 | T2: C2 | U2: C2 | V2: C3 | W2: C3 | X2: C3 | Y2: C3 | Z2: C3 | AA2: C3 | AB2: C3 | AC2: C3 | AD2: C3 | AE2: MULOK | AF2: MULOK | AG2: MULOK
C3: 1 | D3: 2 | E3: 3 | F3: 4 | G3: 5 | H3: 6 | I3: 7 | J3: 8 | K3: 9 | L3: 10 | M3: 11 | N3: 12 | O3: 13 | P3: 14 | Q3: 15 | R3: 16 | S3: 17 | T3: 18 | U3: 19 | V3: 20 | W3: 21 | X3: 22 | Y3: 23 | Z3: 24 | AA3: 25 | AB3: 26 | AC3: 27 | AD3: 28 | AE3: 29 | AF3: 30 | AG3: 31
C4: PREDIKAT | D4: DESKRIPSI | E4: DESKRIPSI | F4: DESKRIPSI | G4: DESKRIPSI | H4: DESKRIPSI | I4: DESKRIPSI | J4: DESKRIPSI | K4: DESKRIPSI | L4: DESKRIPSI | M4: DESKRIPSI | N4: DESKRIPSI | O4: DESKRIPSI | P4: DESKRIPSI | Q4: DESKRIPSI | R4: DESKRIPSI | S4: DESKRIPSI | T4: DESKRIPSI | U4: DESKRIPSI | V4: DESKRIPSI | W4: DESKRIPSI | X4: DESKRIPSI | Y4: DESKRIPSI | Z4: DESKRIPSI | AA4: DESKRIPSI | AB4: DESKRIPSI | AC4: DESKRIPSI | AD4: DESKRIPSI | AE4: DESKRIPSI | AF4: DESKRIPSI | AG4: DESKRIPSI
B5: DESKRIPSI NILAI PENGETAHUAN | C5: A | D5: Sangat baik dalam memahami, menerapkan, menganalisis dan mengevaluasi semua kompetensi dasar. | E5: Pendidikan Pancasila dan Kewarganegaraan | F5: Bahasa Indonesia | G5: Matematika | H5: Sejarah Indonesia | I5: Bahasa Inggris | J5: Seni Budaya | K5: Prakarya dan Kewirausahaan | L5: Pendidikan Jasmani, Olah Raga & Kesehatan | M5: Fisika | N5: Pemrograman Dasar | O5: Sistem Komputer | P5: Perakitan Komputer | Q5: Simulasi Digital | R5: Sistem Operasi | S5: Jaringan Dasar | T5: Pemprograman Web | U5: C2 | V5: C3 | W5: C3 | X5: C3 | Y5: C3 | Z5: C3 | AA5: C3 | AB5: C3 | AC5: C3 | AD5: C3 | AE5: Bahasa dan Sastra Sunda | AF5: MULOK | AG5: MULOK
C6: B | D6: Baik dalam memahami, menerapkan, menganalisis dan mengevaluasi sebagian besar kompetensi dasar. | E6: Pendidikan Pancasila dan Kewarganegaraan | F6: Bahasa Indonesia | G6: Matematika | H6: Sejarah Indonesia | I6: Bahasa Inggris | J6: Seni Budaya | K6: Prakarya dan Kewirausahaan | L6: Pendidikan Jasmani, Olah Raga & Kesehatan | M6: Fisika | N6: Pemrograman Dasar | O6: Sistem Komputer | P6: Perakitan Komputer | Q6: Simulasi Digital | R6: Sistem Operasi | S6: Jaringan Dasar | T6: Pemprograman Web | U6: C2 | V6: C3 | W6: C3 | X6: C3 | Y6: C3 | Z6: C3 | AA6: C3 | AB6: C3 | AC6: C3 | AD6: C3 | AE6: Bahasa dan Sastra Sunda | AF6: MULOK | AG6: MULOK
C7: C | D7: Cukup baik dalam memahami, mengetahui sebagian kompetensi dasar, tetapi kurang bisa menerapkan, menganalisis dan mengevaluasinya. | E7: Pendidikan Pancasila dan Kewarganegaraan | F7: Bahasa Indonesia | G7: Matematika | H7: Sejarah Indonesia | I7: Bahasa Inggris | J7: Seni Budaya | K7: Prakarya dan Kewirausahaan | L7: Pendidikan Jasmani, Olah Raga & Kesehatan | M7: Fisika | N7: Pemrograman Dasar | O7: Sistem Komputer | P7: Perakitan Komputer | Q7: Simulasi Digital | R7: Sistem Operasi | S7: Jaringan Dasar | T7: Pemprograman Web | U7: C2 | V7: C3 | W7: C3 | X7: C3 | Y7: C3 | Z7: C3 | AA7: C3 | AB7: C3 | AC7: C3 | AD7: C3 | AE7: Bahasa dan Sastra Sunda | AF7: MULOK | AG7: MULOK
C8: D | D8: Kurang, hanya dapat memahami, menerapkan, menganalisis, dan mengeveluasi sebagian kecil kompetensi dasar. | E8: Pendidikan Pancasila dan Kewarganegaraan | F8: Bahasa Indonesia | G8: Matematika | H8: Sejarah Indonesia | I8: Bahasa Inggris | J8: Seni Budaya | K8: Prakarya dan Kewirausahaan | L8: Pendidikan Jasmani, Olah Raga & Kesehatan | M8: Fisika | N8: Pemrograman Dasar | O8: Sistem Komputer | P8: Perakitan Komputer | Q8: Simulasi Digital | R8: Sistem Operasi | S8: Jaringan Dasar | T8: Pemprograman Web | U8: C2 | V8: C3 | W8: C3 | X8: C3 | Y8: C3 | Z8: C3 | AA8: C3 | AB8: C3 | AC8: C3 | AD8: C3 | AE8: Bahasa dan Sastra Sunda | AF8: MULOK | AG8: MULOK
B10: DESKRIPSI NILAI KETERAMPILAN | C10: A | D10: Sangat baik dan aktif bertanya, mencoba, menalar dan kreatif dalam menyelesaikan tugas praktek. | E10: Pendidikan Pancasila dan Kewarganegaraan | F10: Bahasa Indonesia | G10: Matematika | H10: Sejarah Indonesia | I10: Bahasa Inggris | J10: Seni Budaya | K10: Prakarya dan Kewirausahaan | L10: Pendidikan Jasmani, Olah Raga & Kesehatan | M10: Fisika | N10: Pemrograman Dasar | O10: Sistem Komputer | P10: Perakitan Komputer | Q10: Simulasi Digital | R10: Sistem Operasi | S10: Jaringan Dasar | T10: Pemprograman Web | U10: C2 | V10: C3 | W10: C3 | X10: C3 | Y10: C3 | Z10: C3 | AA10: C3 | AE10: Bahasa dan Sastra Sunda | AF10: MULOK | AG10: MULOK
C11: B | D11: Baik dan aktif bertanya, mencoba, menalar dan kreatif dalam menyelesaikan sebagian besar tugas praktek. | E11: Pendidikan Pancasila dan Kewarganegaraan | F11: Bahasa Indonesia | G11: Matematika | H11: Sejarah Indonesia | I11: Bahasa Inggris | J11: Seni Budaya | K11: Prakarya dan Kewirausahaan | L11: Pendidikan Jasmani, Olah Raga & Kesehatan | M11: Fisika | N11: Pemrograman Dasar | O11: Sistem Komputer | P11: Perakitan Komputer | Q11: Simulasi Digital | R11: Sistem Operasi | S11: Jaringan Dasar | T11: Pemprograman Web | U11: C2 | V11: C3 | W11: C3 | X11: C3 | Y11: C3 | Z11: C3 | AA11: C3 | AE11: Bahasa dan Sastra Sunda | AF11: MULOK | AG11: MULOK
C12: C | D12: Cukup aktif bertanya, mencoba, menalar dan kreatif dalam menyelesaikan tugas praktek | E12: Pendidikan Pancasila dan Kewarganegaraan | F12: Bahasa Indonesia | G12: Matematika | H12: Sejarah Indonesia | I12: Bahasa Inggris | J12: Seni Budaya | K12: Prakarya dan Kewirausahaan | L12: Pendidikan Jasmani, Olah Raga & Kesehatan | M12: Fisika | N12: Pemrograman Dasar | O12: Sistem Komputer | P12: Perakitan Komputer | Q12: Simulasi Digital | R12: Sistem Operasi | S12: Jaringan Dasar | T12: Pemprograman Web | U12: C2 | V12: C3 | W12: C3 | X12: C3 | Y12: C3 | Z12: C3 | AA12: C3 | AE12: Bahasa dan Sastra Sunda | AF12: MULOK | AG12: MULOK
C13: D | D13: Kurang aktif bertanya, mencoba, menalar dan kreatif dalam menyelesaikan tugas praktek. | E13: Pendidikan Pancasila dan Kewarganegaraan | F13: Bahasa Indonesia | G13: Matematika | H13: Sejarah Indonesia | I13: Bahasa Inggris | J13: Seni Budaya | K13: Prakarya dan Kewirausahaan | L13: Pendidikan Jasmani, Olah Raga & Kesehatan | M13: Fisika | N13: Pemrograman Dasar | O13: Sistem Komputer | P13: Perakitan Komputer | Q13: Simulasi Digital | R13: Sistem Operasi | S13: Jaringan Dasar | T13: Pemprograman Web | U13: C2 | V13: C3 | W13: C3 | X13: C3 | Y13: C3 | Z13: C3 | AA13: C3 | AE13: Bahasa dan Sastra Sunda | AF13: MULOK | AG13: MULOK
D15: 3.59
D16: 3.59
D17: 3.5
D18: 3.48
D19: 3.54
D20: 3.39
D21: 3.45
D22: 3.45
D23: 3.29
D24: 3.45
D25: 3.45
D26: 3.45

Sheet LEGGER1
A1: PEMERINTAH DAERAH PROVINSI JAWA BARAT
A2: DINAS PENDIDIKAN
A3: SMKN 1 KARAWANG
A4: Jl. Pangkal Perjuangan By Pass Karawang Telp.0267-401651 Fax.417258 Website : www.smkn1karawang.net Email : smkn1karawang@gmail.com
A6: ="LEGER NILAI SISWA TAHUN PELAJARAN "&MENU!I12 -> LEGER NILAI SISWA TAHUN PELAJARAN 2017 / 2018 | AA6: HALAMAN CETAK
AA7: Dari data ke | AB7: 2
A8: Nama Siswa | C8: : | D8: =VLOOKUP($AB$14,TABNILSM1,NILSM1!B7) -> AL KINDI | L8: Bidang Keahlian | O8: : | P8: =KET.PETUNJUK!D18 -> TEKNOLOGI INFORMASI DAN KOMUNIKASI
A9: Nomor Induk/NISN | C9: : | D9: =IF(VLOOKUP($AB$14,TABBIODATA,BIODATA!E4)="",VLOOKUP($AB$14,TABBIODATA,BIODATA!D4),VLOOKUP($AB$14,TABBIODATA,BIODATA!D4)&" / "&VLOOKUP($AB$14,TABBIODATA,BIODATA!E4)) -> 13140768 / 9973289804 | L9: Program Keahlian | O9: : | P9: =KET.PETUNJUK!D19 -> TEKNIK KOMPUTER DAN INFORMATIKA | AA9: Sampai data ke | AB9: 2
A10: Kelas/Semester | C10: : | D10: =W10&" / "&W11 -> X TKRO 1 / 1 (satu) | L10: Paket Keahlian | O10: : | P10: =KET.PETUNJUK!D20 -> TEKNIK KOMPUTER JARINGAN | W10: =IF(OR(W11="1 (satu)",W11="2 (dua)"),"X "&MENU!I9,IF(OR(W11="3 (tiga)",W11="4 (empat)"),"XI "&MENU!I9,IF(OR(W11="5 (lima)",W11="6 (enam)"),"XII "&MENU!I9,""))) -> X TKRO 1
A11: Wali Kelas | C11: : | D11: =NILSM1!B4 -> Sri Hartati,S.T | W11: =NILSM1!B3 -> 1 (satu)
A13: A. Nilai Sikap | N13: Prestasi | T13: Ketidakhadiran | AA13: TAMPILAN DATA
A14: No. | B14: Kompetensi Inti | D14: Deskripsi | N14: Jenis Prestasi | R14: Keterangan | T14: Sakit | U14: : | V14: =VLOOKUP($AB$14,TABNILSM1,NILSM1!DI7) -> 3 | W14: 2 | AA14: Nomor Urut | AB14: 2
A15: 1 | B15: Spiritual (KI-1) | D15: =IFERROR(VLOOKUP(W15,TABDESSPIRITUAL,2),"-") -> Baik, dapat menerima, menjalankan, menghargai, menghayati dan mengamalkan ajaran agama yang dianut. | N15: =IFERROR(VLOOKUP($AB$14,TABNILSM1,NILSM1!DE7),"-") -> Juara 1 LKS Jawa Barat | R15: =IFERROR(VLOOKUP($AB$14,TABNILSM1,NILSM1!DF7),"-") -> 0 | T15: Izin | U15: : | V15: =VLOOKUP($AB$14,TABNILSM1,NILSM1!DJ7) -> - | W15: =VLOOKUP($AB$14,TABNILSM1,NILSM1!DL7) -> B
T16: Alpa | U16: : | V16: =VLOOKUP($AB$14,TABNILSM1,NILSM1!DK7) -> -
A17: 2 | B17: Sosial (KI-2) | D17: =IFERROR(VLOOKUP(W18,TABDESSOSIAL,2),"-") -> Sudah menunjukkan konsisten menerapkan sikap jujur, santun dan toleran dalam pergaulan, disiplin, kerjasama dalam kelompok dan tanggungjawab dalam keseharian sebagai hasil pembelajaran di sekolah. Tingkatkan sikap-sikap positif tersebut agar lebih baik.
N18: =IFERROR(VLOOKUP($AB$14,TABNILSM1,NILSM1!DG7),"-") -> - | R18: =IFERROR(VLOOKUP($AB$14,TABNILSM1,NILSM1!DH7),"-") -> - | W18: =VLOOKUP($AB$14,TABNILSM1,NILSM1!DM7) -> B | AA18: PILIHAN DESKRIPSI
AA19: OTOMATIS
A22: B. Nilai Pengetahuan dan Keterampilan
A23: No. | B23: Mata Pelajaran | F23: Pengetahuan (KI-3) | M23: Keterampilan (KI-4)
F24: KB | G24: Angka | H24: Predikat | I24: Deskripsi | M24: KB | N24: Angka | O24: Predikat | P24: Deskripsi
A25: Muatan Nasional
A26: =NILSM1!D4 -> 1 | B26: =NILSM1!D2 -> Pendidikan Agama dan Budi Pekerti | F26: =NILSM1!D5 -> 75 | G26: =VLOOKUP($AB$14,TABNILSM1,NILSM1!D7) -> 75 | H26: =IFERROR(VLOOKUP(G26,TABEL_NILAI,4),"-") -> D | I26: =IFERROR(IF($AA$19=DATABASE!$B$2,VLOOKUP(H26,TABDESPENGETAHUAN,2),IF($AA$19=DATABASE!$B$3,VLOOKUP(H26,DESKPENGETAHUANSM1,DESKSM1!D3),"-")),"-") -> Kurang dapat memahami, hanya bisa menerapkan, menganalisis, dan mengeveluasi sebagian kecil kompetensi dasar. | M26: =NILSM1!E5 -> 75 | N26: =VLOOKUP($AB$14,TABNILSM1,NILSM1!E7) -> 83 | O26: =IFERROR(VLOOKUP(N26,TABEL_NILAI,4),"-") -> C | P26: =IFERROR(IF($AA$19=DATABASE!$B$2,VLOOKUP(O26,TABDESKETERAMPILAN,2),IF($AA$19=DATABASE!$B$3,VLOOKUP(O26,DESKKETERAMPILANSM1,DESKSM1!D3),"-")),"-") -> Cukup aktif bertanya, mencoba, menalar dan kreatif dalam menyelesaikan tugas praktek
A27: =NILSM1!G4 -> 2 | B27: =NILSM1!G2 -> Pendidikan Pancasila dan Kewarganegaraan | F27: =NILSM1!G5 -> 75 | G27: =VLOOKUP($AB$14,TABNILSM1,NILSM1!G7) -> 84 | H27: =IFERROR(VLOOKUP(G27,TABEL_NILAI,4),"-") -> C | I27: =IFERROR(IF($AA$19=DATABASE!$B$2,VLOOKUP(H27,TABDESPENGETAHUAN,2),IF($AA$19=DATABASE!$B$3,VLOOKUP(H27,DESKPENGETAHUANSM1,DESKSM1!D4),"-")),"-") -> Cukup baik memahami sebagian kompetensi dasar, tetapi kurang bisa menerapkan, menganalisis dan mengevaluasinya. | M27: =NILSM1!H5 -> 75 | N27: =VLOOKUP($AB$14,TABNILSM1,NILSM1!H7) -> 92 | O27: B | P27: =IFERROR(IF($AA$19=DATABASE!$B$2,VLOOKUP(O27,TABDESKETERAMPILAN,2),IF($AA$19=DATABASE!$B$3,VLOOKUP(O27,DESKKETERAMPILANSM1,DESKSM1!D4),"-")),"-") -> Baik dan aktif bertanya, mencoba, menalar dan kreatif dalam menyelesaikan sebagian besar tugas praktek.
A28: =NILSM1!J4 -> 3 | B28: =NILSM1!J2 -> Bahasa Indonesia | F28: =NILSM1!J5 -> 75 | G28: =VLOOKUP($AB$14,TABNILSM1,NILSM1!J7) -> 93 | H28: B | I28: =IFERROR(IF($AA$19=DATABASE!$B$2,VLOOKUP(H28,TABDESPENGETAHUAN,2),IF($AA$19=DATABASE!$B$3,VLOOKUP(H28,DESKPENGETAHUANSM1,DESKSM1!D5),"-")),"-") -> Baik dalam memahami, menerapkan, menganalisis dan mengevaluasi sebagian besar kompetensi dasar. | M28: =NILSM1!K5 -> 75 | N28: =VLOOKUP($AB$14,TABNILSM1,NILSM1!K7) -> 75 | O28: D | P28: =IFERROR(IF($AA$19=DATABASE!$B$2,VLOOKUP(O28,TABDESKETERAMPILAN,2),IF($AA$19=DATABASE!$B$3,VLOOKUP(O28,DESKKETERAMPILANSM1,DESKSM1!D5),"-")),"-") -> Kurang aktif bertanya, mencoba, menalar dan kreatif dalam menyelesaikan tugas praktek.
A29: =NILSM1!M4 -> 4 | B29: =NILSM1!M2 -> Matematika | F29: =NILSM1!M5 -> 75 | G29: =VLOOKUP($AB$14,TABNILSM1,NILSM1!M7) -> 75 | H29: D | I29: =IFERROR(IF($AA$19=DATABASE!$B$2,VLOOKUP(H29,TABDESPENGETAHUAN,2),IF($AA$19=DATABASE!$B$3,VLOOKUP(H29,DESKPENGETAHUANSM1,DESKSM1!D6),"-")),"-") -> Kurang dapat memahami, hanya bisa menerapkan, menganalisis, dan mengeveluasi sebagian kecil kompetensi dasar. | M29: =NILSM1!N5 -> 75 | N29: =VLOOKUP($AB$14,TABNILSM1,NILSM1!N7) -> 75 | O29: D | P29: =IFERROR(IF($AA$19=DATABASE!$B$2,VLOOKUP(O29,TABDESKETERAMPILAN,2),IF($AA$19=DATABASE!$B$3,VLOOKUP(O29,DESKKETERAMPILANSM1,DESKSM1!D6),"-")),"-") -> Kurang aktif bertanya, mencoba, menalar dan kreatif dalam menyelesaikan tugas praktek.
A30: =NILSM1!P4 -> 5 | B30: =NILSM1!P2 -> Sejarah Indonesia | F30: =NILSM1!P5 -> 75 | G30: =VLOOKUP($AB$14,TABNILSM1,NILSM1!P7) -> 83.25 | H30: C | I30: =IFERROR(IF($AA$19=DATABASE!$B$2,VLOOKUP(H30,TABDESPENGETAHUAN,2),IF($AA$19=DATABASE!$B$3,VLOOKUP(H30,DESKPENGETAHUANSM1,DESKSM1!D7),"-")),"-") -> Cukup baik memahami sebagian kompetensi dasar, tetapi kurang bisa menerapkan, menganalisis dan mengevaluasinya. | M30: =NILSM1!Q5 -> 75 | N30: =VLOOKUP($AB$14,TABNILSM1,NILSM1!Q7) -> 83.25 | O30: C | P30: =IFERROR(IF($AA$19=DATABASE!$B$2,VLOOKUP(O30,TABDESKETERAMPILAN,2),IF($AA$19=DATABASE!$B$3,VLOOKUP(O30,DESKKETERAMPILANSM1,DESKSM1!D7),"-")),"-") -> Cukup aktif bertanya, mencoba, menalar dan kreatif dalam menyelesaikan tugas praktek
A31: =NILSM1!S4 -> 6 | B31: =NILSM1!S2 -> Bahasa Inggris | F31: =NILSM1!S5 -> 75 | G31: =VLOOKUP($AB$14,TABNILSM1,NILSM1!S7) -> 75 | H31: D | I31: =IFERROR(IF($AA$19=DATABASE!$B$2,VLOOKUP(H31,TABDESPENGETAHUAN,2),IF($AA$19=DATABASE!$B$3,VLOOKUP(H31,DESKPENGETAHUANSM1,DESKSM1!D8),"-")),"-") -> Kurang dapat memahami, hanya bisa menerapkan, menganalisis, dan mengeveluasi sebagian kecil kompetensi dasar. | M31: =NILSM1!T5 -> 75 | N31: =VLOOKUP($AB$14,TABNILSM1,NILSM1!T7) -> 75 | O31: D | P31: =IFERROR(IF($AA$19=DATABASE!$B$2,VLOOKUP(O31,TABDESKETERAMPILAN,2),IF($AA$19=DATABASE!$B$3,VLOOKUP(O31,DESKKETERAMPILANSM1,DESKSM1!D8),"-")),"-") -> Kurang aktif bertanya, mencoba, menalar dan kreatif dalam menyelesaikan tugas praktek.
A32: Muatan Kewilayahan
A33: =NILSM1!V4 -> 1 | B33: =NILSM1!V2 -> Seni Budaya | F33: =NILSM1!V5 -> 75 | G33: =VLOOKUP($AB$14,TABNILSM1,NILSM1!V7) -> 75 | H33: =IFERROR(VLOOKUP(G33,TABEL_NILAI,4),"-") -> D | I33: =IFERROR(IF($AA$19=DATABASE!$B$2,VLOOKUP(H33,TABDESPENGETAHUAN,2),IF($AA$19=DATABASE!$B$3,VLOOKUP(H33,DESKPENGETAHUANSM1,DESKSM1!D10),"-")),"-") -> Kurang dapat memahami, hanya bisa menerapkan, menganalisis, dan mengeveluasi sebagian kecil kompetensi dasar. | M33: =NILSM1!W5 -> 75 | N33: =VLOOKUP($AB$14,TABNILSM1,NILSM1!W7) -> 75 | O33: =IFERROR(VLOOKUP(N33,TABEL_NILAI,4),"-") -> D | P33: =IFERROR(IF($AA$19=DATABASE!$B$2,VLOOKUP(O33,TABDESKETERAMPILAN,2),IF($AA$19=DATABASE!$B$3,VLOOKUP(O33,DESKKETERAMPILANSM1,DESKSM1!D10),"-")),"-") -> Kurang aktif bertanya, mencoba, menalar dan kreatif dalam menyelesaikan tugas praktek.
A34: =NILSM1!Y4 -> 2 | B34: =NILSM1!Y2 -> Pendidikan Jasmani, Olah Raga & Kesehatan | F34: =NILSM1!Y5 -> 75 | G34: =VLOOKUP($AB$14,TABNILSM1,NILSM1!Y7) -> 75 | H34: =IFERROR(VLOOKUP(G34,TABEL_NILAI,4),"-") -> D | I34: =IFERROR(IF($AA$19=DATABASE!$B$2,VLOOKUP(H34,TABDESPENGETAHUAN,2),IF($AA$19=DATABASE!$B$3,VLOOKUP(H34,DESKPENGETAHUANSM1,DESKSM1!D11),"-")),"-") -> Kurang dapat memahami, hanya bisa menerapkan, menganalisis, dan mengeveluasi sebagian kecil kompetensi dasar. | M34: =NILSM1!Z5 -> 75 | N34: =VLOOKUP($AB$14,TABNILSM1,NILSM1!Z7) -> 75 | O34: =IFERROR(VLOOKUP(N34,TABEL_NILAI,4),"-") -> D | P34: =IFERROR(IF($AA$19=DATABASE!$B$2,VLOOKUP(O34,TABDESKETERAMPILAN,2),IF($AA$19=DATABASE!$B$3,VLOOKUP(O34,DESKKETERAMPILANSM1,DESKSM1!D11),"-")),"-") -> Kurang aktif bertanya, mencoba, menalar dan kreatif dalam menyelesaikan tugas praktek.
B35: Muatan Lokal
A36: =NILSM1!AB4 -> 3 | B36: =NILSM1!AB2 -> Bahasa dan Sastra Sunda | F36: =NILSM1!AB5 -> 75 | G36: =VLOOKUP($AB$14,TABNILSM1,NILSM1!AB7) -> 83.25 | H36: =IFERROR(VLOOKUP(G36,TABEL_NILAI,4),"-") -> C | I36: =IFERROR(IF($AA$19=DATABASE!$B$2,VLOOKUP(H36,TABDESPENGETAHUAN,2),IF($AA$19=DATABASE!$B$3,VLOOKUP(H36,DESKPENGETAHUANSM1,DESKSM1!D12),"-")),"-") -> Cukup baik memahami sebagian kompetensi dasar, tetapi kurang bisa menerapkan, menganalisis dan mengevaluasinya. | M36: =NILSM1!AC5 -> 75 | N36: =VLOOKUP($AB$14,TABNILSM1,NILSM1!AC7) -> 91.5 | O36: =IFERROR(VLOOKUP(N36,TABEL_NILAI,4),"-") -> B | P36: =IFERROR(IF($AA$19=DATABASE!$B$2,VLOOKUP(O36,TABDESKETERAMPILAN,2),IF($AA$19=DATABASE!$B$3,VLOOKUP(O36,DESKKETERAMPILANSM1,DESKSM1!D12),"-")),"-") -> Baik dan aktif bertanya, mencoba, menalar dan kreatif dalam menyelesaikan sebagian besar tugas praktek.
A37: =NILSM1!AE4 -> 4 | B37: =NILSM1!AE2 -> PLH | F37: =NILSM1!AE5 -> 75 | G37: =VLOOKUP($AB$14,TABNILSM1,NILSM1!AE7) -> 75 | H37: =IFERROR(VLOOKUP(G37,TABEL_NILAI,4),"-") -> D | I37: =IFERROR(IF($AA$19=DATABASE!$B$2,VLOOKUP(H37,TABDESPENGETAHUAN,2),IF($AA$19=DATABASE!$B$3,VLOOKUP(H37,DESKPENGETAHUANSM1,DESKSM1!D15),"-")),"-") -> Kurang dapat memahami, hanya bisa menerapkan, menganalisis, dan mengeveluasi sebagian kecil kompetensi dasar. | M37: =NILSM1!AF5 -> 75 | N37: =VLOOKUP($AB$14,TABNILSM1,NILSM1!AF7) -> 83.25 | O37: =IFERROR(VLOOKUP(N37,TABEL_NILAI,4),"-") -> C | P37: =IFERROR(IF($AA$19=DATABASE!$B$2,VLOOKUP(O37,TABDESKETERAMPILAN,2),IF($AA$19=DATABASE!$B$3,VLOOKUP(O37,DESKKETERAMPILANSM1,DESKSM1!D15),"-")),"-") -> Cukup aktif bertanya, mencoba, menalar dan kreatif dalam menyelesaikan tugas praktek
A38: Muatan Peminatan Kejuruan
A39: C1 | B39: Dasar Bidang Keahlian
A40: =NILSM1!AH4 -> 1 | B40: =NILSM1!AH2 -> Simulasi dan Komunikasi Digital | F40: =NILSM1!AH5 -> 75 | G40: =VLOOKUP($AB$14,TABNILSM1,NILSM1!AH7) -> 83.25 | H40: =IFERROR(VLOOKUP(G40,TABEL_NILAI,4),"-") -> C | I40: =IFERROR(IF($AA$19=DATABASE!$B$2,VLOOKUP(H40,TABDESPENGETAHUAN,2),IF($AA$19=DATABASE!$B$3,VLOOKUP(H40,DESKPENGETAHUANSM1,DESKSM1!D16),"-")),"-") -> Cukup baik memahami sebagian kompetensi dasar, tetapi kurang bisa menerapkan, menganalisis dan mengevaluasinya. | M40: =NILSM1!AI5 -> 75 | N40: =VLOOKUP($AB$14,TABNILSM1,NILSM1!AI7) -> 83.25 | O40: =IFERROR(VLOOKUP(N40,TABEL_NILAI,4),"-") -> C | P40: =IFERROR(IF($AA$19=DATABASE!$B$2,VLOOKUP(O40,TABDESKETERAMPILAN,2),IF($AA$19=DATABASE!$B$3,VLOOKUP(O40,DESKKETERAMPILANSM1,DESKSM1!D16),"-")),"-") -> Cukup aktif bertanya, mencoba, menalar dan kreatif dalam menyelesaikan tugas praktek
A41: =NILSM1!AK4 -> 2 | B41: =NILSM1!AK2 -> Fisika | F41: =NILSM1!AK5 -> 75 | G41: =VLOOKUP($AB$14,TABNILSM1,NILSM1!AK7) -> 75 | H41: =IFERROR(VLOOKUP(G41,TABEL_NILAI,4),"-") -> D | I41: =IFERROR(IF($AA$19=DATABASE!$B$2,VLOOKUP(H41,TABDESPENGETAHUAN,2),IF($AA$19=DATABASE!$B$3,VLOOKUP(H41,DESKPENGETAHUANSM1,DESKSM1!D17),"-")),"-") -> Kurang dapat memahami, hanya bisa menerapkan, menganalisis, dan mengeveluasi sebagian kecil kompetensi dasar. | M41: =NILSM1!AL5 -> 75 | N41: =VLOOKUP($AB$14,TABNILSM1,NILSM1!AL7) -> 75 | O41: =IFERROR(VLOOKUP(N41,TABEL_NILAI,4),"-") -> D | P41: =IFERROR(IF($AA$19=DATABASE!$B$2,VLOOKUP(O41,TABDESKETERAMPILAN,2),IF($AA$19=DATABASE!$B$3,VLOOKUP(O41,DESKKETERAMPILANSM1,DESKSM1!D17),"-")),"-") -> Kurang aktif bertanya, mencoba, menalar dan kreatif dalam menyelesaikan tugas praktek.
A42: =NILSM1!AN4 -> 3 | B42: =NILSM1!AN2 -> Kimia | F42: =NILSM1!AN5 -> 75 | G42: =VLOOKUP($AB$14,TABNILSM1,NILSM1!AN7) -> 83.25 | H42: =IFERROR(VLOOKUP(G42,TABEL_NILAI,4),"-") -> C | I42: =IFERROR(IF($AA$19=DATABASE!$B$2,VLOOKUP(H42,TABDESPENGETAHUAN,2),IF($AA$19=DATABASE!$B$3,VLOOKUP(H42,DESKPENGETAHUANSM1,DESKSM1!D19),"-")),"-") -> Cukup baik memahami sebagian kompetensi dasar, tetapi kurang bisa menerapkan, menganalisis dan mengevaluasinya. | M42: =NILSM1!AO5 -> 75 | N42: =VLOOKUP($AB$14,TABNILSM1,NILSM1!AO7) -> 75 | O42: =IFERROR(VLOOKUP(N42,TABEL_NILAI,4),"-") -> D | P42: =IFERROR(IF($AA$19=DATABASE!$B$2,VLOOKUP(O42,TABDESKETERAMPILAN,2),IF($AA$19=DATABASE!$B$3,VLOOKUP(O42,DESKKETERAMPILANSM1,DESKSM1!D19),"-")),"-") -> Kurang aktif bertanya, mencoba, menalar dan kreatif dalam menyelesaikan tugas praktek.
A43: C2 | B43: Dasar Program Keahlian
A44: =NILSM1!AQ4 -> 4 | B44: =NILSM1!AQ2 -> Sistem Komputer | F44: =NILSM1!AQ5 -> 75 | G44: =VLOOKUP($AB$14,TABNILSM1,NILSM1!AQ7) -> 75 | H44: D | I44: =IFERROR(IF($AA$19=DATABASE!$B$2,VLOOKUP(H44,TABDESPENGETAHUAN,2),IF($AA$19=DATABASE!$B$3,VLOOKUP(H44,DESKPENGETAHUANSM1,DESKSM1!D20),"-")),"-") -> Kurang dapat memahami, hanya bisa menerapkan, menganalisis, dan mengeveluasi sebagian kecil kompetensi dasar. | M44: =NILSM1!AR5 -> 75 | N44: =VLOOKUP($AB$14,TABNILSM1,NILSM1!AR7) -> 75 | O44: D | P44: =IFERROR(IF($AA$19=DATABASE!$B$2,VLOOKUP(O44,TABDESKETERAMPILAN,2),IF($AA$19=DATABASE!$B$3,VLOOKUP(O44,DESKKETERAMPILANSM1,DESKSM1!D20),"-")),"-") -> Kurang aktif bertanya, mencoba, menalar dan kreatif dalam menyelesaikan tugas praktek.
A45: =NILSM1!AT4 -> 5 | B45: =NILSM1!AT2 -> Komputer dan Jaringan Dasar | F45: =NILSM1!AT5 -> 75 | G45: =VLOOKUP($AB$14,TABNILSM1,NILSM1!AT7) -> 75 | H45: D | I45: =IFERROR(IF($AA$19=DATABASE!$B$2,VLOOKUP(H45,TABDESPENGETAHUAN,2),IF($AA$19=DATABASE!$B$3,VLOOKUP(H45,DESKPENGETAHUANSM1,DESKSM1!D21),"-")),"-") -> Kurang dapat memahami, hanya bisa menerapkan, menganalisis, dan mengeveluasi sebagian kecil kompetensi dasar. | M45: =NILSM1!AU5 -> 75 | N45: =VLOOKUP($AB$14,TABNILSM1,NILSM1!AU7) -> 75 | O45: D | P45: =IFERROR(IF($AA$19=DATABASE!$B$2,VLOOKUP(O45,TABDESKETERAMPILAN,2),IF($AA$19=DATABASE!$B$3,VLOOKUP(O45,DESKKETERAMPILANSM1,DESKSM1!D21),"-")),"-") -> Kurang aktif bertanya, mencoba, menalar dan kreatif dalam menyelesaikan tugas praktek.
A46: =NILSM1!AW4 -> 6 | B46: =NILSM1!AW2 -> Pemrograman Dasar | F46: =NILSM1!AW5 -> 75 | G46: =VLOOKUP($AB$14,TABNILSM1,NILSM1!AW7) -> 75 | H46: D | I46: =IFERROR(IF($AA$19=DATABASE!$B$2,VLOOKUP(H46,TABDESPENGETAHUAN,2),IF($AA$19=DATABASE!$B$3,VLOOKUP(H46,DESKPENGETAHUANSM1,DESKSM1!D22),"-")),"-") -> Kurang dapat memahami, hanya bisa menerapkan, menganalisis, dan mengeveluasi sebagian kecil kompetensi dasar. | M46: =NILSM1!AX5 -> 75 | N46: =VLOOKUP($AB$14,TABNILSM1,NILSM1!AX7) -> 75 | O46: D | P46: =IFERROR(IF($AA$19=DATABASE!$B$2,VLOOKUP(O46,TABDESKETERAMPILAN,2),IF($AA$19=DATABASE!$B$3,VLOOKUP(O46,DESKKETERAMPILANSM1,DESKSM1!D22),"-")),"-") -> Kurang aktif bertanya, mencoba, menalar dan kreatif dalam menyelesaikan tugas praktek.
A47: =NILSM1!AZ4 -> 7 | B47: =NILSM1!AZ2 -> Dasar Desain Grafis | F47: =NILSM1!AZ5 -> 0 | G47: =VLOOKUP($AB$14,TABNILSM1,NILSM1!AZ7) -> - | H47: - | I47: =IFERROR(IF($AA$19=DATABASE!$B$2,VLOOKUP(H47,TABDESPENGETAHUAN,2),IF($AA$19=DATABASE!$B$3,VLOOKUP(H47,DESKPENGETAHUANSM1,DESKSM1!D23),"-")),"-") -> - | M47: =NILSM1!BA5 -> 0 | N47: =VLOOKUP($AB$14,TABNILSM1,NILSM1!BA7) -> - | O47: - | P47: =IFERROR(IF($AA$19=DATABASE!$B$2,VLOOKUP(O47,TABDESKETERAMPILAN,2),IF($AA$19=DATABASE!$B$3,VLOOKUP(O47,DESKKETERAMPILANSM1,DESKSM1!D23),"-")),"-") -> -
A48: C3 | B48: Paket Keahlian
A49: =NILSM1!BC4 -> 1 | B49: =NILSM1!BC2 -> - | F49: =NILSM1!BC5 -> 0 | G49: =VLOOKUP($AB$14,TABNILSM1,NILSM1!BC7) -> - | H49: - | I49: =IFERROR(IF($AA$19=DATABASE!$B$2,VLOOKUP(H49,TABDESPENGETAHUAN,2),IF($AA$19=DATABASE!$B$3,VLOOKUP(H49,DESKPENGETAHUANSM1,DESKSM1!D24),"-")),"-") -> - | M49: =NILSM1!BD5 -> 0 | N49: =VLOOKUP($AB$14,TABNILSM1,NILSM1!BD7) -> - | O49: - | P49: =IFERROR(IF($AA$19=DATABASE!$B$2,VLOOKUP(O49,TABDESKETERAMPILAN,2),IF($AA$19=DATABASE!$B$3,VLOOKUP(O49,DESKKETERAMPILANSM1,DESKSM1!D24),"-")),"-") -> -
A50: =NILSM1!BF4 -> 2 | B50: =NILSM1!BF2 -> - | F50: =NILSM1!BF5 -> 0 | G50: =VLOOKUP($AB$14,TABNILSM1,NILSM1!BF7) -> - | H50: =IFERROR(VLOOKUP(G50,TABEL_NILAI,4),"-") -> - | I50: =IFERROR(IF($AA$19=DATABASE!$B$2,VLOOKUP(H50,TABDESPENGETAHUAN,2),IF($AA$19=DATABASE!$B$3,VLOOKUP(H50,DESKMANUPENGETAHUAN,2),"-")),"-") -> - | M50: =NILSM1!BG5 -> 0 | N50: =VLOOKUP($AB$14,TABNILSM1,NILSM1!BG7) -> - | O50: =IFERROR(VLOOKUP(N50,TABEL_NILAI,4),"-") -> - | P50: =IFERROR(IF($AA$19=DATABASE!$B$2,VLOOKUP(O50,TABDESKETERAMPILAN,2),IF($AA$19=DATABASE!$B$3,VLOOKUP(O50,DESKMANUKETERAMPILAN,2),"-")),"-") -> -
A51: =NILSM1!BI4 -> 3 | B51: =NILSM1!BI2 -> - | F51: =NILSM1!BI5 -> 0 | G51: =VLOOKUP($AB$14,TABNILSM1,NILSM1!BI7) -> - | H51: - | I51: =IFERROR(IF($AA$19=DATABASE!$B$2,VLOOKUP(H51,TABDESPENGETAHUAN,2),IF($AA$19=DATABASE!$B$3,VLOOKUP(H51,DESKMANUPENGETAHUAN,2),"-")),"-") -> - | M51: =NILSM1!BJ5 -> 0 | N51: =VLOOKUP($AB$14,TABNILSM1,NILSM1!BJ7) -> - | O51: - | P51: =IFERROR(IF($AA$19=DATABASE!$B$2,VLOOKUP(O51,TABDESKETERAMPILAN,2),IF($AA$19=DATABASE!$B$3,VLOOKUP(O51,DESKMANUKETERAMPILAN,2),"-")),"-") -> -
A52: =NILSM1!BL4 -> 4 | B52: =NILSM1!BL2 -> - | F52: =NILSM1!BL5 -> 0 | G52: =VLOOKUP($AB$14,TABNILSM1,NILSM1!BL7) -> - | H52: - | I52: =IFERROR(IF($AA$19=DATABASE!$B$2,VLOOKUP(H52,TABDESPENGETAHUAN,2),IF($AA$19=DATABASE!$B$3,VLOOKUP(H52,DESKMANUPENGETAHUAN,2),"-")),"-") -> - | M52: =NILSM1!BM5 -> 0 | N52: =VLOOKUP($AB$14,TABNILSM1,NILSM1!BM7) -> - | O52: - | P52: =IFERROR(IF($AA$19=DATABASE!$B$2,VLOOKUP(O52,TABDESKETERAMPILAN,2),IF($AA$19=DATABASE!$B$3,VLOOKUP(O52,DESKMANUKETERAMPILAN,2),"-")),"-") -> -
A53: =NILSM1!BO4 -> 5 | B53: =NILSM1!BO2 -> - | F53: =NILSM1!BO5 -> 0 | G53: =VLOOKUP($AB$14,TABNILSM1,NILSM1!BO7) -> - | H53: - | I53: =IFERROR(IF($AA$19=DATABASE!$B$2,VLOOKUP(H53,TABDESPENGETAHUAN,2),IF($AA$19=DATABASE!$B$3,VLOOKUP(H53,DESKMANUPENGETAHUAN,2),"-")),"-") -> - | M53: =NILSM1!BP5 -> 0 | N53: =VLOOKUP($AB$14,TABNILSM1,NILSM1!BP7) -> - | O53: - | P53: =IFERROR(IF($AA$19=DATABASE!$B$2,VLOOKUP(O53,TABDESKETERAMPILAN,2),IF($AA$19=DATABASE!$B$3,VLOOKUP(O53,DESKMANUKETERAMPILAN,2),"-")),"-") -> -
A54: =NILSM1!BR4 -> 6 | B54: =NILSM1!BR2 -> - | F54: =NILSM1!BR5 -> 0 | G54: =VLOOKUP($AB$14,TABNILSM1,NILSM1!BR7) -> - | H54: - | I54: =IFERROR(IF($AA$19=DATABASE!$B$2,VLOOKUP(H54,TABDESPENGETAHUAN,2),IF($AA$19=DATABASE!$B$3,VLOOKUP(H54,DESKMANUPENGETAHUAN,2),"-")),"-") -> - | M54: =NILSM1!BS5 -> 0 | N54: =VLOOKUP($AB$14,TABNILSM1,NILSM1!BS7) -> - | O54: - | P54: =IFERROR(IF($AA$19=DATABASE!$B$2,VLOOKUP(O54,TABDESKETERAMPILAN,2),IF($AA$19=DATABASE!$B$3,VLOOKUP(O54,DESKMANUKETERAMPILAN,2),"-")),"-") -> -
A55: =NILSM1!BU4 -> - | B55: =NILSM1!BU2 -> - | F55: =NILSM1!BU5 -> 0 | G55: =VLOOKUP($AB$14,TABNILSM1,NILSM1!BU7) -> - | H55: - | I55: =IFERROR(IF($AA$19=DATABASE!$B$2,VLOOKUP(H55,TABDESPENGETAHUAN,2),IF($AA$19=DATABASE!$B$3,VLOOKUP(H55,DESKMANUPENGETAHUAN,2),"-")),"-") -> - | M55: =NILSM1!BV5 -> 0 | N55: =VLOOKUP($AB$14,TABNILSM1,NILSM1!BV7) -> - | O55: - | P55: =IFERROR(IF($AA$19=DATABASE!$B$2,VLOOKUP(O55,TABDESKETERAMPILAN,2),IF($AA$19=DATABASE!$B$3,VLOOKUP(O55,DESKMANUKETERAMPILAN,2),"-")),"-") -> -
B56: Rata-rata | G56: =VLOOKUP($AB$14,TABNILSM1,NILSM1!DO7) -> 79 | H56: =VLOOKUP(G56,TABEL_NILAI,4) -> C | N56: =VLOOKUP($AB$14,TABNILSM1,NILSM1!DP7) -> 79 | O56: =VLOOKUP(N56,TABEL_NILAI,4) -> C | Q56: Total Nilai : | T56: Peringkat di Kelas :
B57: Jumlah Nilai | G57: =VLOOKUP($AB$14,TABNILSM1,NILSM1!DQ7) -> 1260 | N57: =VLOOKUP($AB$14,TABNILSM1,NILSM1!DR7) -> 1266 | Q57: =VLOOKUP($AB$14,TABNILSM1,NILSM1!DS7) -> 2526 | T57: =IF(VLOOKUP($AB$14,TABNILSM1,NILSM1!DU7)="","-",VLOOKUP($AB$14,TABNILSM1,NILSM1!DU7)&" dari "&VLOOKUP($AB$14,TABNILSM1,NILSM1!DV7)) -> 1 dari 36
A59: C. Praktek Kerja Lapangan | M59: D. Ekstrakurikuler
A60: No. | B60: Mitra DU/DI | G60: Lokasi | J60: Lamanya (Bulan) | K60: Keterangan | M60: No. | N60: Kegiatan Ekstrakurikuler | R60: Keterangan | AA60: =D8 -> AL KINDI
A61: 1 | B61: =IF(VLOOKUP($AB$14,TABNILSM1,NILSM1!CQ7)="","-",VLOOKUP($AB$14,TABNILSM1,NILSM1!CQ7)) -> Dinas Bina Marga | G61: =IF(VLOOKUP($AB$14,TABNILSM1,NILSM1!CR7)="","-",VLOOKUP($AB$14,TABNILSM1,NILSM1!CR7)) -> Karawang | J61: =IF(VLOOKUP($AB$14,TABNILSM1,NILSM1!CS7)="","-",VLOOKUP($AB$14,TABNILSM1,NILSM1!CS7)) -> 3 | K61: =IF(VLOOKUP($AB$14,TABNILSM1,NILSM1!CT7)="","-",VLOOKUP($AB$14,TABNILSM1,NILSM1!CT7)) -> Baik | M61: 1 | N61: =IF(VLOOKUP($AB$14,TABNILSM1,NILSM1!CY7)="","-",VLOOKUP($AB$14,TABNILSM1,NILSM1!CY7)) -> Rohis | R61: =IF(VLOOKUP($AB$14,TABNILSM1,NILSM1!CZ7)="","-",VLOOKUP(W61,TABNESKUL,2,FALSE)) -> Baik, berprestasi, disiplin dan rajin berlatih | W61: =VLOOKUP($AB$14,TABNILSM1,NILSM1!CZ7) -> B
M62: 2 | N62: =IF(VLOOKUP($AB$14,TABNILSM1,NILSM1!DA7)="","-",VLOOKUP($AB$14,TABNILSM1,NILSM1!DA7)) -> OSIS | R62: =IF(VLOOKUP($AB$14,TABNILSM1,NILSM1!DB7)="","-",VLOOKUP(W62,TABNESKUL,2,FALSE)) -> Baik, berprestasi, disiplin dan rajin berlatih | W62: =VLOOKUP($AB$14,TABNILSM1,NILSM1!DB7) -> B
A63: 2 | B63: =IF(VLOOKUP($AB$14,TABNILSM1,NILSM1!CU7)="","-",VLOOKUP($AB$14,TABNILSM1,NILSM1!CU7)) -> Dinas Perhubungan | G63: =IF(VLOOKUP($AB$14,TABNILSM1,NILSM1!CV7)="","-",VLOOKUP($AB$14,TABNILSM1,NILSM1!CV7)) -> Karawang | J63: =IF(VLOOKUP($AB$14,TABNILSM1,NILSM1!CW7)="","-",VLOOKUP($AB$14,TABNILSM1,NILSM1!CW7)) -> 3 | K63: =IF(VLOOKUP($AB$14,TABNILSM1,NILSM1!CX7)="","-",VLOOKUP($AB$14,TABNILSM1,NILSM1!CX7)) -> Sangat Baik | M63: 3 | N63: =IF(VLOOKUP($AB$14,TABNILSM1,NILSM1!DC7)="","-",VLOOKUP($AB$14,TABNILSM1,NILSM1!DC7)) -> Palang Merah Remaja | R63: =IF(VLOOKUP($AB$14,TABNILSM1,NILSM1!DD7)="","-",VLOOKUP(W63,TABNESKUL,2,FALSE)) -> Baik, berprestasi, disiplin dan rajin berlatih | W63: =VLOOKUP($AB$14,TABNILSM1,NILSM1!DD7) -> B | AA63: ="Nomor Urut "&AB14 -> Nomor Urut 2

Sheet LEGGER2
A1: PEMERINTAH DAERAH PROVINSI JAWA BARAT
A2: DINAS PENDIDIKAN
A3: SMKN 1 KARAWANG
A4: Jl. Pangkal Perjuangan By Pass Karawang Telp.0267-401651 Fax.417258 Website : www.smkn1karawang.net Email : smkn1karawang@gmail.com
A6: ="LEGER NILAI SISWA TAHUN PELAJARAN "&MENU!I12 -> LEGER NILAI SISWA TAHUN PELAJARAN 2017 / 2018 | AB6: HALAMAN CETAK
AB7: Dari data ke | AC7: 2
A8: Nama Siswa | C8: : | D8: =VLOOKUP($AC$14,TABNILSM2,NILSM2!B7) -> AL KINDI | M8: Bidang Keahlian | Q8: : | R8: =KET.PETUNJUK!D18 -> TEKNOLOGI INFORMASI DAN KOMUNIKASI
A9: Nomor Induk/NISN | C9: : | D9: =IF(VLOOKUP($AC$14,TABBIODATA,BIODATA!E4)="",VLOOKUP($AC$14,TABBIODATA,BIODATA!D4),VLOOKUP($AC$14,TABBIODATA,BIODATA!D4)&" / "&VLOOKUP($AC$14,TABBIODATA,BIODATA!E4)) -> 13140768 / 9973289804 | M9: Program Keahlian | Q9: : | R9: =KET.PETUNJUK!D19 -> TEKNIK KOMPUTER DAN INFORMATIKA | AB9: Sampai data ke | AC9: 2
A10: Kelas/Semester | C10: : | D10: =X10&" / "&X11 -> X TKRO 1 / 2 (dua) | M10: Paket Keahlian | Q10: : | R10: =KET.PETUNJUK!D20 -> TEKNIK KOMPUTER JARINGAN | X10: =IF(OR(X11="1 (satu)",X11="2 (dua)"),"X "&MENU!I9,IF(OR(X11="3 (tiga)",X11="4 (empat)"),"XI "&MENU!I9,IF(OR(X11="5 (lima)",X11="6 (enam)"),"XII "&MENU!I9,""))) -> X TKRO 1
A11: Wali Kelas | C11: : | D11: =NILSM2!B4 -> Sri Hartati,S.T | X11: =NILSM2!B3 -> 2 (dua)
A13: A. Nilai Sikap | N13: Prestasi | U13: Ketidakhadiran | AB13: TAMPILAN DATA
A14: No. | B14: Kompetensi Inti | D14: Deskripsi | N14: Jenis Prestasi | S14: Keterangan | U14: Sakit | V14: : | W14: =VLOOKUP($AC$14,TABNILSM2,NILSM2!DI7) -> 3 | X14: 2 | AB14: Nomor Urut | AC14: 2
A15: 1 | B15: Spiritual (KI-1) | D15: =IFERROR(VLOOKUP(X15,TABDESSPIRITUAL,2),"-") -> Baik, dapat menerima, menjalankan, menghargai, menghayati dan mengamalkan ajaran agama yang dianut. | N15: =IFERROR(VLOOKUP($AC$14,TABNILSM2,NILSM2!DE7),"-") -> Juara 1 LKS Jawa Barat | S15: =IFERROR(VLOOKUP($AC$14,TABNILSM2,NILSM2!DF7),"-") -> 0 | U15: Izin | V15: : | W15: =VLOOKUP($AC$14,TABNILSM2,NILSM2!DJ7) -> - | X15: =VLOOKUP($AC$14,TABNILSM2,NILSM2!DL7) -> B
U16: Alpa | V16: : | W16: =VLOOKUP($AC$14,TABNILSM2,NILSM2!DK7) -> -
A17: 2 | B17: Sosial (KI-2) | D17: =IFERROR(VLOOKUP(X18,TABDESSOSIAL,2),"-") -> Sudah menunjukkan konsisten menerapkan sikap jujur, santun dan toleran dalam pergaulan, disiplin, kerjasama dalam kelompok dan tanggungjawab dalam keseharian sebagai hasil pembelajaran di sekolah. Tingkatkan sikap-sikap positif tersebut agar lebih baik.
N18: =IFERROR(VLOOKUP($AC$14,TABNILSM2,NILSM2!DG7),"-") -> - | S18: =IFERROR(VLOOKUP($AC$14,TABNILSM2,NILSM2!DH7),"-") -> - | U18: Kenaikan Kelas | X18: =VLOOKUP($AC$14,TABNILSM2,NILSM2!DM7) -> B | AB18: PILIHAN DESKRIPSI
U19: =IFERROR(VLOOKUP($AC$14,TABNILSM2,NILSM2!DW7),"-") -> NAIK KELAS | AB19: OTOMATIS
A22: B. Nilai Pengetahuan dan Keterampilan
A23: No. | B23: Mata Pelajaran | F23: Pengetahuan (KI-3) | M23: Keterampilan (KI-4)
F24: KB | G24: Angka | H24: Predikat | I24: Deskripsi | M24: KB | N24: Angka | O24: Predikat | P24: Deskripsi
A25: Muatan Nasional
A26: =NILSM2!D4 -> 1 | B26: =NILSM2!D2 -> Pendidikan Agama dan Budi Pekerti | F26: =NILSM2!D5 -> 75 | G26: =VLOOKUP($AC$14,TABNILSM2,NILSM2!D7) -> 75 | H26: =IFERROR(VLOOKUP(G26,TABEL_NILAI,4),"-") -> D | I26: =IFERROR(IF($AB$19=DATABASE!$B$2,VLOOKUP(H26,TABDESPENGETAHUAN,2),IF($AB$19=DATABASE!$B$3,VLOOKUP(H26,DESKPENGETAHUANSM2,DESKSM2!D3),"-")),"-") -> Kurang dapat memahami, hanya bisa menerapkan, menganalisis, dan mengeveluasi sebagian kecil kompetensi dasar. | M26: =NILSM2!E5 -> 75 | N26: =VLOOKUP($AC$14,TABNILSM2,NILSM2!E7) -> 75 | O26: =IFERROR(VLOOKUP(N26,TABEL_NILAI,4),"-") -> D | P26: =IFERROR(IF($AB$19=DATABASE!$B$2,VLOOKUP(O26,TABDESKETERAMPILAN,2),IF($AB$19=DATABASE!$B$3,VLOOKUP(O26,DESKKETERAMPILANSM2,DESKSM2!D3),"-")),"-") -> Kurang aktif bertanya, mencoba, menalar dan kreatif dalam menyelesaikan tugas praktek.
A27: =NILSM2!G4 -> 2 | B27: =NILSM2!G2 -> Pendidikan Pancasila dan Kewarganegaraan | F27: =NILSM2!G5 -> 75 | G27: =VLOOKUP($AC$14,TABNILSM2,NILSM2!G7) -> 83.25 | H27: =IFERROR(VLOOKUP(G27,TABEL_NILAI,4),"-") -> C | I27: =IFERROR(IF($AB$19=DATABASE!$B$2,VLOOKUP(H27,TABDESPENGETAHUAN,2),IF($AB$19=DATABASE!$B$3,VLOOKUP(H27,DESKPENGETAHUANSM2,DESKSM2!D4),"-")),"-") -> Cukup baik memahami sebagian kompetensi dasar, tetapi kurang bisa menerapkan, menganalisis dan mengevaluasinya. | M27: =NILSM2!H5 -> 75 | N27: =VLOOKUP($AC$14,TABNILSM2,NILSM2!H7) -> 83.25 | O27: C | P27: =IFERROR(IF($AB$19=DATABASE!$B$2,VLOOKUP(O27,TABDESKETERAMPILAN,2),IF($AB$19=DATABASE!$B$3,VLOOKUP(O27,DESKKETERAMPILANSM2,DESKSM2!D4),"-")),"-") -> Cukup aktif bertanya, mencoba, menalar dan kreatif dalam menyelesaikan tugas praktek
A28: =NILSM2!J4 -> 3 | B28: =NILSM2!J2 -> Bahasa Indonesia | F28: =NILSM2!J5 -> 75 | G28: =VLOOKUP($AC$14,TABNILSM2,NILSM2!J7) -> 75 | H28: D | I28: =IFERROR(IF($AB$19=DATABASE!$B$2,VLOOKUP(H28,TABDESPENGETAHUAN,2),IF($AB$19=DATABASE!$B$3,VLOOKUP(H28,DESKPENGETAHUANSM2,DESKSM2!D5),"-")),"-") -> Kurang dapat memahami, hanya bisa menerapkan, menganalisis, dan mengeveluasi sebagian kecil kompetensi dasar. | M28: =NILSM2!K5 -> 75 | N28: =VLOOKUP($AC$14,TABNILSM2,NILSM2!K7) -> 75 | O28: D | P28: =IFERROR(IF($AB$19=DATABASE!$B$2,VLOOKUP(O28,TABDESKETERAMPILAN,2),IF($AB$19=DATABASE!$B$3,VLOOKUP(O28,DESKKETERAMPILANSM2,DESKSM2!D5),"-")),"-") -> Kurang aktif bertanya, mencoba, menalar dan kreatif dalam menyelesaikan tugas praktek.
A29: =NILSM2!M4 -> 4 | B29: =NILSM2!M2 -> Matematika | F29: =NILSM2!M5 -> 75 | G29: =VLOOKUP($AC$14,TABNILSM2,NILSM2!M7) -> 75 | H29: D | I29: =IFERROR(IF($AB$19=DATABASE!$B$2,VLOOKUP(H29,TABDESPENGETAHUAN,2),IF($AB$19=DATABASE!$B$3,VLOOKUP(H29,DESKPENGETAHUANSM2,DESKSM2!D6),"-")),"-") -> Kurang dapat memahami, hanya bisa menerapkan, menganalisis, dan mengeveluasi sebagian kecil kompetensi dasar. | M29: =NILSM2!N5 -> 75 | N29: =VLOOKUP($AC$14,TABNILSM2,NILSM2!N7) -> 75 | O29: D | P29: =IFERROR(IF($AB$19=DATABASE!$B$2,VLOOKUP(O29,TABDESKETERAMPILAN,2),IF($AB$19=DATABASE!$B$3,VLOOKUP(O29,DESKKETERAMPILANSM2,DESKSM2!D6),"-")),"-") -> Kurang aktif bertanya, mencoba, menalar dan kreatif dalam menyelesaikan tugas praktek.
A30: =NILSM2!P4 -> 5 | B30: =NILSM2!P2 -> Sejarah Indonesia | F30: =NILSM2!P5 -> 75 | G30: =VLOOKUP($AC$14,TABNILSM2,NILSM2!P7) -> 75 | H30: D | I30: =IFERROR(IF($AB$19=DATABASE!$B$2,VLOOKUP(H30,TABDESPENGETAHUAN,2),IF($AB$19=DATABASE!$B$3,VLOOKUP(H30,DESKPENGETAHUANSM2,DESKSM2!D7),"-")),"-") -> Kurang dapat memahami, hanya bisa menerapkan, menganalisis, dan mengeveluasi sebagian kecil kompetensi dasar. | M30: =NILSM2!Q5 -> 75 | N30: =VLOOKUP($AC$14,TABNILSM2,NILSM2!Q7) -> 75 | O30: D | P30: =IFERROR(IF($AB$19=DATABASE!$B$2,VLOOKUP(O30,TABDESKETERAMPILAN,2),IF($AB$19=DATABASE!$B$3,VLOOKUP(O30,DESKKETERAMPILANSM2,DESKSM2!D7),"-")),"-") -> Kurang aktif bertanya, mencoba, menalar dan kreatif dalam menyelesaikan tugas praktek.
A31: =NILSM2!S4 -> 6 | B31: =NILSM2!S2 -> Bahasa Inggris | F31: =NILSM2!S5 -> 75 | G31: =VLOOKUP($AC$14,TABNILSM2,NILSM2!S7) -> 83.25 | H31: C | I31: =IFERROR(IF($AB$19=DATABASE!$B$2,VLOOKUP(H31,TABDESPENGETAHUAN,2),IF($AB$19=DATABASE!$B$3,VLOOKUP(H31,DESKPENGETAHUANSM2,DESKSM2!D8),"-")),"-") -> Cukup baik memahami sebagian kompetensi dasar, tetapi kurang bisa menerapkan, menganalisis dan mengevaluasinya. | M31: =NILSM2!T5 -> 75 | N31: =VLOOKUP($AC$14,TABNILSM2,NILSM2!T7) -> 75 | O31: D | P31: =IFERROR(IF($AB$19=DATABASE!$B$2,VLOOKUP(O31,TABDESKETERAMPILAN,2),IF($AB$19=DATABASE!$B$3,VLOOKUP(O31,DESKKETERAMPILANSM2,DESKSM2!D8),"-")),"-") -> Kurang aktif bertanya, mencoba, menalar dan kreatif dalam menyelesaikan tugas praktek.
A32: Muatan Kewilayahan
A33: =NILSM2!V4 -> 1 | B33: =NILSM2!V2 -> Seni Budaya | F33: =NILSM2!V5 -> 75 | G33: =VLOOKUP($AC$14,TABNILSM2,NILSM2!V7) -> 91.75 | H33: =IFERROR(VLOOKUP(G33,TABEL_NILAI,4),"-") -> B | I33: =IFERROR(IF($AB$19=DATABASE!$B$2,VLOOKUP(H33,TABDESPENGETAHUAN,2),IF($AB$19=DATABASE!$B$3,VLOOKUP(H33,DESKPENGETAHUANSM2,DESKSM2!D10),"-")),"-") -> Baik dalam memahami, menerapkan, menganalisis dan mengevaluasi sebagian besar kompetensi dasar. | M33: =NILSM2!W5 -> 75 | N33: =VLOOKUP($AC$14,TABNILSM2,NILSM2!W7) -> 83.25 | O33: =IFERROR(VLOOKUP(N33,TABEL_NILAI,4),"-") -> C | P33: =IFERROR(IF($AB$19=DATABASE!$B$2,VLOOKUP(O33,TABDESKETERAMPILAN,2),IF($AB$19=DATABASE!$B$3,VLOOKUP(O33,DESKKETERAMPILANSM2,DESKSM2!D10),"-")),"-") -> Cukup aktif bertanya, mencoba, menalar dan kreatif dalam menyelesaikan tugas praktek
A34: =NILSM2!Y4 -> 2 | B34: =NILSM2!Y2 -> Pendidikan Jasmani, Olah Raga & Kesehatan | F34: =NILSM2!Y5 -> 75 | G34: =VLOOKUP($AC$14,TABNILSM2,NILSM2!Y7) -> 75 | H34: =IFERROR(VLOOKUP(G34,TABEL_NILAI,4),"-") -> D | I34: =IFERROR(IF($AB$19=DATABASE!$B$2,VLOOKUP(H34,TABDESPENGETAHUAN,2),IF($AB$19=DATABASE!$B$3,VLOOKUP(H34,DESKPENGETAHUANSM2,DESKSM2!D11),"-")),"-") -> Kurang dapat memahami, hanya bisa menerapkan, menganalisis, dan mengeveluasi sebagian kecil kompetensi dasar. | M34: =NILSM2!Z5 -> 75 | N34: =VLOOKUP($AC$14,TABNILSM2,NILSM2!Z7) -> 75 | O34: =IFERROR(VLOOKUP(N34,TABEL_NILAI,4),"-") -> D | P34: =IFERROR(IF($AB$19=DATABASE!$B$2,VLOOKUP(O34,TABDESKETERAMPILAN,2),IF($AB$19=DATABASE!$B$3,VLOOKUP(O34,DESKKETERAMPILANSM2,DESKSM2!D11),"-")),"-") -> Kurang aktif bertanya, mencoba, menalar dan kreatif dalam menyelesaikan tugas praktek.
B35: Muatan Lokal
A36: =NILSM2!AB4 -> 3 | B36: =NILSM2!AB2 -> Bahasa dan Sastra Sunda | F36: =NILSM2!AB5 -> 75 | G36: =VLOOKUP($AC$14,TABNILSM2,NILSM2!AB7) -> 83.25 | H36: =IFERROR(VLOOKUP(G36,TABEL_NILAI,4),"-") -> C | I36: =IFERROR(IF($AB$19=DATABASE!$B$2,VLOOKUP(H36,TABDESPENGETAHUAN,2),IF($AB$19=DATABASE!$B$3,VLOOKUP(H36,DESKPENGETAHUANSM2,DESKSM2!D12),"-")),"-") -> Cukup baik memahami sebagian kompetensi dasar, tetapi kurang bisa menerapkan, menganalisis dan mengevaluasinya. | M36: =NILSM2!AC5 -> 75 | N36: =VLOOKUP($AC$14,TABNILSM2,NILSM2!AC7) -> 91.5 | O36: =IFERROR(VLOOKUP(N36,TABEL_NILAI,4),"-") -> B | P36: =IFERROR(IF($AB$19=DATABASE!$B$2,VLOOKUP(O36,TABDESKETERAMPILAN,2),IF($AB$19=DATABASE!$B$3,VLOOKUP(O36,DESKKETERAMPILANSM2,DESKSM2!D12),"-")),"-") -> Baik dan aktif bertanya, mencoba, menalar dan kreatif dalam menyelesaikan sebagian besar tugas praktek.
A37: =NILSM2!AE4 -> 4 | B37: =NILSM2!AE2 -> PLH | F37: =NILSM2!AE5 -> 75 | G37: =VLOOKUP($AC$14,TABNILSM2,NILSM2!AE7) -> 75 | H37: =IFERROR(VLOOKUP(G37,TABEL_NILAI,4),"-") -> D | I37: =IFERROR(IF($AB$19=DATABASE!$B$2,VLOOKUP(H37,TABDESPENGETAHUAN,2),IF($AB$19=DATABASE!$B$3,VLOOKUP(H37,DESKPENGETAHUANSM2,DESKSM2!D15),"-")),"-") -> Kurang dapat memahami, hanya bisa menerapkan, menganalisis, dan mengeveluasi sebagian kecil kompetensi dasar. | M37: =NILSM2!AF5 -> 75 | N37: =VLOOKUP($AC$14,TABNILSM2,NILSM2!AF7) -> 83.25 | O37: =IFERROR(VLOOKUP(N37,TABEL_NILAI,4),"-") -> C | P37: =IFERROR(IF($AB$19=DATABASE!$B$2,VLOOKUP(O37,TABDESKETERAMPILAN,2),IF($AB$19=DATABASE!$B$3,VLOOKUP(O37,DESKKETERAMPILANSM2,DESKSM2!D15),"-")),"-") -> Cukup aktif bertanya, mencoba, menalar dan kreatif dalam menyelesaikan tugas praktek
A38: Muatan Peminatan Kejuruan
A39: C1 | B39: Dasar Bidang Keahlian
A40: =NILSM2!AH4 -> 1 | B40: =NILSM2!AH2 -> Simulasi dan Komunikasi Digital | F40: =NILSM2!AH5 -> 75 | G40: =VLOOKUP($AC$14,TABNILSM2,NILSM2!AH7) -> 75 | H40: =IFERROR(VLOOKUP(G40,TABEL_NILAI,4),"-") -> D | I40: =IFERROR(IF($AB$19=DATABASE!$B$2,VLOOKUP(H40,TABDESPENGETAHUAN,2),IF($AB$19=DATABASE!$B$3,VLOOKUP(H40,DESKPENGETAHUANSM2,DESKSM2!D16),"-")),"-") -> Kurang dapat memahami, hanya bisa menerapkan, menganalisis, dan mengeveluasi sebagian kecil kompetensi dasar. | M40: =NILSM2!AI5 -> 75 | N40: =VLOOKUP($AC$14,TABNILSM2,NILSM2!AI7) -> 75 | O40: =IFERROR(VLOOKUP(N40,TABEL_NILAI,4),"-") -> D | P40: =IFERROR(IF($AB$19=DATABASE!$B$2,VLOOKUP(O40,TABDESKETERAMPILAN,2),IF($AB$19=DATABASE!$B$3,VLOOKUP(O40,DESKKETERAMPILANSM2,DESKSM2!D16),"-")),"-") -> Kurang aktif bertanya, mencoba, menalar dan kreatif dalam menyelesaikan tugas praktek.
A41: =NILSM2!AK4 -> 2 | B41: =NILSM2!AK2 -> Fisika | F41: =NILSM2!AK5 -> 75 | G41: =VLOOKUP($AC$14,TABNILSM2,NILSM2!AK7) -> 83.25 | H41: =IFERROR(VLOOKUP(G41,TABEL_NILAI,4),"-") -> C | I41: =IFERROR(IF($AB$19=DATABASE!$B$2,VLOOKUP(H41,TABDESPENGETAHUAN,2),IF($AB$19=DATABASE!$B$3,VLOOKUP(H41,DESKPENGETAHUANSM2,DESKSM2!D17),"-")),"-") -> Cukup baik memahami sebagian kompetensi dasar, tetapi kurang bisa menerapkan, menganalisis dan mengevaluasinya. | M41: =NILSM2!AL5 -> 75 | N41: =VLOOKUP($AC$14,TABNILSM2,NILSM2!AL7) -> 83.25 | O41: =IFERROR(VLOOKUP(N41,TABEL_NILAI,4),"-") -> C | P41: =IFERROR(IF($AB$19=DATABASE!$B$2,VLOOKUP(O41,TABDESKETERAMPILAN,2),IF($AB$19=DATABASE!$B$3,VLOOKUP(O41,DESKKETERAMPILANSM2,DESKSM2!D17),"-")),"-") -> Cukup aktif bertanya, mencoba, menalar dan kreatif dalam menyelesaikan tugas praktek
A42: =NILSM2!AN4 -> 3 | B42: =NILSM2!AN2 -> Kimia | F42: =NILSM2!AN5 -> 75 | G42: =VLOOKUP($AC$14,TABNILSM2,NILSM2!AN7) -> 83.25 | H42: =IFERROR(VLOOKUP(G42,TABEL_NILAI,4),"-") -> C | I42: =IFERROR(IF($AB$19=DATABASE!$B$2,VLOOKUP(H42,TABDESPENGETAHUAN,2),IF($AB$19=DATABASE!$B$3,VLOOKUP(H42,DESKPENGETAHUANSM2,DESKSM2!D19),"-")),"-") -> Cukup baik memahami sebagian kompetensi dasar, tetapi kurang bisa menerapkan, menganalisis dan mengevaluasinya. | M42: =NILSM2!AO5 -> 75 | N42: =VLOOKUP($AC$14,TABNILSM2,NILSM2!AO7) -> 75 | O42: =IFERROR(VLOOKUP(N42,TABEL_NILAI,4),"-") -> D | P42: =IFERROR(IF($AB$19=DATABASE!$B$2,VLOOKUP(O42,TABDESKETERAMPILAN,2),IF($AB$19=DATABASE!$B$3,VLOOKUP(O42,DESKKETERAMPILANSM2,DESKSM2!D19),"-")),"-") -> Kurang aktif bertanya, mencoba, menalar dan kreatif dalam menyelesaikan tugas praktek.
A43: C2 | B43: Dasar Program Keahlian
A44: =NILSM2!AQ4 -> 4 | B44: =NILSM2!AQ2 -> Sistem Komputer | F44: =NILSM2!AQ5 -> 75 | G44: =VLOOKUP($AC$14,TABNILSM2,NILSM2!AQ7) -> 75 | H44: D | I44: =IFERROR(IF($AB$19=DATABASE!$B$2,VLOOKUP(H44,TABDESPENGETAHUAN,2),IF($AB$19=DATABASE!$B$3,VLOOKUP(H44,DESKPENGETAHUANSM2,DESKSM2!D20),"-")),"-") -> Kurang dapat memahami, hanya bisa menerapkan, menganalisis, dan mengeveluasi sebagian kecil kompetensi dasar. | M44: =NILSM2!AR5 -> 75 | N44: =VLOOKUP($AC$14,TABNILSM2,NILSM2!AR7) -> 75 | O44: D | P44: =IFERROR(IF($AB$19=DATABASE!$B$2,VLOOKUP(O44,TABDESKETERAMPILAN,2),IF($AB$19=DATABASE!$B$3,VLOOKUP(O44,DESKKETERAMPILANSM2,DESKSM2!D20),"-")),"-") -> Kurang aktif bertanya, mencoba, menalar dan kreatif dalam menyelesaikan tugas praktek.
A45: =NILSM2!AT4 -> 5 | B45: =NILSM2!AT2 -> Komputer dan Jaringan Dasar | F45: =NILSM2!AT5 -> 75 | G45: =VLOOKUP($AC$14,TABNILSM2,NILSM2!AT7) -> 83.25 | H45: C | I45: =IFERROR(IF($AB$19=DATABASE!$B$2,VLOOKUP(H45,TABDESPENGETAHUAN,2),IF($AB$19=DATABASE!$B$3,VLOOKUP(H45,DESKPENGETAHUANSM2,DESKSM2!D21),"-")),"-") -> Cukup baik memahami sebagian kompetensi dasar, tetapi kurang bisa menerapkan, menganalisis dan mengevaluasinya. | M45: =NILSM2!AU5 -> 75 | N45: =VLOOKUP($AC$14,TABNILSM2,NILSM2!AU7) -> 83.25 | O45: C | P45: =IFERROR(IF($AB$19=DATABASE!$B$2,VLOOKUP(O45,TABDESKETERAMPILAN,2),IF($AB$19=DATABASE!$B$3,VLOOKUP(O45,DESKKETERAMPILANSM2,DESKSM2!D21),"-")),"-") -> Cukup aktif bertanya, mencoba, menalar dan kreatif dalam menyelesaikan tugas praktek
A46: =NILSM2!AW4 -> 6 | B46: =NILSM2!AW2 -> Pemrograman Dasar | F46: =NILSM2!AW5 -> 75 | G46: =VLOOKUP($AC$14,TABNILSM2,NILSM2!AW7) -> 75 | H46: D | I46: =IFERROR(IF($AB$19=DATABASE!$B$2,VLOOKUP(H46,TABDESPENGETAHUAN,2),IF($AB$19=DATABASE!$B$3,VLOOKUP(H46,DESKPENGETAHUANSM2,DESKSM2!D22),"-")),"-") -> Kurang dapat memahami, hanya bisa menerapkan, menganalisis, dan mengeveluasi sebagian kecil kompetensi dasar. | M46: =NILSM2!AX5 -> 75 | N46: =VLOOKUP($AC$14,TABNILSM2,NILSM2!AX7) -> 75 | O46: D | P46: =IFERROR(IF($AB$19=DATABASE!$B$2,VLOOKUP(O46,TABDESKETERAMPILAN,2),IF($AB$19=DATABASE!$B$3,VLOOKUP(O46,DESKKETERAMPILANSM2,DESKSM2!D22),"-")),"-") -> Kurang aktif bertanya, mencoba, menalar dan kreatif dalam menyelesaikan tugas praktek.
A47: =NILSM2!AZ4 -> 7 | B47: =NILSM2!AZ2 -> Dasar Desain Grafis | F47: =NILSM2!AZ5 -> 75 | G47: =VLOOKUP($AC$14,TABNILSM2,NILSM2!AZ7) -> - | H47: - | I47: =IFERROR(IF($AB$19=DATABASE!$B$2,VLOOKUP(H47,TABDESPENGETAHUAN,2),IF($AB$19=DATABASE!$B$3,VLOOKUP(H47,DESKPENGETAHUANSM2,DESKSM2!D23),"-")),"-") -> - | M47: =NILSM2!BA5 -> 75 | N47: =VLOOKUP($AC$14,TABNILSM2,NILSM2!BA7) -> - | O47: - | P47: =IFERROR(IF($AB$19=DATABASE!$B$2,VLOOKUP(O47,TABDESKETERAMPILAN,2),IF($AB$19=DATABASE!$B$3,VLOOKUP(O47,DESKKETERAMPILANSM2,DESKSM2!D23),"-")),"-") -> -
A48: C3 | B48: Paket Keahlian
A49: =NILSM2!BC4 -> 1 | B49: =NILSM2!BC2 -> - | F49: =NILSM2!BC5 -> 75 | G49: =VLOOKUP($AC$14,TABNILSM2,NILSM2!BC7) -> - | H49: - | I49: =IFERROR(IF($AB$19=DATABASE!$B$2,VLOOKUP(H49,TABDESPENGETAHUAN,2),IF($AB$19=DATABASE!$B$3,VLOOKUP(H49,DESKPENGETAHUANSM2,DESKSM2!D24),"-")),"-") -> - | M49: =NILSM2!BD5 -> 75 | N49: =VLOOKUP($AC$14,TABNILSM2,NILSM2!BD7) -> - | O49: - | P49: =IFERROR(IF($AB$19=DATABASE!$B$2,VLOOKUP(O49,TABDESKETERAMPILAN,2),IF($AB$19=DATABASE!$B$3,VLOOKUP(O49,DESKKETERAMPILANSM2,DESKSM2!D24),"-")),"-") -> -
A50: =NILSM2!BF4 -> 2 | B50: =NILSM2!BF2 -> - | F50: =NILSM2!BF5 -> 75 | G50: =VLOOKUP($AC$14,TABNILSM2,NILSM2!BF7) -> - | H50: - | I50: =IFERROR(IF($AB$19=DATABASE!$B$2,VLOOKUP(H50,TABDESPENGETAHUAN,2),IF($AB$19=DATABASE!$B$3,VLOOKUP(H50,DESKMANUPENGETAHUAN,2),"-")),"-") -> - | M50: =NILSM2!BG5 -> 75 | N50: =VLOOKUP($AC$14,TABNILSM2,NILSM2!BG7) -> - | O50: - | P50: =IFERROR(IF($AB$19=DATABASE!$B$2,VLOOKUP(O50,TABDESKETERAMPILAN,2),IF($AB$19=DATABASE!$B$3,VLOOKUP(O50,DESKMANUKETERAMPILAN,2),"-")),"-") -> -
A51: =NILSM2!BI4 -> 3 | B51: =NILSM2!BI2 -> - | F51: =NILSM2!BI5 -> 75 | G51: =VLOOKUP($AC$14,TABNILSM2,NILSM2!BI7) -> - | H51: - | I51: =IFERROR(IF($AB$19=DATABASE!$B$2,VLOOKUP(H51,TABDESPENGETAHUAN,2),IF($AB$19=DATABASE!$B$3,VLOOKUP(H51,DESKMANUPENGETAHUAN,2),"-")),"-") -> - | M51: =NILSM2!BJ5 -> 75 | N51: =VLOOKUP($AC$14,TABNILSM2,NILSM2!BJ7) -> - | O51: - | P51: =IFERROR(IF($AB$19=DATABASE!$B$2,VLOOKUP(O51,TABDESKETERAMPILAN,2),IF($AB$19=DATABASE!$B$3,VLOOKUP(O51,DESKMANUKETERAMPILAN,2),"-")),"-") -> -
A52: =NILSM2!BL4 -> 4 | B52: =NILSM2!BL2 -> - | F52: =NILSM2!BL5 -> 75 | G52: =VLOOKUP($AC$14,TABNILSM2,NILSM2!BL7) -> - | H52: - | I52: =IFERROR(IF($AB$19=DATABASE!$B$2,VLOOKUP(H52,TABDESPENGETAHUAN,2),IF($AB$19=DATABASE!$B$3,VLOOKUP(H52,DESKMANUPENGETAHUAN,2),"-")),"-") -> - | M52: =NILSM2!BM5 -> 75 | N52: =VLOOKUP($AC$14,TABNILSM2,NILSM2!BM7) -> - | O52: - | P52: =IFERROR(IF($AB$19=DATABASE!$B$2,VLOOKUP(O52,TABDESKETERAMPILAN,2),IF($AB$19=DATABASE!$B$3,VLOOKUP(O52,DESKMANUKETERAMPILAN,2),"-")),"-") -> -
A53: =NILSM2!BO4 -> 5 | B53: =NILSM2!BO2 -> - | F53: =NILSM2!BO5 -> 75 | G53: =VLOOKUP($AC$14,TABNILSM2,NILSM2!BO7) -> - | H53: - | I53: =IFERROR(IF($AB$19=DATABASE!$B$2,VLOOKUP(H53,TABDESPENGETAHUAN,2),IF($AB$19=DATABASE!$B$3,VLOOKUP(H53,DESKMANUPENGETAHUAN,2),"-")),"-") -> - | M53: =NILSM2!BP5 -> 75 | N53: =VLOOKUP($AC$14,TABNILSM2,NILSM2!BP7) -> - | O53: - | P53: =IFERROR(IF($AB$19=DATABASE!$B$2,VLOOKUP(O53,TABDESKETERAMPILAN,2),IF($AB$19=DATABASE!$B$3,VLOOKUP(O53,DESKMANUKETERAMPILAN,2),"-")),"-") -> -
A54: =NILSM2!BR4 -> 6 | B54: =NILSM2!BR2 -> - | F54: =NILSM2!BR5 -> 75 | G54: =VLOOKUP($AC$14,TABNILSM2,NILSM2!BR7) -> - | H54: - | I54: =IFERROR(IF($AB$19=DATABASE!$B$2,VLOOKUP(H54,TABDESPENGETAHUAN,2),IF($AB$19=DATABASE!$B$3,VLOOKUP(H54,DESKMANUPENGETAHUAN,2),"-")),"-") -> - | M54: =NILSM2!BS5 -> 75 | N54: =VLOOKUP($AC$14,TABNILSM2,NILSM2!BS7) -> - | O54: - | P54: =IFERROR(IF($AB$19=DATABASE!$B$2,VLOOKUP(O54,TABDESKETERAMPILAN,2),IF($AB$19=DATABASE!$B$3,VLOOKUP(O54,DESKMANUKETERAMPILAN,2),"-")),"-") -> -
A55: =NILSM2!BU4 -> - | B55: =NILSM2!BU2 -> - | F55: =NILSM2!BU5 -> 75 | G55: =VLOOKUP($AC$14,TABNILSM2,NILSM2!BU7) -> - | H55: - | I55: =IFERROR(IF($AB$19=DATABASE!$B$2,VLOOKUP(H55,TABDESPENGETAHUAN,2),IF($AB$19=DATABASE!$B$3,VLOOKUP(H55,DESKMANUPENGETAHUAN,2),"-")),"-") -> - | M55: =NILSM2!BV5 -> 75 | N55: =VLOOKUP($AC$14,TABNILSM2,NILSM2!BV7) -> - | O55: - | P55: =IFERROR(IF($AB$19=DATABASE!$B$2,VLOOKUP(O55,TABDESKETERAMPILAN,2),IF($AB$19=DATABASE!$B$3,VLOOKUP(O55,DESKMANUKETERAMPILAN,2),"-")),"-") -> -
B56: Rata-rata | G56: =VLOOKUP($AC$14,TABNILSM2,NILSM2!DO7) -> 79 | H56: =VLOOKUP(G56,TABEL_NILAI,4) -> C | N56: =VLOOKUP($AC$14,TABNILSM2,NILSM2!DP7) -> 79 | O56: =VLOOKUP(N56,TABEL_NILAI,4) -> C | R56: Total Nilai : | U56: Peringkat di Kelas :
B57: Jumlah Nilai | G57: =VLOOKUP($AC$14,TABNILSM2,NILSM2!DQ7) -> 1266 | N57: =VLOOKUP($AC$14,TABNILSM2,NILSM2!DR7) -> 1258 | R57: =VLOOKUP($AC$14,TABNILSM2,NILSM2!DS7) -> 2524 | U57: =IF(VLOOKUP($AC$14,TABNILSM2,NILSM2!DU7)="","-",VLOOKUP($AC$14,TABNILSM2,NILSM2!DU7)&" dari "&VLOOKUP($AC$14,TABNILSM2,NILSM2!DV7)) -> -
A59: C. Praktek Kerja Lapangan | M59: D. Ekstrakurikuler
A60: No. | B60: Mitra DU/DI | G60: Lokasi | J60: Lamanya (Bulan) | K60: Keterangan | M60: No. | N60: Kegiatan Ekstrakurikuler | S60: Keterangan | AB60: =D8 -> AL KINDI
A61: 1 | B61: =IF(VLOOKUP($AC$14,TABNILSM2,NILSM2!CQ7)="","-",VLOOKUP($AC$14,TABNILSM2,NILSM2!CQ7)) -> Dinas Bina Marga | G61: =IF(VLOOKUP($AC$14,TABNILSM2,NILSM2!CR7)="","-",VLOOKUP($AC$14,TABNILSM2,NILSM2!CR7)) -> Karawang | J61: =IF(VLOOKUP($AC$14,TABNILSM2,NILSM2!CS7)="","-",VLOOKUP($AC$14,TABNILSM2,NILSM2!CS7)) -> 3 | K61: =IF(VLOOKUP($AC$14,TABNILSM2,NILSM2!CT7)="","-",VLOOKUP($AC$14,TABNILSM2,NILSM2!CT7)) -> Baik | M61: 1 | N61: =IF(VLOOKUP($AC$14,TABNILSM2,NILSM2!CY7)="","-",VLOOKUP($AC$14,TABNILSM2,NILSM2!CY7)) -> Rohis | S61: =IF(VLOOKUP($AC$14,TABNILSM2,NILSM2!CZ7)="","-",VLOOKUP(X61,TABNESKUL,2,FALSE)) -> Baik, berprestasi, disiplin dan rajin berlatih | X61: =VLOOKUP($AC$14,TABNILSM2,NILSM2!CZ7) -> B
M62: 2 | N62: =IF(VLOOKUP($AC$14,TABNILSM2,NILSM2!DA7)="","-",VLOOKUP($AC$14,TABNILSM2,NILSM2!DA7)) -> OSIS | S62: =IF(VLOOKUP($AC$14,TABNILSM2,NILSM2!DB7)="","-",VLOOKUP(X62,TABNESKUL,2,FALSE)) -> Baik, berprestasi, disiplin dan rajin berlatih | X62: =VLOOKUP($AC$14,TABNILSM2,NILSM2!DB7) -> B
A63: 2 | B63: =IF(VLOOKUP($AC$14,TABNILSM2,NILSM2!CU7)="","-",VLOOKUP($AC$14,TABNILSM2,NILSM2!CU7)) -> Dinas Perhubungan | G63: =IF(VLOOKUP($AC$14,TABNILSM2,NILSM2!CV7)="","-",VLOOKUP($AC$14,TABNILSM2,NILSM2!CV7)) -> Karawang | J63: =IF(VLOOKUP($AC$14,TABNILSM2,NILSM2!CW7)="","-",VLOOKUP($AC$14,TABNILSM2,NILSM2!CW7)) -> 3 | K63: =IF(VLOOKUP($AC$14,TABNILSM2,NILSM2!CX7)="","-",VLOOKUP($AC$14,TABNILSM2,NILSM2!CX7)) -> Sangat Baik | M63: 3 | N63: =IF(VLOOKUP($AC$14,TABNILSM2,NILSM2!DC7)="","-",VLOOKUP($AC$14,TABNILSM2,NILSM2!DC7)) -> Palang Merah Remaja | S63: =IF(VLOOKUP($AC$14,TABNILSM2,NILSM2!DD7)="","-",VLOOKUP(X63,TABNESKUL,2,FALSE)) -> Baik, berprestasi, disiplin dan rajin berlatih | X63: =VLOOKUP($AC$14,TABNILSM2,NILSM2!DD7) -> B | AB63: ="Nomor Urut "&AC14 -> Nomor Urut 2

Sheet LEGGER3
A1: PEMERINTAH DAERAH PROVINSI JAWA BARAT
A2: DINAS PENDIDIKAN
A3: SMKN 1 KARAWANG
A4: Jl. Pangkal Perjuangan By Pass Karawang Telp.0267-401651 Fax.417258 Website : www.smkn1karawang.net Email : smkn1karawang@gmail.com
A6: ="LEGER NILAI SISWA TAHUN PELAJARAN "&MENU!P12 -> LEGER NILAI SISWA TAHUN PELAJARAN 2018 / 2019 | AA6: HALAMAN CETAK
AA7: Dari data ke | AB7: 2
A8: Nama Siswa | C8: : | D8: =VLOOKUP($AB$14,TABNILSM3,NILSM3!B7) -> AL KINDI | N8: Bidang Keahlian | Q8: : | R8: =KET.PETUNJUK!D18 -> TEKNOLOGI INFORMASI DAN KOMUNIKASI
A9: Nomor Induk/NISN | C9: : | D9: =IF(VLOOKUP($AB$14,TABBIODATA,BIODATA!E4)="",VLOOKUP($AB$14,TABBIODATA,BIODATA!D4),VLOOKUP($AB$14,TABBIODATA,BIODATA!D4)&" / "&VLOOKUP($AB$14,TABBIODATA,BIODATA!E4)) -> 13140768 / 9973289804 | N9: Program Keahlian | Q9: : | R9: =KET.PETUNJUK!D19 -> TEKNIK KOMPUTER DAN INFORMATIKA | AA9: Sampai data ke | AB9: 2
A10: Kelas/Semester | C10: : | D10: =W10&" / "&W11 -> XI TKRO 1 / 3 (tiga) | N10: Paket Keahlian | Q10: : | R10: =KET.PETUNJUK!D20 -> TEKNIK KOMPUTER JARINGAN | W10: =IF(OR(W11="1 (satu)",W11="2 (dua)"),"X "&MENU!I9,IF(OR(W11="3 (tiga)",W11="4 (empat)"),"XI "&MENU!I9,IF(OR(W11="5 (lima)",W11="6 (enam)"),"XII "&MENU!I9,""))) -> XI TKRO 1
A11: Wali Kelas | C11: : | D11: =NILSM3!B4 -> Bimuka Jati Andromeda, S.Pd | W11: =NILSM3!B3 -> 3 (tiga)
A13: A. Nilai Sikap | N13: Prestasi | T13: Ketidakhadiran | AA13: TAMPILAN DATA
A14: No. | B14: Kompetensi Inti | D14: Deskripsi | N14: Jenis Prestasi | R14: Keterangan | T14: Sakit | U14: : | V14: =VLOOKUP($AB$14,TABNILSM3,NILSM3!DI7) -> 3 | W14: 2 | AA14: Nomor Urut | AB14: 2
A15: 1 | B15: Spiritual (KI-1) | D15: =IFERROR(VLOOKUP(W15,TABDESSPIRITUAL,2),"-") -> Baik, dapat menerima, menjalankan, menghargai, menghayati dan mengamalkan ajaran agama yang dianut. | N15: =IFERROR(VLOOKUP($AB$14,TABNILSM3,NILSM3!DE7),"-") -> Juara 1 LKS Jawa Barat | R15: =IFERROR(VLOOKUP($AB$14,TABNILSM3,NILSM3!DF7),"-") -> 0 | T15: Izin | U15: : | V15: =VLOOKUP($AB$14,TABNILSM3,NILSM3!DJ7) -> - | W15: =VLOOKUP($AB$14,TABNILSM3,NILSM3!DL7) -> B
T16: Alpa | U16: : | V16: =VLOOKUP($AB$14,TABNILSM3,NILSM3!DK7) -> -
A17: 2 | B17: Sosial (KI-2) | D17: =IFERROR(VLOOKUP(W18,TABDESSOSIAL,2),"-") -> Sudah menunjukkan konsisten menerapkan sikap jujur, santun dan toleran dalam pergaulan, disiplin, kerjasama dalam kelompok dan tanggungjawab dalam keseharian sebagai hasil pembelajaran di sekolah. Tingkatkan sikap-sikap positif tersebut agar lebih baik.
N18: =IFERROR(VLOOKUP($AB$14,TABNILSM3,NILSM3!DG7),"-") -> - | R18: =IFERROR(VLOOKUP($AB$14,TABNILSM3,NILSM3!DH7),"-") -> - | W18: =VLOOKUP($AB$14,TABNILSM3,NILSM3!DM7) -> B | AA18: PILIHAN DESKRIPSI
AA19: OTOMATIS
A22: B. Nilai Pengetahuan dan Keterampilan
A23: No. | B23: Mata Pelajaran | F23: Pengetahuan (KI-3) | M23: Keterampilan (KI-4)
F24: KB | G24: Angka | H24: Predikat | I24: Deskripsi | M24: KB | N24: Angka | O24: Predikat | P24: Deskripsi
A25: Muatan Nasional
A26: =NILSM3!D4 -> 1 | B26: =NILSM3!D2 -> Pendidikan Agama dan Budi Pekerti | F26: =NILSM3!D5 -> 77 | G26: =VLOOKUP($AB$14,TABNILSM3,NILSM3!D7) -> 91.5 | H26: =IFERROR(VLOOKUP(G26,TABEL_NILAI,4),"-") -> B | I26: =IFERROR(IF($AA$19=DATABASE!$B$2,VLOOKUP(H26,TABDESPENGETAHUAN,2),IF($AA$19=DATABASE!$B$3,VLOOKUP(H26,DESKPENGETAHUANSM3,DESKSM3!D3),"-")),"-") -> Baik dalam memahami, menerapkan, menganalisis dan mengevaluasi sebagian besar kompetensi dasar. | M26: =NILSM3!E5 -> 77 | N26: =VLOOKUP($AB$14,TABNILSM3,NILSM3!E7) -> 83.25 | O26: =IFERROR(VLOOKUP(N26,TABEL_NILAI,4),"-") -> C | P26: =IFERROR(IF($AA$19=DATABASE!$B$2,VLOOKUP(O26,TABDESKETERAMPILAN,2),IF($AA$19=DATABASE!$B$3,VLOOKUP(O26,DESKKETERAMPILANSM3,DESKSM3!D3),"-")),"-") -> Cukup aktif bertanya, mencoba, menalar dan kreatif dalam menyelesaikan tugas praktek
A27: =NILSM3!G4 -> 2 | B27: =NILSM3!G2 -> Pendidikan Pancasila dan Kewarganegaraan | F27: =NILSM3!G5 -> 77 | G27: =VLOOKUP($AB$14,TABNILSM3,NILSM3!G7) -> 92.5 | H27: =IFERROR(VLOOKUP(G27,TABEL_NILAI,4),"-") -> B | I27: =IFERROR(IF($AA$19=DATABASE!$B$2,VLOOKUP(H27,TABDESPENGETAHUAN,2),IF($AA$19=DATABASE!$B$3,VLOOKUP(H27,DESKPENGETAHUANSM3,DESKSM3!D4),"-")),"-") -> Baik dalam memahami, menerapkan, menganalisis dan mengevaluasi sebagian besar kompetensi dasar. | M27: =NILSM3!H5 -> 77 | N27: =VLOOKUP($AB$14,TABNILSM3,NILSM3!H7) -> 88.25 | O27: B | P27: =IFERROR(IF($AA$19=DATABASE!$B$2,VLOOKUP(O27,TABDESKETERAMPILAN,2),IF($AA$19=DATABASE!$B$3,VLOOKUP(O27,DESKKETERAMPILANSM3,DESKSM3!D4),"-")),"-") -> Baik dan aktif bertanya, mencoba, menalar dan kreatif dalam menyelesaikan sebagian besar tugas praktek.
A28: =NILSM3!J4 -> 3 | B28: =NILSM3!J2 -> Bahasa Indonesia | F28: =NILSM3!J5 -> 77 | G28: =VLOOKUP($AB$14,TABNILSM3,NILSM3!J7) -> 88.75 | H28: B | I28: =IFERROR(IF($AA$19=DATABASE!$B$2,VLOOKUP(H28,TABDESPENGETAHUAN,2),IF($AA$19=DATABASE!$B$3,VLOOKUP(H28,DESKPENGETAHUANSM3,DESKSM3!D5),"-")),"-") -> Baik dalam memahami, menerapkan, menganalisis dan mengevaluasi sebagian besar kompetensi dasar. | M28: =NILSM3!K5 -> 77 | N28: =VLOOKUP($AB$14,TABNILSM3,NILSM3!K7) -> 98.25 | O28: A | P28: =IFERROR(IF($AA$19=DATABASE!$B$2,VLOOKUP(O28,TABDESKETERAMPILAN,2),IF($AA$19=DATABASE!$B$3,VLOOKUP(O28,DESKKETERAMPILANSM3,DESKSM3!D5),"-")),"-") -> Sangat baik dan aktif bertanya, mencoba, menalar dan kreatif dalam menyelesaikan tugas praktek.
A29: =NILSM3!M4 -> 4 | B29: =NILSM3!M2 -> Matematika | F29: =NILSM3!M5 -> 77 | G29: =VLOOKUP($AB$14,TABNILSM3,NILSM3!M7) -> 87.5 | H29: B | I29: =IFERROR(IF($AA$19=DATABASE!$B$2,VLOOKUP(H29,TABDESPENGETAHUAN,2),IF($AA$19=DATABASE!$B$3,VLOOKUP(H29,DESKPENGETAHUANSM3,DESKSM3!D6),"-")),"-") -> Baik dalam memahami, menerapkan, menganalisis dan mengevaluasi sebagian besar kompetensi dasar. | M29: =NILSM3!N5 -> 77 | N29: =VLOOKUP($AB$14,TABNILSM3,NILSM3!N7) -> 87.5 | O29: B | P29: =IFERROR(IF($AA$19=DATABASE!$B$2,VLOOKUP(O29,TABDESKETERAMPILAN,2),IF($AA$19=DATABASE!$B$3,VLOOKUP(O29,DESKKETERAMPILANSM3,DESKSM3!D6),"-")),"-") -> Baik dan aktif bertanya, mencoba, menalar dan kreatif dalam menyelesaikan sebagian besar tugas praktek.
A30: =NILSM3!P4 -> - | B30: =NILSM3!P2 -> - | F30: =NILSM3!P5 -> 77 | G30: =VLOOKUP($AB$14,TABNILSM3,NILSM3!P7) -> - | H30: - | I30: =IFERROR(IF($AA$19=DATABASE!$B$2,VLOOKUP(H30,TABDESPENGETAHUAN,2),IF($AA$19=DATABASE!$B$3,VLOOKUP(H30,DESKPENGETAHUANSM3,DESKSM3!D7),"-")),"-") -> - | M30: =NILSM3!Q5 -> 77 | N30: =VLOOKUP($AB$14,TABNILSM3,NILSM3!Q7) -> - | O30: - | P30: =IFERROR(IF($AA$19=DATABASE!$B$2,VLOOKUP(O30,TABDESKETERAMPILAN,2),IF($AA$19=DATABASE!$B$3,VLOOKUP(O30,DESKKETERAMPILANSM3,DESKSM3!D7),"-")),"-") -> -
A31: =NILSM3!S4 -> 5 | B31: =NILSM3!S2 -> Bahasa Inggris | F31: =NILSM3!S5 -> 77 | G31: =VLOOKUP($AB$14,TABNILSM3,NILSM3!S7) -> 80 | H31: C | I31: =IFERROR(IF($AA$19=DATABASE!$B$2,VLOOKUP(H31,TABDESPENGETAHUAN,2),IF($AA$19=DATABASE!$B$3,VLOOKUP(H31,DESKPENGETAHUANSM3,DESKSM3!D8),"-")),"-") -> Cukup baik memahami sebagian kompetensi dasar, tetapi kurang bisa menerapkan, menganalisis dan mengevaluasinya. | M31: =NILSM3!T5 -> 77 | N31: =VLOOKUP($AB$14,TABNILSM3,NILSM3!T7) -> 98.25 | O31: A | P31: =IFERROR(IF($AA$19=DATABASE!$B$2,VLOOKUP(O31,TABDESKETERAMPILAN,2),IF($AA$19=DATABASE!$B$3,VLOOKUP(O31,DESKKETERAMPILANSM3,DESKSM3!D8),"-")),"-") -> Sangat baik dan aktif bertanya, mencoba, menalar dan kreatif dalam menyelesaikan tugas praktek.
A32: Muatan Kewilayahan
A33: =NILSM3!V4 -> - | B33: =NILSM3!V2 -> - | F33: =NILSM3!V5 -> 77 | G33: =VLOOKUP($AB$14,TABNILSM3,NILSM3!V7) -> - | H33: =IFERROR(VLOOKUP(G33,TABEL_NILAI,4),"-") -> - | I33: =IFERROR(IF($AA$19=DATABASE!$B$2,VLOOKUP(H33,TABDESPENGETAHUAN,2),IF($AA$19=DATABASE!$B$3,VLOOKUP(H33,DESKPENGETAHUANSM3,DESKSM3!D10),"-")),"-") -> - | M33: =NILSM3!W5 -> 77 | N33: =VLOOKUP($AB$14,TABNILSM3,NILSM3!W7) -> - | O33: =IFERROR(VLOOKUP(N33,TABEL_NILAI,4),"-") -> - | P33: =IFERROR(IF($AA$19=DATABASE!$B$2,VLOOKUP(O33,TABDESKETERAMPILAN,2),IF($AA$19=DATABASE!$B$3,VLOOKUP(O33,DESKKETERAMPILANSM3,DESKSM3!D10),"-")),"-") -> -
A34: =NILSM3!Y4 -> 1 | B34: =NILSM3!Y2 -> Pendidikan Jasmani, Olah Raga & Kesehatan | F34: =NILSM3!Y5 -> 77 | G34: =VLOOKUP($AB$14,TABNILSM3,NILSM3!Y7) -> 88.75 | H34: =IFERROR(VLOOKUP(G34,TABEL_NILAI,4),"-") -> B | I34: =IFERROR(IF($AA$19=DATABASE!$B$2,VLOOKUP(H34,TABDESPENGETAHUAN,2),IF($AA$19=DATABASE!$B$3,VLOOKUP(H34,DESKPENGETAHUANSM3,DESKSM3!D11),"-")),"-") -> Baik dalam memahami, menerapkan, menganalisis dan mengevaluasi sebagian besar kompetensi dasar. | M34: =NILSM3!Z5 -> 77 | N34: =VLOOKUP($AB$14,TABNILSM3,NILSM3!Z7) -> 91.25 | O34: =IFERROR(VLOOKUP(N34,TABEL_NILAI,4),"-") -> B | P34: =IFERROR(IF($AA$19=DATABASE!$B$2,VLOOKUP(O34,TABDESKETERAMPILAN,2),IF($AA$19=DATABASE!$B$3,VLOOKUP(O34,DESKKETERAMPILANSM3,DESKSM3!D11),"-")),"-") -> Baik dan aktif bertanya, mencoba, menalar dan kreatif dalam menyelesaikan sebagian besar tugas praktek.
B35: Muatan Lokal
A36: =NILSM3!AB4 -> - | B36: =NILSM3!AB2 -> - | F36: =NILSM3!AB5 -> 77 | G36: =VLOOKUP($AB$14,TABNILSM3,NILSM3!AB7) -> - | H36: =IFERROR(VLOOKUP(G36,TABEL_NILAI,4),"-") -> - | I36: =IFERROR(IF($AA$19=DATABASE!$B$2,VLOOKUP(H36,TABDESPENGETAHUAN,2),IF($AA$19=DATABASE!$B$3,VLOOKUP(H36,DESKPENGETAHUANSM3,DESKSM3!D12),"-")),"-") -> - | M36: =NILSM3!AC5 -> 77 | N36: =VLOOKUP($AB$14,TABNILSM3,NILSM3!AC7) -> - | O36: =IFERROR(VLOOKUP(N36,TABEL_NILAI,4),"-") -> - | P36: =IFERROR(IF($AA$19=DATABASE!$B$2,VLOOKUP(O36,TABDESKETERAMPILAN,2),IF($AA$19=DATABASE!$B$3,VLOOKUP(O36,DESKKETERAMPILANSM3,DESKSM3!D12),"-")),"-") -> -
A37: =NILSM3!AE4 -> 2 | B37: =NILSM3!AE2 -> Bahasa Jepang | F37: =NILSM3!AE5 -> 77 | G37: =VLOOKUP($AB$14,TABNILSM3,NILSM3!AE7) -> 78.75 | H37: =IFERROR(VLOOKUP(G37,TABEL_NILAI,4),"-") -> C | I37: =IFERROR(IF($AA$19=DATABASE!$B$2,VLOOKUP(H37,TABDESPENGETAHUAN,2),IF($AA$19=DATABASE!$B$3,VLOOKUP(H37,DESKPENGETAHUANSM3,DESKSM3!D15),"-")),"-") -> Cukup baik memahami sebagian kompetensi dasar, tetapi kurang bisa menerapkan, menganalisis dan mengevaluasinya. | M37: =NILSM3!AF5 -> 77 | N37: =VLOOKUP($AB$14,TABNILSM3,NILSM3!AF7) -> 83.25 | O37: =IFERROR(VLOOKUP(N37,TABEL_NILAI,4),"-") -> C | P37: =IFERROR(IF($AA$19=DATABASE!$B$2,VLOOKUP(O37,TABDESKETERAMPILAN,2),IF($AA$19=DATABASE!$B$3,VLOOKUP(O37,DESKKETERAMPILANSM3,DESKSM3!D15),"-")),"-") -> Cukup aktif bertanya, mencoba, menalar dan kreatif dalam menyelesaikan tugas praktek
A38: Muatan Peminatan Kejuruan
A39: C1 | B39: Dasar Bidang Keahlian
A40: =NILSM3!AH4 -> 1 | B40: =NILSM3!AH2 -> - | F40: =NILSM3!AH5 -> 77 | G40: =VLOOKUP($AB$14,TABNILSM3,NILSM3!AH7) -> - | H40: =IFERROR(VLOOKUP(G40,TABEL_NILAI,4),"-") -> - | I40: =IFERROR(IF($AA$19=DATABASE!$B$2,VLOOKUP(H40,TABDESPENGETAHUAN,2),IF($AA$19=DATABASE!$B$3,VLOOKUP(H40,DESKPENGETAHUANSM3,DESKSM3!D16),"-")),"-") -> - | M40: =NILSM3!AI5 -> 77 | N40: =VLOOKUP($AB$14,TABNILSM3,NILSM3!AI7) -> - | O40: =IFERROR(VLOOKUP(N40,TABEL_NILAI,4),"-") -> - | P40: =IFERROR(IF($AA$19=DATABASE!$B$2,VLOOKUP(O40,TABDESKETERAMPILAN,2),IF($AA$19=DATABASE!$B$3,VLOOKUP(O40,DESKKETERAMPILANSM3,DESKSM3!D16),"-")),"-") -> -
A41: =NILSM3!AK4 -> 2 | B41: =NILSM3!AK2 -> - | F41: =NILSM3!AK5 -> 77 | G41: =VLOOKUP($AB$14,TABNILSM3,NILSM3!AK7) -> - | H41: =IFERROR(VLOOKUP(G41,TABEL_NILAI,4),"-") -> - | I41: =IFERROR(IF($AA$19=DATABASE!$B$2,VLOOKUP(H41,TABDESPENGETAHUAN,2),IF($AA$19=DATABASE!$B$3,VLOOKUP(H41,DESKPENGETAHUANSM3,DESKSM3!D17),"-")),"-") -> - | M41: =NILSM3!AL5 -> 77 | N41: =VLOOKUP($AB$14,TABNILSM3,NILSM3!AL7) -> - | O41: =IFERROR(VLOOKUP(N41,TABEL_NILAI,4),"-") -> - | P41: =IFERROR(IF($AA$19=DATABASE!$B$2,VLOOKUP(O41,TABDESKETERAMPILAN,2),IF($AA$19=DATABASE!$B$3,VLOOKUP(O41,DESKKETERAMPILANSM3,DESKSM3!D17),"-")),"-") -> -
A42: =NILSM3!AN4 -> 3 | B42: =NILSM3!AN2 -> - | F42: =NILSM3!AN5 -> 77 | G42: =VLOOKUP($AB$14,TABNILSM3,NILSM3!AN7) -> - | H42: =IFERROR(VLOOKUP(G42,TABEL_NILAI,4),"-") -> - | I42: =IFERROR(IF($AA$19=DATABASE!$B$2,VLOOKUP(H42,TABDESPENGETAHUAN,2),IF($AA$19=DATABASE!$B$3,VLOOKUP(H42,DESKPENGETAHUANSM3,DESKSM3!D19),"-")),"-") -> - | M42: =NILSM3!AO5 -> 77 | N42: =VLOOKUP($AB$14,TABNILSM3,NILSM3!AO7) -> - | O42: =IFERROR(VLOOKUP(N42,TABEL_NILAI,4),"-") -> - | P42: =IFERROR(IF($AA$19=DATABASE!$B$2,VLOOKUP(O42,TABDESKETERAMPILAN,2),IF($AA$19=DATABASE!$B$3,VLOOKUP(O42,DESKKETERAMPILANSM3,DESKSM3!D19),"-")),"-") -> -
A43: C2 | B43: Dasar Program Keahlian
A44: =NILSM3!AQ4 -> 1 | B44: =NILSM3!AQ2 -> - | F44: =NILSM3!AQ5 -> 77 | G44: =VLOOKUP($AB$14,TABNILSM3,NILSM3!AQ7) -> - | H44: - | I44: =IFERROR(IF($AA$19=DATABASE!$B$2,VLOOKUP(H44,TABDESPENGETAHUAN,2),IF($AA$19=DATABASE!$B$3,VLOOKUP(H44,DESKPENGETAHUANSM3,DESKSM3!D20),"-")),"-") -> - | M44: =NILSM3!AR5 -> 77 | N44: =VLOOKUP($AB$14,TABNILSM3,NILSM3!AR7) -> - | O44: - | P44: =IFERROR(IF($AA$19=DATABASE!$B$2,VLOOKUP(O44,TABDESKETERAMPILAN,2),IF($AA$19=DATABASE!$B$3,VLOOKUP(O44,DESKKETERAMPILANSM3,DESKSM3!D20),"-")),"-") -> -
A45: =NILSM3!AT4 -> 2 | B45: =NILSM3!AT2 -> - | F45: =NILSM3!AT5 -> 77 | G45: =VLOOKUP($AB$14,TABNILSM3,NILSM3!AT7) -> - | H45: - | I45: =IFERROR(IF($AA$19=DATABASE!$B$2,VLOOKUP(H45,TABDESPENGETAHUAN,2),IF($AA$19=DATABASE!$B$3,VLOOKUP(H45,DESKPENGETAHUANSM3,DESKSM3!D21),"-")),"-") -> - | M45: =NILSM3!AU5 -> 77 | N45: =VLOOKUP($AB$14,TABNILSM3,NILSM3!AU7) -> - | O45: - | P45: =IFERROR(IF($AA$19=DATABASE!$B$2,VLOOKUP(O45,TABDESKETERAMPILAN,2),IF($AA$19=DATABASE!$B$3,VLOOKUP(O45,DESKKETERAMPILANSM3,DESKSM3!D21),"-")),"-") -> -
A46: =NILSM3!AW4 -> 3 | B46: =NILSM3!AW2 -> - | F46: =NILSM3!AW5 -> 77 | G46: =VLOOKUP($AB$14,TABNILSM3,NILSM3!AW7) -> - | H46: - | I46: =IFERROR(IF($AA$19=DATABASE!$B$2,VLOOKUP(H46,TABDESPENGETAHUAN,2),IF($AA$19=DATABASE!$B$3,VLOOKUP(H46,DESKPENGETAHUANSM3,DESKSM3!D22),"-")),"-") -> - | M46: =NILSM3!AX5 -> 77 | N46: =VLOOKUP($AB$14,TABNILSM3,NILSM3!AX7) -> - | O46: - | P46: =IFERROR(IF($AA$19=DATABASE!$B$2,VLOOKUP(O46,TABDESKETERAMPILAN,2),IF($AA$19=DATABASE!$B$3,VLOOKUP(O46,DESKKETERAMPILANSM3,DESKSM3!D22),"-")),"-") -> -
A47: =NILSM3!AZ4 -> 4 | B47: =NILSM3!AZ2 -> - | F47: =NILSM3!AZ5 -> 77 | G47: =VLOOKUP($AB$14,TABNILSM3,NILSM3!AZ7) -> - | H47: - | I47: =IFERROR(IF($AA$19=DATABASE!$B$2,VLOOKUP(H47,TABDESPENGETAHUAN,2),IF($AA$19=DATABASE!$B$3,VLOOKUP(H47,DESKPENGETAHUANSM3,DESKSM3!D23),"-")),"-") -> - | M47: =NILSM3!BA5 -> 77 | N47: =VLOOKUP($AB$14,TABNILSM3,NILSM3!BA7) -> - | O47: - | P47: =IFERROR(IF($AA$19=DATABASE!$B$2,VLOOKUP(O47,TABDESKETERAMPILAN,2),IF($AA$19=DATABASE!$B$3,VLOOKUP(O47,DESKKETERAMPILANSM3,DESKSM3!D23),"-")),"-") -> -
A48: C3 | B48: Paket Keahlian
A49: =NILSM3!BC4 -> 1 | B49: =NILSM3!BC2 -> Administrasi Infrastruktur Jaringan | F49: =NILSM3!BC5 -> 77 | G49: =VLOOKUP($AB$14,TABNILSM3,NILSM3!BC7) -> 81 | H49: C | I49: =IFERROR(IF($AA$19=DATABASE!$B$2,VLOOKUP(H49,TABDESPENGETAHUAN,2),IF($AA$19=DATABASE!$B$3,VLOOKUP(H49,DESKPENGETAHUANSM3,DESKSM3!D24),"-")),"-") -> Cukup baik memahami sebagian kompetensi dasar, tetapi kurang bisa menerapkan, menganalisis dan mengevaluasinya. | M49: =NILSM3!BD5 -> 77 | N49: =VLOOKUP($AB$14,TABNILSM3,NILSM3!BD7) -> 82.25 | O49: C | P49: =IFERROR(IF($AA$19=DATABASE!$B$2,VLOOKUP(O49,TABDESKETERAMPILAN,2),IF($AA$19=DATABASE!$B$3,VLOOKUP(O49,DESKKETERAMPILANSM3,DESKSM3!D24),"-")),"-") -> Cukup aktif bertanya, mencoba, menalar dan kreatif dalam menyelesaikan tugas praktek
A50: =NILSM3!BF4 -> 2 | B50: =NILSM3!BF2 -> Administrasi Sistem Jaringan | F50: =NILSM3!BF5 -> 77 | G50: =VLOOKUP($AB$14,TABNILSM3,NILSM3!BF7) -> 81 | H50: C | I50: =IFERROR(IF($AA$19=DATABASE!$B$2,VLOOKUP(H50,TABDESPENGETAHUAN,2),IF($AA$19=DATABASE!$B$3,VLOOKUP(H50,DESKMANUPENGETAHUAN,2),"-")),"-") -> Cukup baik memahami sebagian kompetensi dasar, tetapi kurang bisa menerapkan, menganalisis dan mengevaluasinya. | M50: =NILSM3!BG5 -> 77 | N50: =VLOOKUP($AB$14,TABNILSM3,NILSM3!BG7) -> 82.25 | O50: C | P50: =IFERROR(IF($AA$19=DATABASE!$B$2,VLOOKUP(O50,TABDESKETERAMPILAN,2),IF($AA$19=DATABASE!$B$3,VLOOKUP(O50,DESKMANUKETERAMPILAN,2),"-")),"-") -> Cukup aktif bertanya, mencoba, menalar dan kreatif dalam menyelesaikan tugas praktek
A51: =NILSM3!BI4 -> 3 | B51: =NILSM3!BI2 -> Teknologi Layanan Jaringan | F51: =NILSM3!BI5 -> 77 | G51: =VLOOKUP($AB$14,TABNILSM3,NILSM3!BI7) -> 81 | H51: C | I51: =IFERROR(IF($AA$19=DATABASE!$B$2,VLOOKUP(H51,TABDESPENGETAHUAN,2),IF($AA$19=DATABASE!$B$3,VLOOKUP(H51,DESKMANUPENGETAHUAN,2),"-")),"-") -> Cukup baik memahami sebagian kompetensi dasar, tetapi kurang bisa menerapkan, menganalisis dan mengevaluasinya. | M51: =NILSM3!BJ5 -> 77 | N51: =VLOOKUP($AB$14,TABNILSM3,NILSM3!BJ7) -> 82.25 | O51: C | P51: =IFERROR(IF($AA$19=DATABASE!$B$2,VLOOKUP(O51,TABDESKETERAMPILAN,2),IF($AA$19=DATABASE!$B$3,VLOOKUP(O51,DESKMANUKETERAMPILAN,2),"-")),"-") -> Cukup aktif bertanya, mencoba, menalar dan kreatif dalam menyelesaikan tugas praktek
A52: =NILSM3!BL4 -> 4 | B52: =NILSM3!BL2 -> - | F52: =NILSM3!BL5 -> 77 | G52: =VLOOKUP($AB$14,TABNILSM3,NILSM3!BL7) -> - | H52: - | I52: =IFERROR(IF($AA$19=DATABASE!$B$2,VLOOKUP(H52,TABDESPENGETAHUAN,2),IF($AA$19=DATABASE!$B$3,VLOOKUP(H52,DESKMANUPENGETAHUAN,2),"-")),"-") -> - | M52: =NILSM3!BM5 -> 77 | N52: =VLOOKUP($AB$14,TABNILSM3,NILSM3!BM7) -> - | O52: - | P52: =IFERROR(IF($AA$19=DATABASE!$B$2,VLOOKUP(O52,TABDESKETERAMPILAN,2),IF($AA$19=DATABASE!$B$3,VLOOKUP(O52,DESKMANUKETERAMPILAN,2),"-")),"-") -> -
A53: =NILSM3!BO4 -> 5 | B53: =NILSM3!BO2 -> - | F53: =NILSM3!BO5 -> 77 | G53: =VLOOKUP($AB$14,TABNILSM3,NILSM3!BO7) -> - | H53: - | I53: =IFERROR(IF($AA$19=DATABASE!$B$2,VLOOKUP(H53,TABDESPENGETAHUAN,2),IF($AA$19=DATABASE!$B$3,VLOOKUP(H53,DESKMANUPENGETAHUAN,2),"-")),"-") -> - | M53: =NILSM3!BP5 -> 77 | N53: =VLOOKUP($AB$14,TABNILSM3,NILSM3!BP7) -> - | O53: - | P53: =IFERROR(IF($AA$19=DATABASE!$B$2,VLOOKUP(O53,TABDESKETERAMPILAN,2),IF($AA$19=DATABASE!$B$3,VLOOKUP(O53,DESKMANUKETERAMPILAN,2),"-")),"-") -> -
A54: =NILSM3!BR4 -> 6 | B54: =NILSM3!BR2 -> Produk Kreatif dan Kewirausahaan | F54: =NILSM3!BR5 -> 77 | G54: =VLOOKUP($AB$14,TABNILSM3,NILSM3!BR7) -> 86.25 | H54: B | I54: =IFERROR(IF($AA$19=DATABASE!$B$2,VLOOKUP(H54,TABDESPENGETAHUAN,2),IF($AA$19=DATABASE!$B$3,VLOOKUP(H54,DESKMANUPENGETAHUAN,2),"-")),"-") -> Baik dalam memahami, menerapkan, menganalisis dan mengevaluasi sebagian besar kompetensi dasar. | M54: =NILSM3!BS5 -> 77 | N54: =VLOOKUP($AB$14,TABNILSM3,NILSM3!BS7) -> 88.25 | O54: B | P54: =IFERROR(IF($AA$19=DATABASE!$B$2,VLOOKUP(O54,TABDESKETERAMPILAN,2),IF($AA$19=DATABASE!$B$3,VLOOKUP(O54,DESKMANUKETERAMPILAN,2),"-")),"-") -> Baik dan aktif bertanya, mencoba, menalar dan kreatif dalam menyelesaikan sebagian besar tugas praktek.
A55: =NILSM3!BU4 -> - | B55: =NILSM3!BU2 -> - | F55: =NILSM3!BU5 -> 77 | G55: =VLOOKUP($AB$14,TABNILSM3,NILSM3!BU7) -> - | H55: - | I55: =IFERROR(IF($AA$19=DATABASE!$B$2,VLOOKUP(H55,TABDESPENGETAHUAN,2),IF($AA$19=DATABASE!$B$3,VLOOKUP(H55,DESKMANUPENGETAHUAN,2),"-")),"-") -> - | M55: =NILSM3!BV5 -> 77 | N55: =VLOOKUP($AB$14,TABNILSM3,NILSM3!BV7) -> - | O55: - | P55: =IFERROR(IF($AA$19=DATABASE!$B$2,VLOOKUP(O55,TABDESKETERAMPILAN,2),IF($AA$19=DATABASE!$B$3,VLOOKUP(O55,DESKMANUKETERAMPILAN,2),"-")),"-") -> -
B56: Rata-rata | G56: =VLOOKUP($AB$14,TABNILSM3,NILSM3!DO7) -> 85 | H56: =VLOOKUP(G56,TABEL_NILAI,4) -> C | N56: =VLOOKUP($AB$14,TABNILSM3,NILSM3!DP7) -> 88 | O56: =VLOOKUP(N56,TABEL_NILAI,4) -> B | Q56: Total Nilai : | T56: Peringkat di Kelas :
B57: Jumlah Nilai | G57: =VLOOKUP($AB$14,TABNILSM3,NILSM3!DQ7) -> 937 | N57: =VLOOKUP($AB$14,TABNILSM3,NILSM3!DR7) -> 965 | Q57: =VLOOKUP($AB$14,TABNILSM3,NILSM3!DS7) -> 1902 | T57: =IF(VLOOKUP($AB$14,TABNILSM3,NILSM3!DU7)="","-",VLOOKUP($AB$14,TABNILSM3,NILSM3!DU7)&" dari "&VLOOKUP($AB$14,TABNILSM3,NILSM3!DV7)) -> -
A59: C. Praktek Kerja Lapangan | M59: D. Ekstrakurikuler
A60: No. | B60: Mitra DU/DI | G60: Lokasi | J60: Lamanya (Bulan) | K60: Keterangan | M60: No. | N60: Kegiatan Ekstrakurikuler | R60: Keterangan | AA60: =D8 -> AL KINDI
A61: 1 | B61: =IF(VLOOKUP($AB$14,TABNILSM3,NILSM3!CQ7)="","-",VLOOKUP($AB$14,TABNILSM3,NILSM3!CQ7)) -> - | G61: =IF(VLOOKUP($AB$14,TABNILSM3,NILSM3!CR7)="","-",VLOOKUP($AB$14,TABNILSM3,NILSM3!CR7)) -> - | J61: =IF(VLOOKUP($AB$14,TABNILSM3,NILSM3!CS7)="","-",VLOOKUP($AB$14,TABNILSM3,NILSM3!CS7)) -> - | K61: =IF(VLOOKUP($AB$14,TABNILSM3,NILSM3!CT7)="","-",VLOOKUP($AB$14,TABNILSM3,NILSM3!CT7)) -> - | M61: 1 | N61: =IF(VLOOKUP($AB$14,TABNILSM3,NILSM3!CY7)="","-",VLOOKUP($AB$14,TABNILSM3,NILSM3!CY7)) -> Rohis | R61: =IF(VLOOKUP($AB$14,TABNILSM3,NILSM3!CZ7)="","-",VLOOKUP(W61,TABNESKUL,2,FALSE)) -> Baik, berprestasi, disiplin dan rajin berlatih | W61: =VLOOKUP($AB$14,TABNILSM3,NILSM3!CZ7) -> B
M62: 2 | N62: =IF(VLOOKUP($AB$14,TABNILSM3,NILSM3!DA7)="","-",VLOOKUP($AB$14,TABNILSM3,NILSM3!DA7)) -> OSIS | R62: =IF(VLOOKUP($AB$14,TABNILSM3,NILSM3!DB7)="","-",VLOOKUP(W62,TABNESKUL,2,FALSE)) -> Baik, berprestasi, disiplin dan rajin berlatih | W62: =VLOOKUP($AB$14,TABNILSM3,NILSM3!DB7) -> B
A63: 2 | B63: =IF(VLOOKUP($AB$14,TABNILSM3,NILSM3!CU7)="","-",VLOOKUP($AB$14,TABNILSM3,NILSM3!CU7)) -> - | G63: =IF(VLOOKUP($AB$14,TABNILSM3,NILSM3!CV7)="","-",VLOOKUP($AB$14,TABNILSM3,NILSM3!CV7)) -> - | J63: =IF(VLOOKUP($AB$14,TABNILSM3,NILSM3!CW7)="","-",VLOOKUP($AB$14,TABNILSM3,NILSM3!CW7)) -> - | K63: =IF(VLOOKUP($AB$14,TABNILSM3,NILSM3!CX7)="","-",VLOOKUP($AB$14,TABNILSM3,NILSM3!CX7)) -> - | M63: 3 | N63: =IF(VLOOKUP($AB$14,TABNILSM3,NILSM3!DC7)="","-",VLOOKUP($AB$14,TABNILSM3,NILSM3!DC7)) -> Palang Merah Remaja | R63: =IF(VLOOKUP($AB$14,TABNILSM3,NILSM3!DD7)="","-",VLOOKUP(W63,TABNESKUL,2,FALSE)) -> Baik, berprestasi, disiplin dan rajin berlatih | W63: =VLOOKUP($AB$14,TABNILSM3,NILSM3!DD7) -> B | AA63: ="Nomor Urut "&AB14 -> Nomor Urut 2

Sheet LEGGER4
A1: PEMERINTAH DAERAH PROVINSI JAWA BARAT
A2: DINAS PENDIDIKAN
A3: SMKN 1 KARAWANG
A4: Jl. Pangkal Perjuangan By Pass Karawang Telp.0267-401651 Fax.417258 Website : www.smkn1karawang.net Email : smkn1karawang@gmail.com
A6: ="LEGER NILAI SISWA TAHUN PELAJARAN "&MENU!P12 -> LEGER NILAI SISWA TAHUN PELAJARAN 2018 / 2019 | AA6: HALAMAN CETAK
AA7: Dari data ke | AB7: 2
A8: Nama Siswa | C8: : | D8: =VLOOKUP($AB$14,TABNILSM4,NILSM4!B7) -> AL KINDI | N8: Bidang Keahlian | Q8: : | R8: =KET.PETUNJUK!D18 -> TEKNOLOGI INFORMASI DAN KOMUNIKASI
A9: Nomor Induk/NISN | C9: : | D9: =IF(VLOOKUP($AB$14,TABBIODATA,BIODATA!E4)="",VLOOKUP($AB$14,TABBIODATA,BIODATA!D4),VLOOKUP($AB$14,TABBIODATA,BIODATA!D4)&" / "&VLOOKUP($AB$14,TABBIODATA,BIODATA!E4)) -> 13140768 / 9973289804 | N9: Program Keahlian | Q9: : | R9: =KET.PETUNJUK!D19 -> TEKNIK KOMPUTER DAN INFORMATIKA | AA9: Sampai data ke | AB9: 2
A10: Kelas/Semester | C10: : | D10: =W10&" / "&W11 -> XI TKRO 1 / 4 (empat) | N10: Paket Keahlian | Q10: : | R10: =KET.PETUNJUK!D20 -> TEKNIK KOMPUTER JARINGAN | W10: =IF(OR(W11="1 (satu)",W11="2 (dua)"),"X "&MENU!I9,IF(OR(W11="3 (tiga)",W11="4 (empat)"),"XI "&MENU!I9,IF(OR(W11="5 (lima)",W11="6 (enam)"),"XII "&MENU!I9,""))) -> XI TKRO 1
A11: Wali Kelas | C11: : | D11: =NILSM4!B4 -> Bimuka Jati Andromeda, S.Pd | W11: =NILSM4!B3 -> 4 (empat)
A13: A. Nilai Sikap | N13: Prestasi | T13: Ketidakhadiran | AA13: TAMPILAN DATA
A14: No. | B14: Kompetensi Inti | D14: Deskripsi | N14: Jenis Prestasi | R14: Keterangan | T14: Sakit | U14: : | V14: =VLOOKUP($AB$14,TABNILSM4,NILSM4!DI7) -> 3 | W14: 2 | AA14: Nomor Urut | AB14: 2
A15: 1 | B15: Spiritual (KI-1) | D15: =IFERROR(VLOOKUP(W15,TABDESSPIRITUAL,2),"-") -> Sangat menerima, menjalankan, menghargai, menghayati dan mengamalkan ajaran agama yang dianut. | N15: =IFERROR(VLOOKUP($AB$14,TABNILSM4,NILSM4!DE7),"-") -> Juara 1 LKS Jawa Barat | R15: =IFERROR(VLOOKUP($AB$14,TABNILSM4,NILSM4!DF7),"-") -> 0 | T15: Izin | U15: : | V15: =VLOOKUP($AB$14,TABNILSM4,NILSM4!DJ7) -> - | W15: =VLOOKUP($AB$14,TABNILSM4,NILSM4!DL7) -> A
T16: Alpa | U16: : | V16: =VLOOKUP($AB$14,TABNILSM4,NILSM4!DK7) -> -
A17: 2 | B17: Sosial (KI-2) | D17: =IFERROR(VLOOKUP(W18,TABDESSOSIAL,2),"-") -> Sudah menunjukkan konsisten menerapkan sikap jujur, santun dan toleran dalam pergaulan, disiplin, kerjasama dalam kelompok dan tanggungjawab dalam keseharian sebagai hasil pembelajaran di sekolah. Tingkatkan sikap-sikap positif tersebut agar lebih baik.
N18: =IFERROR(VLOOKUP($AB$14,TABNILSM4,NILSM4!DG7),"-") -> - | R18: =IFERROR(VLOOKUP($AB$14,TABNILSM4,NILSM4!DH7),"-") -> - | T18: Kenaikan Kelas | W18: =VLOOKUP($AB$14,TABNILSM4,NILSM4!DM7) -> B | AA18: PILIHAN DESKRIPSI
T19: =IFERROR(VLOOKUP($AB$14,TABNILSM4,NILSM4!DW7),"-") -> NAIK KELAS | AA19: OTOMATIS
A22: B. Nilai Pengetahuan dan Keterampilan
A23: No. | B23: Mata Pelajaran | F23: Pengetahuan (KI-3) | M23: Keterampilan (KI-4)
F24: KB | G24: Angka | H24: Predikat | I24: Deskripsi | M24: KB | N24: Angka | O24: Predikat | P24: Deskripsi
